Workbook

Sheet Obliczenia
M3: Data: | N3: =TODAY() -> 2025-05-30 | P3: wersja 29/05/25
C8: Program doborowy pomp ciepła powietrze/woda
AA9: Ogrzewanie podłogowe
AA10: Grzejniki niskotemperaturowe 45/35
C11: Symulację przygotowano dla… | AA11: Grzejniki niskotemperaturowe 55/45
AA12: Wybór
AA13: Ogrzewanie podłogowe
AA15: Ogrzewanie podłogowe
C16: Powierzchnia grzewcza budynku | AA16: Grzejniki niskotemperaturowe 45/35
H17: 150 | K17: [ m2 ] | AA17: Grzejniki niskotemperaturowe 55/45
I18: 35 - 1500 | AA18: Grzejniki wysokotemperaturowe 70/55
C19: Standard wykonania budynku | N19: Standard wykonania budynku | EU | AA19: Wybór
H20: 80 | K20: [ kWh/m2/rok ] | N20: Dom energooszczędny | Q20: 50-60 | R20: [kWh/m2rok] | AA20: =AA18 -> Grzejniki wysokotemperaturowe 70/55
I21: 5 - 300 | N21: Dom budowany obecnie WT2021 | Q21: 70-80 | R21: [kWh/m2rok]
N22: Dom istniejący, dobra izolacja cieplna | Q22: 90-120 | R22: [kWh/m2rok]
C23: Lokalizacja (strefa klimatyczna) | K23: =IF(Dane!E10=-16,"[ I strefa ]",IF(Dane!E10=-18,"[ II strefa ]",IF(Dane!E10=-20,"[ III strefa ]",IF(Dane!E10=-22,"[ IV strefa ]","[ V strefa ]")))) -> [ III strefa ] | N23: Dom istniejący, słaba izolacja cieplna | Q23: 130-160 | R23: [kWh/m2rok]
N24: Dom istniejący, bez izolacji cieplnej | Q24: > 170 | R24: [kWh/m2rok]
C25: System ogrzewania budynku
N27: Skrócony bilans energetyczny budynku
C28: Temperatura pomieszczeń | N28: Szacowana moc obliczeniowa budynku | Q28: =Budynek!D10 -> 6.00 | R28: [kW]
H29: 20 | K29: [ °C ] | N29: Szacowane zapotrzebowanie energii | Q29: =Q30+Q31 -> 14961 | R29: [kWh/rok]
H30: 17 - 25 | N30: Szacowane zapotrzebowanie energii CO | Q30: =INT(Bilans!BL25) -> 12364 | R30: [kWh/rok]
N31: Szacowane zapotrzebowanie energii CWU | Q31: =Dane!E22 -> 2597 | R31: [kWh/rok]
... 28 more rows

Sheet Zestawienie
M3: Data: | N3: =TODAY() -> 2025-05-30 | P3: =Obliczenia!P3 -> wersja 29/05/25
C8: Zestawienie wyników symulacji
C11: Zestawienie wyników symulacji wszystkich pomp ciepła
P16: Przybliżone roczne koszty ogrzewania
D17: Model pompy ciepła | H17: Punkt biwalentny | K17: SCOPPC | M17: SCOPinstalacji
P19: Uwaga! Koszty eksploatacji wybranego modelu pompy ciepła, oszacowane z większą dokładnością, znajdują się w zakładce "Koszty 2023"
D22: AquaSnap 30AWH-P 004HP | H22: ='AWH-P004'!$E$44 -> -3.4 | K22: =ROUND('Bilans-AWH-P004'!$K$13,2) -> 3.17 | M22: =ROUND('Bilans-AWH-P004'!$K$14,3) -> 3.206 | P22: =ROUND('Bilans-AWH-P004'!$G$2,0) -> 6,752.00 zł | T22: =IF(H22<-7,IF(H22>-17,P22,"")) -> FALSE
D23: AquaSnap 30AWH-P 006HP | H23: ='AWH-P006'!$E$44 -> -7.5 | K23: =ROUND('Bilans-AWH-P006'!$K$13,2) -> 3.32 | M23: =ROUND('Bilans-AWH-P006'!$K$14,3) -> 3.323 | P23: =ROUND('Bilans-AWH-P006'!$G$2,0) -> 6,118.00 zł | T23: =IF(H23<-7,IF(H23>-17,P23,"")) -> 6,118.00 zł
D24: AquaSnap 30AWH-P 008HP | H24: ='AWH-P008'!$E$44 -> -14.3 | K24: =ROUND('Bilans-AWH-P008'!$K$13,2) -> 3.44 | M24: =ROUND('Bilans-AWH-P008'!$K$14,3) -> 3.442 | P24: =ROUND('Bilans-AWH-P008'!$G$2,0) -> 5,691.00 zł | T24: =IF(H24<-7,IF(H24>-17,P24,"")) -> 5,691.00 zł
D25: AquaSnap 30AWH-P 012HP | H25: ='AWH-P012T'!$E$44 -> -20 | K25: =ROUND('Bilans-AWH-P012'!$K$13,2) -> 3.51 | M25: =ROUND('Bilans-AWH-P012'!$K$14,3) -> 3.506 | P25: =ROUND('Bilans-AWH-P012'!$G$2,0) -> 5,507.00 zł | T25: =IF(H25<-7,IF(H25>-17,P25,"")) -> 
D26: AquaSnap 30AWH-P 014HP | H26: ='AWH-P014T'!$E$44 -> -20 | K26: =ROUND('Bilans-AWH-P014'!$K$13,2) -> 3.37 | M26: =ROUND('Bilans-AWH-P014'!$K$14,3) -> 3.375 | P26: =ROUND('Bilans-AWH-P014'!$G$2,0) -> 5,660.00 zł | T26: =IF(H26<-7,IF(H26>-17,P26,"")) -> 
... 27 more rows

Sheet Tabela_numerow (hidden)
C3: 100-S B04 | E3: Z021249 | F3: Vitocal 100-S AWB-M-E 101.B04
E4: Z021252 | F4: Vitocal 100-S AWB-M-E-AC 101.B04
D5: pakiet | E5: Z021273 | F5: Vitocal 100-S AWB-M-E 101.B04 + Vitocell 100-W SVWA + Vitocell 100-W CVBC
D6: pakiet | E6: Z024076 | F6: Vitocal 100-S AWB-M-E-AC 101.B04 + Vitocell 100-W SVWA + Vitocell 100-W CVBC
D7: pakiet | E7: Z023807 | F7: Vitocal 100-S AWB-M-E 101.B04 + VSVK 100 + Vitocell 100-W CVBC
D8: pakiet | E8: Z024088 | F8: Vitocal 100-S AWB-M-E-AC 101.B04 + VSVK 100 + Vitocell 100-W CVBC
D9: pakiet | E9: Z024082 | F9: Vitocal 100-S AWB-M-E 101.B04 + Vitocell 100-W CVBC
D10: pakiet | E10: Z021276 | F10: Vitocal 100-S AWB-M-E-AC 101.B04 + Vitocell 100-W CVBC
C17: 100-S B06
C18: 100-S B08
C19: 100-S A12
C20: 100-S A14
C21: 100-S A16
C22: 200-S D04
C23: 200-S D06
C24: 200-S D08
C25: 200-S D10
C26: 200-S D13
C27: 200-S D16
C28: 150-A A10
C29: 150-A A13
C30: 250-A A10
C31: 250-A A13

Sheet Oferta
M3: Data: | N3: =TODAY() -> 2025-05-30 | P3: =Obliczenia!P3 -> wersja 29/05/25
C8: ="Oferta na pompę ciepła "&Obliczenia!D58 -> Oferta na pompę ciepła Vitocal 2xx-S 201.E06
C11: Dane Inwestora
D18: Zestawienie materiałów | H18: Cena katalogowa | K18: Rabat | M18: Wartość netto | P18: VAT | R18: Wartość brutto
V20: 8%
C21: =Obliczenia!D58 -> Vitocal 2xx-S 201.E06 | M21: =H21-H21*K21 -> 0.00 zł | P21: 8% | R21: =M21*P21+M21 -> 0.00 zł | V21: 23%
C24: Zbiornik CWU | M24: =H24-H24*K24 -> 0.00 zł | P24: 8% | R24: =M24*P24+M24 -> 0.00 zł
C27: Komponent | M27: =H27-H27*K27 -> 0.00 zł | P27: 8% | R27: =M27*P27+M27 -> 0.00 zł
C30: Komponent | M30: =H30-H30*K30 -> 0.00 zł | P30: 8% | R30: =M30*P30+M30 -> 0.00 zł
C33: Komponent | M33: =H33-H33*K33 -> 0.00 zł | P33: 8% | R33: =M33*P33+M33 -> 0.00 zł
C36: Komponent | M36: =H36-H36*K36 -> 0.00 zł | P36: 8% | R36: =M36*P36+M36 -> 0.00 zł
C39: Komponent | M39: =H39-H39*K39 -> 0.00 zł | P39: 8% | R39: =M39*P39+M39 -> 0.00 zł
C42: Komponent | M42: =H42-H42*K42 -> 0.00 zł | P42: 8% | R42: =M42*P42+M42 -> 0.00 zł
C45: Komponent | M45: =H45-H45*K45 -> 0.00 zł | P45: 8% | R45: =M45*P45+M45 -> 0.00 zł
C48: Komponent | M48: =H48-H48*K48 -> 0.00 zł | P48: 8% | R48: =M48*P48+M48 -> 0.00 zł
C51: Komponent | M51: =H51-H51*K51 -> 0.00 zł | P51: 8% | R51: =M51*P51+M51 -> 0.00 zł
C56: Suma | R56: =R21+R24+R27+R30+R33+R36+R39+R42+R45+R48+R51 -> 0.00 zł
D63: Informacje dodatkowe

Sheet Koszty 2025
R2: =TODAY() -> 2025-05-30 | T2: wersja 04/07/2024 URE
D7: Kalkulator kosztów ogrzewania i energii cieplnej
D10: Taryfy i ceny paliw i energii obowiązujące w 2025 roku
T11: PL
D15: Powierzchnia grzewcza budynku
J16: =Obliczenia!H17 -> 150 | L16: [ m2 ]
J17: 35 - 700
D18: Standard wykonania budynku | P18: Standard wykonania budynku | EU
J19: 80 | L19: [ kWh/m2/rok ] | P19: Dom energooszczędny | T19: 50-60 | U19: [kWh/m2rok]
J20: 5 - 300 | P20: Dom budowany obecnie WT2021 | T20: 70-80 | U20: [kWh/m2rok]
P21: Dom istniejący, dobra izolacja cieplna | T21: 90-120 | U21: [kWh/m2rok]
D22: Liczba mieszkańców | J22: =Obliczenia!H32 -> 4 | L22: [ osoby ] | P22: Dom istniejący, słaba izolacja cieplna | T22: 130-160 | U22: [kWh/m2rok]
J23: 2 - 50 | P23: Dom istniejący, bez izolacji cieplnej | T23: > 170 | U23: [kWh/m2rok]
D24: Zużycie ciepłej wody użytkowej
J25: =Obliczenia!H35 -> 45 | L25: [ litry / dobę / os ]
J26: 25 - 100
D27: Temperatura ciepłej wody użytkowej
J28: =Obliczenia!H38 -> 44 | L28: [ °C ]
J29: 35 - 60
... 12 more rows

Sheet Zmiany
M3: Data: | N3: =TODAY() -> 2025-05-30 | P3: =Obliczenia!P3 -> wersja 29/05/25
C8: Program doborowy pomp ciepła powietrze/woda
C11: Raport wprowadzonych zmian
C16: Termin zmiany | F16: Komentarz | R16: Wskaźnik
C19: 2025-05-29 | F19: Aktualizacja cen gazu po zatwierdzeniu przez Prezesa URE nowych taryf od lipca 2025 | R19: =IF(S19="istotna",1,0.1) -> 1 | S19: istotna
C22: 2025-05-08 | F22: Aktualizacja kosztów paliw i energii wg taryfikatorów dostawców. | R22: =IF(S22="istotna",1,0.1) -> 1 | S22: istotna
F23: Wprowadzenie do symulacji pomp ciepła Carrier AquaSnap AWH-P
F24: Wycofanie z symulacji pomp ciepła Vitocal 100-A
C27: 2024-07-24 | F27: Usunięto drobny błąd dotyczący obliczeń dla dużych budynków | R27: =IF(S27="istotna",1,0.1) -> 1 | S27: istotna
C30: 2024-07-04 | F30: Wprowadzono nowe ceny paliw i energii uwzględniające taryfy od 1 lipca, oraz ustawowe mechanizmy regulujące ceny | R30: =IF(S30="istotna",1,0.1) -> 1 | S30: istotna
... 17 more rows

Sheet translate (hidden)
A1: 1 | B1: PL | C1: ENG | D1: CZ | E1: Inne
A2: 2 | B2: Program doborowy pomp ciepła powietrze/woda | D2: Program pro výběr tepelných čerpadel vzduch-voda
A3: 3 | B3: Symulację przygotowano dla… | D3: Simulace připravena pro..
A4: 4 | B4: Powierzchnia grzewcza budynku | D4: Vytápěná plocha budovy
A5: 5 | B5: Standard wykonania budynku | D5: Standard provedení budovy
A6: 6 | B6: Lokalizacja (strefa klimatyczna) | D6: Poloha (podnebné pásmo)
A7: 7 | B7: System ogrzewania budynku | D7: Systém vytápění budovy
A8: 8 | B8: Temperatura pomieszczeń | D8: Teplota v místnostech
A9: 9 | B9: Liczba mieszkańców | D9: Počet osob
A10: 10 | B10: Zużycie ciepłej wody użytkowej | D10: Spotřeba teplé užitkové vody
A11: 11 | B11: Temperatura ciepłej wody użytkowej | D11: Teplota teplé užitkové vody
A12: 12 | B12: Standard wykonania budynku | EU | D12: Typ domu dle energetické náročnosti |EU
A13: 13 | B13: Dom energooszczędny | D13: Energeticky úsporný dům
A14: 14 | B14: Dom budowany obecnie WT2021 | D14: Dům ve výstavbě WT2021
A15: 15 | B15: Dom istniejący, dobra izolacja cieplna | D15: Stávající dům, dobrá tepelná izolace
A16: 16 | B16: Dom istniejący, słaba izolacja cieplna | D16: Stávající dům, špatná tepelná izolace
A17: 17 | B17: Dom istniejący, bez izolacji cieplnej | D17: Stávající dům, bez tepelné izolace
A18: 18 | B18: Skrócony bilans energetyczny budynku | D18: Zjednodušená energetická náročnost budovy
A19: 19 | B19: Szacowana moc obliczeniowa budynku | D19: Návrhový tepelný výkon budovy
A20: 20 | B20: Szacowane zapotrzebowanie energii | D20: Odhadovaná spotřeba energie
A21: 21 | B21: Szacowane zapotrzebowanie energii CO | D21: Odhadovaná spotřeba energie ÚT
A22: 22 | B22: Szacowane zapotrzebowanie energii CWU | D22: Odhadovaná spotřeba energie TUV
A23: 23 | B23: Symulacja doboru | D23: Simulace výběru
A24: 24 | B24: Ogrzewanie podłogowe | D24: Podlahové vytápění
A25: 25 | B25: Grzejniki niskotemperaturowe 45/35 | D25: Nízkoteplotní radiátory 45/35
A26: 26 | B26: Grzejniki niskotemperaturowe 55/45 | D26: Nízkoteplotní radiátory 55/45
A27: 27 | B27: Grzejniki wysokotemperaturowe 70/55 | D27: Vysokoteplotní radiátory 70/55
A28: 28 | B28: Wybór | D28: Výběr
A29: 29 | B29: Klasa efektywności energetycznej ogrzewania pomieszczeń | D29: Třída energetické účinnosti pro vytápění prostor
A30: 30 | B30: Klimat umiarkowany, zastosowanie niskotemperaturowe W35 | D30: Mírné podnebí, nízkoteplotní systém W35
A31: 31 | B31: Klimat umiarkowany, zastosowanie średniotemperaturowe W55 | D31: Mírné podnebí, středněteplotní systém W55
... 38 more rows

Sheet Bilans (hidden)
C1: Klimaty chłodny? | E1: FALSE | G1: Różnica | I1: -2 | AP1: SCOP CO i CWU
C2: Wybór | AJ2: CO | AK2: =BL25 -> 12364.1264 | AL2: kWh | AM2: CWU | AN2: =BL30 -> 2586.976744 | AO2: kWh | AP2: =ROUND((AK2+AN2)/(AN3+AK3),2) -> 3.75
C3: =Dane!E5 -> Ogrzewanie podłogowe | V3: Wybrany produkt | X3: =Obliczenia!D58 -> Vitocal 2xx-S 201.E06 | AE3: Warunek mocy obliczeniowej | AK3: =AK2/AK7 -> 3279.981427 | AN3: =AN2/AN7 -> 705.095324
C4: Zapotrzebowanie energii | F4: =Dane!E3 -> 80 | J4: =Budynek!$D$4*(21-F7)*12/1000 -> 33.555 | L4: =Budynek!$D$4*(21-F7)*12/1000 -> 33.555 | AF4: =Budynek!D10 -> 6
Z5: Długość sezonu | AA5: VTS 35 | AC5: COP | AI5: Wybrany VTS | AK5: COP | AL5: CWU | AN5: COP | AQ5: Długość sezonu | AR5: VTS 55 | AT5: COP | AV5: VTS 45 | AX5: COP | AZ5: VTS 70 | BB5: COP | BF5: -20 | BG5: -15 | BH5: -7 | BI5: 2 | BJ5: 7 | BK5: 10 | BL5: 12 | BM5: 15 | BN5: 20 | BO5: 30 | BV5: Ceny | BW5: Vitocal 200-S AWB-M-E(-AC) 201.D04 | BX5: ='D04'!B25 -> 31109 | BY5: ='Bilans-D04'!G7 -> 3.159580836 | BZ5: =BX5/BY5 -> 9845.926285 | CA5: =BZ5 -> 9845.926285 | CM5: ilość "h" poniżej
C6: =Meteo!N1 -> Kraków | E6: Dzień | F6: T średnia | H6: T zasilania | J6: E wymagana-dzień12h | L6: E wymagana-noc12h | N6: Suma E | P6: Suma E (<12 C) | R6: Suma E (<15 C) | T6: Energia CWU | AA6: EPC | AB6: E2ŹC | AE6: D16 | AF6: ='D16'!B28 -> 16.7 | AG6: =IF(AF6>=$AF$4,IF($C$3<>"Grzejniki wysokotemperaturowe 70/55",1,0),0) -> 1 | AI6: EPC | AJ6: E2ŹC | AL6: EPC | AM6: E2ŹC | AR6: Epc | AS6: E2ŹC | AV6: Epc | AW6: E2ŹC | AZ6: Epc | BA6: E2ŹC | BF6: ='D16'!D38 -> 6 | BG6: ='D16'!E38 -> 5.25 | BH6: ='D16'!F38 -> 4.05 | BI6: ='D16'!G38 -> 2.7 | BJ6: ='D16'!H38 -> 1.95 | BK6: ='D16'!I38 -> 1.5 | BL6: ='D16'!J38 -> 1.2 | BM6: ='D16'!K38 -> 0.75 | BW6: Vitocal 200-S AWB-M-E(-AC) 201.D06 | BX6: ='D06'!B25 -> 32980 | BY6: ='Bilans-D06'!G7 -> 3.393604393 | BZ6: =BX6/BY6 -> 9718.280678 | CA6: =BZ6 -> 9718.280678 | CM6: 0stC | CN6: -5stC | CO6: -10stC | CP6: -15stC | CQ6: =BF22 -> -11.7
A7: 2 | B7: =HLOOKUP($C$6,meteo_pelne,A7,0) -> 2.1 | C7: =IF($E$1=FALSE,B7,IF(B7<0,B7+$I$1,B7)) -> 2.1 | D7: I | E7: 1 | F7: =AVERAGE(C7:C30) -> 2.358333333 | H7: =F7*Budynek!$D$31+Budynek!$D$32 -> 26.615625 | J7: =Budynek!$D$4*(Dane!$E$12-F7)*12/1000 -> 31.755 | L7: =Budynek!$D$4*(Dane!$E$13-F7)*12/1000 -> 26.355 | N7: =J7+L7 -> 58.11 | P7: =IF(F7=12,N7,IF(F7<12,N7,0)) -> 58.11 | Q7: =IF(P7=0," ",P7) -> 58.11 | R7: =IF(F7=15,N7,IF(F7<15,N7,0)) -> 58.11 | S7: =IF(R7=0," ",R7) -> 58.11 | T7: =Dane!E4*(Dane!E7-10)*1/860*Dane!G4 -> 7.11627907 | Z7: =COUNT(Bilans!Q7:Q371) -> 198 | AA7: =IF(Obliczenia!$D$58="Vitocal 2xx-S 201.E06",'Bilans-E06'!Z7,IF(Obliczenia!$D$58="Vitocal 2xx-S 201.E08",'Bilans-E08'!Z7,IF(Obliczenia!$D$58="Vitocal 2xx-S 201.E10",'Bilans-E10'!Z7,IF(Obliczenia!$D$58="Vitocal 1xx-S 101.B04",'Bilans-B04'!Z7,IF(Obliczenia!$D$58="Vitocal 1xx-S 101.B06",'Bilans-B06'!Z7,IF(Obliczenia!$D$58="Vitocal 1xx-S 101.B08",'Bilans-B08'!Z7,IF(Obliczenia!$D$58="Vitocal 1xx-S 101.A12",'Bilans-A12'!Z7,IF(Obliczenia!$D$58="Vitocal 1xx-S 101.A14",'Bilans-A14'!Z7,IF(Obliczenia!$D$58="Vitocal 1xx-S 101.A16",'Bilans-A16'!Z7,IF(Obliczenia!$D$58="Vitocal 2xx-S 201.D04",'Bilans-D04'!Z7,IF(Obliczenia!$D$58="Vitocal 2xx-S 201.D06",'Bilans-B06'!Z7,IF(Obliczenia!$D$58="Vitocal 2xx-S 201.D08",'Bilans-D08'!Z7,IF(Obliczenia!$D$58="Vitocal 2xx-S 201.D10",'Bilans-D10'!Z7,IF(Obliczenia!$D$58="Vitocal 2xx-S 201.D13",'Bilans-D13'!Z7,IF(Obliczenia!$D$58="Vitocal 2xx-S 201.D16",'Bilans-D16'!Z7,IF(Obliczenia!$D$58="Vitocal 15x-A 151.A10",'Bilans-151-A10'!Z7,IF(Obliczenia!$D$58="Vitocal 15x-A 151.A13",'Bilans-151-A13'!Z7,IF(Obliczenia!$D$58="Vitocal 15x-A 151.A16",'Bilans-151-A16'!Z7,IF(Obliczenia!$D$58="Vitocal 15x-A 151.A16",'Bilans-151-A16'!Z7,IF(Obliczenia!$D$58="Vitocal 25x-A 251.A10",'Bilans-251-A10'!Z7,IF(Obliczenia!$D$58="Vitocal 25x-A 251.A13",'Bilans-251-A13'!Z7,IF(Obliczenia!$D$58="Vitocal 15x-A 151.A06",'Bilans-151-A06'!Z7,IF(Obliczenia!$D$58="Vitocal 15x-A 151.A08",'Bilans-151-A08'!Z7,IF(Obliczenia!$D$58="Vitocal 15x-A 151.A04",'Bilans-151-A04'!Z7,IF(Obliczenia!$D$58="Vitocal 25x-A 251.A04",'Bilans-251-A04'!Z7,IF(Obliczenia!$D$58="Vitocal 25x-A 251.A06",'Bilans-251-A06'!Z7,IF(Obliczenia!$D$58="Vitocal 25x-A 251.A08",'Bilans-251-A08'!Z7,IF(Obliczenia!$D$58="Carrier 30AWH-P006HP",'Bilans-AWH-P006'!Z7,IF(Obliczenia!$D$58="Carrier 30AWH-P008HP",'Bilans-AWH-P008'!Z7,IF(Obliczenia!$D$58="Carrier 30AWH-P004HP",'Bilans-AWH-P004'!Z7,IF(Obliczenia!$D$58="Carrier 30AWH-P012HP",'Bilans-AWH-P012'!Z7,IF(Obliczenia!$D$58="Carrier 30AWH-P014HP",'Bilans-AWH-P014'!Z7,IF(Obliczenia!$D$58="Vitocal 25x-A 251.A16",'Bilans-251-A16'!Z7,IF(Obliczenia!$D$58="Vitocal 25x-A 251.A19",'Bilans-251-A19'!Z7,"błąd")))))))))))))))))))))))))))))))))) -> 58.11 | AB7: =IF(Obliczenia!$D$58="Vitocal 2xx-S 201.E06",'Bilans-E06'!AA7,IF(Obliczenia!$D$58="Vitocal 2xx-S 201.E08",'Bilans-E08'!AA7,IF(Obliczenia!$D$58="Vitocal 2xx-S 201.E10",'Bilans-E10'!AA7,IF(Obliczenia!$D$58="Vitocal 1xx-S 101.B04",'Bilans-B04'!AA7,IF(Obliczenia!$D$58="Vitocal 1xx-S 101.B06",'Bilans-B06'!AA7,IF(Obliczenia!$D$58="Vitocal 1xx-S 101.B08",'Bilans-B08'!AA7,IF(Obliczenia!$D$58="Vitocal 1xx-S 101.A12",'Bilans-A12'!AA7,IF(Obliczenia!$D$58="Vitocal 1xx-S 101.A14",'Bilans-A14'!AA7,IF(Obliczenia!$D$58="Vitocal 1xx-S 101.A16",'Bilans-A16'!AA7,IF(Obliczenia!$D$58="Vitocal 2xx-S 201.D04",'Bilans-D04'!AA7,IF(Obliczenia!$D$58="Vitocal 2xx-S 201.D06",'Bilans-B06'!AA7,IF(Obliczenia!$D$58="Vitocal 2xx-S 201.D08",'Bilans-D08'!AA7,IF(Obliczenia!$D$58="Vitocal 2xx-S 201.D10",'Bilans-D10'!AA7,IF(Obliczenia!$D$58="Vitocal 2xx-S 201.D13",'Bilans-D13'!AA7,IF(Obliczenia!$D$58="Vitocal 2xx-S 201.D16",'Bilans-D16'!AA7,IF(Obliczenia!$D$58="Vitocal 15x-A 151.A10",'Bilans-151-A10'!AA7,IF(Obliczenia!$D$58="Vitocal 15x-A 151.A13",'Bilans-151-A13'!AA7,IF(Obliczenia!$D$58="Vitocal 15x-A 151.A16",'Bilans-151-A16'!AA7,IF(Obliczenia!$D$58="Vitocal 15x-A 151.A16",'Bilans-151-A16'!AA7,IF(Obliczenia!$D$58="Vitocal 25x-A 251.A10",'Bilans-251-A10'!AA7,IF(Obliczenia!$D$58="Vitocal 25x-A 251.A13",'Bilans-251-A13'!AA7,IF(Obliczenia!$D$58="Vitocal 15x-A 151.A08",'Bilans-151-A08'!AA7,IF(Obliczenia!$D$58="Vitocal 15x-A 151.A06",'Bilans-151-A06'!AA7,IF(Obliczenia!$D$58="Vitocal 15x-A 151.A04",'Bilans-151-A04'!AA7,IF(Obliczenia!$D$58="Vitocal 25x-A 251.A04",'Bilans-251-A04'!AA7,IF(Obliczenia!$D$58="Vitocal 25x-A 251.A06",'Bilans-251-A06'!AA7,IF(Obliczenia!$D$58="Vitocal 25x-A 251.A08",'Bilans-251-A08'!AA7,IF(Obliczenia!$D$58="Carrier 30AWH-P006HP",'Bilans-AWH-P006'!AA7,IF(Obliczenia!$D$58="Carrier 30AWH-P008HP",'Bilans-AWH-P008'!AA7,IF(Obliczenia!$D$58="Carrier 30AWH-P004HP",'Bilans-AWH-P004'!AA7,IF(Obliczenia!$D$58="Carrier 30AWH-P012HP",'Bilans-AWH-P012'!AA7,IF(Obliczenia!$D$58="Carrier 30AWH-P014HP",'Bilans-AWH-P014'!AA7,IF(Obliczenia!$D$58="Vitocal 100-A 101.A16",#REF!,IF(Obliczenia!$D$58="Vitocal 100-A 101.A18",#REF!,IF(Obliczenia!$D$58="Vitocal 25x-A 251.A16",'Bilans-251-A16'!AA7,IF(Obliczenia!$D$58="Vitocal 25x-A 251.A19",'Bilans-251-A19'!AA7,"błąd")))))))))))))))))))))))))))))))))))) -> 0 | AC7: =IF(Obliczenia!$D$58="Vitocal 2xx-S 201.E06",'Bilans-E06'!F11,IF(Obliczenia!$D$58="Vitocal 2xx-S 201.E08",'Bilans-E08'!F11,IF(Obliczenia!$D$58="Vitocal 2xx-S 201.E10",'Bilans-E10'!F11,IF(Obliczenia!$D$58="Vitocal 1xx-S 101.B04",'Bilans-B04'!F11,IF(Obliczenia!$D$58="Vitocal 1xx-S 101.B06",'Bilans-B06'!F11,IF(Obliczenia!$D$58="Vitocal 1xx-S 101.B08",'Bilans-B08'!F11,IF(Obliczenia!$D$58="Vitocal 1xx-S 101.A12",'Bilans-A12'!F11,IF(Obliczenia!$D$58="Vitocal 1xx-S 101.A14",'Bilans-A14'!F11,IF(Obliczenia!$D$58="Vitocal 1xx-S 101.A16",'Bilans-A16'!F11,IF(Obliczenia!$D$58="Vitocal 2xx-S 201.D04",'Bilans-D04'!F11,IF(Obliczenia!$D$58="Vitocal 2xx-S 201.D06",'Bilans-B06'!F11,IF(Obliczenia!$D$58="Vitocal 2xx-S 201.D08",'Bilans-D08'!F11,IF(Obliczenia!$D$58="Vitocal 2xx-S 201.D10",'Bilans-D10'!F11,IF(Obliczenia!$D$58="Vitocal 2xx-S 201.D13",'Bilans-D13'!F11,IF(Obliczenia!$D$58="Vitocal 2xx-S 201.D16",'Bilans-D16'!F11,IF(Obliczenia!$D$58="Vitocal 15x-A 151.A10",'Bilans-151-A10'!F11,IF(Obliczenia!$D$58="Vitocal 15x-A 151.A13",'Bilans-151-A13'!F11,IF(Obliczenia!$D$58="Vitocal 15x-A 151.A16",'Bilans-151-A16'!F11,IF(Obliczenia!$D$58="Vitocal 25x-A 251.A10",'Bilans-251-A10'!F11,IF(Obliczenia!$D$58="Vitocal 25x-A 251.A13",'Bilans-251-A13'!F11,IF(Obliczenia!$D$58="Vitocal 15x-A 151.A08",'Bilans-151-A08'!F11,IF(Obliczenia!$D$58="Vitocal 15x-A 151.A06",'Bilans-151-A06'!F11,IF(Obliczenia!$D$58="Vitocal 15x-A 151.A04",'Bilans-151-A04'!F11,IF(Obliczenia!$D$58="Vitocal 25x-A 251.A08",'Bilans-251-A08'!F11,IF(Obliczenia!$D$58="Vitocal 25x-A 251.A06",'Bilans-251-A06'!F11,IF(Obliczenia!$D$58="Vitocal 25x-A 251.A04",'Bilans-251-A04'!F11,IF(Obliczenia!$D$58="Carrier 30AWH-P006HP",'Bilans-AWH-P006'!F11,IF(Obliczenia!$D$58="Carrier 30AWH-P008HP",'Bilans-AWH-P008'!F11,IF(Obliczenia!$D$58="Carrier 30AWH-P004HP",'Bilans-AWH-P004'!F11,IF(Obliczenia!$D$58="Carrier 30AWH-P012HP",'Bilans-AWH-P012'!F11,IF(Obliczenia!$D$58="Carrier 30AWH-P014HP",'Bilans-AWH-P014'!F11,IF(Obliczenia!$D$58="Vitocal 100-A 101.A16",#REF!,IF(Obliczenia!$D$58="Vitocal 100-A 101.A18",#REF!,IF(Obliczenia!$D$58="Vitocal 25x-A 251.A16",'Bilans-251-A16'!F11,IF(Obliczenia!$D$58="Vitocal 25x-A 251.A19",'Bilans-251-A19'!F11,"błąd"))))))))))))))))))))))))))))))))))) -> 3.769572078 | AE7: D13 | AF7: ='D13'!B28 -> 16.3 | AG7: 1 | AI7: =IF($C$3="Ogrzewanie podłogowe",AA7,IF($C$3="Grzejniki niskotemperaturowe 55/45",AR7,IF($C$3="Grzejniki wysokotemperaturowe 70/55",AZ7,AV7))) -> 58.11 | AJ7: =IF($C$3="Ogrzewanie podłogowe",AB7,IF($C$3="Grzejniki niskotemperaturowe 55/45",AS7,IF($C$3="Grzejniki wysokotemperaturowe 70/55",BA7,AW7))) -> 0 | AK7: =IF($C$3="Ogrzewanie podłogowe",AC7,IF($C$3="Grzejniki niskotemperaturowe 55/45",AT7,IF($C$3="Grzejniki wysokotemperaturowe 70/55",BB7,AX7))) -> 3.769572078 | AL7: =IF(Obliczenia!$D$58="Vitocal 2xx-S 201.E06",'Bilans-E06'!BX373,IF(Obliczenia!$D$58="Vitocal 2xx-S 201.E08",'Bilans-E08'!BX373,IF(Obliczenia!$D$58="Vitocal 2xx-S 201.E10",'Bilans-E10'!BX373,IF(Obliczenia!$D$58="Vitocal 1xx-S 101.B04",'Bilans-B04'!BX373,IF(Obliczenia!$D$58="Vitocal 1xx-S 101.B06",'Bilans-B06'!BX373,IF(Obliczenia!$D$58="Vitocal 1xx-S 101.B08",'Bilans-B08'!BX373,IF(Obliczenia!$D$58="Vitocal 1xx-S 101.A12",'Bilans-A12'!BX373,IF(Obliczenia!$D$58="Vitocal 1xx-S 101.A14",'Bilans-A14'!BX373,IF(Obliczenia!$D$58="Vitocal 1xx-S 101.A16",'Bilans-A16'!BX373,IF(Obliczenia!$D$58="Vitocal 2xx-S 201.D04",'Bilans-D04'!BX373,IF(Obliczenia!$D$58="Vitocal 2xx-S 201.D06",'Bilans-B06'!BX373,IF(Obliczenia!$D$58="Vitocal 2xx-S 201.D08",'Bilans-D08'!BX373,IF(Obliczenia!$D$58="Vitocal 2xx-S 201.D10",'Bilans-D10'!BX373,IF(Obliczenia!$D$58="Vitocal 2xx-S 201.D13",'Bilans-D13'!BX373,IF(Obliczenia!$D$58="Vitocal 2xx-S 201.D16",'Bilans-D16'!BX373,IF(Obliczenia!$D$58="Vitocal 15x-A 151.A10",'Bilans-151-A10'!BX373,IF(Obliczenia!$D$58="Vitocal 15x-A 151.A13",'Bilans-151-A13'!BX373,IF(Obliczenia!$D$58="Vitocal 15x-A 151.A16",'Bilans-151-A16'!BX373,IF(Obliczenia!$D$58="Vitocal 25x-A 251.A10",'Bilans-251-A10'!BX373,IF(Obliczenia!$D$58="Vitocal 25x-A 251.A13",'Bilans-251-A13'!BX373,IF(Obliczenia!$D$58="Vitocal 15x-A 151.A08",'Bilans-151-A08'!BX373,IF(Obliczenia!$D$58="Vitocal 15x-A 151.A06",'Bilans-151-A06'!BX373,IF(Obliczenia!$D$58="Vitocal 15x-A 151.A04",'Bilans-151-A04'!BX373,IF(Obliczenia!$D$58="Vitocal 25x-A 251.A08",'Bilans-251-A08'!BX373,IF(Obliczenia!$D$58="Vitocal 25x-A 251.A06",'Bilans-251-A06'!BX373,IF(Obliczenia!$D$58="Vitocal 25x-A 251.A04",'Bilans-251-A04'!BX373,IF(Obliczenia!$D$58="Carrier 30AWH-P006HP",'Bilans-AWH-P006'!BX373,IF(Obliczenia!$D$58="Carrier 30AWH-P008HP",'Bilans-AWH-P008'!BX373,IF(Obliczenia!$D$58="Carrier 30AWH-P004HP",'Bilans-AWH-P004'!BX373,IF(Obliczenia!$D$58="Carrier 30AWH-P012HP",'Bilans-AWH-P012'!BX373,IF(Obliczenia!$D$58="Carrier 30AWH-P014HP",'Bilans-AWH-P014'!BX373,IF(Obliczenia!$D$58="Vitocal 100-A 101.A16",#REF!,IF(Obliczenia!$D$58="Vitocal 100-A 101.A18",#REF!,IF(Obliczenia!$D$58="Vitocal 25x-A 251.A16",'Bilans-251-A16'!BX373,IF(Obliczenia!$D$58="Vitocal 25x-A 251.A19",'Bilans-251-A19'!BX373,"błąd"))))))))))))))))))))))))))))))))))) -> 2586.976744 | AM7: =IF(Obliczenia!$D$58="Vitocal 2xx-S 201.E06",'Bilans-E06'!BY373,IF(Obliczenia!$D$58="Vitocal 2xx-S 201.E08",'Bilans-E08'!BY373,IF(Obliczenia!$D$58="Vitocal 2xx-S 201.E10",'Bilans-E10'!BY373,IF(Obliczenia!$D$58="Vitocal 1xx-S 101.B04",'Bilans-B04'!BY373,IF(Obliczenia!$D$58="Vitocal 1xx-S 101.B06",'Bilans-B06'!BY373,IF(Obliczenia!$D$58="Vitocal 1xx-S 101.B08",'Bilans-B08'!BY373,IF(Obliczenia!$D$58="Vitocal 1xx-S 101.A12",'Bilans-A12'!BY373,IF(Obliczenia!$D$58="Vitocal 1xx-S 101.A14",'Bilans-A14'!BY373,IF(Obliczenia!$D$58="Vitocal 1xx-S 101.A16",'Bilans-A16'!BY373,IF(Obliczenia!$D$58="Vitocal 2xx-S 201.D04",'Bilans-D04'!BY373,IF(Obliczenia!$D$58="Vitocal 2xx-S 201.D06",'Bilans-B06'!BY373,IF(Obliczenia!$D$58="Vitocal 2xx-S 201.D08",'Bilans-D08'!BY373,IF(Obliczenia!$D$58="Vitocal 2xx-S 201.D10",'Bilans-D10'!BY373,IF(Obliczenia!$D$58="Vitocal 2xx-S 201.D13",'Bilans-D13'!BY373,IF(Obliczenia!$D$58="Vitocal 2xx-S 201.D16",'Bilans-D16'!BY373,IF(Obliczenia!$D$58="Vitocal 15x-A 151.A10",'Bilans-151-A10'!BY373,IF(Obliczenia!$D$58="Vitocal 15x-A 151.A13",'Bilans-151-A13'!BY373,IF(Obliczenia!$D$58="Vitocal 15x-A 151.A16",'Bilans-151-A16'!BY373,IF(Obliczenia!$D$58="Vitocal 25x-A 251.A10",'Bilans-251-A10'!BY373,IF(Obliczenia!$D$58="Vitocal 25x-A 251.A13",'Bilans-251-A13'!BY373,IF(Obliczenia!$D$58="Vitocal 15x-A 151.A08",'Bilans-151-A08'!BY373,IF(Obliczenia!$D$58="Vitocal 15x-A 151.A06",'Bilans-151-A06'!BY373,IF(Obliczenia!$D$58="Vitocal 15x-A 151.A04",'Bilans-151-A04'!BY373,IF(Obliczenia!$D$58="Vitocal 25x-A 251.A08",'Bilans-251-A08'!BY373,IF(Obliczenia!$D$58="Vitocal 25x-A 251.A06",'Bilans-251-A06'!BY373,IF(Obliczenia!$D$58="Vitocal 25x-A 251.A04",'Bilans-251-A04'!BY373,IF(Obliczenia!$D$58="Carrier 30AWH-P006HP",'Bilans-AWH-P006'!BY373,IF(Obliczenia!$D$58="Carrier 30AWH-P008HP",'Bilans-AWH-P008'!BY373,IF(Obliczenia!$D$58="Carrier 30AWH-P004HP",'Bilans-AWH-P004'!BY373,IF(Obliczenia!$D$58="Carrier 30AWH-P012HP",'Bilans-AWH-P012'!BY373,IF(Obliczenia!$D$58="Carrier 30AWH-P014HP",'Bilans-AWH-P014'!BY373,IF(Obliczenia!$D$58="Vitocal 100-A 101.A16",#REF!,IF(Obliczenia!$D$58="Vitocal 100-A 101.A18",#REF!,IF(Obliczenia!$D$58="Vitocal 25x-A 251.A16",'Bilans-251-A16'!BY373,IF(Obliczenia!$D$58="Vitocal 25x-A 251.A19",'Bilans-251-A19'!BY373,"błąd"))))))))))))))))))))))))))))))))))) -> 10.46511628 | AN7: =IF(Obliczenia!$D$58="Vitocal 2xx-S 201.E06",'Bilans-E06'!F19,IF(Obliczenia!$D$58="Vitocal 2xx-S 201.E08",'Bilans-E08'!F19,IF(Obliczenia!$D$58="Vitocal 2xx-S 201.E10",'Bilans-E10'!F19,IF(Obliczenia!$D$58="Vitocal 1xx-S 101.B04",'Bilans-B04'!F19,IF(Obliczenia!$D$58="Vitocal 1xx-S 101.B06",'Bilans-B06'!F19,IF(Obliczenia!$D$58="Vitocal 1xx-S 101.B08",'Bilans-B08'!F19,IF(Obliczenia!$D$58="Vitocal 1xx-S 101.A12",'Bilans-A12'!F19,IF(Obliczenia!$D$58="Vitocal 1xx-S 101.A14",'Bilans-A14'!F19,IF(Obliczenia!$D$58="Vitocal 1xx-S 101.A16",'Bilans-A16'!F19,IF(Obliczenia!$D$58="Vitocal 2xx-S 201.D04",'Bilans-D04'!F19,IF(Obliczenia!$D$58="Vitocal 2xx-S 201.D06",'Bilans-D06'!F19,IF(Obliczenia!$D$58="Vitocal 2xx-S 201.D08",'Bilans-D08'!F19,IF(Obliczenia!$D$58="Vitocal 2xx-S 201.D10",'Bilans-D10'!F19,IF(Obliczenia!$D$58="Vitocal 2xx-S 201.D13",'Bilans-D13'!F19,IF(Obliczenia!$D$58="Vitocal 2xx-S 201.D16",'Bilans-D16'!F19,IF(Obliczenia!$D$58="Vitocal 15x-A 151.A10",'Bilans-151-A10'!F19,IF(Obliczenia!$D$58="Vitocal 15x-A 151.A13",'Bilans-151-A13'!F19,IF(Obliczenia!$D$58="Vitocal 15x-A 151.A16",'Bilans-151-A16'!F19,IF(Obliczenia!$D$58="Vitocal 25x-A 251.A10",'Bilans-251-A10'!F19,IF(Obliczenia!$D$58="Vitocal 25x-A 251.A13",'Bilans-251-A13'!F19,IF(Obliczenia!$D$58="Vitocal 15x-A 151.A08",'Bilans-151-A08'!F19,IF(Obliczenia!$D$58="Vitocal 15x-A 151.A06",'Bilans-151-A06'!F19,IF(Obliczenia!$D$58="Vitocal 15x-A 151.A04",'Bilans-151-A04'!F19,IF(Obliczenia!$D$58="Vitocal 25x-A 251.A04",'Bilans-251-A04'!F19,IF(Obliczenia!$D$58="Vitocal 25x-A 251.A06",'Bilans-251-A06'!F19,IF(Obliczenia!$D$58="Vitocal 25x-A 251.A08",'Bilans-251-A08'!F19,IF(Obliczenia!$D$58="Carrier 30AWH-P006HP",'Bilans-AWH-P006'!F19,IF(Obliczenia!$D$58="Carrier 30AWH-P008HP",'Bilans-AWH-P008'!F19,IF(Obliczenia!$D$58="Carrier 30AWH-P004HP",'Bilans-AWH-P004'!F19,IF(Obliczenia!$D$58="Carrier 30AWH-P012HP",'Bilans-AWH-P012'!F19,IF(Obliczenia!$D$58="Carrier 30AWH-P014HP",'Bilans-AWH-P014'!F19,IF(Obliczenia!$D$58="Vitocal 100-A 101.A16",#REF!,IF(Obliczenia!$D$58="Vitocal 100-A 101.A18",#REF!,IF(Obliczenia!$D$58="Vitocal 25x-A 251.A16",'Bilans-251-A16'!F19,IF(Obliczenia!$D$58="Vitocal 25x-A 251.A19",'Bilans-251-A19'!F19,"błąd"))))))))))))))))))))))))))))))))))) -> 3.668974472 | AQ7: =COUNT(Bilans!S7:S371) -> 232 | AR7: =IF(Obliczenia!$D$58="Vitocal 2xx-S 201.E06",'Bilans-E06'!AR7,IF(Obliczenia!$D$58="Vitocal 2xx-S 201.E08",'Bilans-E08'!AR7,IF(Obliczenia!$D$58="Vitocal 2xx-S 201.E10",'Bilans-E10'!AR7,IF(Obliczenia!$D$58="Vitocal 1xx-S 101.B04",'Bilans-B04'!AR7,IF(Obliczenia!$D$58="Vitocal 1xx-S 101.B06",'Bilans-B06'!AR7,IF(Obliczenia!$D$58="Vitocal 1xx-S 101.B08",'Bilans-B08'!AR7,IF(Obliczenia!$D$58="Vitocal 1xx-S 101.A12",'Bilans-A12'!AR7,IF(Obliczenia!$D$58="Vitocal 1xx-S 101.A14",'Bilans-A14'!AR7,IF(Obliczenia!$D$58="Vitocal 1xx-S 101.A16",'Bilans-A16'!AR7,IF(Obliczenia!$D$58="Vitocal 2xx-S 201.D04",'Bilans-D04'!AR7,IF(Obliczenia!$D$58="Vitocal 2xx-S 201.D06",'Bilans-B06'!AR7,IF(Obliczenia!$D$58="Vitocal 2xx-S 201.D08",'Bilans-D08'!AR7,IF(Obliczenia!$D$58="Vitocal 2xx-S 201.D10",'Bilans-D10'!AR7,IF(Obliczenia!$D$58="Vitocal 2xx-S 201.D13",'Bilans-D13'!AR7,IF(Obliczenia!$D$58="Vitocal 2xx-S 201.D16",'Bilans-D16'!AR7,IF(Obliczenia!$D$58="Vitocal 15x-A 151.A10",'Bilans-151-A10'!AR7,IF(Obliczenia!$D$58="Vitocal 15x-A 151.A13",'Bilans-151-A13'!AR7,IF(Obliczenia!$D$58="Vitocal 15x-A 151.A16",'Bilans-151-A16'!AR7,IF(Obliczenia!$D$58="Vitocal 25x-A 251.A10",'Bilans-251-A10'!AR7,IF(Obliczenia!$D$58="Vitocal 25x-A 251.A13",'Bilans-251-A13'!AR7,IF(Obliczenia!$D$58="Vitocal 15x-A 151.A08",'Bilans-151-A08'!AR7,IF(Obliczenia!$D$58="Vitocal 15x-A 151.A06",'Bilans-151-A06'!AR7,IF(Obliczenia!$D$58="Vitocal 15x-A 151.A04",'Bilans-151-A04'!AR7,IF(Obliczenia!$D$58="Vitocal 25x-A 251.A04",'Bilans-251-A04'!AR7,IF(Obliczenia!$D$58="Vitocal 25x-A 251.A06",'Bilans-251-A06'!AR7,IF(Obliczenia!$D$58="Vitocal 25x-A 251.A08",'Bilans-251-A08'!AR7,IF(Obliczenia!$D$58="Carrier 30AWH-P006HP",'Bilans-AWH-P006'!AR7,IF(Obliczenia!$D$58="Carrier 30AWH-P008HP",'Bilans-AWH-P008'!AR7,IF(Obliczenia!$D$58="Carrier 30AWH-P004HP",'Bilans-AWH-P004'!AR7,IF(Obliczenia!$D$58="Carrier 30AWH-P012HP",'Bilans-AWH-P012'!AR7,IF(Obliczenia!$D$58="Carrier 30AWH-P014HP",'Bilans-AWH-P014'!AR7,IF(Obliczenia!$D$58="Vitocal 100-A 101.A16",#REF!,IF(Obliczenia!$D$58="Vitocal 100-A 101.A18",#REF!,IF(Obliczenia!$D$58="Vitocal 25x-A 251.A16",'Bilans-251-A16'!AR7,IF(Obliczenia!$D$58="Vitocal 25x-A 251.A19",'Bilans-251-A19'!AR7,"błąd"))))))))))))))))))))))))))))))))))) -> 58.11 | AS7: =IF(Obliczenia!$D$58="Vitocal 2xx-S 201.E06",'Bilans-E06'!AS7,IF(Obliczenia!$D$58="Vitocal 2xx-S 201.E08",'Bilans-E08'!AS7,IF(Obliczenia!$D$58="Vitocal 2xx-S 201.E10",'Bilans-E10'!AS7,IF(Obliczenia!$D$58="Vitocal 1xx-S 101.B04",'Bilans-B04'!AS7,IF(Obliczenia!$D$58="Vitocal 1xx-S 101.B06",'Bilans-B06'!AS7,IF(Obliczenia!$D$58="Vitocal 1xx-S 101.B08",'Bilans-B08'!AS7,IF(Obliczenia!$D$58="Vitocal 1xx-S 101.A12",'Bilans-A12'!AS7,IF(Obliczenia!$D$58="Vitocal 1xx-S 101.A14",'Bilans-A14'!AS7,IF(Obliczenia!$D$58="Vitocal 1xx-S 101.A16",'Bilans-A16'!AS7,IF(Obliczenia!$D$58="Vitocal 2xx-S 201.D04",'Bilans-D04'!AS7,IF(Obliczenia!$D$58="Vitocal 2xx-S 201.D06",'Bilans-B06'!AS7,IF(Obliczenia!$D$58="Vitocal 2xx-S 201.D08",'Bilans-D08'!AS7,IF(Obliczenia!$D$58="Vitocal 2xx-S 201.D10",'Bilans-D10'!AS7,IF(Obliczenia!$D$58="Vitocal 2xx-S 201.D13",'Bilans-D13'!AS7,IF(Obliczenia!$D$58="Vitocal 2xx-S 201.D16",'Bilans-D16'!AS7,IF(Obliczenia!$D$58="Vitocal 15x-A 151.A10",'Bilans-151-A10'!AS7,IF(Obliczenia!$D$58="Vitocal 15x-A 151.A13",'Bilans-151-A13'!AS7,IF(Obliczenia!$D$58="Vitocal 15x-A 151.A16",'Bilans-151-A16'!AS7,IF(Obliczenia!$D$58="Vitocal 25x-A 251.A10",'Bilans-251-A10'!AS7,IF(Obliczenia!$D$58="Vitocal 25x-A 251.A13",'Bilans-251-A13'!AS7,IF(Obliczenia!$D$58="Vitocal 15x-A 151.A08",'Bilans-151-A08'!AS7,IF(Obliczenia!$D$58="Vitocal 15x-A 151.A06",'Bilans-151-A06'!AS7,IF(Obliczenia!$D$58="Vitocal 15x-A 151.A04",'Bilans-151-A04'!AS7,IF(Obliczenia!$D$58="Vitocal 25x-A 251.A04",'Bilans-251-A04'!AS7,IF(Obliczenia!$D$58="Vitocal 25x-A 251.A06",'Bilans-251-A06'!AS7,IF(Obliczenia!$D$58="Vitocal 25x-A 251.A08",'Bilans-251-A08'!AS7,IF(Obliczenia!$D$58="Carrier 30AWH-P006HP",'Bilans-AWH-P006'!AS7,IF(Obliczenia!$D$58="Carrier 30AWH-P008HP",'Bilans-AWH-P008'!AS7,IF(Obliczenia!$D$58="Carrier 30AWH-P004HP",'Bilans-AWH-P004'!AS7,IF(Obliczenia!$D$58="Carrier 30AWH-P012HP",'Bilans-AWH-P012'!AS7,IF(Obliczenia!$D$58="Carrier 30AWH-P014HP",'Bilans-AWH-P014'!AS7,IF(Obliczenia!$D$58="Vitocal 100-A 101.A16",#REF!,IF(Obliczenia!$D$58="Vitocal 100-A 101.A18",#REF!,IF(Obliczenia!$D$58="Vitocal 25x-A 251.A16",'Bilans-251-A16'!AS7,IF(Obliczenia!$D$58="Vitocal 25x-A 251.A19",'Bilans-251-A19'!AS7,"błąd"))))))))))))))))))))))))))))))))))) -> 0 | AT7: =IF(Obliczenia!$D$58="Vitocal 2xx-S 201.E06",'Bilans-E06'!F15,IF(Obliczenia!$D$58="Vitocal 2xx-S 201.E08",'Bilans-E08'!F15,IF(Obliczenia!$D$58="Vitocal 2xx-S 201.E10",'Bilans-E10'!F15,IF(Obliczenia!$D$58="Vitocal 1xx-S 101.B04",'Bilans-B04'!F15,IF(Obliczenia!$D$58="Vitocal 1xx-S 101.B06",'Bilans-B06'!F15,IF(Obliczenia!$D$58="Vitocal 1xx-S 101.B08",'Bilans-B08'!F15,IF(Obliczenia!$D$58="Vitocal 1xx-S 101.A12",'Bilans-A12'!F15,IF(Obliczenia!$D$58="Vitocal 1xx-S 101.A14",'Bilans-A14'!F15,IF(Obliczenia!$D$58="Vitocal 1xx-S 101.A16",'Bilans-A16'!F15,IF(Obliczenia!$D$58="Vitocal 2xx-S 201.D04",'Bilans-D04'!F15,IF(Obliczenia!$D$58="Vitocal 2xx-S 201.D06",'Bilans-B06'!F15,IF(Obliczenia!$D$58="Vitocal 2xx-S 201.D08",'Bilans-D08'!F15,IF(Obliczenia!$D$58="Vitocal 2xx-S 201.D10",'Bilans-D10'!F15,IF(Obliczenia!$D$58="Vitocal 2xx-S 201.D13",'Bilans-D13'!F15,IF(Obliczenia!$D$58="Vitocal 2xx-S 201.D16",'Bilans-D16'!F15,IF(Obliczenia!$D$58="Vitocal 15x-A 151.A10",'Bilans-151-A10'!F15,IF(Obliczenia!$D$58="Vitocal 15x-A 151.A13",'Bilans-151-A13'!F15,IF(Obliczenia!$D$58="Vitocal 15x-A 151.A16",'Bilans-151-A16'!F15,IF(Obliczenia!$D$58="Vitocal 25x-A 251.A10",'Bilans-251-A10'!F15,IF(Obliczenia!$D$58="Vitocal 25x-A 251.A13",'Bilans-251-A13'!F15,IF(Obliczenia!$D$58="Vitocal 15x-A 151.A08",'Bilans-151-A08'!F15,IF(Obliczenia!$D$58="Vitocal 15x-A 151.A06",'Bilans-151-A06'!F15,IF(Obliczenia!$D$58="Vitocal 15x-A 151.A04",'Bilans-151-A04'!F15,IF(Obliczenia!$D$58="Vitocal 25x-A 251.A04",'Bilans-251-A04'!F15,IF(Obliczenia!$D$58="Vitocal 25x-A 251.A06",'Bilans-251-A06'!F15,IF(Obliczenia!$D$58="Vitocal 25x-A 251.A08",'Bilans-251-A08'!F15,IF(Obliczenia!$D$58="Carrier 30AWH-P006HP",'Bilans-AWH-P006'!F15,IF(Obliczenia!$D$58="Carrier 30AWH-P008HP",'Bilans-AWH-P008'!F15,IF(Obliczenia!$D$58="Carrier 30AWH-P004HP",'Bilans-AWH-P004'!F15,IF(Obliczenia!$D$58="Carrier 30AWH-P012HP",'Bilans-AWH-P012'!F15,IF(Obliczenia!$D$58="Carrier 30AWH-P014HP",'Bilans-AWH-P014'!F15,IF(Obliczenia!$D$58="Vitocal 100-A 101.A16",#REF!,IF(Obliczenia!$D$58="Vitocal 100-A 101.A18",#REF!,IF(Obliczenia!$D$58="Vitocal 25x-A 251.A16",'Bilans-251-A16'!F15,IF(Obliczenia!$D$58="Vitocal 25x-A 251.A19",'Bilans-251-A19'!F15,"błąd"))))))))))))))))))))))))))))))))))) -> 2.761382149 | AV7: =IF(Obliczenia!$D$58="Vitocal 2xx-S 201.E06",'Bilans-E06'!BJ7,IF(Obliczenia!$D$58="Vitocal 2xx-S 201.E08",'Bilans-E08'!BJ7,IF(Obliczenia!$D$58="Vitocal 2xx-S 201.E10",'Bilans-E10'!BJ7,IF(Obliczenia!$D$58="Vitocal 1xx-S 101.B04",'Bilans-B04'!BJ7,IF(Obliczenia!$D$58="Vitocal 1xx-S 101.B06",'Bilans-B06'!BJ7,IF(Obliczenia!$D$58="Vitocal 1xx-S 101.B08",'Bilans-B08'!BJ7,IF(Obliczenia!$D$58="Vitocal 1xx-S 101.A12",'Bilans-A12'!BJ7,IF(Obliczenia!$D$58="Vitocal 1xx-S 101.A14",'Bilans-A14'!BJ7,IF(Obliczenia!$D$58="Vitocal 1xx-S 101.A16",'Bilans-A16'!BJ7,IF(Obliczenia!$D$58="Vitocal 2xx-S 201.D04",'Bilans-D04'!BJ7,IF(Obliczenia!$D$58="Vitocal 2xx-S 201.D06",'Bilans-B06'!BJ7,IF(Obliczenia!$D$58="Vitocal 2xx-S 201.D08",'Bilans-D08'!BJ7,IF(Obliczenia!$D$58="Vitocal 2xx-S 201.D10",'Bilans-D10'!BJ7,IF(Obliczenia!$D$58="Vitocal 2xx-S 201.D13",'Bilans-D13'!BJ7,IF(Obliczenia!$D$58="Vitocal 2xx-S 201.D16",'Bilans-D16'!BJ7,IF(Obliczenia!$D$58="Vitocal 15x-A 151.A10",'Bilans-151-A10'!BJ7,IF(Obliczenia!$D$58="Vitocal 15x-A 151.A13",'Bilans-151-A13'!BJ7,IF(Obliczenia!$D$58="Vitocal 15x-A 151.A16",'Bilans-151-A16'!BJ7,IF(Obliczenia!$D$58="Vitocal 25x-A 251.A10",'Bilans-251-A10'!BJ7,IF(Obliczenia!$D$58="Vitocal 25x-A 251.A13",'Bilans-251-A13'!BJ7,IF(Obliczenia!$D$58="Vitocal 15x-A 151.A08",'Bilans-151-A08'!BJ7,IF(Obliczenia!$D$58="Vitocal 15x-A 151.A06",'Bilans-151-A06'!BJ7,IF(Obliczenia!$D$58="Vitocal 15x-A 151.A04",'Bilans-151-A04'!BJ7,IF(Obliczenia!$D$58="Vitocal 25x-A 251.A04",'Bilans-251-A04'!BJ7,IF(Obliczenia!$D$58="Vitocal 25x-A 251.A06",'Bilans-251-A06'!BJ7,IF(Obliczenia!$D$58="Vitocal 25x-A 251.A08",'Bilans-251-A08'!BJ7,IF(Obliczenia!$D$58="Carrier 30AWH-P006HP",'Bilans-AWH-P006'!BJ7,IF(Obliczenia!$D$58="Carrier 30AWH-P008HP",'Bilans-AWH-P008'!BJ7,IF(Obliczenia!$D$58="Carrier 30AWH-P004HP",'Bilans-AWH-P004'!BJ7,IF(Obliczenia!$D$58="Carrier 30AWH-P012HP",'Bilans-AWH-P012'!BJ7,IF(Obliczenia!$D$58="Carrier 30AWH-P014HP",'Bilans-AWH-P014'!BJ7,IF(Obliczenia!$D$58="Vitocal 100-A 101.A16",#REF!,IF(Obliczenia!$D$58="Vitocal 100-A 101.A18",#REF!,IF(Obliczenia!$D$58="Vitocal 25x-A 251.A16",'Bilans-251-A16'!BJ7,IF(Obliczenia!$D$58="Vitocal 25x-A 251.A19",'Bilans-251-A19'!BJ7,"błąd"))))))))))))))))))))))))))))))))))) -> 58.11 | AW7: =IF(Obliczenia!$D$58="Vitocal 2xx-S 201.E06",'Bilans-E06'!BK7,IF(Obliczenia!$D$58="Vitocal 2xx-S 201.E08",'Bilans-E08'!BK7,IF(Obliczenia!$D$58="Vitocal 2xx-S 201.E10",'Bilans-E10'!BK7,IF(Obliczenia!$D$58="Vitocal 1xx-S 101.B04",'Bilans-B04'!BK7,IF(Obliczenia!$D$58="Vitocal 1xx-S 101.B06",'Bilans-B06'!BK7,IF(Obliczenia!$D$58="Vitocal 1xx-S 101.B08",'Bilans-B08'!BK7,IF(Obliczenia!$D$58="Vitocal 1xx-S 101.A12",'Bilans-A12'!BK7,IF(Obliczenia!$D$58="Vitocal 1xx-S 101.A14",'Bilans-A14'!BK7,IF(Obliczenia!$D$58="Vitocal 1xx-S 101.A16",'Bilans-A16'!BK7,IF(Obliczenia!$D$58="Vitocal 2xx-S 201.D04",'Bilans-D04'!BK7,IF(Obliczenia!$D$58="Vitocal 2xx-S 201.D06",'Bilans-B06'!BK7,IF(Obliczenia!$D$58="Vitocal 2xx-S 201.D08",'Bilans-D08'!BK7,IF(Obliczenia!$D$58="Vitocal 2xx-S 201.D10",'Bilans-D10'!BK7,IF(Obliczenia!$D$58="Vitocal 2xx-S 201.D13",'Bilans-D13'!BK7,IF(Obliczenia!$D$58="Vitocal 2xx-S 201.D16",'Bilans-D16'!BK7,IF(Obliczenia!$D$58="Vitocal 15x-A 151.A10",'Bilans-151-A10'!BK7,IF(Obliczenia!$D$58="Vitocal 15x-A 151.A13",'Bilans-151-A13'!BK7,IF(Obliczenia!$D$58="Vitocal 15x-A 151.A16",'Bilans-151-A16'!BK7,IF(Obliczenia!$D$58="Vitocal 25x-A 251.A10",'Bilans-251-A10'!BK7,IF(Obliczenia!$D$58="Vitocal 25x-A 251.A13",'Bilans-251-A13'!BK7,IF(Obliczenia!$D$58="Vitocal 15x-A 151.A08",'Bilans-151-A08'!BK7,IF(Obliczenia!$D$58="Vitocal 15x-A 151.A06",'Bilans-151-A06'!BK7,IF(Obliczenia!$D$58="Vitocal 15x-A 151.A04",'Bilans-151-A04'!BK7,IF(Obliczenia!$D$58="Vitocal 25x-A 251.A04",'Bilans-251-A04'!BK7,IF(Obliczenia!$D$58="Vitocal 25x-A 251.A06",'Bilans-251-A06'!BK7,IF(Obliczenia!$D$58="Vitocal 25x-A 251.A08",'Bilans-251-A08'!BK7,IF(Obliczenia!$D$58="Carrier 30AWH-P006HP",'Bilans-AWH-P006'!BK7,IF(Obliczenia!$D$58="Carrier 30AWH-P008HP",'Bilans-AWH-P008'!BK7,IF(Obliczenia!$D$58="Carrier 30AWH-P004HP",'Bilans-AWH-P004'!BK7,IF(Obliczenia!$D$58="Carrier 30AWH-P012HP",'Bilans-AWH-P012'!BK7,IF(Obliczenia!$D$58="Carrier 30AWH-P014HP",'Bilans-AWH-P014'!BK7,IF(Obliczenia!$D$58="Vitocal 100-A 101.A16",#REF!,IF(Obliczenia!$D$58="Vitocal 100-A 101.A18",#REF!,IF(Obliczenia!$D$58="Vitocal 25x-A 251.A16",'Bilans-251-A16'!BK7,IF(Obliczenia!$D$58="Vitocal 25x-A 251.A19",'Bilans-251-A19'!BK7,"błąd"))))))))))))))))))))))))))))))))))) -> 0 | AX7: =IF(Obliczenia!$D$58="Vitocal 2xx-S 201.E06",'Bilans-E06'!F28,IF(Obliczenia!$D$58="Vitocal 2xx-S 201.E08",'Bilans-E08'!F28,IF(Obliczenia!$D$58="Vitocal 2xx-S 201.E10",'Bilans-D10'!F28,IF(Obliczenia!$D$58="Vitocal 1xx-S 101.B04",'Bilans-B04'!F28,IF(Obliczenia!$D$58="Vitocal 1xx-S 101.B06",'Bilans-B06'!F28,IF(Obliczenia!$D$58="Vitocal 1xx-S 101.B08",'Bilans-B08'!F28,IF(Obliczenia!$D$58="Vitocal 1xx-S 101.A12",'Bilans-A12'!F28,IF(Obliczenia!$D$58="Vitocal 1xx-S 101.A14",'Bilans-A14'!F28,IF(Obliczenia!$D$58="Vitocal 1xx-S 101.A16",'Bilans-A16'!F28,IF(Obliczenia!$D$58="Vitocal 2xx-S 201.D04",'Bilans-D04'!F28,IF(Obliczenia!$D$58="Vitocal 2xx-S 201.D06",'Bilans-B06'!F28,IF(Obliczenia!$D$58="Vitocal 2xx-S 201.D08",'Bilans-D08'!F28,IF(Obliczenia!$D$58="Vitocal 2xx-S 201.D10",'Bilans-D10'!F28,IF(Obliczenia!$D$58="Vitocal 2xx-S 201.D13",'Bilans-D13'!F28,IF(Obliczenia!$D$58="Vitocal 2xx-S 201.D16",'Bilans-D16'!F28,IF(Obliczenia!$D$58="Vitocal 15x-A 151.A10",'Bilans-151-A10'!F28,IF(Obliczenia!$D$58="Vitocal 15x-A 151.A13",'Bilans-151-A13'!F28,IF(Obliczenia!$D$58="Vitocal 15x-A 151.A16",'Bilans-151-A16'!F28,IF(Obliczenia!$D$58="Vitocal 25x-A 251.A10",'Bilans-251-A10'!F28,IF(Obliczenia!$D$58="Vitocal 25x-A 251.A13",'Bilans-251-A13'!F28,IF(Obliczenia!$D$58="Vitocal 15x-A 151.A08",'Bilans-151-A08'!F28,IF(Obliczenia!$D$58="Vitocal 15x-A 151.A06",'Bilans-151-A06'!F28,IF(Obliczenia!$D$58="Vitocal 15x-A 151.A04",'Bilans-151-A04'!F28,IF(Obliczenia!$D$58="Vitocal 25x-A 251.A04",'Bilans-251-A04'!F28,IF(Obliczenia!$D$58="Vitocal 25x-A 251.A06",'Bilans-251-A06'!F28,IF(Obliczenia!$D$58="Vitocal 25x-A 251.A08",'Bilans-251-A08'!F28,IF(Obliczenia!$D$58="Carrier 30AWH-P006HP",'Bilans-AWH-P006'!F28,IF(Obliczenia!$D$58="Carrier 30AWH-P008HP",'Bilans-AWH-P008'!F28,IF(Obliczenia!$D$58="Carrier 30AWH-P004HP",'Bilans-AWH-P004'!F28,IF(Obliczenia!$D$58="Carrier 30AWH-P012HP",'Bilans-AWH-P012'!F28,IF(Obliczenia!$D$58="Carrier 30AWH-P014HP",'Bilans-AWH-P014'!F28,IF(Obliczenia!$D$58="Vitocal 100-A 101.A16",#REF!,IF(Obliczenia!$D$58="Vitocal 100-A 101.A18",#REF!,IF(Obliczenia!$D$58="Vitocal 25x-A 251.A16",'Bilans-251-A16'!F28,IF(Obliczenia!$D$58="Vitocal 25x-A 251.A19",'Bilans-251-A19'!F28,"błąd"))))))))))))))))))))))))))))))))))) -> 3.477619333 | AZ7: =IF(Obliczenia!$D$58="Vitocal 15x-A 151.A10",'Bilans-151-A10'!CK7,IF(Obliczenia!$D$58="Vitocal 15x-A 151.A13",'Bilans-151-A13'!CK7,IF(Obliczenia!$D$58="Vitocal 15x-A 151.A16",'Bilans-151-A16'!CK7,IF(Obliczenia!$D$58="Vitocal 25x-A 251.A10",'Bilans-251-A10'!CK7,IF(Obliczenia!$D$58="Vitocal 25x-A 251.A13",'Bilans-251-A13'!CK7,IF(Obliczenia!$D$58="Vitocal 15x-A 151.A08",'Bilans-151-A08'!CK7,IF(Obliczenia!$D$58="Vitocal 15x-A 151.A06",'Bilans-151-A06'!CK7,IF(Obliczenia!$D$58="Vitocal 15x-A 151.A04",'Bilans-151-A04'!CK7,IF(Obliczenia!$D$58="Vitocal 25x-A 251.A04",'Bilans-251-A04'!CK7,IF(Obliczenia!$D$58="Vitocal 25x-A 251.A06",'Bilans-251-A06'!CK7,IF(Obliczenia!$D$58="Vitocal 25x-A 251.A08",'Bilans-251-A08'!CK7,IF(Obliczenia!$D$58="Vitocal 25x-A 251.A16",'Bilans-251-A16'!CK7,IF(Obliczenia!$D$58="Vitocal 25x-A 251.A19",'Bilans-251-A19'!CK7,IF(Obliczenia!$D$58="Carrier 30AWH-P004HP",'Bilans-AWH-P004'!CK7,IF(Obliczenia!$D$58="Carrier 30AWH-P006HP",'Bilans-AWH-P006'!CK7,IF(Obliczenia!$D$58="Carrier 30AWH-P008HP",'Bilans-AWH-P008'!CK7,IF(Obliczenia!$D$58="Carrier 30AWH-P012HP",'Bilans-AWH-P012'!CK7,IF(Obliczenia!$D$58="Carrier 30AWH-P014HP",'Bilans-AWH-P014'!CK7,"błąd")))))))))))))))))) -> błąd | BA7: =IF(Obliczenia!$D$58="Vitocal 15x-A 151.A10",'Bilans-151-A10'!CL7,IF(Obliczenia!$D$58="Vitocal 15x-A 151.A13",'Bilans-151-A13'!CL7,IF(Obliczenia!$D$58="Vitocal 15x-A 151.A16",'Bilans-151-A16'!CL7,IF(Obliczenia!$D$58="Vitocal 25x-A 251.A10",'Bilans-251-A10'!CL7,IF(Obliczenia!$D$58="Vitocal 25x-A 251.A13",'Bilans-251-A13'!CL7,IF(Obliczenia!$D$58="Vitocal 15x-A 151.A08",'Bilans-151-A08'!CL7,IF(Obliczenia!$D$58="Vitocal 15x-A 151.A06",'Bilans-151-A06'!CL7,IF(Obliczenia!$D$58="Vitocal 15x-A 151.A04",'Bilans-151-A04'!CL7,IF(Obliczenia!$D$58="Vitocal 25x-A 251.A04",'Bilans-251-A04'!CL7,IF(Obliczenia!$D$58="Vitocal 25x-A 251.A06",'Bilans-251-A06'!CL7,IF(Obliczenia!$D$58="Vitocal 25x-A 251.A08",'Bilans-251-A08'!CL7,IF(Obliczenia!$D$58="Vitocal 25x-A 251.A16",'Bilans-251-A16'!CL7,IF(Obliczenia!$D$58="Vitocal 25x-A 251.A19",'Bilans-251-A19'!CL7,IF(Obliczenia!$D$58="Carrier 30AWH-P004HP",'Bilans-AWH-P004'!CL7,IF(Obliczenia!$D$58="Carrier 30AWH-P006HP",'Bilans-AWH-P006'!CL7,IF(Obliczenia!$D$58="Carrier 30AWH-P008HP",'Bilans-AWH-P008'!CL7,IF(Obliczenia!$D$58="Carrier 30AWH-P012HP",'Bilans-AWH-P012'!CL7,IF(Obliczenia!$D$58="Carrier 30AWH-P014HP",'Bilans-AWH-P014'!CL7,"błąd")))))))))))))))))) -> błąd | BB7: =IF(Obliczenia!$D$58="Vitocal 15x-A 151.A10",'Bilans-151-A10'!F32,IF(Obliczenia!$D$58="Vitocal 15x-A 151.A13",'Bilans-151-A13'!F32,IF(Obliczenia!$D$58="Vitocal 15x-A 151.A16",'Bilans-151-A16'!F32,IF(Obliczenia!$D$58="Vitocal 25x-A 251.A10",'Bilans-251-A10'!F32,IF(Obliczenia!$D$58="Vitocal 25x-A 251.A13",'Bilans-251-A13'!F32,IF(Obliczenia!$D$58="Vitocal 15x-A 151.A08",'Bilans-151-A08'!F32,IF(Obliczenia!$D$58="Vitocal 15x-A 151.A06",'Bilans-151-A06'!F32,IF(Obliczenia!$D$58="Vitocal 15x-A 151.A04",'Bilans-151-A04'!F32,IF(Obliczenia!$D$58="Vitocal 25x-A 251.A04",'Bilans-251-A04'!F32,IF(Obliczenia!$D$58="Vitocal 25x-A 251.A06",'Bilans-251-A06'!F32,IF(Obliczenia!$D$58="Vitocal 25x-A 251.A08",'Bilans-251-A08'!F32,IF(Obliczenia!$D$58="Vitocal 25x-A 251.A16",'Bilans-251-A16'!F32,IF(Obliczenia!$D$58="Vitocal 25x-A 251.A19",'Bilans-251-A19'!F32,IF(Obliczenia!$D$58="Carrier 30AWH-P004HP",'Bilans-AWH-P004'!F32,IF(Obliczenia!$D$58="Carrier 30AWH-P006HP",'Bilans-AWH-P006'!F32,IF(Obliczenia!$D$58="Carrier 30AWH-P008HP",'Bilans-AWH-P008'!F32,IF(Obliczenia!$D$58="Carrier 30AWH-P012HP",'Bilans-AWH-P012'!F32,IF(Obliczenia!$D$58="Carrier 30AWH-P014HP",'Bilans-AWH-P014'!F32,"błąd")))))))))))))))))) -> błąd | BW7: Vitocal 200-S AWB-M-E(-AC) 201.D08 | BX7: ='D08'!B25 -> 34363 | BY7: ='Bilans-D08'!G7 -> 3.621136359 | BZ7: 9489.562556 | CA7: 9489.562556 | CK7: =F7 -> 2.358333333 | CL7: =_xlfn.SORTBY(wykres_temp,wykres_temp,1) -> -11.7875 | CM7: =COUNTIFS(wym_temp2,"<0") -> 1868 | CN7: =COUNTIFS(wym_temp2,"<-5") -> 540 | CO7: =COUNTIFS(wym_temp2,"<-10") -> 108 | CP7: =COUNTIFS(wym_temp2,"<-15") -> 17 | CQ7: =COUNTIFS(wym_temp2,"<"&BF22) -> 57
A8: 3 | B8: 1.7 | C8: =IF($E$1=FALSE,B8,IF(B8<0,B8+$I$1,B8)) -> 1.7 | E8: 2 | F8: =AVERAGE(C31:C54) -> -0.7666666667 | H8: =F8*Budynek!$D$31+Budynek!$D$32 -> 27.7875 | J8: =Budynek!$D$4*(Dane!$E$12-F8)*12/1000 -> 37.38 | L8: =Budynek!$D$4*(Dane!$E$13-F8)*12/1000 -> 31.98 | N8: =J8+L8 -> 69.36 | P8: =IF(F8=12,N8,IF(F8<12,N8,0)) -> 69.36 | Q8: 69.36 | R8: 69.36 | S8: 69.36 | T8: =T7 -> 7.11627907 | AA8: =IF(Obliczenia!$D$58="Vitocal 2xx-S 201.E06",'Bilans-E06'!Z8,IF(Obliczenia!$D$58="Vitocal 2xx-S 201.E08",'Bilans-E08'!Z8,IF(Obliczenia!$D$58="Vitocal 2xx-S 201.E10",'Bilans-E10'!Z8,IF(Obliczenia!$D$58="Vitocal 1xx-S 101.B04",'Bilans-B04'!Z8,IF(Obliczenia!$D$58="Vitocal 1xx-S 101.B06",'Bilans-B06'!Z8,IF(Obliczenia!$D$58="Vitocal 1xx-S 101.B08",'Bilans-B08'!Z8,IF(Obliczenia!$D$58="Vitocal 1xx-S 101.A12",'Bilans-A12'!Z8,IF(Obliczenia!$D$58="Vitocal 1xx-S 101.A14",'Bilans-A14'!Z8,IF(Obliczenia!$D$58="Vitocal 1xx-S 101.A16",'Bilans-A16'!Z8,IF(Obliczenia!$D$58="Vitocal 2xx-S 201.D04",'Bilans-D04'!Z8,IF(Obliczenia!$D$58="Vitocal 2xx-S 201.D06",'Bilans-B06'!Z8,IF(Obliczenia!$D$58="Vitocal 2xx-S 201.D08",'Bilans-D08'!Z8,IF(Obliczenia!$D$58="Vitocal 2xx-S 201.D10",'Bilans-D10'!Z8,IF(Obliczenia!$D$58="Vitocal 2xx-S 201.D13",'Bilans-D13'!Z8,IF(Obliczenia!$D$58="Vitocal 2xx-S 201.D16",'Bilans-D16'!Z8,IF(Obliczenia!$D$58="Vitocal 15x-A 151.A10",'Bilans-151-A10'!Z8,IF(Obliczenia!$D$58="Vitocal 15x-A 151.A13",'Bilans-151-A13'!Z8,IF(Obliczenia!$D$58="Vitocal 15x-A 151.A16",'Bilans-151-A16'!Z8,IF(Obliczenia!$D$58="Vitocal 15x-A 151.A16",'Bilans-151-A16'!Z8,IF(Obliczenia!$D$58="Vitocal 25x-A 251.A10",'Bilans-251-A10'!Z8,IF(Obliczenia!$D$58="Vitocal 25x-A 251.A13",'Bilans-251-A13'!Z8,IF(Obliczenia!$D$58="Vitocal 15x-A 151.A06",'Bilans-151-A06'!Z8,IF(Obliczenia!$D$58="Vitocal 15x-A 151.A08",'Bilans-151-A08'!Z8,IF(Obliczenia!$D$58="Vitocal 15x-A 151.A04",'Bilans-151-A04'!Z8,IF(Obliczenia!$D$58="Vitocal 25x-A 251.A04",'Bilans-251-A04'!Z8,IF(Obliczenia!$D$58="Vitocal 25x-A 251.A06",'Bilans-251-A06'!Z8,IF(Obliczenia!$D$58="Vitocal 25x-A 251.A08",'Bilans-251-A08'!Z8,IF(Obliczenia!$D$58="Carrier 30AWH-P006HP",'Bilans-AWH-P006'!Z8,IF(Obliczenia!$D$58="Carrier 30AWH-P008HP",'Bilans-AWH-P008'!Z8,IF(Obliczenia!$D$58="Carrier 30AWH-P004HP",'Bilans-AWH-P004'!Z8,IF(Obliczenia!$D$58="Carrier 30AWH-P012HP",'Bilans-AWH-P012'!Z8,IF(Obliczenia!$D$58="Carrier 30AWH-P014HP",'Bilans-AWH-P014'!Z8,IF(Obliczenia!$D$58="Vitocal 100-A 101.A16",#REF!,IF(Obliczenia!$D$58="Vitocal 100-A 101.A18",#REF!,IF(Obliczenia!$D$58="Vitocal 25x-A 251.A16",'Bilans-251-A16'!Z8,IF(Obliczenia!$D$58="Vitocal 25x-A 251.A19",'Bilans-251-A19'!Z8,"błąd")))))))))))))))))))))))))))))))))))) -> 69.36 | AB8: =IF(Obliczenia!$D$58="Vitocal 2xx-S 201.E06",'Bilans-E06'!AA8,IF(Obliczenia!$D$58="Vitocal 2xx-S 201.E08",'Bilans-E08'!AA8,IF(Obliczenia!$D$58="Vitocal 2xx-S 201.E10",'Bilans-E10'!AA8,IF(Obliczenia!$D$58="Vitocal 1xx-S 101.B04",'Bilans-B04'!AA8,IF(Obliczenia!$D$58="Vitocal 1xx-S 101.B06",'Bilans-B06'!AA8,IF(Obliczenia!$D$58="Vitocal 1xx-S 101.B08",'Bilans-B08'!AA8,IF(Obliczenia!$D$58="Vitocal 1xx-S 101.A12",'Bilans-A12'!AA8,IF(Obliczenia!$D$58="Vitocal 1xx-S 101.A14",'Bilans-A14'!AA8,IF(Obliczenia!$D$58="Vitocal 1xx-S 101.A16",'Bilans-A16'!AA8,IF(Obliczenia!$D$58="Vitocal 2xx-S 201.D04",'Bilans-D04'!AA8,IF(Obliczenia!$D$58="Vitocal 2xx-S 201.D06",'Bilans-B06'!AA8,IF(Obliczenia!$D$58="Vitocal 2xx-S 201.D08",'Bilans-D08'!AA8,IF(Obliczenia!$D$58="Vitocal 2xx-S 201.D10",'Bilans-D10'!AA8,IF(Obliczenia!$D$58="Vitocal 2xx-S 201.D13",'Bilans-D13'!AA8,IF(Obliczenia!$D$58="Vitocal 2xx-S 201.D16",'Bilans-D16'!AA8,IF(Obliczenia!$D$58="Vitocal 15x-A 151.A10",'Bilans-151-A10'!AA8,IF(Obliczenia!$D$58="Vitocal 15x-A 151.A13",'Bilans-151-A13'!AA8,IF(Obliczenia!$D$58="Vitocal 15x-A 151.A16",'Bilans-151-A16'!AA8,IF(Obliczenia!$D$58="Vitocal 15x-A 151.A16",'Bilans-151-A16'!AA8,IF(Obliczenia!$D$58="Vitocal 25x-A 251.A10",'Bilans-251-A10'!AA8,IF(Obliczenia!$D$58="Vitocal 25x-A 251.A13",'Bilans-251-A13'!AA8,IF(Obliczenia!$D$58="Vitocal 15x-A 151.A08",'Bilans-151-A08'!AA8,IF(Obliczenia!$D$58="Vitocal 15x-A 151.A06",'Bilans-151-A06'!AA8,IF(Obliczenia!$D$58="Vitocal 15x-A 151.A04",'Bilans-151-A04'!AA8,IF(Obliczenia!$D$58="Vitocal 25x-A 251.A04",'Bilans-251-A04'!AA8,IF(Obliczenia!$D$58="Vitocal 25x-A 251.A06",'Bilans-251-A06'!AA8,IF(Obliczenia!$D$58="Vitocal 25x-A 251.A08",'Bilans-251-A08'!AA8,IF(Obliczenia!$D$58="Carrier 30AWH-P006HP",'Bilans-AWH-P006'!AA8,IF(Obliczenia!$D$58="Carrier 30AWH-P008HP",'Bilans-AWH-P008'!AA8,IF(Obliczenia!$D$58="Carrier 30AWH-P004HP",'Bilans-AWH-P004'!AA8,IF(Obliczenia!$D$58="Carrier 30AWH-P012HP",'Bilans-AWH-P012'!AA8,IF(Obliczenia!$D$58="Carrier 30AWH-P014HP",'Bilans-AWH-P014'!AA8,IF(Obliczenia!$D$58="Vitocal 100-A 101.A16",#REF!,IF(Obliczenia!$D$58="Vitocal 100-A 101.A18",#REF!,IF(Obliczenia!$D$58="Vitocal 25x-A 251.A16",'Bilans-251-A16'!AA8,IF(Obliczenia!$D$58="Vitocal 25x-A 251.A19",'Bilans-251-A19'!AA8,"błąd")))))))))))))))))))))))))))))))))))) -> 0 | AE8: D10 | AF8: ='D10'!B28 -> 15.55 | AG8: 1 | AI8: =IF($C$3="Ogrzewanie podłogowe",AA8,IF($C$3="Grzejniki niskotemperaturowe 55/45",AR8,IF($C$3="Grzejniki wysokotemperaturowe 70/55",AZ8,AV8))) -> 69.36 | AJ8: =IF($C$3="Ogrzewanie podłogowe",AB8,IF($C$3="Grzejniki niskotemperaturowe 55/45",AS8,IF($C$3="Grzejniki wysokotemperaturowe 70/55",BA8,AW8))) -> 0 | AR8: =IF(Obliczenia!$D$58="Vitocal 2xx-S 201.E06",'Bilans-E06'!AR8,IF(Obliczenia!$D$58="Vitocal 2xx-S 201.E08",'Bilans-E08'!AR8,IF(Obliczenia!$D$58="Vitocal 2xx-S 201.E10",'Bilans-E10'!AR8,IF(Obliczenia!$D$58="Vitocal 1xx-S 101.B04",'Bilans-B04'!AR8,IF(Obliczenia!$D$58="Vitocal 1xx-S 101.B06",'Bilans-B06'!AR8,IF(Obliczenia!$D$58="Vitocal 1xx-S 101.B08",'Bilans-B08'!AR8,IF(Obliczenia!$D$58="Vitocal 1xx-S 101.A12",'Bilans-A12'!AR8,IF(Obliczenia!$D$58="Vitocal 1xx-S 101.A14",'Bilans-A14'!AR8,IF(Obliczenia!$D$58="Vitocal 1xx-S 101.A16",'Bilans-A16'!AR8,IF(Obliczenia!$D$58="Vitocal 2xx-S 201.D04",'Bilans-D04'!AR8,IF(Obliczenia!$D$58="Vitocal 2xx-S 201.D06",'Bilans-B06'!AR8,IF(Obliczenia!$D$58="Vitocal 2xx-S 201.D08",'Bilans-D08'!AR8,IF(Obliczenia!$D$58="Vitocal 2xx-S 201.D10",'Bilans-D10'!AR8,IF(Obliczenia!$D$58="Vitocal 2xx-S 201.D13",'Bilans-D13'!AR8,IF(Obliczenia!$D$58="Vitocal 2xx-S 201.D16",'Bilans-D16'!AR8,IF(Obliczenia!$D$58="Vitocal 15x-A 151.A10",'Bilans-151-A10'!AR8,IF(Obliczenia!$D$58="Vitocal 15x-A 151.A13",'Bilans-151-A13'!AR8,IF(Obliczenia!$D$58="Vitocal 15x-A 151.A16",'Bilans-151-A16'!AR8,IF(Obliczenia!$D$58="Vitocal 25x-A 251.A10",'Bilans-251-A10'!AR8,IF(Obliczenia!$D$58="Vitocal 25x-A 251.A13",'Bilans-251-A13'!AR8,IF(Obliczenia!$D$58="Vitocal 15x-A 151.A08",'Bilans-151-A08'!AR8,IF(Obliczenia!$D$58="Vitocal 15x-A 151.A06",'Bilans-151-A06'!AR8,IF(Obliczenia!$D$58="Vitocal 15x-A 151.A04",'Bilans-151-A04'!AR8,IF(Obliczenia!$D$58="Vitocal 25x-A 251.A04",'Bilans-251-A04'!AR8,IF(Obliczenia!$D$58="Vitocal 25x-A 251.A06",'Bilans-251-A06'!AR8,IF(Obliczenia!$D$58="Vitocal 25x-A 251.A08",'Bilans-251-A08'!AR8,IF(Obliczenia!$D$58="Carrier 30AWH-P006HP",'Bilans-AWH-P006'!AR8,IF(Obliczenia!$D$58="Carrier 30AWH-P008HP",'Bilans-AWH-P008'!AR8,IF(Obliczenia!$D$58="Carrier 30AWH-P004HP",'Bilans-AWH-P004'!AR8,IF(Obliczenia!$D$58="Carrier 30AWH-P012HP",'Bilans-AWH-P012'!AR8,IF(Obliczenia!$D$58="Carrier 30AWH-P014HP",'Bilans-AWH-P014'!AR8,IF(Obliczenia!$D$58="Vitocal 100-A 101.A16",#REF!,IF(Obliczenia!$D$58="Vitocal 100-A 101.A18",#REF!,IF(Obliczenia!$D$58="Vitocal 25x-A 251.A16",'Bilans-251-A16'!AR8,IF(Obliczenia!$D$58="Vitocal 25x-A 251.A19",'Bilans-251-A19'!AR8,"błąd"))))))))))))))))))))))))))))))))))) -> 69.36 | AS8: =IF(Obliczenia!$D$58="Vitocal 2xx-S 201.E06",'Bilans-E06'!AS8,IF(Obliczenia!$D$58="Vitocal 2xx-S 201.E08",'Bilans-E08'!AS8,IF(Obliczenia!$D$58="Vitocal 2xx-S 201.E10",'Bilans-E10'!AS8,IF(Obliczenia!$D$58="Vitocal 1xx-S 101.B04",'Bilans-B04'!AS8,IF(Obliczenia!$D$58="Vitocal 1xx-S 101.B06",'Bilans-B06'!AS8,IF(Obliczenia!$D$58="Vitocal 1xx-S 101.B08",'Bilans-B08'!AS8,IF(Obliczenia!$D$58="Vitocal 1xx-S 101.A12",'Bilans-A12'!AS8,IF(Obliczenia!$D$58="Vitocal 1xx-S 101.A14",'Bilans-A14'!AS8,IF(Obliczenia!$D$58="Vitocal 1xx-S 101.A16",'Bilans-A16'!AS8,IF(Obliczenia!$D$58="Vitocal 2xx-S 201.D04",'Bilans-D04'!AS8,IF(Obliczenia!$D$58="Vitocal 2xx-S 201.D06",'Bilans-B06'!AS8,IF(Obliczenia!$D$58="Vitocal 2xx-S 201.D08",'Bilans-D08'!AS8,IF(Obliczenia!$D$58="Vitocal 2xx-S 201.D10",'Bilans-D10'!AS8,IF(Obliczenia!$D$58="Vitocal 2xx-S 201.D13",'Bilans-D13'!AS8,IF(Obliczenia!$D$58="Vitocal 2xx-S 201.D16",'Bilans-D16'!AS8,IF(Obliczenia!$D$58="Vitocal 15x-A 151.A10",'Bilans-151-A10'!AS8,IF(Obliczenia!$D$58="Vitocal 15x-A 151.A13",'Bilans-151-A13'!AS8,IF(Obliczenia!$D$58="Vitocal 15x-A 151.A16",'Bilans-151-A16'!AS8,IF(Obliczenia!$D$58="Vitocal 25x-A 251.A10",'Bilans-251-A10'!AS8,IF(Obliczenia!$D$58="Vitocal 25x-A 251.A13",'Bilans-251-A13'!AS8,IF(Obliczenia!$D$58="Vitocal 15x-A 151.A08",'Bilans-151-A08'!AS8,IF(Obliczenia!$D$58="Vitocal 15x-A 151.A06",'Bilans-151-A06'!AS8,IF(Obliczenia!$D$58="Vitocal 15x-A 151.A04",'Bilans-151-A04'!AS8,IF(Obliczenia!$D$58="Vitocal 25x-A 251.A04",'Bilans-251-A04'!AS8,IF(Obliczenia!$D$58="Vitocal 25x-A 251.A06",'Bilans-251-A06'!AS8,IF(Obliczenia!$D$58="Vitocal 25x-A 251.A08",'Bilans-251-A08'!AS8,IF(Obliczenia!$D$58="Carrier 30AWH-P006HP",'Bilans-AWH-P006'!AS8,IF(Obliczenia!$D$58="Carrier 30AWH-P008HP",'Bilans-AWH-P008'!AS8,IF(Obliczenia!$D$58="Carrier 30AWH-P004HP",'Bilans-AWH-P004'!AS8,IF(Obliczenia!$D$58="Carrier 30AWH-P012HP",'Bilans-AWH-P012'!AS8,IF(Obliczenia!$D$58="Carrier 30AWH-P014HP",'Bilans-AWH-P014'!AS8,IF(Obliczenia!$D$58="Vitocal 100-A 101.A16",#REF!,IF(Obliczenia!$D$58="Vitocal 100-A 101.A18",#REF!,IF(Obliczenia!$D$58="Vitocal 25x-A 251.A16",'Bilans-251-A16'!AS8,IF(Obliczenia!$D$58="Vitocal 25x-A 251.A19",'Bilans-251-A19'!AS8,"błąd"))))))))))))))))))))))))))))))))))) -> 0 | AV8: =IF(Obliczenia!$D$58="Vitocal 2xx-S 201.E06",'Bilans-E06'!BJ8,IF(Obliczenia!$D$58="Vitocal 2xx-S 201.E08",'Bilans-E08'!BJ8,IF(Obliczenia!$D$58="Vitocal 2xx-S 201.E10",'Bilans-E10'!BJ8,IF(Obliczenia!$D$58="Vitocal 1xx-S 101.B04",'Bilans-B04'!BJ8,IF(Obliczenia!$D$58="Vitocal 1xx-S 101.B06",'Bilans-B06'!BJ8,IF(Obliczenia!$D$58="Vitocal 1xx-S 101.B08",'Bilans-B08'!BJ8,IF(Obliczenia!$D$58="Vitocal 1xx-S 101.A12",'Bilans-A12'!BJ8,IF(Obliczenia!$D$58="Vitocal 1xx-S 101.A14",'Bilans-A14'!BJ8,IF(Obliczenia!$D$58="Vitocal 1xx-S 101.A16",'Bilans-A16'!BJ8,IF(Obliczenia!$D$58="Vitocal 2xx-S 201.D04",'Bilans-D04'!BJ8,IF(Obliczenia!$D$58="Vitocal 2xx-S 201.D06",'Bilans-B06'!BJ8,IF(Obliczenia!$D$58="Vitocal 2xx-S 201.D08",'Bilans-D08'!BJ8,IF(Obliczenia!$D$58="Vitocal 2xx-S 201.D10",'Bilans-D10'!BJ8,IF(Obliczenia!$D$58="Vitocal 2xx-S 201.D13",'Bilans-D13'!BJ8,IF(Obliczenia!$D$58="Vitocal 2xx-S 201.D16",'Bilans-D16'!BJ8,IF(Obliczenia!$D$58="Vitocal 15x-A 151.A10",'Bilans-151-A10'!BJ8,IF(Obliczenia!$D$58="Vitocal 15x-A 151.A13",'Bilans-151-A13'!BJ8,IF(Obliczenia!$D$58="Vitocal 15x-A 151.A16",'Bilans-151-A16'!BJ8,IF(Obliczenia!$D$58="Vitocal 25x-A 251.A10",'Bilans-251-A10'!BJ8,IF(Obliczenia!$D$58="Vitocal 25x-A 251.A13",'Bilans-251-A13'!BJ8,IF(Obliczenia!$D$58="Vitocal 15x-A 151.A08",'Bilans-151-A08'!BJ8,IF(Obliczenia!$D$58="Vitocal 15x-A 151.A06",'Bilans-151-A06'!BJ8,IF(Obliczenia!$D$58="Vitocal 15x-A 151.A04",'Bilans-151-A04'!BJ8,IF(Obliczenia!$D$58="Vitocal 25x-A 251.A04",'Bilans-251-A04'!BJ8,IF(Obliczenia!$D$58="Vitocal 25x-A 251.A06",'Bilans-251-A06'!BJ8,IF(Obliczenia!$D$58="Vitocal 25x-A 251.A08",'Bilans-251-A08'!BJ8,IF(Obliczenia!$D$58="Carrier 30AWH-P006HP",'Bilans-AWH-P006'!BJ8,IF(Obliczenia!$D$58="Carrier 30AWH-P008HP",'Bilans-AWH-P008'!BJ8,IF(Obliczenia!$D$58="Carrier 30AWH-P004HP",'Bilans-AWH-P004'!BJ8,IF(Obliczenia!$D$58="Carrier 30AWH-P012HP",'Bilans-AWH-P012'!BJ8,IF(Obliczenia!$D$58="Carrier 30AWH-P014HP",'Bilans-AWH-P014'!BJ8,IF(Obliczenia!$D$58="Vitocal 100-A 101.A16",#REF!,IF(Obliczenia!$D$58="Vitocal 100-A 101.A18",#REF!,IF(Obliczenia!$D$58="Vitocal 25x-A 251.A16",'Bilans-251-A16'!BJ8,IF(Obliczenia!$D$58="Vitocal 25x-A 251.A19",'Bilans-251-A19'!BJ8,"błąd"))))))))))))))))))))))))))))))))))) -> 69.36 | AW8: =IF(Obliczenia!$D$58="Vitocal 2xx-S 201.E06",'Bilans-E06'!BK8,IF(Obliczenia!$D$58="Vitocal 2xx-S 201.E08",'Bilans-E08'!BK8,IF(Obliczenia!$D$58="Vitocal 2xx-S 201.E10",'Bilans-E10'!BK8,IF(Obliczenia!$D$58="Vitocal 1xx-S 101.B04",'Bilans-B04'!BK8,IF(Obliczenia!$D$58="Vitocal 1xx-S 101.B06",'Bilans-B06'!BK8,IF(Obliczenia!$D$58="Vitocal 1xx-S 101.B08",'Bilans-B08'!BK8,IF(Obliczenia!$D$58="Vitocal 1xx-S 101.A12",'Bilans-A12'!BK8,IF(Obliczenia!$D$58="Vitocal 1xx-S 101.A14",'Bilans-A14'!BK8,IF(Obliczenia!$D$58="Vitocal 1xx-S 101.A16",'Bilans-A16'!BK8,IF(Obliczenia!$D$58="Vitocal 2xx-S 201.D04",'Bilans-D04'!BK8,IF(Obliczenia!$D$58="Vitocal 2xx-S 201.D06",'Bilans-B06'!BK8,IF(Obliczenia!$D$58="Vitocal 2xx-S 201.D08",'Bilans-D08'!BK8,IF(Obliczenia!$D$58="Vitocal 2xx-S 201.D10",'Bilans-D10'!BK8,IF(Obliczenia!$D$58="Vitocal 2xx-S 201.D13",'Bilans-D13'!BK8,IF(Obliczenia!$D$58="Vitocal 2xx-S 201.D16",'Bilans-D16'!BK8,IF(Obliczenia!$D$58="Vitocal 15x-A 151.A10",'Bilans-151-A10'!BK8,IF(Obliczenia!$D$58="Vitocal 15x-A 151.A13",'Bilans-151-A13'!BK8,IF(Obliczenia!$D$58="Vitocal 15x-A 151.A16",'Bilans-151-A16'!BK8,IF(Obliczenia!$D$58="Vitocal 25x-A 251.A10",'Bilans-251-A10'!BK8,IF(Obliczenia!$D$58="Vitocal 25x-A 251.A13",'Bilans-251-A13'!BK8,IF(Obliczenia!$D$58="Vitocal 15x-A 151.A08",'Bilans-151-A08'!BK8,IF(Obliczenia!$D$58="Vitocal 15x-A 151.A06",'Bilans-151-A06'!BK8,IF(Obliczenia!$D$58="Vitocal 15x-A 151.A04",'Bilans-151-A04'!BK8,IF(Obliczenia!$D$58="Vitocal 25x-A 251.A04",'Bilans-251-A04'!BK8,IF(Obliczenia!$D$58="Vitocal 25x-A 251.A06",'Bilans-251-A06'!BK8,IF(Obliczenia!$D$58="Vitocal 25x-A 251.A08",'Bilans-251-A08'!BK8,IF(Obliczenia!$D$58="Carrier 30AWH-P006HP",'Bilans-AWH-P006'!BK8,IF(Obliczenia!$D$58="Carrier 30AWH-P008HP",'Bilans-AWH-P008'!BK8,IF(Obliczenia!$D$58="Carrier 30AWH-P004HP",'Bilans-AWH-P004'!BK8,IF(Obliczenia!$D$58="Carrier 30AWH-P012HP",'Bilans-AWH-P012'!BK8,IF(Obliczenia!$D$58="Carrier 30AWH-P014HP",'Bilans-AWH-P014'!BK8,IF(Obliczenia!$D$58="Vitocal 100-A 101.A16",#REF!,IF(Obliczenia!$D$58="Vitocal 100-A 101.A18",#REF!,IF(Obliczenia!$D$58="Vitocal 25x-A 251.A16",'Bilans-251-A16'!BK8,IF(Obliczenia!$D$58="Vitocal 25x-A 251.A19",'Bilans-251-A19'!BK8,"błąd"))))))))))))))))))))))))))))))))))) -> 0 | AZ8: =IF(Obliczenia!$D$58="Vitocal 15x-A 151.A10",'Bilans-151-A10'!CK8,IF(Obliczenia!$D$58="Vitocal 15x-A 151.A13",'Bilans-151-A13'!CK8,IF(Obliczenia!$D$58="Vitocal 15x-A 151.A16",'Bilans-151-A16'!CK8,IF(Obliczenia!$D$58="Vitocal 25x-A 251.A10",'Bilans-251-A10'!CK8,IF(Obliczenia!$D$58="Vitocal 25x-A 251.A13",'Bilans-251-A13'!CK8,IF(Obliczenia!$D$58="Vitocal 15x-A 151.A08",'Bilans-151-A08'!CK8,IF(Obliczenia!$D$58="Vitocal 15x-A 151.A06",'Bilans-151-A06'!CK8,IF(Obliczenia!$D$58="Vitocal 15x-A 151.A04",'Bilans-151-A04'!CK8,IF(Obliczenia!$D$58="Vitocal 25x-A 251.A04",'Bilans-251-A04'!CK8,IF(Obliczenia!$D$58="Vitocal 25x-A 251.A06",'Bilans-251-A06'!CK8,IF(Obliczenia!$D$58="Vitocal 25x-A 251.A08",'Bilans-251-A08'!CK8,IF(Obliczenia!$D$58="Vitocal 25x-A 251.A16",'Bilans-251-A16'!CK8,IF(Obliczenia!$D$58="Vitocal 25x-A 251.A19",'Bilans-251-A19'!CK8,IF(Obliczenia!$D$58="Carrier 30AWH-P004HP",'Bilans-AWH-P004'!CK8,IF(Obliczenia!$D$58="Carrier 30AWH-P006HP",'Bilans-AWH-P006'!CK8,IF(Obliczenia!$D$58="Carrier 30AWH-P008HP",'Bilans-AWH-P008'!CK8,IF(Obliczenia!$D$58="Carrier 30AWH-P012HP",'Bilans-AWH-P012'!CK8,IF(Obliczenia!$D$58="Carrier 30AWH-P014HP",'Bilans-AWH-P014'!CK8,"błąd")))))))))))))))))) -> błąd | BA8: =IF(Obliczenia!$D$58="Vitocal 15x-A 151.A10",'Bilans-151-A10'!CL8,IF(Obliczenia!$D$58="Vitocal 15x-A 151.A13",'Bilans-151-A13'!CL8,IF(Obliczenia!$D$58="Vitocal 15x-A 151.A16",'Bilans-151-A16'!CL8,IF(Obliczenia!$D$58="Vitocal 25x-A 251.A10",'Bilans-251-A10'!CL8,IF(Obliczenia!$D$58="Vitocal 25x-A 251.A13",'Bilans-251-A13'!CL8,IF(Obliczenia!$D$58="Vitocal 15x-A 151.A08",'Bilans-151-A08'!CL8,IF(Obliczenia!$D$58="Vitocal 15x-A 151.A06",'Bilans-151-A06'!CL8,IF(Obliczenia!$D$58="Vitocal 15x-A 151.A04",'Bilans-151-A04'!CL8,IF(Obliczenia!$D$58="Vitocal 25x-A 251.A04",'Bilans-251-A04'!CL8,IF(Obliczenia!$D$58="Vitocal 25x-A 251.A06",'Bilans-251-A06'!CL8,IF(Obliczenia!$D$58="Vitocal 25x-A 251.A08",'Bilans-251-A08'!CL8,IF(Obliczenia!$D$58="Vitocal 25x-A 251.A16",'Bilans-251-A16'!CL8,IF(Obliczenia!$D$58="Vitocal 25x-A 251.A19",'Bilans-251-A19'!CL8,IF(Obliczenia!$D$58="Carrier 30AWH-P004HP",'Bilans-AWH-P004'!CL8,IF(Obliczenia!$D$58="Carrier 30AWH-P006HP",'Bilans-AWH-P006'!CL8,IF(Obliczenia!$D$58="Carrier 30AWH-P008HP",'Bilans-AWH-P008'!CL8,IF(Obliczenia!$D$58="Carrier 30AWH-P012HP",'Bilans-AWH-P012'!CL8,IF(Obliczenia!$D$58="Carrier 30AWH-P014HP",'Bilans-AWH-P014'!CL8,"błąd")))))))))))))))))) -> błąd | BE8: VTS35 | BF8: =IF(Obliczenia!$D$58="Vitocal 2xx-S 201.E06",'E06'!N4,IF(Obliczenia!$D$58="Vitocal 2xx-S 201.E08",'E08'!N4,IF(Obliczenia!$D$58="Vitocal 2xx-S 201.E10",'E10'!N4,IF(Obliczenia!$D$58="Vitocal 1xx-S 101.B04",'B04'!N4,IF(Obliczenia!$D$58="Vitocal 1xx-S 101.B06",'B06'!N4,IF(Obliczenia!$D$58="Vitocal 1xx-S 101.B08",'B08'!N4,IF(Obliczenia!$D$58="Vitocal 1xx-S 101.A12",'A12'!N4,IF(Obliczenia!$D$58="Vitocal 1xx-S 101.A14",'A14'!N4,IF(Obliczenia!$D$58="Vitocal 1xx-S 101.A16",'A16'!N4,IF(Obliczenia!$D$58="Vitocal 2xx-S 201.D04",'D04'!N4,IF(Obliczenia!$D$58="Vitocal 2xx-S 201.D06",'D06'!N4,IF(Obliczenia!$D$58="Vitocal 2xx-S 201.D08",'D08'!N4,IF(Obliczenia!$D$58="Vitocal 2xx-S 201.D10",'D10'!N4,IF(Obliczenia!$D$58="Vitocal 2xx-S 201.D13",'D13'!N4,IF(Obliczenia!$D$58="Vitocal 2xx-S 201.D16",'D16'!N4,IF(Obliczenia!$D$58="Vitocal 15x-A 151.A10",'151.A10'!N4,IF(Obliczenia!$D$58="Vitocal 15x-A 151.A13",'151.A13'!N4,IF(Obliczenia!$D$58="Vitocal 15x-A 151.A16",'151.A16'!N4,IF(Obliczenia!$D$58="Vitocal 25x-A 251.A10",'251.A10'!N4,IF(Obliczenia!$D$58="Vitocal 25x-A 251.A13",'251.A13'!N4,IF(Obliczenia!$D$58="Vitocal 15x-A 151.A08",'151.A08'!N4,IF(Obliczenia!$D$58="Vitocal 15x-A 151.A06",'151.A06'!N4,IF(Obliczenia!$D$58="Vitocal 15x-A 151.A04",'151.A04'!N4,IF(Obliczenia!$D$58="Vitocal 25x-A 251.A08",'251.A08'!N4,IF(Obliczenia!$D$58="Vitocal 25x-A 251.A06",'251.A06'!N4,IF(Obliczenia!$D$58="Vitocal 25x-A 251.A04",'251.A04'!N4,IF(Obliczenia!$D$58="Carrier 30AWH-P006HP",'AWH-P006'!N4,IF(Obliczenia!$D$58="Carrier 30AWH-P008HP",'AWH-P008'!N4,IF(Obliczenia!$D$58="Carrier 30AWH-P004HP",'AWH-P004'!N4,IF(Obliczenia!$D$58="Carrier 30AWH-P012HP",'AWH-P012T'!N4,IF(Obliczenia!$D$58="Carrier 30AWH-P014HP",'AWH-P014T'!N4,IF(Obliczenia!$D$58="Vitocal 100-A 101.A16",#REF!,IF(Obliczenia!$D$58="Vitocal 100-A 101.A18",#REF!,IF(Obliczenia!$D$58="Vitocal 25x-A 251.A16",'251.A16'!N4,IF(Obliczenia!$D$58="Vitocal 25x-A 251.A19",'251.A19'!N4,"błąd"))))))))))))))))))))))))))))))))))) -> 3.9 | BG8: =IF(Obliczenia!$D$58="Vitocal 2xx-S 201.E06",'E06'!O4,IF(Obliczenia!$D$58="Vitocal 2xx-S 201.E08",'E08'!O4,IF(Obliczenia!$D$58="Vitocal 2xx-S 201.E10",'E10'!O4,IF(Obliczenia!$D$58="Vitocal 1xx-S 101.B04",'B04'!O4,IF(Obliczenia!$D$58="Vitocal 1xx-S 101.B06",'B06'!O4,IF(Obliczenia!$D$58="Vitocal 1xx-S 101.B08",'B08'!O4,IF(Obliczenia!$D$58="Vitocal 1xx-S 101.A12",'A12'!O4,IF(Obliczenia!$D$58="Vitocal 1xx-S 101.A14",'A14'!O4,IF(Obliczenia!$D$58="Vitocal 1xx-S 101.A16",'A16'!O4,IF(Obliczenia!$D$58="Vitocal 2xx-S 201.D04",'D04'!O4,IF(Obliczenia!$D$58="Vitocal 2xx-S 201.D06",'D06'!O4,IF(Obliczenia!$D$58="Vitocal 2xx-S 201.D08",'D08'!O4,IF(Obliczenia!$D$58="Vitocal 2xx-S 201.D10",'D10'!O4,IF(Obliczenia!$D$58="Vitocal 2xx-S 201.D13",'D13'!O4,IF(Obliczenia!$D$58="Vitocal 2xx-S 201.D16",'D16'!O4,IF(Obliczenia!$D$58="Vitocal 15x-A 151.A10",'151.A10'!O4,IF(Obliczenia!$D$58="Vitocal 15x-A 151.A13",'151.A13'!O4,IF(Obliczenia!$D$58="Vitocal 15x-A 151.A16",'151.A16'!O4,IF(Obliczenia!$D$58="Vitocal 25x-A 251.A10",'251.A10'!O4,IF(Obliczenia!$D$58="Vitocal 25x-A 251.A13",'251.A13'!O4,IF(Obliczenia!$D$58="Vitocal 15x-A 151.A08",'151.A08'!O4,IF(Obliczenia!$D$58="Vitocal 15x-A 151.A06",'151.A06'!O4,IF(Obliczenia!$D$58="Vitocal 15x-A 151.A04",'151.A04'!O4,IF(Obliczenia!$D$58="Vitocal 25x-A 251.A08",'251.A08'!O4,IF(Obliczenia!$D$58="Vitocal 25x-A 251.A06",'251.A06'!O4,IF(Obliczenia!$D$58="Vitocal 25x-A 251.A04",'251.A04'!O4,IF(Obliczenia!$D$58="Carrier 30AWH-P006HP",'AWH-P006'!O4,IF(Obliczenia!$D$58="Carrier 30AWH-P008HP",'AWH-P008'!O4,IF(Obliczenia!$D$58="Carrier 30AWH-P004HP",'AWH-P004'!O4,IF(Obliczenia!$D$58="Carrier 30AWH-P012HP",'AWH-P012T'!O4,IF(Obliczenia!$D$58="Carrier 30AWH-P014HP",'AWH-P014T'!O4,IF(Obliczenia!$D$58="Vitocal 100-A 101.A16",#REF!,IF(Obliczenia!$D$58="Vitocal 100-A 101.A18",#REF!,IF(Obliczenia!$D$58="Vitocal 25x-A 251.A16",'251.A16'!O4,IF(Obliczenia!$D$58="Vitocal 25x-A 251.A19",'251.A19'!O4,"błąd"))))))))))))))))))))))))))))))))))) -> 4.24 | BH8: =IF(Obliczenia!$D$58="Vitocal 2xx-S 201.E06",'E06'!P4,IF(Obliczenia!$D$58="Vitocal 2xx-S 201.E08",'E08'!P4,IF(Obliczenia!$D$58="Vitocal 2xx-S 201.E10",'E10'!P4,IF(Obliczenia!$D$58="Vitocal 1xx-S 101.B04",'B04'!P4,IF(Obliczenia!$D$58="Vitocal 1xx-S 101.B06",'B06'!P4,IF(Obliczenia!$D$58="Vitocal 1xx-S 101.B08",'B08'!P4,IF(Obliczenia!$D$58="Vitocal 1xx-S 101.A12",'A12'!P4,IF(Obliczenia!$D$58="Vitocal 1xx-S 101.A14",'A14'!P4,IF(Obliczenia!$D$58="Vitocal 1xx-S 101.A16",'A16'!P4,IF(Obliczenia!$D$58="Vitocal 2xx-S 201.D04",'D04'!P4,IF(Obliczenia!$D$58="Vitocal 2xx-S 201.D06",'D06'!P4,IF(Obliczenia!$D$58="Vitocal 2xx-S 201.D08",'D08'!P4,IF(Obliczenia!$D$58="Vitocal 2xx-S 201.D10",'D10'!P4,IF(Obliczenia!$D$58="Vitocal 2xx-S 201.D13",'D13'!P4,IF(Obliczenia!$D$58="Vitocal 2xx-S 201.D16",'D16'!P4,IF(Obliczenia!$D$58="Vitocal 15x-A 151.A10",'151.A10'!P4,IF(Obliczenia!$D$58="Vitocal 15x-A 151.A13",'151.A13'!P4,IF(Obliczenia!$D$58="Vitocal 15x-A 151.A16",'151.A16'!P4,IF(Obliczenia!$D$58="Vitocal 25x-A 251.A10",'251.A10'!P4,IF(Obliczenia!$D$58="Vitocal 25x-A 251.A13",'251.A13'!P4,IF(Obliczenia!$D$58="Vitocal 15x-A 151.A08",'151.A08'!P4,IF(Obliczenia!$D$58="Vitocal 15x-A 151.A06",'151.A06'!P4,IF(Obliczenia!$D$58="Vitocal 15x-A 151.A04",'151.A04'!P4,IF(Obliczenia!$D$58="Vitocal 25x-A 251.A08",'251.A08'!P4,IF(Obliczenia!$D$58="Vitocal 25x-A 251.A06",'251.A06'!P4,IF(Obliczenia!$D$58="Vitocal 25x-A 251.A04",'251.A04'!P4,IF(Obliczenia!$D$58="Carrier 30AWH-P006HP",'AWH-P006'!P4,IF(Obliczenia!$D$58="Carrier 30AWH-P008HP",'AWH-P008'!P4,IF(Obliczenia!$D$58="Carrier 30AWH-P004HP",'AWH-P004'!P4,IF(Obliczenia!$D$58="Carrier 30AWH-P012HP",'AWH-P012T'!P4,IF(Obliczenia!$D$58="Carrier 30AWH-P014HP",'AWH-P014T'!P4,IF(Obliczenia!$D$58="Vitocal 100-A 101.A16",#REF!,IF(Obliczenia!$D$58="Vitocal 100-A 101.A18",#REF!,IF(Obliczenia!$D$58="Vitocal 25x-A 251.A16",'251.A16'!P4,IF(Obliczenia!$D$58="Vitocal 25x-A 251.A19",'251.A19'!P4,"błąd"))))))))))))))))))))))))))))))))))) -> 5.5 | BI8: =IF(Obliczenia!$D$58="Vitocal 2xx-S 201.E06",'E06'!Q4,IF(Obliczenia!$D$58="Vitocal 2xx-S 201.E08",'E08'!Q4,IF(Obliczenia!$D$58="Vitocal 2xx-S 201.E10",'E10'!Q4,IF(Obliczenia!$D$58="Vitocal 1xx-S 101.B04",'B04'!Q4,IF(Obliczenia!$D$58="Vitocal 1xx-S 101.B06",'B06'!Q4,IF(Obliczenia!$D$58="Vitocal 1xx-S 101.B08",'B08'!Q4,IF(Obliczenia!$D$58="Vitocal 1xx-S 101.A12",'A12'!Q4,IF(Obliczenia!$D$58="Vitocal 1xx-S 101.A14",'A14'!Q4,IF(Obliczenia!$D$58="Vitocal 1xx-S 101.A16",'A16'!Q4,IF(Obliczenia!$D$58="Vitocal 2xx-S 201.D04",'D04'!Q4,IF(Obliczenia!$D$58="Vitocal 2xx-S 201.D06",'D06'!Q4,IF(Obliczenia!$D$58="Vitocal 2xx-S 201.D08",'D08'!Q4,IF(Obliczenia!$D$58="Vitocal 2xx-S 201.D10",'D10'!Q4,IF(Obliczenia!$D$58="Vitocal 2xx-S 201.D13",'D13'!Q4,IF(Obliczenia!$D$58="Vitocal 2xx-S 201.D16",'D16'!Q4,IF(Obliczenia!$D$58="Vitocal 15x-A 151.A10",'151.A10'!Q4,IF(Obliczenia!$D$58="Vitocal 15x-A 151.A13",'151.A13'!Q4,IF(Obliczenia!$D$58="Vitocal 15x-A 151.A16",'151.A16'!Q4,IF(Obliczenia!$D$58="Vitocal 25x-A 251.A10",'251.A10'!Q4,IF(Obliczenia!$D$58="Vitocal 25x-A 251.A13",'251.A13'!Q4,IF(Obliczenia!$D$58="Vitocal 15x-A 151.A08",'151.A08'!Q4,IF(Obliczenia!$D$58="Vitocal 15x-A 151.A06",'151.A06'!Q4,IF(Obliczenia!$D$58="Vitocal 15x-A 151.A04",'151.A04'!Q4,IF(Obliczenia!$D$58="Vitocal 25x-A 251.A08",'251.A08'!Q4,IF(Obliczenia!$D$58="Vitocal 25x-A 251.A06",'251.A06'!Q4,IF(Obliczenia!$D$58="Vitocal 25x-A 251.A04",'251.A04'!Q4,IF(Obliczenia!$D$58="Carrier 30AWH-P006HP",'AWH-P006'!Q4,IF(Obliczenia!$D$58="Carrier 30AWH-P008HP",'AWH-P008'!Q4,IF(Obliczenia!$D$58="Carrier 30AWH-P004HP",'AWH-P004'!Q4,IF(Obliczenia!$D$58="Carrier 30AWH-P012HP",'AWH-P012T'!Q4,IF(Obliczenia!$D$58="Carrier 30AWH-P014HP",'AWH-P014T'!Q4,IF(Obliczenia!$D$58="Vitocal 100-A 101.A16",#REF!,IF(Obliczenia!$D$58="Vitocal 100-A 101.A18",#REF!,IF(Obliczenia!$D$58="Vitocal 25x-A 251.A16",'251.A16'!Q4,IF(Obliczenia!$D$58="Vitocal 25x-A 251.A19",'251.A19'!Q4,"błąd"))))))))))))))))))))))))))))))))))) -> 6.15 | BJ8: =IF(Obliczenia!$D$58="Vitocal 2xx-S 201.E06",'E06'!R4,IF(Obliczenia!$D$58="Vitocal 2xx-S 201.E08",'E08'!R4,IF(Obliczenia!$D$58="Vitocal 2xx-S 201.E10",'E10'!R4,IF(Obliczenia!$D$58="Vitocal 1xx-S 101.B04",'B04'!R4,IF(Obliczenia!$D$58="Vitocal 1xx-S 101.B06",'B06'!R4,IF(Obliczenia!$D$58="Vitocal 1xx-S 101.B08",'B08'!R4,IF(Obliczenia!$D$58="Vitocal 1xx-S 101.A12",'A12'!R4,IF(Obliczenia!$D$58="Vitocal 1xx-S 101.A14",'A14'!R4,IF(Obliczenia!$D$58="Vitocal 1xx-S 101.A16",'A16'!R4,IF(Obliczenia!$D$58="Vitocal 2xx-S 201.D04",'D04'!R4,IF(Obliczenia!$D$58="Vitocal 2xx-S 201.D06",'D06'!R4,IF(Obliczenia!$D$58="Vitocal 2xx-S 201.D08",'D08'!R4,IF(Obliczenia!$D$58="Vitocal 2xx-S 201.D10",'D10'!R4,IF(Obliczenia!$D$58="Vitocal 2xx-S 201.D13",'D13'!R4,IF(Obliczenia!$D$58="Vitocal 2xx-S 201.D16",'D16'!R4,IF(Obliczenia!$D$58="Vitocal 15x-A 151.A10",'151.A10'!R4,IF(Obliczenia!$D$58="Vitocal 15x-A 151.A13",'151.A13'!R4,IF(Obliczenia!$D$58="Vitocal 15x-A 151.A16",'151.A16'!R4,IF(Obliczenia!$D$58="Vitocal 25x-A 251.A10",'251.A10'!R4,IF(Obliczenia!$D$58="Vitocal 25x-A 251.A13",'251.A13'!R4,IF(Obliczenia!$D$58="Vitocal 15x-A 151.A08",'151.A08'!R4,IF(Obliczenia!$D$58="Vitocal 15x-A 151.A06",'151.A06'!R4,IF(Obliczenia!$D$58="Vitocal 15x-A 151.A04",'151.A04'!R4,IF(Obliczenia!$D$58="Vitocal 25x-A 251.A08",'251.A08'!R4,IF(Obliczenia!$D$58="Vitocal 25x-A 251.A06",'251.A06'!R4,IF(Obliczenia!$D$58="Vitocal 25x-A 251.A04",'251.A04'!R4,IF(Obliczenia!$D$58="Carrier 30AWH-P006HP",'AWH-P006'!R4,IF(Obliczenia!$D$58="Carrier 30AWH-P008HP",'AWH-P008'!R4,IF(Obliczenia!$D$58="Carrier 30AWH-P004HP",'AWH-P004'!R4,IF(Obliczenia!$D$58="Carrier 30AWH-P012HP",'AWH-P012T'!R4,IF(Obliczenia!$D$58="Carrier 30AWH-P014HP",'AWH-P014T'!R4,IF(Obliczenia!$D$58="Vitocal 100-A 101.A16",#REF!,IF(Obliczenia!$D$58="Vitocal 100-A 101.A18",#REF!,IF(Obliczenia!$D$58="Vitocal 25x-A 251.A16",'251.A16'!R4,IF(Obliczenia!$D$58="Vitocal 25x-A 251.A19",'251.A19'!R4,"błąd"))))))))))))))))))))))))))))))))))) -> 7.5 | BK8: =IF(Obliczenia!$D$58="Vitocal 2xx-S 201.E06",'E06'!S4,IF(Obliczenia!$D$58="Vitocal 2xx-S 201.E08",'E08'!S4,IF(Obliczenia!$D$58="Vitocal 2xx-S 201.E10",'E10'!S4,IF(Obliczenia!$D$58="Vitocal 1xx-S 101.B04",'B04'!S4,IF(Obliczenia!$D$58="Vitocal 1xx-S 101.B06",'B06'!S4,IF(Obliczenia!$D$58="Vitocal 1xx-S 101.B08",'B08'!S4,IF(Obliczenia!$D$58="Vitocal 1xx-S 101.A12",'A12'!S4,IF(Obliczenia!$D$58="Vitocal 1xx-S 101.A14",'A14'!S4,IF(Obliczenia!$D$58="Vitocal 1xx-S 101.A16",'A16'!S4,IF(Obliczenia!$D$58="Vitocal 2xx-S 201.D04",'D04'!S4,IF(Obliczenia!$D$58="Vitocal 2xx-S 201.D06",'D06'!S4,IF(Obliczenia!$D$58="Vitocal 2xx-S 201.D08",'D08'!S4,IF(Obliczenia!$D$58="Vitocal 2xx-S 201.D10",'D10'!S4,IF(Obliczenia!$D$58="Vitocal 2xx-S 201.D13",'D13'!S4,IF(Obliczenia!$D$58="Vitocal 2xx-S 201.D16",'D16'!S4,IF(Obliczenia!$D$58="Vitocal 15x-A 151.A10",'151.A10'!S4,IF(Obliczenia!$D$58="Vitocal 15x-A 151.A13",'151.A13'!S4,IF(Obliczenia!$D$58="Vitocal 15x-A 151.A16",'151.A16'!S4,IF(Obliczenia!$D$58="Vitocal 25x-A 251.A10",'251.A10'!S4,IF(Obliczenia!$D$58="Vitocal 25x-A 251.A13",'251.A13'!S4,IF(Obliczenia!$D$58="Vitocal 15x-A 151.A08",'151.A08'!S4,IF(Obliczenia!$D$58="Vitocal 15x-A 151.A06",'151.A06'!S4,IF(Obliczenia!$D$58="Vitocal 15x-A 151.A04",'151.A04'!S4,IF(Obliczenia!$D$58="Vitocal 25x-A 251.A08",'251.A08'!S4,IF(Obliczenia!$D$58="Vitocal 25x-A 251.A06",'251.A06'!S4,IF(Obliczenia!$D$58="Vitocal 25x-A 251.A04",'251.A04'!S4,IF(Obliczenia!$D$58="Carrier 30AWH-P006HP",'AWH-P006'!S4,IF(Obliczenia!$D$58="Carrier 30AWH-P008HP",'AWH-P008'!S4,IF(Obliczenia!$D$58="Carrier 30AWH-P004HP",'AWH-P004'!S4,IF(Obliczenia!$D$58="Carrier 30AWH-P012HP",'AWH-P012T'!S4,IF(Obliczenia!$D$58="Carrier 30AWH-P014HP",'AWH-P014T'!S4,IF(Obliczenia!$D$58="Vitocal 100-A 101.A16",#REF!,IF(Obliczenia!$D$58="Vitocal 100-A 101.A18",#REF!,IF(Obliczenia!$D$58="Vitocal 25x-A 251.A16",'251.A16'!S4,IF(Obliczenia!$D$58="Vitocal 25x-A 251.A19",'251.A19'!S4,"błąd"))))))))))))))))))))))))))))))))))) -> 8.25 | BL8: =IF(Obliczenia!$D$58="Vitocal 2xx-S 201.E06",'E06'!T4,IF(Obliczenia!$D$58="Vitocal 2xx-S 201.E08",'E08'!T4,IF(Obliczenia!$D$58="Vitocal 2xx-S 201.E10",'E10'!T4,IF(Obliczenia!$D$58="Vitocal 1xx-S 101.B04",'B04'!T4,IF(Obliczenia!$D$58="Vitocal 1xx-S 101.B06",'B06'!T4,IF(Obliczenia!$D$58="Vitocal 1xx-S 101.B08",'B08'!T4,IF(Obliczenia!$D$58="Vitocal 1xx-S 101.A12",'A12'!T4,IF(Obliczenia!$D$58="Vitocal 1xx-S 101.A14",'A14'!T4,IF(Obliczenia!$D$58="Vitocal 1xx-S 101.A16",'A16'!T4,IF(Obliczenia!$D$58="Vitocal 2xx-S 201.D04",'D04'!T4,IF(Obliczenia!$D$58="Vitocal 2xx-S 201.D06",'D06'!T4,IF(Obliczenia!$D$58="Vitocal 2xx-S 201.D08",'D08'!T4,IF(Obliczenia!$D$58="Vitocal 2xx-S 201.D10",'D10'!T4,IF(Obliczenia!$D$58="Vitocal 2xx-S 201.D13",'D13'!T4,IF(Obliczenia!$D$58="Vitocal 2xx-S 201.D16",'D16'!T4,IF(Obliczenia!$D$58="Vitocal 15x-A 151.A10",'151.A10'!T4,IF(Obliczenia!$D$58="Vitocal 15x-A 151.A13",'151.A13'!T4,IF(Obliczenia!$D$58="Vitocal 15x-A 151.A16",'151.A16'!T4,IF(Obliczenia!$D$58="Vitocal 25x-A 251.A10",'251.A10'!T4,IF(Obliczenia!$D$58="Vitocal 25x-A 251.A13",'251.A13'!T4,IF(Obliczenia!$D$58="Vitocal 15x-A 151.A08",'151.A08'!T4,IF(Obliczenia!$D$58="Vitocal 15x-A 151.A06",'151.A06'!T4,IF(Obliczenia!$D$58="Vitocal 15x-A 151.A04",'151.A04'!T4,IF(Obliczenia!$D$58="Vitocal 25x-A 251.A08",'251.A08'!T4,IF(Obliczenia!$D$58="Vitocal 25x-A 251.A06",'251.A06'!T4,IF(Obliczenia!$D$58="Vitocal 25x-A 251.A04",'251.A04'!T4,IF(Obliczenia!$D$58="Carrier 30AWH-P006HP",'AWH-P006'!T4,IF(Obliczenia!$D$58="Carrier 30AWH-P008HP",'AWH-P008'!T4,IF(Obliczenia!$D$58="Carrier 30AWH-P004HP",'AWH-P004'!T4,IF(Obliczenia!$D$58="Carrier 30AWH-P012HP",'AWH-P012T'!T4,IF(Obliczenia!$D$58="Carrier 30AWH-P014HP",'AWH-P014T'!T4,IF(Obliczenia!$D$58="Vitocal 100-A 101.A16",#REF!,IF(Obliczenia!$D$58="Vitocal 100-A 101.A18",#REF!,IF(Obliczenia!$D$58="Vitocal 25x-A 251.A16",'251.A16'!T4,IF(Obliczenia!$D$58="Vitocal 25x-A 251.A19",'251.A19'!T4,"błąd"))))))))))))))))))))))))))))))))))) -> 8.536 | BM8: =IF(Obliczenia!$D$58="Vitocal 2xx-S 201.E06",'E06'!U4,IF(Obliczenia!$D$58="Vitocal 2xx-S 201.E08",'E08'!U4,IF(Obliczenia!$D$58="Vitocal 2xx-S 201.E10",'E10'!U4,IF(Obliczenia!$D$58="Vitocal 1xx-S 101.B04",'B04'!U4,IF(Obliczenia!$D$58="Vitocal 1xx-S 101.B06",'B06'!U4,IF(Obliczenia!$D$58="Vitocal 1xx-S 101.B08",'B08'!U4,IF(Obliczenia!$D$58="Vitocal 1xx-S 101.A12",'A12'!U4,IF(Obliczenia!$D$58="Vitocal 1xx-S 101.A14",'A14'!U4,IF(Obliczenia!$D$58="Vitocal 1xx-S 101.A16",'A16'!U4,IF(Obliczenia!$D$58="Vitocal 2xx-S 201.D04",'D04'!U4,IF(Obliczenia!$D$58="Vitocal 2xx-S 201.D06",'D06'!U4,IF(Obliczenia!$D$58="Vitocal 2xx-S 201.D08",'D08'!U4,IF(Obliczenia!$D$58="Vitocal 2xx-S 201.D10",'D10'!U4,IF(Obliczenia!$D$58="Vitocal 2xx-S 201.D13",'D13'!U4,IF(Obliczenia!$D$58="Vitocal 2xx-S 201.D16",'D16'!U4,IF(Obliczenia!$D$58="Vitocal 15x-A 151.A10",'151.A10'!U4,IF(Obliczenia!$D$58="Vitocal 15x-A 151.A13",'151.A13'!U4,IF(Obliczenia!$D$58="Vitocal 15x-A 151.A16",'151.A16'!U4,IF(Obliczenia!$D$58="Vitocal 25x-A 251.A10",'251.A10'!U4,IF(Obliczenia!$D$58="Vitocal 25x-A 251.A13",'251.A13'!U4,IF(Obliczenia!$D$58="Vitocal 15x-A 151.A08",'151.A08'!U4,IF(Obliczenia!$D$58="Vitocal 15x-A 151.A06",'151.A06'!U4,IF(Obliczenia!$D$58="Vitocal 15x-A 151.A04",'151.A04'!U4,IF(Obliczenia!$D$58="Vitocal 25x-A 251.A08",'251.A08'!U4,IF(Obliczenia!$D$58="Vitocal 25x-A 251.A06",'251.A06'!U4,IF(Obliczenia!$D$58="Vitocal 25x-A 251.A04",'251.A04'!U4,IF(Obliczenia!$D$58="Carrier 30AWH-P006HP",'AWH-P006'!U4,IF(Obliczenia!$D$58="Carrier 30AWH-P008HP",'AWH-P008'!U4,IF(Obliczenia!$D$58="Carrier 30AWH-P004HP",'AWH-P004'!U4,IF(Obliczenia!$D$58="Carrier 30AWH-P012HP",'AWH-P012T'!U4,IF(Obliczenia!$D$58="Carrier 30AWH-P014HP",'AWH-P014T'!U4,IF(Obliczenia!$D$58="Vitocal 100-A 101.A16",#REF!,IF(Obliczenia!$D$58="Vitocal 100-A 101.A18",#REF!,IF(Obliczenia!$D$58="Vitocal 25x-A 251.A16",'251.A16'!U4,IF(Obliczenia!$D$58="Vitocal 25x-A 251.A19",'251.A19'!U4,"błąd"))))))))))))))))))))))))))))))))))) -> 8.965 | BN8: =IF(Obliczenia!$D$58="Vitocal 2xx-S 201.E06",'E06'!V4,IF(Obliczenia!$D$58="Vitocal 2xx-S 201.E08",'E08'!V4,IF(Obliczenia!$D$58="Vitocal 2xx-S 201.E10",'E10'!V4,IF(Obliczenia!$D$58="Vitocal 1xx-S 101.B04",'B04'!V4,IF(Obliczenia!$D$58="Vitocal 1xx-S 101.B06",'B06'!V4,IF(Obliczenia!$D$58="Vitocal 1xx-S 101.B08",'B08'!V4,IF(Obliczenia!$D$58="Vitocal 1xx-S 101.A12",'A12'!V4,IF(Obliczenia!$D$58="Vitocal 1xx-S 101.A14",'A14'!V4,IF(Obliczenia!$D$58="Vitocal 1xx-S 101.A16",'A16'!V4,IF(Obliczenia!$D$58="Vitocal 2xx-S 201.D04",'D04'!V4,IF(Obliczenia!$D$58="Vitocal 2xx-S 201.D06",'D06'!V4,IF(Obliczenia!$D$58="Vitocal 2xx-S 201.D08",'D08'!V4,IF(Obliczenia!$D$58="Vitocal 2xx-S 201.D10",'D10'!V4,IF(Obliczenia!$D$58="Vitocal 2xx-S 201.D13",'D13'!V4,IF(Obliczenia!$D$58="Vitocal 2xx-S 201.D16",'D16'!V4,IF(Obliczenia!$D$58="Vitocal 15x-A 151.A10",'151.A10'!V4,IF(Obliczenia!$D$58="Vitocal 15x-A 151.A13",'151.A13'!V4,IF(Obliczenia!$D$58="Vitocal 15x-A 151.A16",'151.A16'!V4,IF(Obliczenia!$D$58="Vitocal 25x-A 251.A10",'251.A10'!V4,IF(Obliczenia!$D$58="Vitocal 25x-A 251.A13",'251.A13'!V4,IF(Obliczenia!$D$58="Vitocal 15x-A 151.A08",'151.A08'!V4,IF(Obliczenia!$D$58="Vitocal 15x-A 151.A06",'151.A06'!V4,IF(Obliczenia!$D$58="Vitocal 15x-A 151.A04",'151.A04'!V4,IF(Obliczenia!$D$58="Vitocal 25x-A 251.A08",'251.A08'!V4,IF(Obliczenia!$D$58="Vitocal 25x-A 251.A06",'251.A06'!V4,IF(Obliczenia!$D$58="Vitocal 25x-A 251.A04",'251.A04'!V4,IF(Obliczenia!$D$58="Carrier 30AWH-P006HP",'AWH-P006'!V4,IF(Obliczenia!$D$58="Carrier 30AWH-P008HP",'AWH-P008'!V4,IF(Obliczenia!$D$58="Carrier 30AWH-P004HP",'AWH-P004'!V4,IF(Obliczenia!$D$58="Carrier 30AWH-P012HP",'AWH-P012T'!V4,IF(Obliczenia!$D$58="Carrier 30AWH-P014HP",'AWH-P014T'!V4,IF(Obliczenia!$D$58="Vitocal 100-A 101.A16",#REF!,IF(Obliczenia!$D$58="Vitocal 100-A 101.A18",#REF!,IF(Obliczenia!$D$58="Vitocal 25x-A 251.A16",'251.A16'!V4,IF(Obliczenia!$D$58="Vitocal 25x-A 251.A19",'251.A19'!V4,"błąd"))))))))))))))))))))))))))))))))))) -> 9.68 | BO8: =IF(Obliczenia!$D$58="Vitocal 2xx-S 201.E06",'E06'!W4,IF(Obliczenia!$D$58="Vitocal 2xx-S 201.E08",'E08'!W4,IF(Obliczenia!$D$58="Vitocal 2xx-S 201.E10",'E10'!W4,IF(Obliczenia!$D$58="Vitocal 1xx-S 101.B04",'B04'!W4,IF(Obliczenia!$D$58="Vitocal 1xx-S 101.B06",'B06'!W4,IF(Obliczenia!$D$58="Vitocal 1xx-S 101.B08",'B08'!W4,IF(Obliczenia!$D$58="Vitocal 1xx-S 101.A12",'A12'!W4,IF(Obliczenia!$D$58="Vitocal 1xx-S 101.A14",'A14'!W4,IF(Obliczenia!$D$58="Vitocal 1xx-S 101.A16",'A16'!W4,IF(Obliczenia!$D$58="Vitocal 2xx-S 201.D04",'D04'!W4,IF(Obliczenia!$D$58="Vitocal 2xx-S 201.D06",'D06'!W4,IF(Obliczenia!$D$58="Vitocal 2xx-S 201.D08",'D08'!W4,IF(Obliczenia!$D$58="Vitocal 2xx-S 201.D10",'D10'!W4,IF(Obliczenia!$D$58="Vitocal 2xx-S 201.D13",'D13'!W4,IF(Obliczenia!$D$58="Vitocal 2xx-S 201.D16",'D16'!W4,IF(Obliczenia!$D$58="Vitocal 15x-A 151.A10",'151.A10'!W4,IF(Obliczenia!$D$58="Vitocal 15x-A 151.A13",'151.A13'!W4,IF(Obliczenia!$D$58="Vitocal 15x-A 151.A16",'151.A16'!W4,IF(Obliczenia!$D$58="Vitocal 25x-A 251.A10",'251.A10'!W4,IF(Obliczenia!$D$58="Vitocal 25x-A 251.A13",'251.A13'!W4,IF(Obliczenia!$D$58="Vitocal 15x-A 151.A08",'151.A08'!W4,IF(Obliczenia!$D$58="Vitocal 15x-A 151.A06",'151.A06'!W4,IF(Obliczenia!$D$58="Vitocal 15x-A 151.A04",'151.A04'!W4,IF(Obliczenia!$D$58="Vitocal 25x-A 251.A08",'251.A08'!W4,IF(Obliczenia!$D$58="Vitocal 25x-A 251.A06",'251.A06'!W4,IF(Obliczenia!$D$58="Vitocal 25x-A 251.A04",'251.A04'!W4,IF(Obliczenia!$D$58="Carrier 30AWH-P006HP",'AWH-P006'!W4,IF(Obliczenia!$D$58="Carrier 30AWH-P008HP",'AWH-P008'!W4,IF(Obliczenia!$D$58="Carrier 30AWH-P004HP",'AWH-P004'!W4,IF(Obliczenia!$D$58="Carrier 30AWH-P012HP",'AWH-P012T'!W4,IF(Obliczenia!$D$58="Carrier 30AWH-P014HP",'AWH-P014T'!W4,IF(Obliczenia!$D$58="Vitocal 100-A 101.A16",#REF!,IF(Obliczenia!$D$58="Vitocal 100-A 101.A18",#REF!,IF(Obliczenia!$D$58="Vitocal 25x-A 251.A16",'251.A16'!W4,IF(Obliczenia!$D$58="Vitocal 25x-A 251.A19",'251.A19'!W4,"błąd"))))))))))))))))))))))))))))))))))) -> 11.38 | BW8: Vitocal 200-S AWB-E(-AC) 201.D10 | BX8: ='D10'!B25 -> 43220 | BY8: ='Bilans-D10'!G7 -> 3.836426331 | BZ8: 11265.69267 | CA8: 11265.69267 | CK8: -0.7666666667 | CL8: -11.6875
A9: 4 | B9: 1.2 | C9: 1.2 | E9: 3 | F9: =AVERAGE(C55:C78) -> -1.558333333 | H9: =F9*Budynek!$D$31+Budynek!$D$32 -> 28.084375 | J9: =Budynek!$D$4*(Dane!$E$12-F9)*12/1000 -> 38.805 | L9: =Budynek!$D$4*(Dane!$E$13-F9)*12/1000 -> 33.405 | N9: 72.21 | P9: 72.21 | Q9: 72.21 | R9: 72.21 | S9: 72.21 | T9: =T8 -> 7.11627907 | AA9: =IF(Obliczenia!$D$58="Vitocal 2xx-S 201.E06",'Bilans-E06'!Z9,IF(Obliczenia!$D$58="Vitocal 2xx-S 201.E08",'Bilans-E08'!Z9,IF(Obliczenia!$D$58="Vitocal 2xx-S 201.E10",'Bilans-E10'!Z9,IF(Obliczenia!$D$58="Vitocal 1xx-S 101.B04",'Bilans-B04'!Z9,IF(Obliczenia!$D$58="Vitocal 1xx-S 101.B06",'Bilans-B06'!Z9,IF(Obliczenia!$D$58="Vitocal 1xx-S 101.B08",'Bilans-B08'!Z9,IF(Obliczenia!$D$58="Vitocal 1xx-S 101.A12",'Bilans-A12'!Z9,IF(Obliczenia!$D$58="Vitocal 1xx-S 101.A14",'Bilans-A14'!Z9,IF(Obliczenia!$D$58="Vitocal 1xx-S 101.A16",'Bilans-A16'!Z9,IF(Obliczenia!$D$58="Vitocal 2xx-S 201.D04",'Bilans-D04'!Z9,IF(Obliczenia!$D$58="Vitocal 2xx-S 201.D06",'Bilans-B06'!Z9,IF(Obliczenia!$D$58="Vitocal 2xx-S 201.D08",'Bilans-D08'!Z9,IF(Obliczenia!$D$58="Vitocal 2xx-S 201.D10",'Bilans-D10'!Z9,IF(Obliczenia!$D$58="Vitocal 2xx-S 201.D13",'Bilans-D13'!Z9,IF(Obliczenia!$D$58="Vitocal 2xx-S 201.D16",'Bilans-D16'!Z9,IF(Obliczenia!$D$58="Vitocal 15x-A 151.A10",'Bilans-151-A10'!Z9,IF(Obliczenia!$D$58="Vitocal 15x-A 151.A13",'Bilans-151-A13'!Z9,IF(Obliczenia!$D$58="Vitocal 15x-A 151.A16",'Bilans-151-A16'!Z9,IF(Obliczenia!$D$58="Vitocal 15x-A 151.A16",'Bilans-151-A16'!Z9,IF(Obliczenia!$D$58="Vitocal 25x-A 251.A10",'Bilans-251-A10'!Z9,IF(Obliczenia!$D$58="Vitocal 25x-A 251.A13",'Bilans-251-A13'!Z9,IF(Obliczenia!$D$58="Vitocal 15x-A 151.A06",'Bilans-151-A06'!Z9,IF(Obliczenia!$D$58="Vitocal 15x-A 151.A08",'Bilans-151-A08'!Z9,IF(Obliczenia!$D$58="Vitocal 15x-A 151.A04",'Bilans-151-A04'!Z9,IF(Obliczenia!$D$58="Vitocal 25x-A 251.A04",'Bilans-251-A04'!Z9,IF(Obliczenia!$D$58="Vitocal 25x-A 251.A06",'Bilans-251-A06'!Z9,IF(Obliczenia!$D$58="Vitocal 25x-A 251.A08",'Bilans-251-A08'!Z9,IF(Obliczenia!$D$58="Carrier 30AWH-P006HP",'Bilans-AWH-P006'!Z9,IF(Obliczenia!$D$58="Carrier 30AWH-P008HP",'Bilans-AWH-P008'!Z9,IF(Obliczenia!$D$58="Carrier 30AWH-P004HP",'Bilans-AWH-P004'!Z9,IF(Obliczenia!$D$58="Carrier 30AWH-P012HP",'Bilans-AWH-P012'!Z9,IF(Obliczenia!$D$58="Carrier 30AWH-P014HP",'Bilans-AWH-P014'!Z9,IF(Obliczenia!$D$58="Vitocal 100-A 101.A16",#REF!,IF(Obliczenia!$D$58="Vitocal 100-A 101.A18",#REF!,IF(Obliczenia!$D$58="Vitocal 25x-A 251.A16",'Bilans-251-A16'!Z9,IF(Obliczenia!$D$58="Vitocal 25x-A 251.A19",'Bilans-251-A19'!Z9,"błąd")))))))))))))))))))))))))))))))))))) -> 72.21 | AB9: =IF(Obliczenia!$D$58="Vitocal 2xx-S 201.E06",'Bilans-E06'!AA9,IF(Obliczenia!$D$58="Vitocal 2xx-S 201.E08",'Bilans-E08'!AA9,IF(Obliczenia!$D$58="Vitocal 2xx-S 201.E10",'Bilans-E10'!AA9,IF(Obliczenia!$D$58="Vitocal 1xx-S 101.B04",'Bilans-B04'!AA9,IF(Obliczenia!$D$58="Vitocal 1xx-S 101.B06",'Bilans-B06'!AA9,IF(Obliczenia!$D$58="Vitocal 1xx-S 101.B08",'Bilans-B08'!AA9,IF(Obliczenia!$D$58="Vitocal 1xx-S 101.A12",'Bilans-A12'!AA9,IF(Obliczenia!$D$58="Vitocal 1xx-S 101.A14",'Bilans-A14'!AA9,IF(Obliczenia!$D$58="Vitocal 1xx-S 101.A16",'Bilans-A16'!AA9,IF(Obliczenia!$D$58="Vitocal 2xx-S 201.D04",'Bilans-D04'!AA9,IF(Obliczenia!$D$58="Vitocal 2xx-S 201.D06",'Bilans-B06'!AA9,IF(Obliczenia!$D$58="Vitocal 2xx-S 201.D08",'Bilans-D08'!AA9,IF(Obliczenia!$D$58="Vitocal 2xx-S 201.D10",'Bilans-D10'!AA9,IF(Obliczenia!$D$58="Vitocal 2xx-S 201.D13",'Bilans-D13'!AA9,IF(Obliczenia!$D$58="Vitocal 2xx-S 201.D16",'Bilans-D16'!AA9,IF(Obliczenia!$D$58="Vitocal 15x-A 151.A10",'Bilans-151-A10'!AA9,IF(Obliczenia!$D$58="Vitocal 15x-A 151.A13",'Bilans-151-A13'!AA9,IF(Obliczenia!$D$58="Vitocal 15x-A 151.A16",'Bilans-151-A16'!AA9,IF(Obliczenia!$D$58="Vitocal 15x-A 151.A16",'Bilans-151-A16'!AA9,IF(Obliczenia!$D$58="Vitocal 25x-A 251.A10",'Bilans-251-A10'!AA9,IF(Obliczenia!$D$58="Vitocal 25x-A 251.A13",'Bilans-251-A13'!AA9,IF(Obliczenia!$D$58="Vitocal 15x-A 151.A08",'Bilans-151-A08'!AA9,IF(Obliczenia!$D$58="Vitocal 15x-A 151.A06",'Bilans-151-A06'!AA9,IF(Obliczenia!$D$58="Vitocal 15x-A 151.A04",'Bilans-151-A04'!AA9,IF(Obliczenia!$D$58="Vitocal 25x-A 251.A04",'Bilans-251-A04'!AA9,IF(Obliczenia!$D$58="Vitocal 25x-A 251.A06",'Bilans-251-A06'!AA9,IF(Obliczenia!$D$58="Vitocal 25x-A 251.A08",'Bilans-251-A08'!AA9,IF(Obliczenia!$D$58="Carrier 30AWH-P006HP",'Bilans-AWH-P006'!AA9,IF(Obliczenia!$D$58="Carrier 30AWH-P008HP",'Bilans-AWH-P008'!AA9,IF(Obliczenia!$D$58="Carrier 30AWH-P004HP",'Bilans-AWH-P004'!AA9,IF(Obliczenia!$D$58="Carrier 30AWH-P012HP",'Bilans-AWH-P012'!AA9,IF(Obliczenia!$D$58="Carrier 30AWH-P014HP",'Bilans-AWH-P014'!AA9,IF(Obliczenia!$D$58="Vitocal 100-A 101.A16",#REF!,IF(Obliczenia!$D$58="Vitocal 100-A 101.A18",#REF!,IF(Obliczenia!$D$58="Vitocal 25x-A 251.A16",'Bilans-251-A16'!AA9,IF(Obliczenia!$D$58="Vitocal 25x-A 251.A19",'Bilans-251-A19'!AA9,"błąd")))))))))))))))))))))))))))))))))))) -> 0 | AE9: D08 | AF9: ='D08'!B29 -> 13.62 | AG9: 1 | AI9: 72.21 | AJ9: 0 | AR9: =IF(Obliczenia!$D$58="Vitocal 2xx-S 201.E06",'Bilans-E06'!AR9,IF(Obliczenia!$D$58="Vitocal 2xx-S 201.E08",'Bilans-E08'!AR9,IF(Obliczenia!$D$58="Vitocal 2xx-S 201.E10",'Bilans-E10'!AR9,IF(Obliczenia!$D$58="Vitocal 1xx-S 101.B04",'Bilans-B04'!AR9,IF(Obliczenia!$D$58="Vitocal 1xx-S 101.B06",'Bilans-B06'!AR9,IF(Obliczenia!$D$58="Vitocal 1xx-S 101.B08",'Bilans-B08'!AR9,IF(Obliczenia!$D$58="Vitocal 1xx-S 101.A12",'Bilans-A12'!AR9,IF(Obliczenia!$D$58="Vitocal 1xx-S 101.A14",'Bilans-A14'!AR9,IF(Obliczenia!$D$58="Vitocal 1xx-S 101.A16",'Bilans-A16'!AR9,IF(Obliczenia!$D$58="Vitocal 2xx-S 201.D04",'Bilans-D04'!AR9,IF(Obliczenia!$D$58="Vitocal 2xx-S 201.D06",'Bilans-B06'!AR9,IF(Obliczenia!$D$58="Vitocal 2xx-S 201.D08",'Bilans-D08'!AR9,IF(Obliczenia!$D$58="Vitocal 2xx-S 201.D10",'Bilans-D10'!AR9,IF(Obliczenia!$D$58="Vitocal 2xx-S 201.D13",'Bilans-D13'!AR9,IF(Obliczenia!$D$58="Vitocal 2xx-S 201.D16",'Bilans-D16'!AR9,IF(Obliczenia!$D$58="Vitocal 15x-A 151.A10",'Bilans-151-A10'!AR9,IF(Obliczenia!$D$58="Vitocal 15x-A 151.A13",'Bilans-151-A13'!AR9,IF(Obliczenia!$D$58="Vitocal 15x-A 151.A16",'Bilans-151-A16'!AR9,IF(Obliczenia!$D$58="Vitocal 25x-A 251.A10",'Bilans-251-A10'!AR9,IF(Obliczenia!$D$58="Vitocal 25x-A 251.A13",'Bilans-251-A13'!AR9,IF(Obliczenia!$D$58="Vitocal 15x-A 151.A08",'Bilans-151-A08'!AR9,IF(Obliczenia!$D$58="Vitocal 15x-A 151.A06",'Bilans-151-A06'!AR9,IF(Obliczenia!$D$58="Vitocal 15x-A 151.A04",'Bilans-151-A04'!AR9,IF(Obliczenia!$D$58="Vitocal 25x-A 251.A04",'Bilans-251-A04'!AR9,IF(Obliczenia!$D$58="Vitocal 25x-A 251.A06",'Bilans-251-A06'!AR9,IF(Obliczenia!$D$58="Vitocal 25x-A 251.A08",'Bilans-251-A08'!AR9,IF(Obliczenia!$D$58="Carrier 30AWH-P006HP",'Bilans-AWH-P006'!AR9,IF(Obliczenia!$D$58="Carrier 30AWH-P008HP",'Bilans-AWH-P008'!AR9,IF(Obliczenia!$D$58="Carrier 30AWH-P004HP",'Bilans-AWH-P004'!AR9,IF(Obliczenia!$D$58="Carrier 30AWH-P012HP",'Bilans-AWH-P012'!AR9,IF(Obliczenia!$D$58="Carrier 30AWH-P014HP",'Bilans-AWH-P014'!AR9,IF(Obliczenia!$D$58="Vitocal 100-A 101.A16",#REF!,IF(Obliczenia!$D$58="Vitocal 100-A 101.A18",#REF!,IF(Obliczenia!$D$58="Vitocal 25x-A 251.A16",'Bilans-251-A16'!AR9,IF(Obliczenia!$D$58="Vitocal 25x-A 251.A19",'Bilans-251-A19'!AR9,"błąd"))))))))))))))))))))))))))))))))))) -> 72.21 | AS9: =IF(Obliczenia!$D$58="Vitocal 2xx-S 201.E06",'Bilans-E06'!AS9,IF(Obliczenia!$D$58="Vitocal 2xx-S 201.E08",'Bilans-E08'!AS9,IF(Obliczenia!$D$58="Vitocal 2xx-S 201.E10",'Bilans-E10'!AS9,IF(Obliczenia!$D$58="Vitocal 1xx-S 101.B04",'Bilans-B04'!AS9,IF(Obliczenia!$D$58="Vitocal 1xx-S 101.B06",'Bilans-B06'!AS9,IF(Obliczenia!$D$58="Vitocal 1xx-S 101.B08",'Bilans-B08'!AS9,IF(Obliczenia!$D$58="Vitocal 1xx-S 101.A12",'Bilans-A12'!AS9,IF(Obliczenia!$D$58="Vitocal 1xx-S 101.A14",'Bilans-A14'!AS9,IF(Obliczenia!$D$58="Vitocal 1xx-S 101.A16",'Bilans-A16'!AS9,IF(Obliczenia!$D$58="Vitocal 2xx-S 201.D04",'Bilans-D04'!AS9,IF(Obliczenia!$D$58="Vitocal 2xx-S 201.D06",'Bilans-B06'!AS9,IF(Obliczenia!$D$58="Vitocal 2xx-S 201.D08",'Bilans-D08'!AS9,IF(Obliczenia!$D$58="Vitocal 2xx-S 201.D10",'Bilans-D10'!AS9,IF(Obliczenia!$D$58="Vitocal 2xx-S 201.D13",'Bilans-D13'!AS9,IF(Obliczenia!$D$58="Vitocal 2xx-S 201.D16",'Bilans-D16'!AS9,IF(Obliczenia!$D$58="Vitocal 15x-A 151.A10",'Bilans-151-A10'!AS9,IF(Obliczenia!$D$58="Vitocal 15x-A 151.A13",'Bilans-151-A13'!AS9,IF(Obliczenia!$D$58="Vitocal 15x-A 151.A16",'Bilans-151-A16'!AS9,IF(Obliczenia!$D$58="Vitocal 25x-A 251.A10",'Bilans-251-A10'!AS9,IF(Obliczenia!$D$58="Vitocal 25x-A 251.A13",'Bilans-251-A13'!AS9,IF(Obliczenia!$D$58="Vitocal 15x-A 151.A08",'Bilans-151-A08'!AS9,IF(Obliczenia!$D$58="Vitocal 15x-A 151.A06",'Bilans-151-A06'!AS9,IF(Obliczenia!$D$58="Vitocal 15x-A 151.A04",'Bilans-151-A04'!AS9,IF(Obliczenia!$D$58="Vitocal 25x-A 251.A04",'Bilans-251-A04'!AS9,IF(Obliczenia!$D$58="Vitocal 25x-A 251.A06",'Bilans-251-A06'!AS9,IF(Obliczenia!$D$58="Vitocal 25x-A 251.A08",'Bilans-251-A08'!AS9,IF(Obliczenia!$D$58="Carrier 30AWH-P006HP",'Bilans-AWH-P006'!AS9,IF(Obliczenia!$D$58="Carrier 30AWH-P008HP",'Bilans-AWH-P008'!AS9,IF(Obliczenia!$D$58="Carrier 30AWH-P004HP",'Bilans-AWH-P004'!AS9,IF(Obliczenia!$D$58="Carrier 30AWH-P012HP",'Bilans-AWH-P012'!AS9,IF(Obliczenia!$D$58="Carrier 30AWH-P014HP",'Bilans-AWH-P014'!AS9,IF(Obliczenia!$D$58="Vitocal 100-A 101.A16",#REF!,IF(Obliczenia!$D$58="Vitocal 100-A 101.A18",#REF!,IF(Obliczenia!$D$58="Vitocal 25x-A 251.A16",'Bilans-251-A16'!AS9,IF(Obliczenia!$D$58="Vitocal 25x-A 251.A19",'Bilans-251-A19'!AS9,"błąd"))))))))))))))))))))))))))))))))))) -> 0 | AV9: =IF(Obliczenia!$D$58="Vitocal 2xx-S 201.E06",'Bilans-E06'!BJ9,IF(Obliczenia!$D$58="Vitocal 2xx-S 201.E08",'Bilans-E08'!BJ9,IF(Obliczenia!$D$58="Vitocal 2xx-S 201.E10",'Bilans-E10'!BJ9,IF(Obliczenia!$D$58="Vitocal 1xx-S 101.B04",'Bilans-B04'!BJ9,IF(Obliczenia!$D$58="Vitocal 1xx-S 101.B06",'Bilans-B06'!BJ9,IF(Obliczenia!$D$58="Vitocal 1xx-S 101.B08",'Bilans-B08'!BJ9,IF(Obliczenia!$D$58="Vitocal 1xx-S 101.A12",'Bilans-A12'!BJ9,IF(Obliczenia!$D$58="Vitocal 1xx-S 101.A14",'Bilans-A14'!BJ9,IF(Obliczenia!$D$58="Vitocal 1xx-S 101.A16",'Bilans-A16'!BJ9,IF(Obliczenia!$D$58="Vitocal 2xx-S 201.D04",'Bilans-D04'!BJ9,IF(Obliczenia!$D$58="Vitocal 2xx-S 201.D06",'Bilans-B06'!BJ9,IF(Obliczenia!$D$58="Vitocal 2xx-S 201.D08",'Bilans-D08'!BJ9,IF(Obliczenia!$D$58="Vitocal 2xx-S 201.D10",'Bilans-D10'!BJ9,IF(Obliczenia!$D$58="Vitocal 2xx-S 201.D13",'Bilans-D13'!BJ9,IF(Obliczenia!$D$58="Vitocal 2xx-S 201.D16",'Bilans-D16'!BJ9,IF(Obliczenia!$D$58="Vitocal 15x-A 151.A10",'Bilans-151-A10'!BJ9,IF(Obliczenia!$D$58="Vitocal 15x-A 151.A13",'Bilans-151-A13'!BJ9,IF(Obliczenia!$D$58="Vitocal 15x-A 151.A16",'Bilans-151-A16'!BJ9,IF(Obliczenia!$D$58="Vitocal 25x-A 251.A10",'Bilans-251-A10'!BJ9,IF(Obliczenia!$D$58="Vitocal 25x-A 251.A13",'Bilans-251-A13'!BJ9,IF(Obliczenia!$D$58="Vitocal 15x-A 151.A08",'Bilans-151-A08'!BJ9,IF(Obliczenia!$D$58="Vitocal 15x-A 151.A06",'Bilans-151-A06'!BJ9,IF(Obliczenia!$D$58="Vitocal 15x-A 151.A04",'Bilans-151-A04'!BJ9,IF(Obliczenia!$D$58="Vitocal 25x-A 251.A04",'Bilans-251-A04'!BJ9,IF(Obliczenia!$D$58="Vitocal 25x-A 251.A06",'Bilans-251-A06'!BJ9,IF(Obliczenia!$D$58="Vitocal 25x-A 251.A08",'Bilans-251-A08'!BJ9,IF(Obliczenia!$D$58="Carrier 30AWH-P006HP",'Bilans-AWH-P006'!BJ9,IF(Obliczenia!$D$58="Carrier 30AWH-P008HP",'Bilans-AWH-P008'!BJ9,IF(Obliczenia!$D$58="Carrier 30AWH-P004HP",'Bilans-AWH-P004'!BJ9,IF(Obliczenia!$D$58="Carrier 30AWH-P012HP",'Bilans-AWH-P012'!BJ9,IF(Obliczenia!$D$58="Carrier 30AWH-P014HP",'Bilans-AWH-P014'!BJ9,IF(Obliczenia!$D$58="Vitocal 100-A 101.A16",#REF!,IF(Obliczenia!$D$58="Vitocal 100-A 101.A18",#REF!,IF(Obliczenia!$D$58="Vitocal 25x-A 251.A16",'Bilans-251-A16'!BJ9,IF(Obliczenia!$D$58="Vitocal 25x-A 251.A19",'Bilans-251-A19'!BJ9,"błąd"))))))))))))))))))))))))))))))))))) -> 72.21 | AW9: =IF(Obliczenia!$D$58="Vitocal 2xx-S 201.E06",'Bilans-E06'!BK9,IF(Obliczenia!$D$58="Vitocal 2xx-S 201.E08",'Bilans-E08'!BK9,IF(Obliczenia!$D$58="Vitocal 2xx-S 201.E10",'Bilans-E10'!BK9,IF(Obliczenia!$D$58="Vitocal 1xx-S 101.B04",'Bilans-B04'!BK9,IF(Obliczenia!$D$58="Vitocal 1xx-S 101.B06",'Bilans-B06'!BK9,IF(Obliczenia!$D$58="Vitocal 1xx-S 101.B08",'Bilans-B08'!BK9,IF(Obliczenia!$D$58="Vitocal 1xx-S 101.A12",'Bilans-A12'!BK9,IF(Obliczenia!$D$58="Vitocal 1xx-S 101.A14",'Bilans-A14'!BK9,IF(Obliczenia!$D$58="Vitocal 1xx-S 101.A16",'Bilans-A16'!BK9,IF(Obliczenia!$D$58="Vitocal 2xx-S 201.D04",'Bilans-D04'!BK9,IF(Obliczenia!$D$58="Vitocal 2xx-S 201.D06",'Bilans-B06'!BK9,IF(Obliczenia!$D$58="Vitocal 2xx-S 201.D08",'Bilans-D08'!BK9,IF(Obliczenia!$D$58="Vitocal 2xx-S 201.D10",'Bilans-D10'!BK9,IF(Obliczenia!$D$58="Vitocal 2xx-S 201.D13",'Bilans-D13'!BK9,IF(Obliczenia!$D$58="Vitocal 2xx-S 201.D16",'Bilans-D16'!BK9,IF(Obliczenia!$D$58="Vitocal 15x-A 151.A10",'Bilans-151-A10'!BK9,IF(Obliczenia!$D$58="Vitocal 15x-A 151.A13",'Bilans-151-A13'!BK9,IF(Obliczenia!$D$58="Vitocal 15x-A 151.A16",'Bilans-151-A16'!BK9,IF(Obliczenia!$D$58="Vitocal 25x-A 251.A10",'Bilans-251-A10'!BK9,IF(Obliczenia!$D$58="Vitocal 25x-A 251.A13",'Bilans-251-A13'!BK9,IF(Obliczenia!$D$58="Vitocal 15x-A 151.A08",'Bilans-151-A08'!BK9,IF(Obliczenia!$D$58="Vitocal 15x-A 151.A06",'Bilans-151-A06'!BK9,IF(Obliczenia!$D$58="Vitocal 15x-A 151.A04",'Bilans-151-A04'!BK9,IF(Obliczenia!$D$58="Vitocal 25x-A 251.A04",'Bilans-251-A04'!BK9,IF(Obliczenia!$D$58="Vitocal 25x-A 251.A06",'Bilans-251-A06'!BK9,IF(Obliczenia!$D$58="Vitocal 25x-A 251.A08",'Bilans-251-A08'!BK9,IF(Obliczenia!$D$58="Carrier 30AWH-P006HP",'Bilans-AWH-P006'!BK9,IF(Obliczenia!$D$58="Carrier 30AWH-P008HP",'Bilans-AWH-P008'!BK9,IF(Obliczenia!$D$58="Carrier 30AWH-P004HP",'Bilans-AWH-P004'!BK9,IF(Obliczenia!$D$58="Carrier 30AWH-P012HP",'Bilans-AWH-P012'!BK9,IF(Obliczenia!$D$58="Carrier 30AWH-P014HP",'Bilans-AWH-P014'!BK9,IF(Obliczenia!$D$58="Vitocal 100-A 101.A16",#REF!,IF(Obliczenia!$D$58="Vitocal 100-A 101.A18",#REF!,IF(Obliczenia!$D$58="Vitocal 25x-A 251.A16",'Bilans-251-A16'!BK9,IF(Obliczenia!$D$58="Vitocal 25x-A 251.A19",'Bilans-251-A19'!BK9,"błąd"))))))))))))))))))))))))))))))))))) -> 0 | AZ9: =IF(Obliczenia!$D$58="Vitocal 15x-A 151.A10",'Bilans-151-A10'!CK9,IF(Obliczenia!$D$58="Vitocal 15x-A 151.A13",'Bilans-151-A13'!CK9,IF(Obliczenia!$D$58="Vitocal 15x-A 151.A16",'Bilans-151-A16'!CK9,IF(Obliczenia!$D$58="Vitocal 25x-A 251.A10",'Bilans-251-A10'!CK9,IF(Obliczenia!$D$58="Vitocal 25x-A 251.A13",'Bilans-251-A13'!CK9,IF(Obliczenia!$D$58="Vitocal 15x-A 151.A08",'Bilans-151-A08'!CK9,IF(Obliczenia!$D$58="Vitocal 15x-A 151.A06",'Bilans-151-A06'!CK9,IF(Obliczenia!$D$58="Vitocal 15x-A 151.A04",'Bilans-151-A04'!CK9,IF(Obliczenia!$D$58="Vitocal 25x-A 251.A04",'Bilans-251-A04'!CK9,IF(Obliczenia!$D$58="Vitocal 25x-A 251.A06",'Bilans-251-A06'!CK9,IF(Obliczenia!$D$58="Vitocal 25x-A 251.A08",'Bilans-251-A08'!CK9,IF(Obliczenia!$D$58="Vitocal 25x-A 251.A16",'Bilans-251-A16'!CK9,IF(Obliczenia!$D$58="Vitocal 25x-A 251.A19",'Bilans-251-A19'!CK9,IF(Obliczenia!$D$58="Carrier 30AWH-P004HP",'Bilans-AWH-P004'!CK9,IF(Obliczenia!$D$58="Carrier 30AWH-P006HP",'Bilans-AWH-P006'!CK9,IF(Obliczenia!$D$58="Carrier 30AWH-P008HP",'Bilans-AWH-P008'!CK9,IF(Obliczenia!$D$58="Carrier 30AWH-P012HP",'Bilans-AWH-P012'!CK9,IF(Obliczenia!$D$58="Carrier 30AWH-P014HP",'Bilans-AWH-P014'!CK9,"błąd")))))))))))))))))) -> błąd | BA9: =IF(Obliczenia!$D$58="Vitocal 15x-A 151.A10",'Bilans-151-A10'!CL9,IF(Obliczenia!$D$58="Vitocal 15x-A 151.A13",'Bilans-151-A13'!CL9,IF(Obliczenia!$D$58="Vitocal 15x-A 151.A16",'Bilans-151-A16'!CL9,IF(Obliczenia!$D$58="Vitocal 25x-A 251.A10",'Bilans-251-A10'!CL9,IF(Obliczenia!$D$58="Vitocal 25x-A 251.A13",'Bilans-251-A13'!CL9,IF(Obliczenia!$D$58="Vitocal 15x-A 151.A08",'Bilans-151-A08'!CL9,IF(Obliczenia!$D$58="Vitocal 15x-A 151.A06",'Bilans-151-A06'!CL9,IF(Obliczenia!$D$58="Vitocal 15x-A 151.A04",'Bilans-151-A04'!CL9,IF(Obliczenia!$D$58="Vitocal 25x-A 251.A04",'Bilans-251-A04'!CL9,IF(Obliczenia!$D$58="Vitocal 25x-A 251.A06",'Bilans-251-A06'!CL9,IF(Obliczenia!$D$58="Vitocal 25x-A 251.A08",'Bilans-251-A08'!CL9,IF(Obliczenia!$D$58="Vitocal 25x-A 251.A16",'Bilans-251-A16'!CL9,IF(Obliczenia!$D$58="Vitocal 25x-A 251.A19",'Bilans-251-A19'!CL9,IF(Obliczenia!$D$58="Carrier 30AWH-P004HP",'Bilans-AWH-P004'!CL9,IF(Obliczenia!$D$58="Carrier 30AWH-P006HP",'Bilans-AWH-P006'!CL9,IF(Obliczenia!$D$58="Carrier 30AWH-P008HP",'Bilans-AWH-P008'!CL9,IF(Obliczenia!$D$58="Carrier 30AWH-P012HP",'Bilans-AWH-P012'!CL9,IF(Obliczenia!$D$58="Carrier 30AWH-P014HP",'Bilans-AWH-P014'!CL9,"błąd")))))))))))))))))) -> błąd | BW9: Vitocal 200-S AWB-E(-AC) 201.D13 | BX9: ='D13'!B25 -> 51386 | BY9: ='Bilans-D13'!G7 -> 3.723495021 | BZ9: 13800.47501 | CA9: 13800.47501 | CD9: Emisja | CE9: CO2 | CK9: -1.558333333 | CL9: -10.60833333
A10: 5 | B10: 0.8 | C10: 0.8 | E10: 4 | F10: =AVERAGE(C79:C102) -> -6.620833333 | H10: =F10*Budynek!$D$31+Budynek!$D$32 -> 29.9828125 | J10: =Budynek!$D$4*(Dane!$E$12-F10)*12/1000 -> 47.9175 | L10: =Budynek!$D$4*(Dane!$E$13-F10)*12/1000 -> 42.5175 | N10: 90.435 | P10: 90.435 | Q10: 90.435 | R10: 90.435 | S10: 90.435 | T10: 7.11627907 | AA10: =IF(Obliczenia!$D$58="Vitocal 2xx-S 201.E06",'Bilans-E06'!Z10,IF(Obliczenia!$D$58="Vitocal 2xx-S 201.E08",'Bilans-E08'!Z10,IF(Obliczenia!$D$58="Vitocal 2xx-S 201.E10",'Bilans-E10'!Z10,IF(Obliczenia!$D$58="Vitocal 1xx-S 101.B04",'Bilans-B04'!Z10,IF(Obliczenia!$D$58="Vitocal 1xx-S 101.B06",'Bilans-B06'!Z10,IF(Obliczenia!$D$58="Vitocal 1xx-S 101.B08",'Bilans-B08'!Z10,IF(Obliczenia!$D$58="Vitocal 1xx-S 101.A12",'Bilans-A12'!Z10,IF(Obliczenia!$D$58="Vitocal 1xx-S 101.A14",'Bilans-A14'!Z10,IF(Obliczenia!$D$58="Vitocal 1xx-S 101.A16",'Bilans-A16'!Z10,IF(Obliczenia!$D$58="Vitocal 2xx-S 201.D04",'Bilans-D04'!Z10,IF(Obliczenia!$D$58="Vitocal 2xx-S 201.D06",'Bilans-B06'!Z10,IF(Obliczenia!$D$58="Vitocal 2xx-S 201.D08",'Bilans-D08'!Z10,IF(Obliczenia!$D$58="Vitocal 2xx-S 201.D10",'Bilans-D10'!Z10,IF(Obliczenia!$D$58="Vitocal 2xx-S 201.D13",'Bilans-D13'!Z10,IF(Obliczenia!$D$58="Vitocal 2xx-S 201.D16",'Bilans-D16'!Z10,IF(Obliczenia!$D$58="Vitocal 15x-A 151.A10",'Bilans-151-A10'!Z10,IF(Obliczenia!$D$58="Vitocal 15x-A 151.A13",'Bilans-151-A13'!Z10,IF(Obliczenia!$D$58="Vitocal 15x-A 151.A16",'Bilans-151-A16'!Z10,IF(Obliczenia!$D$58="Vitocal 15x-A 151.A16",'Bilans-151-A16'!Z10,IF(Obliczenia!$D$58="Vitocal 25x-A 251.A10",'Bilans-251-A10'!Z10,IF(Obliczenia!$D$58="Vitocal 25x-A 251.A13",'Bilans-251-A13'!Z10,IF(Obliczenia!$D$58="Vitocal 15x-A 151.A06",'Bilans-151-A06'!Z10,IF(Obliczenia!$D$58="Vitocal 15x-A 151.A08",'Bilans-151-A08'!Z10,IF(Obliczenia!$D$58="Vitocal 15x-A 151.A04",'Bilans-151-A04'!Z10,IF(Obliczenia!$D$58="Vitocal 25x-A 251.A04",'Bilans-251-A04'!Z10,IF(Obliczenia!$D$58="Vitocal 25x-A 251.A06",'Bilans-251-A06'!Z10,IF(Obliczenia!$D$58="Vitocal 25x-A 251.A08",'Bilans-251-A08'!Z10,IF(Obliczenia!$D$58="Carrier 30AWH-P006HP",'Bilans-AWH-P006'!Z10,IF(Obliczenia!$D$58="Carrier 30AWH-P008HP",'Bilans-AWH-P008'!Z10,IF(Obliczenia!$D$58="Carrier 30AWH-P004HP",'Bilans-AWH-P004'!Z10,IF(Obliczenia!$D$58="Carrier 30AWH-P012HP",'Bilans-AWH-P012'!Z10,IF(Obliczenia!$D$58="Carrier 30AWH-P014HP",'Bilans-AWH-P014'!Z10,IF(Obliczenia!$D$58="Vitocal 100-A 101.A16",#REF!,IF(Obliczenia!$D$58="Vitocal 100-A 101.A18",#REF!,IF(Obliczenia!$D$58="Vitocal 25x-A 251.A16",'Bilans-251-A16'!Z10,IF(Obliczenia!$D$58="Vitocal 25x-A 251.A19",'Bilans-251-A19'!Z10,"błąd")))))))))))))))))))))))))))))))))))) -> 90.435 | AB10: =IF(Obliczenia!$D$58="Vitocal 2xx-S 201.E06",'Bilans-E06'!AA10,IF(Obliczenia!$D$58="Vitocal 2xx-S 201.E08",'Bilans-E08'!AA10,IF(Obliczenia!$D$58="Vitocal 2xx-S 201.E10",'Bilans-E10'!AA10,IF(Obliczenia!$D$58="Vitocal 1xx-S 101.B04",'Bilans-B04'!AA10,IF(Obliczenia!$D$58="Vitocal 1xx-S 101.B06",'Bilans-B06'!AA10,IF(Obliczenia!$D$58="Vitocal 1xx-S 101.B08",'Bilans-B08'!AA10,IF(Obliczenia!$D$58="Vitocal 1xx-S 101.A12",'Bilans-A12'!AA10,IF(Obliczenia!$D$58="Vitocal 1xx-S 101.A14",'Bilans-A14'!AA10,IF(Obliczenia!$D$58="Vitocal 1xx-S 101.A16",'Bilans-A16'!AA10,IF(Obliczenia!$D$58="Vitocal 2xx-S 201.D04",'Bilans-D04'!AA10,IF(Obliczenia!$D$58="Vitocal 2xx-S 201.D06",'Bilans-B06'!AA10,IF(Obliczenia!$D$58="Vitocal 2xx-S 201.D08",'Bilans-D08'!AA10,IF(Obliczenia!$D$58="Vitocal 2xx-S 201.D10",'Bilans-D10'!AA10,IF(Obliczenia!$D$58="Vitocal 2xx-S 201.D13",'Bilans-D13'!AA10,IF(Obliczenia!$D$58="Vitocal 2xx-S 201.D16",'Bilans-D16'!AA10,IF(Obliczenia!$D$58="Vitocal 15x-A 151.A10",'Bilans-151-A10'!AA10,IF(Obliczenia!$D$58="Vitocal 15x-A 151.A13",'Bilans-151-A13'!AA10,IF(Obliczenia!$D$58="Vitocal 15x-A 151.A16",'Bilans-151-A16'!AA10,IF(Obliczenia!$D$58="Vitocal 15x-A 151.A16",'Bilans-151-A16'!AA10,IF(Obliczenia!$D$58="Vitocal 25x-A 251.A10",'Bilans-251-A10'!AA10,IF(Obliczenia!$D$58="Vitocal 25x-A 251.A13",'Bilans-251-A13'!AA10,IF(Obliczenia!$D$58="Vitocal 15x-A 151.A08",'Bilans-151-A08'!AA10,IF(Obliczenia!$D$58="Vitocal 15x-A 151.A06",'Bilans-151-A06'!AA10,IF(Obliczenia!$D$58="Vitocal 15x-A 151.A04",'Bilans-151-A04'!AA10,IF(Obliczenia!$D$58="Vitocal 25x-A 251.A04",'Bilans-251-A04'!AA10,IF(Obliczenia!$D$58="Vitocal 25x-A 251.A06",'Bilans-251-A06'!AA10,IF(Obliczenia!$D$58="Vitocal 25x-A 251.A08",'Bilans-251-A08'!AA10,IF(Obliczenia!$D$58="Carrier 30AWH-P006HP",'Bilans-AWH-P006'!AA10,IF(Obliczenia!$D$58="Carrier 30AWH-P008HP",'Bilans-AWH-P008'!AA10,IF(Obliczenia!$D$58="Carrier 30AWH-P004HP",'Bilans-AWH-P004'!AA10,IF(Obliczenia!$D$58="Carrier 30AWH-P012HP",'Bilans-AWH-P012'!AA10,IF(Obliczenia!$D$58="Carrier 30AWH-P014HP",'Bilans-AWH-P014'!AA10,IF(Obliczenia!$D$58="Vitocal 100-A 101.A16",#REF!,IF(Obliczenia!$D$58="Vitocal 100-A 101.A18",#REF!,IF(Obliczenia!$D$58="Vitocal 25x-A 251.A16",'Bilans-251-A16'!AA10,IF(Obliczenia!$D$58="Vitocal 25x-A 251.A19",'Bilans-251-A19'!AA10,"błąd")))))))))))))))))))))))))))))))))))) -> 0 | AE10: D06 | AF10: ='D06'!B28 -> 12.77 | AG10: 1 | AI10: 90.435 | AJ10: 0 | AR10: =IF(Obliczenia!$D$58="Vitocal 2xx-S 201.E06",'Bilans-E06'!AR10,IF(Obliczenia!$D$58="Vitocal 2xx-S 201.E08",'Bilans-E08'!AR10,IF(Obliczenia!$D$58="Vitocal 2xx-S 201.E10",'Bilans-E10'!AR10,IF(Obliczenia!$D$58="Vitocal 1xx-S 101.B04",'Bilans-B04'!AR10,IF(Obliczenia!$D$58="Vitocal 1xx-S 101.B06",'Bilans-B06'!AR10,IF(Obliczenia!$D$58="Vitocal 1xx-S 101.B08",'Bilans-B08'!AR10,IF(Obliczenia!$D$58="Vitocal 1xx-S 101.A12",'Bilans-A12'!AR10,IF(Obliczenia!$D$58="Vitocal 1xx-S 101.A14",'Bilans-A14'!AR10,IF(Obliczenia!$D$58="Vitocal 1xx-S 101.A16",'Bilans-A16'!AR10,IF(Obliczenia!$D$58="Vitocal 2xx-S 201.D04",'Bilans-D04'!AR10,IF(Obliczenia!$D$58="Vitocal 2xx-S 201.D06",'Bilans-B06'!AR10,IF(Obliczenia!$D$58="Vitocal 2xx-S 201.D08",'Bilans-D08'!AR10,IF(Obliczenia!$D$58="Vitocal 2xx-S 201.D10",'Bilans-D10'!AR10,IF(Obliczenia!$D$58="Vitocal 2xx-S 201.D13",'Bilans-D13'!AR10,IF(Obliczenia!$D$58="Vitocal 2xx-S 201.D16",'Bilans-D16'!AR10,IF(Obliczenia!$D$58="Vitocal 15x-A 151.A10",'Bilans-151-A10'!AR10,IF(Obliczenia!$D$58="Vitocal 15x-A 151.A13",'Bilans-151-A13'!AR10,IF(Obliczenia!$D$58="Vitocal 15x-A 151.A16",'Bilans-151-A16'!AR10,IF(Obliczenia!$D$58="Vitocal 25x-A 251.A10",'Bilans-251-A10'!AR10,IF(Obliczenia!$D$58="Vitocal 25x-A 251.A13",'Bilans-251-A13'!AR10,IF(Obliczenia!$D$58="Vitocal 15x-A 151.A08",'Bilans-151-A08'!AR10,IF(Obliczenia!$D$58="Vitocal 15x-A 151.A06",'Bilans-151-A06'!AR10,IF(Obliczenia!$D$58="Vitocal 15x-A 151.A04",'Bilans-151-A04'!AR10,IF(Obliczenia!$D$58="Vitocal 25x-A 251.A04",'Bilans-251-A04'!AR10,IF(Obliczenia!$D$58="Vitocal 25x-A 251.A06",'Bilans-251-A06'!AR10,IF(Obliczenia!$D$58="Vitocal 25x-A 251.A08",'Bilans-251-A08'!AR10,IF(Obliczenia!$D$58="Carrier 30AWH-P006HP",'Bilans-AWH-P006'!AR10,IF(Obliczenia!$D$58="Carrier 30AWH-P008HP",'Bilans-AWH-P008'!AR10,IF(Obliczenia!$D$58="Carrier 30AWH-P004HP",'Bilans-AWH-P004'!AR10,IF(Obliczenia!$D$58="Carrier 30AWH-P012HP",'Bilans-AWH-P012'!AR10,IF(Obliczenia!$D$58="Carrier 30AWH-P014HP",'Bilans-AWH-P014'!AR10,IF(Obliczenia!$D$58="Vitocal 100-A 101.A16",#REF!,IF(Obliczenia!$D$58="Vitocal 100-A 101.A18",#REF!,IF(Obliczenia!$D$58="Vitocal 25x-A 251.A16",'Bilans-251-A16'!AR10,IF(Obliczenia!$D$58="Vitocal 25x-A 251.A19",'Bilans-251-A19'!AR10,"błąd"))))))))))))))))))))))))))))))))))) -> 90.435 | AS10: =IF(Obliczenia!$D$58="Vitocal 2xx-S 201.E06",'Bilans-E06'!AS10,IF(Obliczenia!$D$58="Vitocal 2xx-S 201.E08",'Bilans-E08'!AS10,IF(Obliczenia!$D$58="Vitocal 2xx-S 201.E10",'Bilans-E10'!AS10,IF(Obliczenia!$D$58="Vitocal 1xx-S 101.B04",'Bilans-B04'!AS10,IF(Obliczenia!$D$58="Vitocal 1xx-S 101.B06",'Bilans-B06'!AS10,IF(Obliczenia!$D$58="Vitocal 1xx-S 101.B08",'Bilans-B08'!AS10,IF(Obliczenia!$D$58="Vitocal 1xx-S 101.A12",'Bilans-A12'!AS10,IF(Obliczenia!$D$58="Vitocal 1xx-S 101.A14",'Bilans-A14'!AS10,IF(Obliczenia!$D$58="Vitocal 1xx-S 101.A16",'Bilans-A16'!AS10,IF(Obliczenia!$D$58="Vitocal 2xx-S 201.D04",'Bilans-D04'!AS10,IF(Obliczenia!$D$58="Vitocal 2xx-S 201.D06",'Bilans-B06'!AS10,IF(Obliczenia!$D$58="Vitocal 2xx-S 201.D08",'Bilans-D08'!AS10,IF(Obliczenia!$D$58="Vitocal 2xx-S 201.D10",'Bilans-D10'!AS10,IF(Obliczenia!$D$58="Vitocal 2xx-S 201.D13",'Bilans-D13'!AS10,IF(Obliczenia!$D$58="Vitocal 2xx-S 201.D16",'Bilans-D16'!AS10,IF(Obliczenia!$D$58="Vitocal 15x-A 151.A10",'Bilans-151-A10'!AS10,IF(Obliczenia!$D$58="Vitocal 15x-A 151.A13",'Bilans-151-A13'!AS10,IF(Obliczenia!$D$58="Vitocal 15x-A 151.A16",'Bilans-151-A16'!AS10,IF(Obliczenia!$D$58="Vitocal 25x-A 251.A10",'Bilans-251-A10'!AS10,IF(Obliczenia!$D$58="Vitocal 25x-A 251.A13",'Bilans-251-A13'!AS10,IF(Obliczenia!$D$58="Vitocal 15x-A 151.A08",'Bilans-151-A08'!AS10,IF(Obliczenia!$D$58="Vitocal 15x-A 151.A06",'Bilans-151-A06'!AS10,IF(Obliczenia!$D$58="Vitocal 15x-A 151.A04",'Bilans-151-A04'!AS10,IF(Obliczenia!$D$58="Vitocal 25x-A 251.A04",'Bilans-251-A04'!AS10,IF(Obliczenia!$D$58="Vitocal 25x-A 251.A06",'Bilans-251-A06'!AS10,IF(Obliczenia!$D$58="Vitocal 25x-A 251.A08",'Bilans-251-A08'!AS10,IF(Obliczenia!$D$58="Carrier 30AWH-P006HP",'Bilans-AWH-P006'!AS10,IF(Obliczenia!$D$58="Carrier 30AWH-P008HP",'Bilans-AWH-P008'!AS10,IF(Obliczenia!$D$58="Carrier 30AWH-P004HP",'Bilans-AWH-P004'!AS10,IF(Obliczenia!$D$58="Carrier 30AWH-P012HP",'Bilans-AWH-P012'!AS10,IF(Obliczenia!$D$58="Carrier 30AWH-P014HP",'Bilans-AWH-P014'!AS10,IF(Obliczenia!$D$58="Vitocal 100-A 101.A16",#REF!,IF(Obliczenia!$D$58="Vitocal 100-A 101.A18",#REF!,IF(Obliczenia!$D$58="Vitocal 25x-A 251.A16",'Bilans-251-A16'!AS10,IF(Obliczenia!$D$58="Vitocal 25x-A 251.A19",'Bilans-251-A19'!AS10,"błąd"))))))))))))))))))))))))))))))))))) -> 0 | AV10: =IF(Obliczenia!$D$58="Vitocal 2xx-S 201.E06",'Bilans-E06'!BJ10,IF(Obliczenia!$D$58="Vitocal 2xx-S 201.E08",'Bilans-E08'!BJ10,IF(Obliczenia!$D$58="Vitocal 2xx-S 201.E10",'Bilans-E10'!BJ10,IF(Obliczenia!$D$58="Vitocal 1xx-S 101.B04",'Bilans-B04'!BJ10,IF(Obliczenia!$D$58="Vitocal 1xx-S 101.B06",'Bilans-B06'!BJ10,IF(Obliczenia!$D$58="Vitocal 1xx-S 101.B08",'Bilans-B08'!BJ10,IF(Obliczenia!$D$58="Vitocal 1xx-S 101.A12",'Bilans-A12'!BJ10,IF(Obliczenia!$D$58="Vitocal 1xx-S 101.A14",'Bilans-A14'!BJ10,IF(Obliczenia!$D$58="Vitocal 1xx-S 101.A16",'Bilans-A16'!BJ10,IF(Obliczenia!$D$58="Vitocal 2xx-S 201.D04",'Bilans-D04'!BJ10,IF(Obliczenia!$D$58="Vitocal 2xx-S 201.D06",'Bilans-B06'!BJ10,IF(Obliczenia!$D$58="Vitocal 2xx-S 201.D08",'Bilans-D08'!BJ10,IF(Obliczenia!$D$58="Vitocal 2xx-S 201.D10",'Bilans-D10'!BJ10,IF(Obliczenia!$D$58="Vitocal 2xx-S 201.D13",'Bilans-D13'!BJ10,IF(Obliczenia!$D$58="Vitocal 2xx-S 201.D16",'Bilans-D16'!BJ10,IF(Obliczenia!$D$58="Vitocal 15x-A 151.A10",'Bilans-151-A10'!BJ10,IF(Obliczenia!$D$58="Vitocal 15x-A 151.A13",'Bilans-151-A13'!BJ10,IF(Obliczenia!$D$58="Vitocal 15x-A 151.A16",'Bilans-151-A16'!BJ10,IF(Obliczenia!$D$58="Vitocal 25x-A 251.A10",'Bilans-251-A10'!BJ10,IF(Obliczenia!$D$58="Vitocal 25x-A 251.A13",'Bilans-251-A13'!BJ10,IF(Obliczenia!$D$58="Vitocal 15x-A 151.A08",'Bilans-151-A08'!BJ10,IF(Obliczenia!$D$58="Vitocal 15x-A 151.A06",'Bilans-151-A06'!BJ10,IF(Obliczenia!$D$58="Vitocal 15x-A 151.A04",'Bilans-151-A04'!BJ10,IF(Obliczenia!$D$58="Vitocal 25x-A 251.A04",'Bilans-251-A04'!BJ10,IF(Obliczenia!$D$58="Vitocal 25x-A 251.A06",'Bilans-251-A06'!BJ10,IF(Obliczenia!$D$58="Vitocal 25x-A 251.A08",'Bilans-251-A08'!BJ10,IF(Obliczenia!$D$58="Carrier 30AWH-P006HP",'Bilans-AWH-P006'!BJ10,IF(Obliczenia!$D$58="Carrier 30AWH-P008HP",'Bilans-AWH-P008'!BJ10,IF(Obliczenia!$D$58="Carrier 30AWH-P004HP",'Bilans-AWH-P004'!BJ10,IF(Obliczenia!$D$58="Carrier 30AWH-P012HP",'Bilans-AWH-P012'!BJ10,IF(Obliczenia!$D$58="Carrier 30AWH-P014HP",'Bilans-AWH-P014'!BJ10,IF(Obliczenia!$D$58="Vitocal 100-A 101.A16",#REF!,IF(Obliczenia!$D$58="Vitocal 100-A 101.A18",#REF!,IF(Obliczenia!$D$58="Vitocal 25x-A 251.A16",'Bilans-251-A16'!BJ10,IF(Obliczenia!$D$58="Vitocal 25x-A 251.A19",'Bilans-251-A19'!BJ10,"błąd"))))))))))))))))))))))))))))))))))) -> 90.435 | AW10: =IF(Obliczenia!$D$58="Vitocal 2xx-S 201.E06",'Bilans-E06'!BK10,IF(Obliczenia!$D$58="Vitocal 2xx-S 201.E08",'Bilans-E08'!BK10,IF(Obliczenia!$D$58="Vitocal 2xx-S 201.E10",'Bilans-E10'!BK10,IF(Obliczenia!$D$58="Vitocal 1xx-S 101.B04",'Bilans-B04'!BK10,IF(Obliczenia!$D$58="Vitocal 1xx-S 101.B06",'Bilans-B06'!BK10,IF(Obliczenia!$D$58="Vitocal 1xx-S 101.B08",'Bilans-B08'!BK10,IF(Obliczenia!$D$58="Vitocal 1xx-S 101.A12",'Bilans-A12'!BK10,IF(Obliczenia!$D$58="Vitocal 1xx-S 101.A14",'Bilans-A14'!BK10,IF(Obliczenia!$D$58="Vitocal 1xx-S 101.A16",'Bilans-A16'!BK10,IF(Obliczenia!$D$58="Vitocal 2xx-S 201.D04",'Bilans-D04'!BK10,IF(Obliczenia!$D$58="Vitocal 2xx-S 201.D06",'Bilans-B06'!BK10,IF(Obliczenia!$D$58="Vitocal 2xx-S 201.D08",'Bilans-D08'!BK10,IF(Obliczenia!$D$58="Vitocal 2xx-S 201.D10",'Bilans-D10'!BK10,IF(Obliczenia!$D$58="Vitocal 2xx-S 201.D13",'Bilans-D13'!BK10,IF(Obliczenia!$D$58="Vitocal 2xx-S 201.D16",'Bilans-D16'!BK10,IF(Obliczenia!$D$58="Vitocal 15x-A 151.A10",'Bilans-151-A10'!BK10,IF(Obliczenia!$D$58="Vitocal 15x-A 151.A13",'Bilans-151-A13'!BK10,IF(Obliczenia!$D$58="Vitocal 15x-A 151.A16",'Bilans-151-A16'!BK10,IF(Obliczenia!$D$58="Vitocal 25x-A 251.A10",'Bilans-251-A10'!BK10,IF(Obliczenia!$D$58="Vitocal 25x-A 251.A13",'Bilans-251-A13'!BK10,IF(Obliczenia!$D$58="Vitocal 15x-A 151.A08",'Bilans-151-A08'!BK10,IF(Obliczenia!$D$58="Vitocal 15x-A 151.A06",'Bilans-151-A06'!BK10,IF(Obliczenia!$D$58="Vitocal 15x-A 151.A04",'Bilans-151-A04'!BK10,IF(Obliczenia!$D$58="Vitocal 25x-A 251.A04",'Bilans-251-A04'!BK10,IF(Obliczenia!$D$58="Vitocal 25x-A 251.A06",'Bilans-251-A06'!BK10,IF(Obliczenia!$D$58="Vitocal 25x-A 251.A08",'Bilans-251-A08'!BK10,IF(Obliczenia!$D$58="Carrier 30AWH-P006HP",'Bilans-AWH-P006'!BK10,IF(Obliczenia!$D$58="Carrier 30AWH-P008HP",'Bilans-AWH-P008'!BK10,IF(Obliczenia!$D$58="Carrier 30AWH-P004HP",'Bilans-AWH-P004'!BK10,IF(Obliczenia!$D$58="Carrier 30AWH-P012HP",'Bilans-AWH-P012'!BK10,IF(Obliczenia!$D$58="Carrier 30AWH-P014HP",'Bilans-AWH-P014'!BK10,IF(Obliczenia!$D$58="Vitocal 100-A 101.A16",#REF!,IF(Obliczenia!$D$58="Vitocal 100-A 101.A18",#REF!,IF(Obliczenia!$D$58="Vitocal 25x-A 251.A16",'Bilans-251-A16'!BK10,IF(Obliczenia!$D$58="Vitocal 25x-A 251.A19",'Bilans-251-A19'!BK10,"błąd"))))))))))))))))))))))))))))))))))) -> 0 | AZ10: =IF(Obliczenia!$D$58="Vitocal 15x-A 151.A10",'Bilans-151-A10'!CK10,IF(Obliczenia!$D$58="Vitocal 15x-A 151.A13",'Bilans-151-A13'!CK10,IF(Obliczenia!$D$58="Vitocal 15x-A 151.A16",'Bilans-151-A16'!CK10,IF(Obliczenia!$D$58="Vitocal 25x-A 251.A10",'Bilans-251-A10'!CK10,IF(Obliczenia!$D$58="Vitocal 25x-A 251.A13",'Bilans-251-A13'!CK10,IF(Obliczenia!$D$58="Vitocal 15x-A 151.A08",'Bilans-151-A08'!CK10,IF(Obliczenia!$D$58="Vitocal 15x-A 151.A06",'Bilans-151-A06'!CK10,IF(Obliczenia!$D$58="Vitocal 15x-A 151.A04",'Bilans-151-A04'!CK10,IF(Obliczenia!$D$58="Vitocal 25x-A 251.A04",'Bilans-251-A04'!CK10,IF(Obliczenia!$D$58="Vitocal 25x-A 251.A06",'Bilans-251-A06'!CK10,IF(Obliczenia!$D$58="Vitocal 25x-A 251.A08",'Bilans-251-A08'!CK10,IF(Obliczenia!$D$58="Vitocal 25x-A 251.A16",'Bilans-251-A16'!CK10,IF(Obliczenia!$D$58="Vitocal 25x-A 251.A19",'Bilans-251-A19'!CK10,IF(Obliczenia!$D$58="Carrier 30AWH-P004HP",'Bilans-AWH-P004'!CK10,IF(Obliczenia!$D$58="Carrier 30AWH-P006HP",'Bilans-AWH-P006'!CK10,IF(Obliczenia!$D$58="Carrier 30AWH-P008HP",'Bilans-AWH-P008'!CK10,IF(Obliczenia!$D$58="Carrier 30AWH-P012HP",'Bilans-AWH-P012'!CK10,IF(Obliczenia!$D$58="Carrier 30AWH-P014HP",'Bilans-AWH-P014'!CK10,"błąd")))))))))))))))))) -> błąd | BA10: =IF(Obliczenia!$D$58="Vitocal 15x-A 151.A10",'Bilans-151-A10'!CL10,IF(Obliczenia!$D$58="Vitocal 15x-A 151.A13",'Bilans-151-A13'!CL10,IF(Obliczenia!$D$58="Vitocal 15x-A 151.A16",'Bilans-151-A16'!CL10,IF(Obliczenia!$D$58="Vitocal 25x-A 251.A10",'Bilans-251-A10'!CL10,IF(Obliczenia!$D$58="Vitocal 25x-A 251.A13",'Bilans-251-A13'!CL10,IF(Obliczenia!$D$58="Vitocal 15x-A 151.A08",'Bilans-151-A08'!CL10,IF(Obliczenia!$D$58="Vitocal 15x-A 151.A06",'Bilans-151-A06'!CL10,IF(Obliczenia!$D$58="Vitocal 15x-A 151.A04",'Bilans-151-A04'!CL10,IF(Obliczenia!$D$58="Vitocal 25x-A 251.A04",'Bilans-251-A04'!CL10,IF(Obliczenia!$D$58="Vitocal 25x-A 251.A06",'Bilans-251-A06'!CL10,IF(Obliczenia!$D$58="Vitocal 25x-A 251.A08",'Bilans-251-A08'!CL10,IF(Obliczenia!$D$58="Vitocal 25x-A 251.A16",'Bilans-251-A16'!CL10,IF(Obliczenia!$D$58="Vitocal 25x-A 251.A19",'Bilans-251-A19'!CL10,IF(Obliczenia!$D$58="Carrier 30AWH-P004HP",'Bilans-AWH-P004'!CL10,IF(Obliczenia!$D$58="Carrier 30AWH-P006HP",'Bilans-AWH-P006'!CL10,IF(Obliczenia!$D$58="Carrier 30AWH-P008HP",'Bilans-AWH-P008'!CL10,IF(Obliczenia!$D$58="Carrier 30AWH-P012HP",'Bilans-AWH-P012'!CL10,IF(Obliczenia!$D$58="Carrier 30AWH-P014HP",'Bilans-AWH-P014'!CL10,"błąd")))))))))))))))))) -> błąd | BE10: VTS55 | BF10: =IF(Obliczenia!$D$58="Vitocal 2xx-S 201.E06",'E06'!N26,IF(Obliczenia!$D$58="Vitocal 2xx-S 201.E08",'E08'!N26,IF(Obliczenia!$D$58="Vitocal 2xx-S 201.E10",'E10'!N26,IF(Obliczenia!$D$58="Vitocal 1xx-S 101.B04",'B04'!N26,IF(Obliczenia!$D$58="Vitocal 1xx-S 101.B06",'B06'!N26,IF(Obliczenia!$D$58="Vitocal 1xx-S 101.B08",'B08'!N26,IF(Obliczenia!$D$58="Vitocal 1xx-S 101.A12",'A12'!N26,IF(Obliczenia!$D$58="Vitocal 1xx-S 101.A14",'A14'!N26,IF(Obliczenia!$D$58="Vitocal 1xx-S 101.A16",'A16'!N26,IF(Obliczenia!$D$58="Vitocal 2xx-S 201.D04",'D04'!N26,IF(Obliczenia!$D$58="Vitocal 2xx-S 201.D06",'D06'!N26,IF(Obliczenia!$D$58="Vitocal 2xx-S 201.D08",'D08'!N26,IF(Obliczenia!$D$58="Vitocal 2xx-S 201.D10",'D10'!N26,IF(Obliczenia!$D$58="Vitocal 2xx-S 201.D13",'D13'!N26,IF(Obliczenia!$D$58="Vitocal 2xx-S 201.D16",'D16'!N26,IF(Obliczenia!$D$58="Vitocal 15x-A 151.A10",'151.A10'!N26,IF(Obliczenia!$D$58="Vitocal 15x-A 151.A13",'151.A13'!N26,IF(Obliczenia!$D$58="Vitocal 15x-A 151.A16",'151.A16'!N26,IF(Obliczenia!$D$58="Vitocal 25x-A 251.A10",'251.A10'!N26,IF(Obliczenia!$D$58="Vitocal 25x-A 251.A13",'251.A13'!N26,IF(Obliczenia!$D$58="Vitocal 15x-A 151.A08",'151.A08'!N26,IF(Obliczenia!$D$58="Vitocal 15x-A 151.A06",'151.A06'!N26,IF(Obliczenia!$D$58="Vitocal 15x-A 151.A04",'151.A04'!N26,IF(Obliczenia!$D$58="Vitocal 25x-A 251.A04",'251.A04'!N26,IF(Obliczenia!$D$58="Vitocal 25x-A 251.A06",'251.A06'!N26,IF(Obliczenia!$D$58="Vitocal 25x-A 251.A08",'251.A08'!N26,IF(Obliczenia!$D$58="Carrier 30AWH-P006HP",'AWH-P006'!N26,IF(Obliczenia!$D$58="Carrier 30AWH-P008HP",'AWH-P008'!N26,IF(Obliczenia!$D$58="Carrier 30AWH-P004HP",'AWH-P004'!N26,IF(Obliczenia!$D$58="Carrier 30AWH-P012HP",'AWH-P012T'!N26,IF(Obliczenia!$D$58="Carrier 30AWH-P014HP",'AWH-P014T'!N26,IF(Obliczenia!$D$58="Vitocal 100-A 101.A16",#REF!,IF(Obliczenia!$D$58="Vitocal 100-A 101.A18",#REF!,IF(Obliczenia!$D$58="Vitocal 25x-A 251.A16",'251.A16'!N26,IF(Obliczenia!$D$58="Vitocal 25x-A 251.A19",'251.A19'!N26,"błąd"))))))))))))))))))))))))))))))))))) -> 2.64 | BG10: =IF(Obliczenia!$D$58="Vitocal 2xx-S 201.E06",'E06'!O26,IF(Obliczenia!$D$58="Vitocal 2xx-S 201.E08",'E08'!O26,IF(Obliczenia!$D$58="Vitocal 2xx-S 201.E10",'E10'!O26,IF(Obliczenia!$D$58="Vitocal 1xx-S 101.B04",'B04'!O26,IF(Obliczenia!$D$58="Vitocal 1xx-S 101.B06",'B06'!O26,IF(Obliczenia!$D$58="Vitocal 1xx-S 101.B08",'B08'!O26,IF(Obliczenia!$D$58="Vitocal 1xx-S 101.A12",'A12'!O26,IF(Obliczenia!$D$58="Vitocal 1xx-S 101.A14",'A14'!O26,IF(Obliczenia!$D$58="Vitocal 1xx-S 101.A16",'A16'!O26,IF(Obliczenia!$D$58="Vitocal 2xx-S 201.D04",'D04'!O26,IF(Obliczenia!$D$58="Vitocal 2xx-S 201.D06",'D06'!O26,IF(Obliczenia!$D$58="Vitocal 2xx-S 201.D08",'D08'!O26,IF(Obliczenia!$D$58="Vitocal 2xx-S 201.D10",'D10'!O26,IF(Obliczenia!$D$58="Vitocal 2xx-S 201.D13",'D13'!O26,IF(Obliczenia!$D$58="Vitocal 2xx-S 201.D16",'D16'!O26,IF(Obliczenia!$D$58="Vitocal 15x-A 151.A10",'151.A10'!O26,IF(Obliczenia!$D$58="Vitocal 15x-A 151.A13",'151.A13'!O26,IF(Obliczenia!$D$58="Vitocal 15x-A 151.A16",'151.A16'!O26,IF(Obliczenia!$D$58="Vitocal 25x-A 251.A10",'251.A10'!O26,IF(Obliczenia!$D$58="Vitocal 25x-A 251.A13",'251.A13'!O26,IF(Obliczenia!$D$58="Vitocal 15x-A 151.A08",'151.A08'!O26,IF(Obliczenia!$D$58="Vitocal 15x-A 151.A06",'151.A06'!O26,IF(Obliczenia!$D$58="Vitocal 15x-A 151.A04",'151.A04'!O26,IF(Obliczenia!$D$58="Vitocal 25x-A 251.A04",'251.A04'!O26,IF(Obliczenia!$D$58="Vitocal 25x-A 251.A06",'251.A06'!O26,IF(Obliczenia!$D$58="Vitocal 25x-A 251.A08",'251.A08'!O26,IF(Obliczenia!$D$58="Carrier 30AWH-P006HP",'AWH-P006'!O26,IF(Obliczenia!$D$58="Carrier 30AWH-P008HP",'AWH-P008'!O26,IF(Obliczenia!$D$58="Carrier 30AWH-P004HP",'AWH-P004'!O26,IF(Obliczenia!$D$58="Carrier 30AWH-P012HP",'AWH-P012T'!O26,IF(Obliczenia!$D$58="Carrier 30AWH-P014HP",'AWH-P014T'!O26,IF(Obliczenia!$D$58="Vitocal 100-A 101.A16",#REF!,IF(Obliczenia!$D$58="Vitocal 100-A 101.A18",#REF!,IF(Obliczenia!$D$58="Vitocal 25x-A 251.A16",'251.A16'!O26,IF(Obliczenia!$D$58="Vitocal 25x-A 251.A19",'251.A19'!O26,"błąd"))))))))))))))))))))))))))))))))))) -> 3.01 | BH10: =IF(Obliczenia!$D$58="Vitocal 2xx-S 201.E06",'E06'!P26,IF(Obliczenia!$D$58="Vitocal 2xx-S 201.E08",'E08'!P26,IF(Obliczenia!$D$58="Vitocal 2xx-S 201.E10",'E10'!P26,IF(Obliczenia!$D$58="Vitocal 1xx-S 101.B04",'B04'!P26,IF(Obliczenia!$D$58="Vitocal 1xx-S 101.B06",'B06'!P26,IF(Obliczenia!$D$58="Vitocal 1xx-S 101.B08",'B08'!P26,IF(Obliczenia!$D$58="Vitocal 1xx-S 101.A12",'A12'!P26,IF(Obliczenia!$D$58="Vitocal 1xx-S 101.A14",'A14'!P26,IF(Obliczenia!$D$58="Vitocal 1xx-S 101.A16",'A16'!P26,IF(Obliczenia!$D$58="Vitocal 2xx-S 201.D04",'D04'!P26,IF(Obliczenia!$D$58="Vitocal 2xx-S 201.D06",'D06'!P26,IF(Obliczenia!$D$58="Vitocal 2xx-S 201.D08",'D08'!P26,IF(Obliczenia!$D$58="Vitocal 2xx-S 201.D10",'D10'!P26,IF(Obliczenia!$D$58="Vitocal 2xx-S 201.D13",'D13'!P26,IF(Obliczenia!$D$58="Vitocal 2xx-S 201.D16",'D16'!P26,IF(Obliczenia!$D$58="Vitocal 15x-A 151.A10",'151.A10'!P26,IF(Obliczenia!$D$58="Vitocal 15x-A 151.A13",'151.A13'!P26,IF(Obliczenia!$D$58="Vitocal 15x-A 151.A16",'151.A16'!P26,IF(Obliczenia!$D$58="Vitocal 25x-A 251.A10",'251.A10'!P26,IF(Obliczenia!$D$58="Vitocal 25x-A 251.A13",'251.A13'!P26,IF(Obliczenia!$D$58="Vitocal 15x-A 151.A08",'151.A08'!P26,IF(Obliczenia!$D$58="Vitocal 15x-A 151.A06",'151.A06'!P26,IF(Obliczenia!$D$58="Vitocal 15x-A 151.A04",'151.A04'!P26,IF(Obliczenia!$D$58="Vitocal 25x-A 251.A04",'251.A04'!P26,IF(Obliczenia!$D$58="Vitocal 25x-A 251.A06",'251.A06'!P26,IF(Obliczenia!$D$58="Vitocal 25x-A 251.A08",'251.A08'!P26,IF(Obliczenia!$D$58="Carrier 30AWH-P006HP",'AWH-P006'!P26,IF(Obliczenia!$D$58="Carrier 30AWH-P008HP",'AWH-P008'!P26,IF(Obliczenia!$D$58="Carrier 30AWH-P004HP",'AWH-P004'!P26,IF(Obliczenia!$D$58="Carrier 30AWH-P012HP",'AWH-P012T'!P26,IF(Obliczenia!$D$58="Carrier 30AWH-P014HP",'AWH-P014T'!P26,IF(Obliczenia!$D$58="Vitocal 100-A 101.A16",#REF!,IF(Obliczenia!$D$58="Vitocal 100-A 101.A18",#REF!,IF(Obliczenia!$D$58="Vitocal 25x-A 251.A16",'251.A16'!P26,IF(Obliczenia!$D$58="Vitocal 25x-A 251.A19",'251.A19'!P26,"błąd"))))))))))))))))))))))))))))))))))) -> 4.42 | BI10: =IF(Obliczenia!$D$58="Vitocal 2xx-S 201.E06",'E06'!Q26,IF(Obliczenia!$D$58="Vitocal 2xx-S 201.E08",'E08'!Q26,IF(Obliczenia!$D$58="Vitocal 2xx-S 201.E10",'E10'!Q26,IF(Obliczenia!$D$58="Vitocal 1xx-S 101.B04",'B04'!Q26,IF(Obliczenia!$D$58="Vitocal 1xx-S 101.B06",'B06'!Q26,IF(Obliczenia!$D$58="Vitocal 1xx-S 101.B08",'B08'!Q26,IF(Obliczenia!$D$58="Vitocal 1xx-S 101.A12",'A12'!Q26,IF(Obliczenia!$D$58="Vitocal 1xx-S 101.A14",'A14'!Q26,IF(Obliczenia!$D$58="Vitocal 1xx-S 101.A16",'A16'!Q26,IF(Obliczenia!$D$58="Vitocal 2xx-S 201.D04",'D04'!Q26,IF(Obliczenia!$D$58="Vitocal 2xx-S 201.D06",'D06'!Q26,IF(Obliczenia!$D$58="Vitocal 2xx-S 201.D08",'D08'!Q26,IF(Obliczenia!$D$58="Vitocal 2xx-S 201.D10",'D10'!Q26,IF(Obliczenia!$D$58="Vitocal 2xx-S 201.D13",'D13'!Q26,IF(Obliczenia!$D$58="Vitocal 2xx-S 201.D16",'D16'!Q26,IF(Obliczenia!$D$58="Vitocal 15x-A 151.A10",'151.A10'!Q26,IF(Obliczenia!$D$58="Vitocal 15x-A 151.A13",'151.A13'!Q26,IF(Obliczenia!$D$58="Vitocal 15x-A 151.A16",'151.A16'!Q26,IF(Obliczenia!$D$58="Vitocal 25x-A 251.A10",'251.A10'!Q26,IF(Obliczenia!$D$58="Vitocal 25x-A 251.A13",'251.A13'!Q26,IF(Obliczenia!$D$58="Vitocal 15x-A 151.A08",'151.A08'!Q26,IF(Obliczenia!$D$58="Vitocal 15x-A 151.A06",'151.A06'!Q26,IF(Obliczenia!$D$58="Vitocal 15x-A 151.A04",'151.A04'!Q26,IF(Obliczenia!$D$58="Vitocal 25x-A 251.A04",'251.A04'!Q26,IF(Obliczenia!$D$58="Vitocal 25x-A 251.A06",'251.A06'!Q26,IF(Obliczenia!$D$58="Vitocal 25x-A 251.A08",'251.A08'!Q26,IF(Obliczenia!$D$58="Carrier 30AWH-P006HP",'AWH-P006'!Q26,IF(Obliczenia!$D$58="Carrier 30AWH-P008HP",'AWH-P008'!Q26,IF(Obliczenia!$D$58="Carrier 30AWH-P004HP",'AWH-P004'!Q26,IF(Obliczenia!$D$58="Carrier 30AWH-P012HP",'AWH-P012T'!Q26,IF(Obliczenia!$D$58="Carrier 30AWH-P014HP",'AWH-P014T'!Q26,IF(Obliczenia!$D$58="Vitocal 100-A 101.A16",#REF!,IF(Obliczenia!$D$58="Vitocal 100-A 101.A18",#REF!,IF(Obliczenia!$D$58="Vitocal 25x-A 251.A16",'251.A16'!Q26,IF(Obliczenia!$D$58="Vitocal 25x-A 251.A19",'251.A19'!Q26,"błąd"))))))))))))))))))))))))))))))))))) -> 5.29 | BJ10: =IF(Obliczenia!$D$58="Vitocal 2xx-S 201.E06",'E06'!R26,IF(Obliczenia!$D$58="Vitocal 2xx-S 201.E08",'E08'!R26,IF(Obliczenia!$D$58="Vitocal 2xx-S 201.E10",'E10'!R26,IF(Obliczenia!$D$58="Vitocal 1xx-S 101.B04",'B04'!R26,IF(Obliczenia!$D$58="Vitocal 1xx-S 101.B06",'B06'!R26,IF(Obliczenia!$D$58="Vitocal 1xx-S 101.B08",'B08'!R26,IF(Obliczenia!$D$58="Vitocal 1xx-S 101.A12",'A12'!R26,IF(Obliczenia!$D$58="Vitocal 1xx-S 101.A14",'A14'!R26,IF(Obliczenia!$D$58="Vitocal 1xx-S 101.A16",'A16'!R26,IF(Obliczenia!$D$58="Vitocal 2xx-S 201.D04",'D04'!R26,IF(Obliczenia!$D$58="Vitocal 2xx-S 201.D06",'D06'!R26,IF(Obliczenia!$D$58="Vitocal 2xx-S 201.D08",'D08'!R26,IF(Obliczenia!$D$58="Vitocal 2xx-S 201.D10",'D10'!R26,IF(Obliczenia!$D$58="Vitocal 2xx-S 201.D13",'D13'!R26,IF(Obliczenia!$D$58="Vitocal 2xx-S 201.D16",'D16'!R26,IF(Obliczenia!$D$58="Vitocal 15x-A 151.A10",'151.A10'!R26,IF(Obliczenia!$D$58="Vitocal 15x-A 151.A13",'151.A13'!R26,IF(Obliczenia!$D$58="Vitocal 15x-A 151.A16",'151.A16'!R26,IF(Obliczenia!$D$58="Vitocal 25x-A 251.A10",'251.A10'!R26,IF(Obliczenia!$D$58="Vitocal 25x-A 251.A13",'251.A13'!R26,IF(Obliczenia!$D$58="Vitocal 15x-A 151.A08",'151.A08'!R26,IF(Obliczenia!$D$58="Vitocal 15x-A 151.A06",'151.A06'!R26,IF(Obliczenia!$D$58="Vitocal 15x-A 151.A04",'151.A04'!R26,IF(Obliczenia!$D$58="Vitocal 25x-A 251.A04",'251.A04'!R26,IF(Obliczenia!$D$58="Vitocal 25x-A 251.A06",'251.A06'!R26,IF(Obliczenia!$D$58="Vitocal 25x-A 251.A08",'251.A08'!R26,IF(Obliczenia!$D$58="Carrier 30AWH-P006HP",'AWH-P006'!R26,IF(Obliczenia!$D$58="Carrier 30AWH-P008HP",'AWH-P008'!R26,IF(Obliczenia!$D$58="Carrier 30AWH-P004HP",'AWH-P004'!R26,IF(Obliczenia!$D$58="Carrier 30AWH-P012HP",'AWH-P012T'!R26,IF(Obliczenia!$D$58="Carrier 30AWH-P014HP",'AWH-P014T'!R26,IF(Obliczenia!$D$58="Vitocal 100-A 101.A16",#REF!,IF(Obliczenia!$D$58="Vitocal 100-A 101.A18",#REF!,IF(Obliczenia!$D$58="Vitocal 25x-A 251.A16",'251.A16'!R26,IF(Obliczenia!$D$58="Vitocal 25x-A 251.A19",'251.A19'!R26,"błąd"))))))))))))))))))))))))))))))))))) -> 6.47 | BK10: =IF(Obliczenia!$D$58="Vitocal 2xx-S 201.E06",'E06'!S26,IF(Obliczenia!$D$58="Vitocal 2xx-S 201.E08",'E08'!S26,IF(Obliczenia!$D$58="Vitocal 2xx-S 201.E10",'E10'!S26,IF(Obliczenia!$D$58="Vitocal 1xx-S 101.B04",'B04'!S26,IF(Obliczenia!$D$58="Vitocal 1xx-S 101.B06",'B06'!S26,IF(Obliczenia!$D$58="Vitocal 1xx-S 101.B08",'B08'!S26,IF(Obliczenia!$D$58="Vitocal 1xx-S 101.A12",'A12'!S26,IF(Obliczenia!$D$58="Vitocal 1xx-S 101.A14",'A14'!S26,IF(Obliczenia!$D$58="Vitocal 1xx-S 101.A16",'A16'!S26,IF(Obliczenia!$D$58="Vitocal 2xx-S 201.D04",'D04'!S26,IF(Obliczenia!$D$58="Vitocal 2xx-S 201.D06",'D06'!S26,IF(Obliczenia!$D$58="Vitocal 2xx-S 201.D08",'D08'!S26,IF(Obliczenia!$D$58="Vitocal 2xx-S 201.D10",'D10'!S26,IF(Obliczenia!$D$58="Vitocal 2xx-S 201.D13",'D13'!S26,IF(Obliczenia!$D$58="Vitocal 2xx-S 201.D16",'D16'!S26,IF(Obliczenia!$D$58="Vitocal 15x-A 151.A10",'151.A10'!S26,IF(Obliczenia!$D$58="Vitocal 15x-A 151.A13",'151.A13'!S26,IF(Obliczenia!$D$58="Vitocal 15x-A 151.A16",'151.A16'!S26,IF(Obliczenia!$D$58="Vitocal 25x-A 251.A10",'251.A10'!S26,IF(Obliczenia!$D$58="Vitocal 25x-A 251.A13",'251.A13'!S26,IF(Obliczenia!$D$58="Vitocal 15x-A 151.A08",'151.A08'!S26,IF(Obliczenia!$D$58="Vitocal 15x-A 151.A06",'151.A06'!S26,IF(Obliczenia!$D$58="Vitocal 15x-A 151.A04",'151.A04'!S26,IF(Obliczenia!$D$58="Vitocal 25x-A 251.A04",'251.A04'!S26,IF(Obliczenia!$D$58="Vitocal 25x-A 251.A06",'251.A06'!S26,IF(Obliczenia!$D$58="Vitocal 25x-A 251.A08",'251.A08'!S26,IF(Obliczenia!$D$58="Carrier 30AWH-P006HP",'AWH-P006'!S26,IF(Obliczenia!$D$58="Carrier 30AWH-P008HP",'AWH-P008'!S26,IF(Obliczenia!$D$58="Carrier 30AWH-P004HP",'AWH-P004'!S26,IF(Obliczenia!$D$58="Carrier 30AWH-P012HP",'AWH-P012T'!S26,IF(Obliczenia!$D$58="Carrier 30AWH-P014HP",'AWH-P014T'!S26,IF(Obliczenia!$D$58="Vitocal 100-A 101.A16",#REF!,IF(Obliczenia!$D$58="Vitocal 100-A 101.A18",#REF!,IF(Obliczenia!$D$58="Vitocal 25x-A 251.A16",'251.A16'!S26,IF(Obliczenia!$D$58="Vitocal 25x-A 251.A19",'251.A19'!S26,"błąd"))))))))))))))))))))))))))))))))))) -> 7.26 | BL10: =IF(Obliczenia!$D$58="Vitocal 2xx-S 201.E06",'E06'!T26,IF(Obliczenia!$D$58="Vitocal 2xx-S 201.E08",'E08'!T26,IF(Obliczenia!$D$58="Vitocal 2xx-S 201.E10",'E10'!T26,IF(Obliczenia!$D$58="Vitocal 1xx-S 101.B04",'B04'!T26,IF(Obliczenia!$D$58="Vitocal 1xx-S 101.B06",'B06'!T26,IF(Obliczenia!$D$58="Vitocal 1xx-S 101.B08",'B08'!T26,IF(Obliczenia!$D$58="Vitocal 1xx-S 101.A12",'A12'!T26,IF(Obliczenia!$D$58="Vitocal 1xx-S 101.A14",'A14'!T26,IF(Obliczenia!$D$58="Vitocal 1xx-S 101.A16",'A16'!T26,IF(Obliczenia!$D$58="Vitocal 2xx-S 201.D04",'D04'!T26,IF(Obliczenia!$D$58="Vitocal 2xx-S 201.D06",'D06'!T26,IF(Obliczenia!$D$58="Vitocal 2xx-S 201.D08",'D08'!T26,IF(Obliczenia!$D$58="Vitocal 2xx-S 201.D10",'D10'!T26,IF(Obliczenia!$D$58="Vitocal 2xx-S 201.D13",'D13'!T26,IF(Obliczenia!$D$58="Vitocal 2xx-S 201.D16",'D16'!T26,IF(Obliczenia!$D$58="Vitocal 15x-A 151.A10",'151.A10'!T26,IF(Obliczenia!$D$58="Vitocal 15x-A 151.A13",'151.A13'!T26,IF(Obliczenia!$D$58="Vitocal 15x-A 151.A16",'151.A16'!T26,IF(Obliczenia!$D$58="Vitocal 25x-A 251.A10",'251.A10'!T26,IF(Obliczenia!$D$58="Vitocal 25x-A 251.A13",'251.A13'!T26,IF(Obliczenia!$D$58="Vitocal 15x-A 151.A08",'151.A08'!T26,IF(Obliczenia!$D$58="Vitocal 15x-A 151.A06",'151.A06'!T26,IF(Obliczenia!$D$58="Vitocal 15x-A 151.A04",'151.A04'!T26,IF(Obliczenia!$D$58="Vitocal 25x-A 251.A04",'251.A04'!T26,IF(Obliczenia!$D$58="Vitocal 25x-A 251.A06",'251.A06'!T26,IF(Obliczenia!$D$58="Vitocal 25x-A 251.A08",'251.A08'!T26,IF(Obliczenia!$D$58="Carrier 30AWH-P006HP",'AWH-P006'!T26,IF(Obliczenia!$D$58="Carrier 30AWH-P008HP",'AWH-P008'!T26,IF(Obliczenia!$D$58="Carrier 30AWH-P004HP",'AWH-P004'!T26,IF(Obliczenia!$D$58="Carrier 30AWH-P012HP",'AWH-P012T'!T26,IF(Obliczenia!$D$58="Carrier 30AWH-P014HP",'AWH-P014T'!T26,IF(Obliczenia!$D$58="Vitocal 100-A 101.A16",#REF!,IF(Obliczenia!$D$58="Vitocal 100-A 101.A18",#REF!,IF(Obliczenia!$D$58="Vitocal 25x-A 251.A16",'251.A16'!T26,IF(Obliczenia!$D$58="Vitocal 25x-A 251.A19",'251.A19'!T26,"błąd"))))))))))))))))))))))))))))))))))) -> 7.78 | BM10: =IF(Obliczenia!$D$58="Vitocal 2xx-S 201.E06",'E06'!U26,IF(Obliczenia!$D$58="Vitocal 2xx-S 201.E08",'E08'!U26,IF(Obliczenia!$D$58="Vitocal 2xx-S 201.E10",'E10'!U26,IF(Obliczenia!$D$58="Vitocal 1xx-S 101.B04",'B04'!U26,IF(Obliczenia!$D$58="Vitocal 1xx-S 101.B06",'B06'!U26,IF(Obliczenia!$D$58="Vitocal 1xx-S 101.B08",'B08'!U26,IF(Obliczenia!$D$58="Vitocal 1xx-S 101.A12",'A12'!U26,IF(Obliczenia!$D$58="Vitocal 1xx-S 101.A14",'A14'!U26,IF(Obliczenia!$D$58="Vitocal 1xx-S 101.A16",'A16'!U26,IF(Obliczenia!$D$58="Vitocal 2xx-S 201.D04",'D04'!U26,IF(Obliczenia!$D$58="Vitocal 2xx-S 201.D06",'D06'!U26,IF(Obliczenia!$D$58="Vitocal 2xx-S 201.D08",'D08'!U26,IF(Obliczenia!$D$58="Vitocal 2xx-S 201.D10",'D10'!U26,IF(Obliczenia!$D$58="Vitocal 2xx-S 201.D13",'D13'!U26,IF(Obliczenia!$D$58="Vitocal 2xx-S 201.D16",'D16'!U26,IF(Obliczenia!$D$58="Vitocal 15x-A 151.A10",'151.A10'!U26,IF(Obliczenia!$D$58="Vitocal 15x-A 151.A13",'151.A13'!U26,IF(Obliczenia!$D$58="Vitocal 15x-A 151.A16",'151.A16'!U26,IF(Obliczenia!$D$58="Vitocal 25x-A 251.A10",'251.A10'!U26,IF(Obliczenia!$D$58="Vitocal 25x-A 251.A13",'251.A13'!U26,IF(Obliczenia!$D$58="Vitocal 15x-A 151.A08",'151.A08'!U26,IF(Obliczenia!$D$58="Vitocal 15x-A 151.A06",'151.A06'!U26,IF(Obliczenia!$D$58="Vitocal 15x-A 151.A04",'151.A04'!U26,IF(Obliczenia!$D$58="Vitocal 25x-A 251.A04",'251.A04'!U26,IF(Obliczenia!$D$58="Vitocal 25x-A 251.A06",'251.A06'!U26,IF(Obliczenia!$D$58="Vitocal 25x-A 251.A08",'251.A08'!U26,IF(Obliczenia!$D$58="Carrier 30AWH-P006HP",'AWH-P006'!U26,IF(Obliczenia!$D$58="Carrier 30AWH-P008HP",'AWH-P008'!U26,IF(Obliczenia!$D$58="Carrier 30AWH-P004HP",'AWH-P004'!U26,IF(Obliczenia!$D$58="Carrier 30AWH-P012HP",'AWH-P012T'!U26,IF(Obliczenia!$D$58="Carrier 30AWH-P014HP",'AWH-P014T'!U26,IF(Obliczenia!$D$58="Vitocal 100-A 101.A16",#REF!,IF(Obliczenia!$D$58="Vitocal 100-A 101.A18",#REF!,IF(Obliczenia!$D$58="Vitocal 25x-A 251.A16",'251.A16'!U26,IF(Obliczenia!$D$58="Vitocal 25x-A 251.A19",'251.A19'!U26,"błąd"))))))))))))))))))))))))))))))))))) -> 8.55 | BN10: =IF(Obliczenia!$D$58="Vitocal 2xx-S 201.E06",'E06'!V26,IF(Obliczenia!$D$58="Vitocal 2xx-S 201.E08",'E08'!V26,IF(Obliczenia!$D$58="Vitocal 2xx-S 201.E10",'E10'!V26,IF(Obliczenia!$D$58="Vitocal 1xx-S 101.B04",'B04'!V26,IF(Obliczenia!$D$58="Vitocal 1xx-S 101.B06",'B06'!V26,IF(Obliczenia!$D$58="Vitocal 1xx-S 101.B08",'B08'!V26,IF(Obliczenia!$D$58="Vitocal 1xx-S 101.A12",'A12'!V26,IF(Obliczenia!$D$58="Vitocal 1xx-S 101.A14",'A14'!V26,IF(Obliczenia!$D$58="Vitocal 1xx-S 101.A16",'A16'!V26,IF(Obliczenia!$D$58="Vitocal 2xx-S 201.D04",'D04'!V26,IF(Obliczenia!$D$58="Vitocal 2xx-S 201.D06",'D06'!V26,IF(Obliczenia!$D$58="Vitocal 2xx-S 201.D08",'D08'!V26,IF(Obliczenia!$D$58="Vitocal 2xx-S 201.D10",'D10'!V26,IF(Obliczenia!$D$58="Vitocal 2xx-S 201.D13",'D13'!V26,IF(Obliczenia!$D$58="Vitocal 2xx-S 201.D16",'D16'!V26,IF(Obliczenia!$D$58="Vitocal 15x-A 151.A10",'151.A10'!V26,IF(Obliczenia!$D$58="Vitocal 15x-A 151.A13",'151.A13'!V26,IF(Obliczenia!$D$58="Vitocal 15x-A 151.A16",'151.A16'!V26,IF(Obliczenia!$D$58="Vitocal 25x-A 251.A10",'251.A10'!V26,IF(Obliczenia!$D$58="Vitocal 25x-A 251.A13",'251.A13'!V26,IF(Obliczenia!$D$58="Vitocal 15x-A 151.A08",'151.A08'!V26,IF(Obliczenia!$D$58="Vitocal 15x-A 151.A06",'151.A06'!V26,IF(Obliczenia!$D$58="Vitocal 15x-A 151.A04",'151.A04'!V26,IF(Obliczenia!$D$58="Vitocal 25x-A 251.A04",'251.A04'!V26,IF(Obliczenia!$D$58="Vitocal 25x-A 251.A06",'251.A06'!V26,IF(Obliczenia!$D$58="Vitocal 25x-A 251.A08",'251.A08'!V26,IF(Obliczenia!$D$58="Carrier 30AWH-P006HP",'AWH-P006'!V26,IF(Obliczenia!$D$58="Carrier 30AWH-P008HP",'AWH-P008'!V26,IF(Obliczenia!$D$58="Carrier 30AWH-P004HP",'AWH-P004'!V26,IF(Obliczenia!$D$58="Carrier 30AWH-P012HP",'AWH-P012T'!V26,IF(Obliczenia!$D$58="Carrier 30AWH-P014HP",'AWH-P014T'!V26,IF(Obliczenia!$D$58="Vitocal 100-A 101.A16",#REF!,IF(Obliczenia!$D$58="Vitocal 100-A 101.A18",#REF!,IF(Obliczenia!$D$58="Vitocal 25x-A 251.A16",'251.A16'!V26,IF(Obliczenia!$D$58="Vitocal 25x-A 251.A19",'251.A19'!V26,"błąd"))))))))))))))))))))))))))))))))))) -> 9.84 | BO10: =IF(Obliczenia!$D$58="Vitocal 2xx-S 201.E06",'E06'!W26,IF(Obliczenia!$D$58="Vitocal 2xx-S 201.E08",'E08'!W26,IF(Obliczenia!$D$58="Vitocal 2xx-S 201.E10",'E10'!W26,IF(Obliczenia!$D$58="Vitocal 1xx-S 101.B04",'B04'!W26,IF(Obliczenia!$D$58="Vitocal 1xx-S 101.B06",'B06'!W26,IF(Obliczenia!$D$58="Vitocal 1xx-S 101.B08",'B08'!W26,IF(Obliczenia!$D$58="Vitocal 1xx-S 101.A12",'A12'!W26,IF(Obliczenia!$D$58="Vitocal 1xx-S 101.A14",'A14'!W26,IF(Obliczenia!$D$58="Vitocal 1xx-S 101.A16",'A16'!W26,IF(Obliczenia!$D$58="Vitocal 2xx-S 201.D04",'D04'!W26,IF(Obliczenia!$D$58="Vitocal 2xx-S 201.D06",'D06'!W26,IF(Obliczenia!$D$58="Vitocal 2xx-S 201.D08",'D08'!W26,IF(Obliczenia!$D$58="Vitocal 2xx-S 201.D10",'D10'!W26,IF(Obliczenia!$D$58="Vitocal 2xx-S 201.D13",'D13'!W26,IF(Obliczenia!$D$58="Vitocal 2xx-S 201.D16",'D16'!W26,IF(Obliczenia!$D$58="Vitocal 15x-A 151.A10",'151.A10'!W26,IF(Obliczenia!$D$58="Vitocal 15x-A 151.A13",'151.A13'!W26,IF(Obliczenia!$D$58="Vitocal 15x-A 151.A16",'151.A16'!W26,IF(Obliczenia!$D$58="Vitocal 25x-A 251.A10",'251.A10'!W26,IF(Obliczenia!$D$58="Vitocal 25x-A 251.A13",'251.A13'!W26,IF(Obliczenia!$D$58="Vitocal 15x-A 151.A08",'151.A08'!W26,IF(Obliczenia!$D$58="Vitocal 15x-A 151.A06",'151.A06'!W26,IF(Obliczenia!$D$58="Vitocal 15x-A 151.A04",'151.A04'!W26,IF(Obliczenia!$D$58="Vitocal 25x-A 251.A04",'251.A04'!W26,IF(Obliczenia!$D$58="Vitocal 25x-A 251.A06",'251.A06'!W26,IF(Obliczenia!$D$58="Vitocal 25x-A 251.A08",'251.A08'!W26,IF(Obliczenia!$D$58="Carrier 30AWH-P006HP",'AWH-P006'!W26,IF(Obliczenia!$D$58="Carrier 30AWH-P008HP",'AWH-P008'!W26,IF(Obliczenia!$D$58="Carrier 30AWH-P004HP",'AWH-P004'!W26,IF(Obliczenia!$D$58="Carrier 30AWH-P012HP",'AWH-P012T'!W26,IF(Obliczenia!$D$58="Carrier 30AWH-P014HP",'AWH-P014T'!W26,IF(Obliczenia!$D$58="Vitocal 100-A 101.A16",#REF!,IF(Obliczenia!$D$58="Vitocal 100-A 101.A18",#REF!,IF(Obliczenia!$D$58="Vitocal 25x-A 251.A16",'251.A16'!W26,IF(Obliczenia!$D$58="Vitocal 25x-A 251.A19",'251.A19'!W26,"błąd"))))))))))))))))))))))))))))))))))) -> 11.08 | BW10: Vitocal 200-S AWB-E(-AC) 201.D16 | BX10: ='D16'!B25 -> 60225 | BY10: ='Bilans-D16'!G7 -> 3.709062553 | BZ10: 16237.25649 | CA10: 16237.25649 | CD10: Węgiel kamienny, ciąg sztuczny | CH10: 329.4159544 | CI10: g/kWh | CK10: -6.620833333 | CL10: -10.15416667
A11: 6 | B11: 2 | C11: 2 | E11: 5 | F11: =AVERAGE(C103:C126) -> -5.933333333 | H11: =F11*Budynek!$D$31+Budynek!$D$32 -> 29.725 | J11: =Budynek!$D$4*(Dane!$E$12-F11)*12/1000 -> 46.68 | L11: =Budynek!$D$4*(Dane!$E$13-F11)*12/1000 -> 41.28 | N11: 87.96 | P11: 87.96 | Q11: 87.96 | R11: 87.96 | S11: 87.96 | T11: 7.11627907 | AA11: =IF(Obliczenia!$D$58="Vitocal 2xx-S 201.E06",'Bilans-E06'!Z11,IF(Obliczenia!$D$58="Vitocal 2xx-S 201.E08",'Bilans-E08'!Z11,IF(Obliczenia!$D$58="Vitocal 2xx-S 201.E10",'Bilans-E10'!Z11,IF(Obliczenia!$D$58="Vitocal 1xx-S 101.B04",'Bilans-B04'!Z11,IF(Obliczenia!$D$58="Vitocal 1xx-S 101.B06",'Bilans-B06'!Z11,IF(Obliczenia!$D$58="Vitocal 1xx-S 101.B08",'Bilans-B08'!Z11,IF(Obliczenia!$D$58="Vitocal 1xx-S 101.A12",'Bilans-A12'!Z11,IF(Obliczenia!$D$58="Vitocal 1xx-S 101.A14",'Bilans-A14'!Z11,IF(Obliczenia!$D$58="Vitocal 1xx-S 101.A16",'Bilans-A16'!Z11,IF(Obliczenia!$D$58="Vitocal 2xx-S 201.D04",'Bilans-D04'!Z11,IF(Obliczenia!$D$58="Vitocal 2xx-S 201.D06",'Bilans-B06'!Z11,IF(Obliczenia!$D$58="Vitocal 2xx-S 201.D08",'Bilans-D08'!Z11,IF(Obliczenia!$D$58="Vitocal 2xx-S 201.D10",'Bilans-D10'!Z11,IF(Obliczenia!$D$58="Vitocal 2xx-S 201.D13",'Bilans-D13'!Z11,IF(Obliczenia!$D$58="Vitocal 2xx-S 201.D16",'Bilans-D16'!Z11,IF(Obliczenia!$D$58="Vitocal 15x-A 151.A10",'Bilans-151-A10'!Z11,IF(Obliczenia!$D$58="Vitocal 15x-A 151.A13",'Bilans-151-A13'!Z11,IF(Obliczenia!$D$58="Vitocal 15x-A 151.A16",'Bilans-151-A16'!Z11,IF(Obliczenia!$D$58="Vitocal 15x-A 151.A16",'Bilans-151-A16'!Z11,IF(Obliczenia!$D$58="Vitocal 25x-A 251.A10",'Bilans-251-A10'!Z11,IF(Obliczenia!$D$58="Vitocal 25x-A 251.A13",'Bilans-251-A13'!Z11,IF(Obliczenia!$D$58="Vitocal 15x-A 151.A06",'Bilans-151-A06'!Z11,IF(Obliczenia!$D$58="Vitocal 15x-A 151.A08",'Bilans-151-A08'!Z11,IF(Obliczenia!$D$58="Vitocal 15x-A 151.A04",'Bilans-151-A04'!Z11,IF(Obliczenia!$D$58="Vitocal 25x-A 251.A04",'Bilans-251-A04'!Z11,IF(Obliczenia!$D$58="Vitocal 25x-A 251.A06",'Bilans-251-A06'!Z11,IF(Obliczenia!$D$58="Vitocal 25x-A 251.A08",'Bilans-251-A08'!Z11,IF(Obliczenia!$D$58="Carrier 30AWH-P006HP",'Bilans-AWH-P006'!Z11,IF(Obliczenia!$D$58="Carrier 30AWH-P008HP",'Bilans-AWH-P008'!Z11,IF(Obliczenia!$D$58="Carrier 30AWH-P004HP",'Bilans-AWH-P004'!Z11,IF(Obliczenia!$D$58="Carrier 30AWH-P012HP",'Bilans-AWH-P012'!Z11,IF(Obliczenia!$D$58="Carrier 30AWH-P014HP",'Bilans-AWH-P014'!Z11,IF(Obliczenia!$D$58="Vitocal 100-A 101.A16",#REF!,IF(Obliczenia!$D$58="Vitocal 100-A 101.A18",#REF!,IF(Obliczenia!$D$58="Vitocal 25x-A 251.A16",'Bilans-251-A16'!Z11,IF(Obliczenia!$D$58="Vitocal 25x-A 251.A19",'Bilans-251-A19'!Z11,"błąd")))))))))))))))))))))))))))))))))))) -> 87.96 | AB11: =IF(Obliczenia!$D$58="Vitocal 2xx-S 201.E06",'Bilans-E06'!AA11,IF(Obliczenia!$D$58="Vitocal 2xx-S 201.E08",'Bilans-E08'!AA11,IF(Obliczenia!$D$58="Vitocal 2xx-S 201.E10",'Bilans-E10'!AA11,IF(Obliczenia!$D$58="Vitocal 1xx-S 101.B04",'Bilans-B04'!AA11,IF(Obliczenia!$D$58="Vitocal 1xx-S 101.B06",'Bilans-B06'!AA11,IF(Obliczenia!$D$58="Vitocal 1xx-S 101.B08",'Bilans-B08'!AA11,IF(Obliczenia!$D$58="Vitocal 1xx-S 101.A12",'Bilans-A12'!AA11,IF(Obliczenia!$D$58="Vitocal 1xx-S 101.A14",'Bilans-A14'!AA11,IF(Obliczenia!$D$58="Vitocal 1xx-S 101.A16",'Bilans-A16'!AA11,IF(Obliczenia!$D$58="Vitocal 2xx-S 201.D04",'Bilans-D04'!AA11,IF(Obliczenia!$D$58="Vitocal 2xx-S 201.D06",'Bilans-B06'!AA11,IF(Obliczenia!$D$58="Vitocal 2xx-S 201.D08",'Bilans-D08'!AA11,IF(Obliczenia!$D$58="Vitocal 2xx-S 201.D10",'Bilans-D10'!AA11,IF(Obliczenia!$D$58="Vitocal 2xx-S 201.D13",'Bilans-D13'!AA11,IF(Obliczenia!$D$58="Vitocal 2xx-S 201.D16",'Bilans-D16'!AA11,IF(Obliczenia!$D$58="Vitocal 15x-A 151.A10",'Bilans-151-A10'!AA11,IF(Obliczenia!$D$58="Vitocal 15x-A 151.A13",'Bilans-151-A13'!AA11,IF(Obliczenia!$D$58="Vitocal 15x-A 151.A16",'Bilans-151-A16'!AA11,IF(Obliczenia!$D$58="Vitocal 15x-A 151.A16",'Bilans-151-A16'!AA11,IF(Obliczenia!$D$58="Vitocal 25x-A 251.A10",'Bilans-251-A10'!AA11,IF(Obliczenia!$D$58="Vitocal 25x-A 251.A13",'Bilans-251-A13'!AA11,IF(Obliczenia!$D$58="Vitocal 15x-A 151.A08",'Bilans-151-A08'!AA11,IF(Obliczenia!$D$58="Vitocal 15x-A 151.A06",'Bilans-151-A06'!AA11,IF(Obliczenia!$D$58="Vitocal 15x-A 151.A04",'Bilans-151-A04'!AA11,IF(Obliczenia!$D$58="Vitocal 25x-A 251.A04",'Bilans-251-A04'!AA11,IF(Obliczenia!$D$58="Vitocal 25x-A 251.A06",'Bilans-251-A06'!AA11,IF(Obliczenia!$D$58="Vitocal 25x-A 251.A08",'Bilans-251-A08'!AA11,IF(Obliczenia!$D$58="Carrier 30AWH-P006HP",'Bilans-AWH-P006'!AA11,IF(Obliczenia!$D$58="Carrier 30AWH-P008HP",'Bilans-AWH-P008'!AA11,IF(Obliczenia!$D$58="Carrier 30AWH-P004HP",'Bilans-AWH-P004'!AA11,IF(Obliczenia!$D$58="Carrier 30AWH-P012HP",'Bilans-AWH-P012'!AA11,IF(Obliczenia!$D$58="Carrier 30AWH-P014HP",'Bilans-AWH-P014'!AA11,IF(Obliczenia!$D$58="Vitocal 100-A 101.A16",#REF!,IF(Obliczenia!$D$58="Vitocal 100-A 101.A18",#REF!,IF(Obliczenia!$D$58="Vitocal 25x-A 251.A16",'Bilans-251-A16'!AA11,IF(Obliczenia!$D$58="Vitocal 25x-A 251.A19",'Bilans-251-A19'!AA11,"błąd")))))))))))))))))))))))))))))))))))) -> 0 | AE11: D04 | AF11: ='D04'!B28 -> 11.49 | AG11: 1 | AI11: 87.96 | AJ11: 0 | AR11: =IF(Obliczenia!$D$58="Vitocal 2xx-S 201.E06",'Bilans-E06'!AR11,IF(Obliczenia!$D$58="Vitocal 2xx-S 201.E08",'Bilans-E08'!AR11,IF(Obliczenia!$D$58="Vitocal 2xx-S 201.E10",'Bilans-E10'!AR11,IF(Obliczenia!$D$58="Vitocal 1xx-S 101.B04",'Bilans-B04'!AR11,IF(Obliczenia!$D$58="Vitocal 1xx-S 101.B06",'Bilans-B06'!AR11,IF(Obliczenia!$D$58="Vitocal 1xx-S 101.B08",'Bilans-B08'!AR11,IF(Obliczenia!$D$58="Vitocal 1xx-S 101.A12",'Bilans-A12'!AR11,IF(Obliczenia!$D$58="Vitocal 1xx-S 101.A14",'Bilans-A14'!AR11,IF(Obliczenia!$D$58="Vitocal 1xx-S 101.A16",'Bilans-A16'!AR11,IF(Obliczenia!$D$58="Vitocal 2xx-S 201.D04",'Bilans-D04'!AR11,IF(Obliczenia!$D$58="Vitocal 2xx-S 201.D06",'Bilans-B06'!AR11,IF(Obliczenia!$D$58="Vitocal 2xx-S 201.D08",'Bilans-D08'!AR11,IF(Obliczenia!$D$58="Vitocal 2xx-S 201.D10",'Bilans-D10'!AR11,IF(Obliczenia!$D$58="Vitocal 2xx-S 201.D13",'Bilans-D13'!AR11,IF(Obliczenia!$D$58="Vitocal 2xx-S 201.D16",'Bilans-D16'!AR11,IF(Obliczenia!$D$58="Vitocal 15x-A 151.A10",'Bilans-151-A10'!AR11,IF(Obliczenia!$D$58="Vitocal 15x-A 151.A13",'Bilans-151-A13'!AR11,IF(Obliczenia!$D$58="Vitocal 15x-A 151.A16",'Bilans-151-A16'!AR11,IF(Obliczenia!$D$58="Vitocal 25x-A 251.A10",'Bilans-251-A10'!AR11,IF(Obliczenia!$D$58="Vitocal 25x-A 251.A13",'Bilans-251-A13'!AR11,IF(Obliczenia!$D$58="Vitocal 15x-A 151.A08",'Bilans-151-A08'!AR11,IF(Obliczenia!$D$58="Vitocal 15x-A 151.A06",'Bilans-151-A06'!AR11,IF(Obliczenia!$D$58="Vitocal 15x-A 151.A04",'Bilans-151-A04'!AR11,IF(Obliczenia!$D$58="Vitocal 25x-A 251.A04",'Bilans-251-A04'!AR11,IF(Obliczenia!$D$58="Vitocal 25x-A 251.A06",'Bilans-251-A06'!AR11,IF(Obliczenia!$D$58="Vitocal 25x-A 251.A08",'Bilans-251-A08'!AR11,IF(Obliczenia!$D$58="Carrier 30AWH-P006HP",'Bilans-AWH-P006'!AR11,IF(Obliczenia!$D$58="Carrier 30AWH-P008HP",'Bilans-AWH-P008'!AR11,IF(Obliczenia!$D$58="Carrier 30AWH-P004HP",'Bilans-AWH-P004'!AR11,IF(Obliczenia!$D$58="Carrier 30AWH-P012HP",'Bilans-AWH-P012'!AR11,IF(Obliczenia!$D$58="Carrier 30AWH-P014HP",'Bilans-AWH-P014'!AR11,IF(Obliczenia!$D$58="Vitocal 100-A 101.A16",#REF!,IF(Obliczenia!$D$58="Vitocal 100-A 101.A18",#REF!,IF(Obliczenia!$D$58="Vitocal 25x-A 251.A16",'Bilans-251-A16'!AR11,IF(Obliczenia!$D$58="Vitocal 25x-A 251.A19",'Bilans-251-A19'!AR11,"błąd"))))))))))))))))))))))))))))))))))) -> 87.96 | AS11: =IF(Obliczenia!$D$58="Vitocal 2xx-S 201.E06",'Bilans-E06'!AS11,IF(Obliczenia!$D$58="Vitocal 2xx-S 201.E08",'Bilans-E08'!AS11,IF(Obliczenia!$D$58="Vitocal 2xx-S 201.E10",'Bilans-E10'!AS11,IF(Obliczenia!$D$58="Vitocal 1xx-S 101.B04",'Bilans-B04'!AS11,IF(Obliczenia!$D$58="Vitocal 1xx-S 101.B06",'Bilans-B06'!AS11,IF(Obliczenia!$D$58="Vitocal 1xx-S 101.B08",'Bilans-B08'!AS11,IF(Obliczenia!$D$58="Vitocal 1xx-S 101.A12",'Bilans-A12'!AS11,IF(Obliczenia!$D$58="Vitocal 1xx-S 101.A14",'Bilans-A14'!AS11,IF(Obliczenia!$D$58="Vitocal 1xx-S 101.A16",'Bilans-A16'!AS11,IF(Obliczenia!$D$58="Vitocal 2xx-S 201.D04",'Bilans-D04'!AS11,IF(Obliczenia!$D$58="Vitocal 2xx-S 201.D06",'Bilans-B06'!AS11,IF(Obliczenia!$D$58="Vitocal 2xx-S 201.D08",'Bilans-D08'!AS11,IF(Obliczenia!$D$58="Vitocal 2xx-S 201.D10",'Bilans-D10'!AS11,IF(Obliczenia!$D$58="Vitocal 2xx-S 201.D13",'Bilans-D13'!AS11,IF(Obliczenia!$D$58="Vitocal 2xx-S 201.D16",'Bilans-D16'!AS11,IF(Obliczenia!$D$58="Vitocal 15x-A 151.A10",'Bilans-151-A10'!AS11,IF(Obliczenia!$D$58="Vitocal 15x-A 151.A13",'Bilans-151-A13'!AS11,IF(Obliczenia!$D$58="Vitocal 15x-A 151.A16",'Bilans-151-A16'!AS11,IF(Obliczenia!$D$58="Vitocal 25x-A 251.A10",'Bilans-251-A10'!AS11,IF(Obliczenia!$D$58="Vitocal 25x-A 251.A13",'Bilans-251-A13'!AS11,IF(Obliczenia!$D$58="Vitocal 15x-A 151.A08",'Bilans-151-A08'!AS11,IF(Obliczenia!$D$58="Vitocal 15x-A 151.A06",'Bilans-151-A06'!AS11,IF(Obliczenia!$D$58="Vitocal 15x-A 151.A04",'Bilans-151-A04'!AS11,IF(Obliczenia!$D$58="Vitocal 25x-A 251.A04",'Bilans-251-A04'!AS11,IF(Obliczenia!$D$58="Vitocal 25x-A 251.A06",'Bilans-251-A06'!AS11,IF(Obliczenia!$D$58="Vitocal 25x-A 251.A08",'Bilans-251-A08'!AS11,IF(Obliczenia!$D$58="Carrier 30AWH-P006HP",'Bilans-AWH-P006'!AS11,IF(Obliczenia!$D$58="Carrier 30AWH-P008HP",'Bilans-AWH-P008'!AS11,IF(Obliczenia!$D$58="Carrier 30AWH-P004HP",'Bilans-AWH-P004'!AS11,IF(Obliczenia!$D$58="Carrier 30AWH-P012HP",'Bilans-AWH-P012'!AS11,IF(Obliczenia!$D$58="Carrier 30AWH-P014HP",'Bilans-AWH-P014'!AS11,IF(Obliczenia!$D$58="Vitocal 100-A 101.A16",#REF!,IF(Obliczenia!$D$58="Vitocal 100-A 101.A18",#REF!,IF(Obliczenia!$D$58="Vitocal 25x-A 251.A16",'Bilans-251-A16'!AS11,IF(Obliczenia!$D$58="Vitocal 25x-A 251.A19",'Bilans-251-A19'!AS11,"błąd"))))))))))))))))))))))))))))))))))) -> 0 | AV11: =IF(Obliczenia!$D$58="Vitocal 2xx-S 201.E06",'Bilans-E06'!BJ11,IF(Obliczenia!$D$58="Vitocal 2xx-S 201.E08",'Bilans-E08'!BJ11,IF(Obliczenia!$D$58="Vitocal 2xx-S 201.E10",'Bilans-E10'!BJ11,IF(Obliczenia!$D$58="Vitocal 1xx-S 101.B04",'Bilans-B04'!BJ11,IF(Obliczenia!$D$58="Vitocal 1xx-S 101.B06",'Bilans-B06'!BJ11,IF(Obliczenia!$D$58="Vitocal 1xx-S 101.B08",'Bilans-B08'!BJ11,IF(Obliczenia!$D$58="Vitocal 1xx-S 101.A12",'Bilans-A12'!BJ11,IF(Obliczenia!$D$58="Vitocal 1xx-S 101.A14",'Bilans-A14'!BJ11,IF(Obliczenia!$D$58="Vitocal 1xx-S 101.A16",'Bilans-A16'!BJ11,IF(Obliczenia!$D$58="Vitocal 2xx-S 201.D04",'Bilans-D04'!BJ11,IF(Obliczenia!$D$58="Vitocal 2xx-S 201.D06",'Bilans-B06'!BJ11,IF(Obliczenia!$D$58="Vitocal 2xx-S 201.D08",'Bilans-D08'!BJ11,IF(Obliczenia!$D$58="Vitocal 2xx-S 201.D10",'Bilans-D10'!BJ11,IF(Obliczenia!$D$58="Vitocal 2xx-S 201.D13",'Bilans-D13'!BJ11,IF(Obliczenia!$D$58="Vitocal 2xx-S 201.D16",'Bilans-D16'!BJ11,IF(Obliczenia!$D$58="Vitocal 15x-A 151.A10",'Bilans-151-A10'!BJ11,IF(Obliczenia!$D$58="Vitocal 15x-A 151.A13",'Bilans-151-A13'!BJ11,IF(Obliczenia!$D$58="Vitocal 15x-A 151.A16",'Bilans-151-A16'!BJ11,IF(Obliczenia!$D$58="Vitocal 25x-A 251.A10",'Bilans-251-A10'!BJ11,IF(Obliczenia!$D$58="Vitocal 25x-A 251.A13",'Bilans-251-A13'!BJ11,IF(Obliczenia!$D$58="Vitocal 15x-A 151.A08",'Bilans-151-A08'!BJ11,IF(Obliczenia!$D$58="Vitocal 15x-A 151.A06",'Bilans-151-A06'!BJ11,IF(Obliczenia!$D$58="Vitocal 15x-A 151.A04",'Bilans-151-A04'!BJ11,IF(Obliczenia!$D$58="Vitocal 25x-A 251.A04",'Bilans-251-A04'!BJ11,IF(Obliczenia!$D$58="Vitocal 25x-A 251.A06",'Bilans-251-A06'!BJ11,IF(Obliczenia!$D$58="Vitocal 25x-A 251.A08",'Bilans-251-A08'!BJ11,IF(Obliczenia!$D$58="Carrier 30AWH-P006HP",'Bilans-AWH-P006'!BJ11,IF(Obliczenia!$D$58="Carrier 30AWH-P008HP",'Bilans-AWH-P008'!BJ11,IF(Obliczenia!$D$58="Carrier 30AWH-P004HP",'Bilans-AWH-P004'!BJ11,IF(Obliczenia!$D$58="Carrier 30AWH-P012HP",'Bilans-AWH-P012'!BJ11,IF(Obliczenia!$D$58="Carrier 30AWH-P014HP",'Bilans-AWH-P014'!BJ11,IF(Obliczenia!$D$58="Vitocal 100-A 101.A16",#REF!,IF(Obliczenia!$D$58="Vitocal 100-A 101.A18",#REF!,IF(Obliczenia!$D$58="Vitocal 25x-A 251.A16",'Bilans-251-A16'!BJ11,IF(Obliczenia!$D$58="Vitocal 25x-A 251.A19",'Bilans-251-A19'!BJ11,"błąd"))))))))))))))))))))))))))))))))))) -> 87.96 | AW11: =IF(Obliczenia!$D$58="Vitocal 2xx-S 201.E06",'Bilans-E06'!BK11,IF(Obliczenia!$D$58="Vitocal 2xx-S 201.E08",'Bilans-E08'!BK11,IF(Obliczenia!$D$58="Vitocal 2xx-S 201.E10",'Bilans-E10'!BK11,IF(Obliczenia!$D$58="Vitocal 1xx-S 101.B04",'Bilans-B04'!BK11,IF(Obliczenia!$D$58="Vitocal 1xx-S 101.B06",'Bilans-B06'!BK11,IF(Obliczenia!$D$58="Vitocal 1xx-S 101.B08",'Bilans-B08'!BK11,IF(Obliczenia!$D$58="Vitocal 1xx-S 101.A12",'Bilans-A12'!BK11,IF(Obliczenia!$D$58="Vitocal 1xx-S 101.A14",'Bilans-A14'!BK11,IF(Obliczenia!$D$58="Vitocal 1xx-S 101.A16",'Bilans-A16'!BK11,IF(Obliczenia!$D$58="Vitocal 2xx-S 201.D04",'Bilans-D04'!BK11,IF(Obliczenia!$D$58="Vitocal 2xx-S 201.D06",'Bilans-B06'!BK11,IF(Obliczenia!$D$58="Vitocal 2xx-S 201.D08",'Bilans-D08'!BK11,IF(Obliczenia!$D$58="Vitocal 2xx-S 201.D10",'Bilans-D10'!BK11,IF(Obliczenia!$D$58="Vitocal 2xx-S 201.D13",'Bilans-D13'!BK11,IF(Obliczenia!$D$58="Vitocal 2xx-S 201.D16",'Bilans-D16'!BK11,IF(Obliczenia!$D$58="Vitocal 15x-A 151.A10",'Bilans-151-A10'!BK11,IF(Obliczenia!$D$58="Vitocal 15x-A 151.A13",'Bilans-151-A13'!BK11,IF(Obliczenia!$D$58="Vitocal 15x-A 151.A16",'Bilans-151-A16'!BK11,IF(Obliczenia!$D$58="Vitocal 25x-A 251.A10",'Bilans-251-A10'!BK11,IF(Obliczenia!$D$58="Vitocal 25x-A 251.A13",'Bilans-251-A13'!BK11,IF(Obliczenia!$D$58="Vitocal 15x-A 151.A08",'Bilans-151-A08'!BK11,IF(Obliczenia!$D$58="Vitocal 15x-A 151.A06",'Bilans-151-A06'!BK11,IF(Obliczenia!$D$58="Vitocal 15x-A 151.A04",'Bilans-151-A04'!BK11,IF(Obliczenia!$D$58="Vitocal 25x-A 251.A04",'Bilans-251-A04'!BK11,IF(Obliczenia!$D$58="Vitocal 25x-A 251.A06",'Bilans-251-A06'!BK11,IF(Obliczenia!$D$58="Vitocal 25x-A 251.A08",'Bilans-251-A08'!BK11,IF(Obliczenia!$D$58="Carrier 30AWH-P006HP",'Bilans-AWH-P006'!BK11,IF(Obliczenia!$D$58="Carrier 30AWH-P008HP",'Bilans-AWH-P008'!BK11,IF(Obliczenia!$D$58="Carrier 30AWH-P004HP",'Bilans-AWH-P004'!BK11,IF(Obliczenia!$D$58="Carrier 30AWH-P012HP",'Bilans-AWH-P012'!BK11,IF(Obliczenia!$D$58="Carrier 30AWH-P014HP",'Bilans-AWH-P014'!BK11,IF(Obliczenia!$D$58="Vitocal 100-A 101.A16",#REF!,IF(Obliczenia!$D$58="Vitocal 100-A 101.A18",#REF!,IF(Obliczenia!$D$58="Vitocal 25x-A 251.A16",'Bilans-251-A16'!BK11,IF(Obliczenia!$D$58="Vitocal 25x-A 251.A19",'Bilans-251-A19'!BK11,"błąd"))))))))))))))))))))))))))))))))))) -> 0 | AZ11: =IF(Obliczenia!$D$58="Vitocal 15x-A 151.A10",'Bilans-151-A10'!CK11,IF(Obliczenia!$D$58="Vitocal 15x-A 151.A13",'Bilans-151-A13'!CK11,IF(Obliczenia!$D$58="Vitocal 15x-A 151.A16",'Bilans-151-A16'!CK11,IF(Obliczenia!$D$58="Vitocal 25x-A 251.A10",'Bilans-251-A10'!CK11,IF(Obliczenia!$D$58="Vitocal 25x-A 251.A13",'Bilans-251-A13'!CK11,IF(Obliczenia!$D$58="Vitocal 15x-A 151.A08",'Bilans-151-A08'!CK11,IF(Obliczenia!$D$58="Vitocal 15x-A 151.A06",'Bilans-151-A06'!CK11,IF(Obliczenia!$D$58="Vitocal 15x-A 151.A04",'Bilans-151-A04'!CK11,IF(Obliczenia!$D$58="Vitocal 25x-A 251.A04",'Bilans-251-A04'!CK11,IF(Obliczenia!$D$58="Vitocal 25x-A 251.A06",'Bilans-251-A06'!CK11,IF(Obliczenia!$D$58="Vitocal 25x-A 251.A08",'Bilans-251-A08'!CK11,IF(Obliczenia!$D$58="Vitocal 25x-A 251.A16",'Bilans-251-A16'!CK11,IF(Obliczenia!$D$58="Vitocal 25x-A 251.A19",'Bilans-251-A19'!CK11,IF(Obliczenia!$D$58="Carrier 30AWH-P004HP",'Bilans-AWH-P004'!CK11,IF(Obliczenia!$D$58="Carrier 30AWH-P006HP",'Bilans-AWH-P006'!CK11,IF(Obliczenia!$D$58="Carrier 30AWH-P008HP",'Bilans-AWH-P008'!CK11,IF(Obliczenia!$D$58="Carrier 30AWH-P012HP",'Bilans-AWH-P012'!CK11,IF(Obliczenia!$D$58="Carrier 30AWH-P014HP",'Bilans-AWH-P014'!CK11,"błąd")))))))))))))))))) -> błąd | BA11: =IF(Obliczenia!$D$58="Vitocal 15x-A 151.A10",'Bilans-151-A10'!CL11,IF(Obliczenia!$D$58="Vitocal 15x-A 151.A13",'Bilans-151-A13'!CL11,IF(Obliczenia!$D$58="Vitocal 15x-A 151.A16",'Bilans-151-A16'!CL11,IF(Obliczenia!$D$58="Vitocal 25x-A 251.A10",'Bilans-251-A10'!CL11,IF(Obliczenia!$D$58="Vitocal 25x-A 251.A13",'Bilans-251-A13'!CL11,IF(Obliczenia!$D$58="Vitocal 15x-A 151.A08",'Bilans-151-A08'!CL11,IF(Obliczenia!$D$58="Vitocal 15x-A 151.A06",'Bilans-151-A06'!CL11,IF(Obliczenia!$D$58="Vitocal 15x-A 151.A04",'Bilans-151-A04'!CL11,IF(Obliczenia!$D$58="Vitocal 25x-A 251.A04",'Bilans-251-A04'!CL11,IF(Obliczenia!$D$58="Vitocal 25x-A 251.A06",'Bilans-251-A06'!CL11,IF(Obliczenia!$D$58="Vitocal 25x-A 251.A08",'Bilans-251-A08'!CL11,IF(Obliczenia!$D$58="Vitocal 25x-A 251.A16",'Bilans-251-A16'!CL11,IF(Obliczenia!$D$58="Vitocal 25x-A 251.A19",'Bilans-251-A19'!CL11,IF(Obliczenia!$D$58="Carrier 30AWH-P004HP",'Bilans-AWH-P004'!CL11,IF(Obliczenia!$D$58="Carrier 30AWH-P006HP",'Bilans-AWH-P006'!CL11,IF(Obliczenia!$D$58="Carrier 30AWH-P008HP",'Bilans-AWH-P008'!CL11,IF(Obliczenia!$D$58="Carrier 30AWH-P012HP",'Bilans-AWH-P012'!CL11,IF(Obliczenia!$D$58="Carrier 30AWH-P014HP",'Bilans-AWH-P014'!CL11,"błąd")))))))))))))))))) -> błąd | BE11: VTS45 | BF11: =IF(Obliczenia!$D$58="Vitocal 2xx-S 201.E06",'E06'!N15,IF(Obliczenia!$D$58="Vitocal 2xx-S 201.E08",'E08'!N15,IF(Obliczenia!$D$58="Vitocal 2xx-S 201.E10",'E10'!N15,IF(Obliczenia!$D$58="Vitocal 1xx-S 101.B04",'B04'!N15,IF(Obliczenia!$D$58="Vitocal 1xx-S 101.B06",'B06'!N15,IF(Obliczenia!$D$58="Vitocal 1xx-S 101.B08",'B08'!N15,IF(Obliczenia!$D$58="Vitocal 1xx-S 101.A12",'A12'!N15,IF(Obliczenia!$D$58="Vitocal 1xx-S 101.A14",'A14'!N15,IF(Obliczenia!$D$58="Vitocal 1xx-S 101.A16",'A16'!N15,IF(Obliczenia!$D$58="Vitocal 2xx-S 201.D04",'D04'!N15,IF(Obliczenia!$D$58="Vitocal 2xx-S 201.D06",'D06'!N15,IF(Obliczenia!$D$58="Vitocal 2xx-S 201.D08",'D08'!N15,IF(Obliczenia!$D$58="Vitocal 2xx-S 201.D10",'D10'!N15,IF(Obliczenia!$D$58="Vitocal 2xx-S 201.D13",'D13'!N15,IF(Obliczenia!$D$58="Vitocal 2xx-S 201.D16",'D16'!N15,IF(Obliczenia!$D$58="Vitocal 15x-A 151.A10",'151.A10'!N15,IF(Obliczenia!$D$58="Vitocal 15x-A 151.A13",'151.A13'!N15,IF(Obliczenia!$D$58="Vitocal 15x-A 151.A16",'151.A16'!N15,IF(Obliczenia!$D$58="Vitocal 25x-A 251.A10",'251.A10'!N15,IF(Obliczenia!$D$58="Vitocal 25x-A 251.A13",'251.A13'!N15,IF(Obliczenia!$D$58="Vitocal 15x-A 151.A08",'151.A08'!N15,IF(Obliczenia!$D$58="Vitocal 15x-A 151.A06",'151.A06'!N15,IF(Obliczenia!$D$58="Vitocal 15x-A 151.A04",'151.A04'!N15,IF(Obliczenia!$D$58="Vitocal 25x-A 251.A04",'251.A04'!N15,IF(Obliczenia!$D$58="Vitocal 25x-A 251.A06",'251.A06'!N15,IF(Obliczenia!$D$58="Vitocal 25x-A 251.A08",'251.A08'!N15,IF(Obliczenia!$D$58="Carrier 30AWH-P006HP",'AWH-P006'!N15,IF(Obliczenia!$D$58="Carrier 30AWH-P008HP",'AWH-P008'!N15,IF(Obliczenia!$D$58="Carrier 30AWH-P004HP",'AWH-P004'!N15,IF(Obliczenia!$D$58="Carrier 30AWH-P012HP",'AWH-P012T'!N15,IF(Obliczenia!$D$58="Carrier 30AWH-P014HP",'AWH-P014T'!N15,IF(Obliczenia!$D$58="Vitocal 100-A 101.A16",#REF!,IF(Obliczenia!$D$58="Vitocal 100-A 101.A18",#REF!,IF(Obliczenia!$D$58="Vitocal 25x-A 251.A16",'251.A16'!N15,IF(Obliczenia!$D$58="Vitocal 25x-A 251.A19",'251.A19'!N15,"błąd"))))))))))))))))))))))))))))))))))) -> 3.23 | BG11: =IF(Obliczenia!$D$58="Vitocal 2xx-S 201.E06",'E06'!O15,IF(Obliczenia!$D$58="Vitocal 2xx-S 201.E08",'E08'!O15,IF(Obliczenia!$D$58="Vitocal 2xx-S 201.E10",'E10'!O15,IF(Obliczenia!$D$58="Vitocal 1xx-S 101.B04",'B04'!O15,IF(Obliczenia!$D$58="Vitocal 1xx-S 101.B06",'B06'!O15,IF(Obliczenia!$D$58="Vitocal 1xx-S 101.B08",'B08'!O15,IF(Obliczenia!$D$58="Vitocal 1xx-S 101.A12",'A12'!O15,IF(Obliczenia!$D$58="Vitocal 1xx-S 101.A14",'A14'!O15,IF(Obliczenia!$D$58="Vitocal 1xx-S 101.A16",'A16'!O15,IF(Obliczenia!$D$58="Vitocal 2xx-S 201.D04",'D04'!O15,IF(Obliczenia!$D$58="Vitocal 2xx-S 201.D06",'D06'!O15,IF(Obliczenia!$D$58="Vitocal 2xx-S 201.D08",'D08'!O15,IF(Obliczenia!$D$58="Vitocal 2xx-S 201.D10",'D10'!O15,IF(Obliczenia!$D$58="Vitocal 2xx-S 201.D13",'D13'!O15,IF(Obliczenia!$D$58="Vitocal 2xx-S 201.D16",'D16'!O15,IF(Obliczenia!$D$58="Vitocal 15x-A 151.A10",'151.A10'!O15,IF(Obliczenia!$D$58="Vitocal 15x-A 151.A13",'151.A13'!O15,IF(Obliczenia!$D$58="Vitocal 15x-A 151.A16",'151.A16'!O15,IF(Obliczenia!$D$58="Vitocal 25x-A 251.A10",'251.A10'!O15,IF(Obliczenia!$D$58="Vitocal 25x-A 251.A13",'251.A13'!O15,IF(Obliczenia!$D$58="Vitocal 15x-A 151.A08",'151.A08'!O15,IF(Obliczenia!$D$58="Vitocal 15x-A 151.A06",'151.A06'!O15,IF(Obliczenia!$D$58="Vitocal 15x-A 151.A04",'151.A04'!O15,IF(Obliczenia!$D$58="Vitocal 25x-A 251.A04",'251.A04'!O15,IF(Obliczenia!$D$58="Vitocal 25x-A 251.A06",'251.A06'!O15,IF(Obliczenia!$D$58="Vitocal 25x-A 251.A08",'251.A08'!O15,IF(Obliczenia!$D$58="Carrier 30AWH-P006HP",'AWH-P006'!O15,IF(Obliczenia!$D$58="Carrier 30AWH-P008HP",'AWH-P008'!O15,IF(Obliczenia!$D$58="Carrier 30AWH-P004HP",'AWH-P004'!O15,IF(Obliczenia!$D$58="Carrier 30AWH-P012HP",'AWH-P012T'!O15,IF(Obliczenia!$D$58="Carrier 30AWH-P014HP",'AWH-P014T'!O15,IF(Obliczenia!$D$58="Vitocal 100-A 101.A16",#REF!,IF(Obliczenia!$D$58="Vitocal 100-A 101.A18",#REF!,IF(Obliczenia!$D$58="Vitocal 25x-A 251.A16",'251.A16'!O15,IF(Obliczenia!$D$58="Vitocal 25x-A 251.A19",'251.A19'!O15,"błąd"))))))))))))))))))))))))))))))))))) -> 3.68 | BH11: =IF(Obliczenia!$D$58="Vitocal 2xx-S 201.E06",'E06'!P15,IF(Obliczenia!$D$58="Vitocal 2xx-S 201.E08",'E08'!P15,IF(Obliczenia!$D$58="Vitocal 2xx-S 201.E10",'E10'!P15,IF(Obliczenia!$D$58="Vitocal 1xx-S 101.B04",'B04'!P15,IF(Obliczenia!$D$58="Vitocal 1xx-S 101.B06",'B06'!P15,IF(Obliczenia!$D$58="Vitocal 1xx-S 101.B08",'B08'!P15,IF(Obliczenia!$D$58="Vitocal 1xx-S 101.A12",'A12'!P15,IF(Obliczenia!$D$58="Vitocal 1xx-S 101.A14",'A14'!P15,IF(Obliczenia!$D$58="Vitocal 1xx-S 101.A16",'A16'!P15,IF(Obliczenia!$D$58="Vitocal 2xx-S 201.D04",'D04'!P15,IF(Obliczenia!$D$58="Vitocal 2xx-S 201.D06",'D06'!P15,IF(Obliczenia!$D$58="Vitocal 2xx-S 201.D08",'D08'!P15,IF(Obliczenia!$D$58="Vitocal 2xx-S 201.D10",'D10'!P15,IF(Obliczenia!$D$58="Vitocal 2xx-S 201.D13",'D13'!P15,IF(Obliczenia!$D$58="Vitocal 2xx-S 201.D16",'D16'!P15,IF(Obliczenia!$D$58="Vitocal 15x-A 151.A10",'151.A10'!P15,IF(Obliczenia!$D$58="Vitocal 15x-A 151.A13",'151.A13'!P15,IF(Obliczenia!$D$58="Vitocal 15x-A 151.A16",'151.A16'!P15,IF(Obliczenia!$D$58="Vitocal 25x-A 251.A10",'251.A10'!P15,IF(Obliczenia!$D$58="Vitocal 25x-A 251.A13",'251.A13'!P15,IF(Obliczenia!$D$58="Vitocal 15x-A 151.A08",'151.A08'!P15,IF(Obliczenia!$D$58="Vitocal 15x-A 151.A06",'151.A06'!P15,IF(Obliczenia!$D$58="Vitocal 15x-A 151.A04",'151.A04'!P15,IF(Obliczenia!$D$58="Vitocal 25x-A 251.A04",'251.A04'!P15,IF(Obliczenia!$D$58="Vitocal 25x-A 251.A06",'251.A06'!P15,IF(Obliczenia!$D$58="Vitocal 25x-A 251.A08",'251.A08'!P15,IF(Obliczenia!$D$58="Carrier 30AWH-P006HP",'AWH-P006'!P15,IF(Obliczenia!$D$58="Carrier 30AWH-P008HP",'AWH-P008'!P15,IF(Obliczenia!$D$58="Carrier 30AWH-P004HP",'AWH-P004'!P15,IF(Obliczenia!$D$58="Carrier 30AWH-P012HP",'AWH-P012T'!P15,IF(Obliczenia!$D$58="Carrier 30AWH-P014HP",'AWH-P014T'!P15,IF(Obliczenia!$D$58="Vitocal 100-A 101.A16",#REF!,IF(Obliczenia!$D$58="Vitocal 100-A 101.A18",#REF!,IF(Obliczenia!$D$58="Vitocal 25x-A 251.A16",'251.A16'!P15,IF(Obliczenia!$D$58="Vitocal 25x-A 251.A19",'251.A19'!P15,"błąd"))))))))))))))))))))))))))))))))))) -> 4.83 | BI11: =IF(Obliczenia!$D$58="Vitocal 2xx-S 201.E06",'E06'!Q15,IF(Obliczenia!$D$58="Vitocal 2xx-S 201.E08",'E08'!Q15,IF(Obliczenia!$D$58="Vitocal 2xx-S 201.E10",'E10'!Q15,IF(Obliczenia!$D$58="Vitocal 1xx-S 101.B04",'B04'!Q15,IF(Obliczenia!$D$58="Vitocal 1xx-S 101.B06",'B06'!Q15,IF(Obliczenia!$D$58="Vitocal 1xx-S 101.B08",'B08'!Q15,IF(Obliczenia!$D$58="Vitocal 1xx-S 101.A12",'A12'!Q15,IF(Obliczenia!$D$58="Vitocal 1xx-S 101.A14",'A14'!Q15,IF(Obliczenia!$D$58="Vitocal 1xx-S 101.A16",'A16'!Q15,IF(Obliczenia!$D$58="Vitocal 2xx-S 201.D04",'D04'!Q15,IF(Obliczenia!$D$58="Vitocal 2xx-S 201.D06",'D06'!Q15,IF(Obliczenia!$D$58="Vitocal 2xx-S 201.D08",'D08'!Q15,IF(Obliczenia!$D$58="Vitocal 2xx-S 201.D10",'D10'!Q15,IF(Obliczenia!$D$58="Vitocal 2xx-S 201.D13",'D13'!Q15,IF(Obliczenia!$D$58="Vitocal 2xx-S 201.D16",'D16'!Q15,IF(Obliczenia!$D$58="Vitocal 15x-A 151.A10",'151.A10'!Q15,IF(Obliczenia!$D$58="Vitocal 15x-A 151.A13",'151.A13'!Q15,IF(Obliczenia!$D$58="Vitocal 15x-A 151.A16",'151.A16'!Q15,IF(Obliczenia!$D$58="Vitocal 25x-A 251.A10",'251.A10'!Q15,IF(Obliczenia!$D$58="Vitocal 25x-A 251.A13",'251.A13'!Q15,IF(Obliczenia!$D$58="Vitocal 15x-A 151.A08",'151.A08'!Q15,IF(Obliczenia!$D$58="Vitocal 15x-A 151.A06",'151.A06'!Q15,IF(Obliczenia!$D$58="Vitocal 15x-A 151.A04",'151.A04'!Q15,IF(Obliczenia!$D$58="Vitocal 25x-A 251.A04",'251.A04'!Q15,IF(Obliczenia!$D$58="Vitocal 25x-A 251.A06",'251.A06'!Q15,IF(Obliczenia!$D$58="Vitocal 25x-A 251.A08",'251.A08'!Q15,IF(Obliczenia!$D$58="Carrier 30AWH-P006HP",'AWH-P006'!Q15,IF(Obliczenia!$D$58="Carrier 30AWH-P008HP",'AWH-P008'!Q15,IF(Obliczenia!$D$58="Carrier 30AWH-P004HP",'AWH-P004'!Q15,IF(Obliczenia!$D$58="Carrier 30AWH-P012HP",'AWH-P012T'!Q15,IF(Obliczenia!$D$58="Carrier 30AWH-P014HP",'AWH-P014T'!Q15,IF(Obliczenia!$D$58="Vitocal 100-A 101.A16",#REF!,IF(Obliczenia!$D$58="Vitocal 100-A 101.A18",#REF!,IF(Obliczenia!$D$58="Vitocal 25x-A 251.A16",'251.A16'!Q15,IF(Obliczenia!$D$58="Vitocal 25x-A 251.A19",'251.A19'!Q15,"błąd"))))))))))))))))))))))))))))))))))) -> 5.40 | BJ11: =IF(Obliczenia!$D$58="Vitocal 2xx-S 201.E06",'E06'!R15,IF(Obliczenia!$D$58="Vitocal 2xx-S 201.E08",'E08'!R15,IF(Obliczenia!$D$58="Vitocal 2xx-S 201.E10",'E10'!R15,IF(Obliczenia!$D$58="Vitocal 1xx-S 101.B04",'B04'!R15,IF(Obliczenia!$D$58="Vitocal 1xx-S 101.B06",'B06'!R15,IF(Obliczenia!$D$58="Vitocal 1xx-S 101.B08",'B08'!R15,IF(Obliczenia!$D$58="Vitocal 1xx-S 101.A12",'A12'!R15,IF(Obliczenia!$D$58="Vitocal 1xx-S 101.A14",'A14'!R15,IF(Obliczenia!$D$58="Vitocal 1xx-S 101.A16",'A16'!R15,IF(Obliczenia!$D$58="Vitocal 2xx-S 201.D04",'D04'!R15,IF(Obliczenia!$D$58="Vitocal 2xx-S 201.D06",'D06'!R15,IF(Obliczenia!$D$58="Vitocal 2xx-S 201.D08",'D08'!R15,IF(Obliczenia!$D$58="Vitocal 2xx-S 201.D10",'D10'!R15,IF(Obliczenia!$D$58="Vitocal 2xx-S 201.D13",'D13'!R15,IF(Obliczenia!$D$58="Vitocal 2xx-S 201.D16",'D16'!R15,IF(Obliczenia!$D$58="Vitocal 15x-A 151.A10",'151.A10'!R15,IF(Obliczenia!$D$58="Vitocal 15x-A 151.A13",'151.A13'!R15,IF(Obliczenia!$D$58="Vitocal 15x-A 151.A16",'151.A16'!R15,IF(Obliczenia!$D$58="Vitocal 25x-A 251.A10",'251.A10'!R15,IF(Obliczenia!$D$58="Vitocal 25x-A 251.A13",'251.A13'!R15,IF(Obliczenia!$D$58="Vitocal 15x-A 151.A08",'151.A08'!R15,IF(Obliczenia!$D$58="Vitocal 15x-A 151.A06",'151.A06'!R15,IF(Obliczenia!$D$58="Vitocal 15x-A 151.A04",'151.A04'!R15,IF(Obliczenia!$D$58="Vitocal 25x-A 251.A04",'251.A04'!R15,IF(Obliczenia!$D$58="Vitocal 25x-A 251.A06",'251.A06'!R15,IF(Obliczenia!$D$58="Vitocal 25x-A 251.A08",'251.A08'!R15,IF(Obliczenia!$D$58="Carrier 30AWH-P006HP",'AWH-P006'!R15,IF(Obliczenia!$D$58="Carrier 30AWH-P008HP",'AWH-P008'!R15,IF(Obliczenia!$D$58="Carrier 30AWH-P004HP",'AWH-P004'!R15,IF(Obliczenia!$D$58="Carrier 30AWH-P012HP",'AWH-P012T'!R15,IF(Obliczenia!$D$58="Carrier 30AWH-P014HP",'AWH-P014T'!R15,IF(Obliczenia!$D$58="Vitocal 100-A 101.A16",#REF!,IF(Obliczenia!$D$58="Vitocal 100-A 101.A18",#REF!,IF(Obliczenia!$D$58="Vitocal 25x-A 251.A16",'251.A16'!R15,IF(Obliczenia!$D$58="Vitocal 25x-A 251.A19",'251.A19'!R15,"błąd"))))))))))))))))))))))))))))))))))) -> 6.89 | BK11: =IF(Obliczenia!$D$58="Vitocal 2xx-S 201.E06",'E06'!S15,IF(Obliczenia!$D$58="Vitocal 2xx-S 201.E08",'E08'!S15,IF(Obliczenia!$D$58="Vitocal 2xx-S 201.E10",'E10'!S15,IF(Obliczenia!$D$58="Vitocal 1xx-S 101.B04",'B04'!S15,IF(Obliczenia!$D$58="Vitocal 1xx-S 101.B06",'B06'!S15,IF(Obliczenia!$D$58="Vitocal 1xx-S 101.B08",'B08'!S15,IF(Obliczenia!$D$58="Vitocal 1xx-S 101.A12",'A12'!S15,IF(Obliczenia!$D$58="Vitocal 1xx-S 101.A14",'A14'!S15,IF(Obliczenia!$D$58="Vitocal 1xx-S 101.A16",'A16'!S15,IF(Obliczenia!$D$58="Vitocal 2xx-S 201.D04",'D04'!S15,IF(Obliczenia!$D$58="Vitocal 2xx-S 201.D06",'D06'!S15,IF(Obliczenia!$D$58="Vitocal 2xx-S 201.D08",'D08'!S15,IF(Obliczenia!$D$58="Vitocal 2xx-S 201.D10",'D10'!S15,IF(Obliczenia!$D$58="Vitocal 2xx-S 201.D13",'D13'!S15,IF(Obliczenia!$D$58="Vitocal 2xx-S 201.D16",'D16'!S15,IF(Obliczenia!$D$58="Vitocal 15x-A 151.A10",'151.A10'!S15,IF(Obliczenia!$D$58="Vitocal 15x-A 151.A13",'151.A13'!S15,IF(Obliczenia!$D$58="Vitocal 15x-A 151.A16",'151.A16'!S15,IF(Obliczenia!$D$58="Vitocal 25x-A 251.A10",'251.A10'!S15,IF(Obliczenia!$D$58="Vitocal 25x-A 251.A13",'251.A13'!S15,IF(Obliczenia!$D$58="Vitocal 15x-A 151.A08",'151.A08'!S15,IF(Obliczenia!$D$58="Vitocal 15x-A 151.A06",'151.A06'!S15,IF(Obliczenia!$D$58="Vitocal 15x-A 151.A04",'151.A04'!S15,IF(Obliczenia!$D$58="Vitocal 25x-A 251.A04",'251.A04'!S15,IF(Obliczenia!$D$58="Vitocal 25x-A 251.A06",'251.A06'!S15,IF(Obliczenia!$D$58="Vitocal 25x-A 251.A08",'251.A08'!S15,IF(Obliczenia!$D$58="Carrier 30AWH-P006HP",'AWH-P006'!S15,IF(Obliczenia!$D$58="Carrier 30AWH-P008HP",'AWH-P008'!S15,IF(Obliczenia!$D$58="Carrier 30AWH-P004HP",'AWH-P004'!S15,IF(Obliczenia!$D$58="Carrier 30AWH-P012HP",'AWH-P012T'!S15,IF(Obliczenia!$D$58="Carrier 30AWH-P014HP",'AWH-P014T'!S15,IF(Obliczenia!$D$58="Vitocal 100-A 101.A16",#REF!,IF(Obliczenia!$D$58="Vitocal 100-A 101.A18",#REF!,IF(Obliczenia!$D$58="Vitocal 25x-A 251.A16",'251.A16'!S15,IF(Obliczenia!$D$58="Vitocal 25x-A 251.A19",'251.A19'!S15,"błąd"))))))))))))))))))))))))))))))))))) -> 7.69 | BL11: =IF(Obliczenia!$D$58="Vitocal 2xx-S 201.E06",'E06'!T15,IF(Obliczenia!$D$58="Vitocal 2xx-S 201.E08",'E08'!T15,IF(Obliczenia!$D$58="Vitocal 2xx-S 201.E10",'E10'!T15,IF(Obliczenia!$D$58="Vitocal 1xx-S 101.B04",'B04'!T15,IF(Obliczenia!$D$58="Vitocal 1xx-S 101.B06",'B06'!T15,IF(Obliczenia!$D$58="Vitocal 1xx-S 101.B08",'B08'!T15,IF(Obliczenia!$D$58="Vitocal 1xx-S 101.A12",'A12'!T15,IF(Obliczenia!$D$58="Vitocal 1xx-S 101.A14",'A14'!T15,IF(Obliczenia!$D$58="Vitocal 1xx-S 101.A16",'A16'!T15,IF(Obliczenia!$D$58="Vitocal 2xx-S 201.D04",'D04'!T15,IF(Obliczenia!$D$58="Vitocal 2xx-S 201.D06",'D06'!T15,IF(Obliczenia!$D$58="Vitocal 2xx-S 201.D08",'D08'!T15,IF(Obliczenia!$D$58="Vitocal 2xx-S 201.D10",'D10'!T15,IF(Obliczenia!$D$58="Vitocal 2xx-S 201.D13",'D13'!T15,IF(Obliczenia!$D$58="Vitocal 2xx-S 201.D16",'D16'!T15,IF(Obliczenia!$D$58="Vitocal 15x-A 151.A10",'151.A10'!T15,IF(Obliczenia!$D$58="Vitocal 15x-A 151.A13",'151.A13'!T15,IF(Obliczenia!$D$58="Vitocal 15x-A 151.A16",'151.A16'!T15,IF(Obliczenia!$D$58="Vitocal 25x-A 251.A10",'251.A10'!T15,IF(Obliczenia!$D$58="Vitocal 25x-A 251.A13",'251.A13'!T15,IF(Obliczenia!$D$58="Vitocal 15x-A 151.A08",'151.A08'!T15,IF(Obliczenia!$D$58="Vitocal 15x-A 151.A06",'151.A06'!T15,IF(Obliczenia!$D$58="Vitocal 15x-A 151.A04",'151.A04'!T15,IF(Obliczenia!$D$58="Vitocal 25x-A 251.A04",'251.A04'!T15,IF(Obliczenia!$D$58="Vitocal 25x-A 251.A06",'251.A06'!T15,IF(Obliczenia!$D$58="Vitocal 25x-A 251.A08",'251.A08'!T15,IF(Obliczenia!$D$58="Carrier 30AWH-P006HP",'AWH-P006'!T15,IF(Obliczenia!$D$58="Carrier 30AWH-P008HP",'AWH-P008'!T15,IF(Obliczenia!$D$58="Carrier 30AWH-P004HP",'AWH-P004'!T15,IF(Obliczenia!$D$58="Carrier 30AWH-P012HP",'AWH-P012T'!T15,IF(Obliczenia!$D$58="Carrier 30AWH-P014HP",'AWH-P014T'!T15,IF(Obliczenia!$D$58="Vitocal 100-A 101.A16",#REF!,IF(Obliczenia!$D$58="Vitocal 100-A 101.A18",#REF!,IF(Obliczenia!$D$58="Vitocal 25x-A 251.A16",'251.A16'!T15,IF(Obliczenia!$D$58="Vitocal 25x-A 251.A19",'251.A19'!T15,"błąd"))))))))))))))))))))))))))))))))))) -> 8.23 | BM11: =IF(Obliczenia!$D$58="Vitocal 2xx-S 201.E06",'E06'!U15,IF(Obliczenia!$D$58="Vitocal 2xx-S 201.E08",'E08'!U15,IF(Obliczenia!$D$58="Vitocal 2xx-S 201.E10",'E10'!U15,IF(Obliczenia!$D$58="Vitocal 1xx-S 101.B04",'B04'!U15,IF(Obliczenia!$D$58="Vitocal 1xx-S 101.B06",'B06'!U15,IF(Obliczenia!$D$58="Vitocal 1xx-S 101.B08",'B08'!U15,IF(Obliczenia!$D$58="Vitocal 1xx-S 101.A12",'A12'!U15,IF(Obliczenia!$D$58="Vitocal 1xx-S 101.A14",'A14'!U15,IF(Obliczenia!$D$58="Vitocal 1xx-S 101.A16",'A16'!U15,IF(Obliczenia!$D$58="Vitocal 2xx-S 201.D04",'D04'!U15,IF(Obliczenia!$D$58="Vitocal 2xx-S 201.D06",'D06'!U15,IF(Obliczenia!$D$58="Vitocal 2xx-S 201.D08",'D08'!U15,IF(Obliczenia!$D$58="Vitocal 2xx-S 201.D10",'D10'!U15,IF(Obliczenia!$D$58="Vitocal 2xx-S 201.D13",'D13'!U15,IF(Obliczenia!$D$58="Vitocal 2xx-S 201.D16",'D16'!U15,IF(Obliczenia!$D$58="Vitocal 15x-A 151.A10",'151.A10'!U15,IF(Obliczenia!$D$58="Vitocal 15x-A 151.A13",'151.A13'!U15,IF(Obliczenia!$D$58="Vitocal 15x-A 151.A16",'151.A16'!U15,IF(Obliczenia!$D$58="Vitocal 25x-A 251.A10",'251.A10'!U15,IF(Obliczenia!$D$58="Vitocal 25x-A 251.A13",'251.A13'!U15,IF(Obliczenia!$D$58="Vitocal 15x-A 151.A08",'151.A08'!U15,IF(Obliczenia!$D$58="Vitocal 15x-A 151.A06",'151.A06'!U15,IF(Obliczenia!$D$58="Vitocal 15x-A 151.A04",'151.A04'!U15,IF(Obliczenia!$D$58="Vitocal 25x-A 251.A04",'251.A04'!U15,IF(Obliczenia!$D$58="Vitocal 25x-A 251.A06",'251.A06'!U15,IF(Obliczenia!$D$58="Vitocal 25x-A 251.A08",'251.A08'!U15,IF(Obliczenia!$D$58="Carrier 30AWH-P006HP",'AWH-P006'!U15,IF(Obliczenia!$D$58="Carrier 30AWH-P008HP",'AWH-P008'!U15,IF(Obliczenia!$D$58="Carrier 30AWH-P004HP",'AWH-P004'!U15,IF(Obliczenia!$D$58="Carrier 30AWH-P012HP",'AWH-P012T'!U15,IF(Obliczenia!$D$58="Carrier 30AWH-P014HP",'AWH-P014T'!U15,IF(Obliczenia!$D$58="Vitocal 100-A 101.A16",#REF!,IF(Obliczenia!$D$58="Vitocal 100-A 101.A18",#REF!,IF(Obliczenia!$D$58="Vitocal 25x-A 251.A16",'251.A16'!U15,IF(Obliczenia!$D$58="Vitocal 25x-A 251.A19",'251.A19'!U15,"błąd"))))))))))))))))))))))))))))))))))) -> 9.05 | BN11: =IF(Obliczenia!$D$58="Vitocal 2xx-S 201.E06",'E06'!V15,IF(Obliczenia!$D$58="Vitocal 2xx-S 201.E08",'E08'!V15,IF(Obliczenia!$D$58="Vitocal 2xx-S 201.E10",'E10'!V15,IF(Obliczenia!$D$58="Vitocal 1xx-S 101.B04",'B04'!V15,IF(Obliczenia!$D$58="Vitocal 1xx-S 101.B06",'B06'!V15,IF(Obliczenia!$D$58="Vitocal 1xx-S 101.B08",'B08'!V15,IF(Obliczenia!$D$58="Vitocal 1xx-S 101.A12",'A12'!V15,IF(Obliczenia!$D$58="Vitocal 1xx-S 101.A14",'A14'!V15,IF(Obliczenia!$D$58="Vitocal 1xx-S 101.A16",'A16'!V15,IF(Obliczenia!$D$58="Vitocal 2xx-S 201.D04",'D04'!V15,IF(Obliczenia!$D$58="Vitocal 2xx-S 201.D06",'D06'!V15,IF(Obliczenia!$D$58="Vitocal 2xx-S 201.D08",'D08'!V15,IF(Obliczenia!$D$58="Vitocal 2xx-S 201.D10",'D10'!V15,IF(Obliczenia!$D$58="Vitocal 2xx-S 201.D13",'D13'!V15,IF(Obliczenia!$D$58="Vitocal 2xx-S 201.D16",'D16'!V15,IF(Obliczenia!$D$58="Vitocal 15x-A 151.A10",'151.A10'!V15,IF(Obliczenia!$D$58="Vitocal 15x-A 151.A13",'151.A13'!V15,IF(Obliczenia!$D$58="Vitocal 15x-A 151.A16",'151.A16'!V15,IF(Obliczenia!$D$58="Vitocal 25x-A 251.A10",'251.A10'!V15,IF(Obliczenia!$D$58="Vitocal 25x-A 251.A13",'251.A13'!V15,IF(Obliczenia!$D$58="Vitocal 15x-A 151.A08",'151.A08'!V15,IF(Obliczenia!$D$58="Vitocal 15x-A 151.A06",'151.A06'!V15,IF(Obliczenia!$D$58="Vitocal 15x-A 151.A04",'151.A04'!V15,IF(Obliczenia!$D$58="Vitocal 25x-A 251.A04",'251.A04'!V15,IF(Obliczenia!$D$58="Vitocal 25x-A 251.A06",'251.A06'!V15,IF(Obliczenia!$D$58="Vitocal 25x-A 251.A08",'251.A08'!V15,IF(Obliczenia!$D$58="Carrier 30AWH-P006HP",'AWH-P006'!V15,IF(Obliczenia!$D$58="Carrier 30AWH-P008HP",'AWH-P008'!V15,IF(Obliczenia!$D$58="Carrier 30AWH-P004HP",'AWH-P004'!V15,IF(Obliczenia!$D$58="Carrier 30AWH-P012HP",'AWH-P012T'!V15,IF(Obliczenia!$D$58="Carrier 30AWH-P014HP",'AWH-P014T'!V15,IF(Obliczenia!$D$58="Vitocal 100-A 101.A16",#REF!,IF(Obliczenia!$D$58="Vitocal 100-A 101.A18",#REF!,IF(Obliczenia!$D$58="Vitocal 25x-A 251.A16",'251.A16'!V15,IF(Obliczenia!$D$58="Vitocal 25x-A 251.A19",'251.A19'!V15,"błąd"))))))))))))))))))))))))))))))))))) -> 10.40 | BO11: =IF(Obliczenia!$D$58="Vitocal 2xx-S 201.E06",'E06'!W15,IF(Obliczenia!$D$58="Vitocal 2xx-S 201.E08",'E08'!W15,IF(Obliczenia!$D$58="Vitocal 2xx-S 201.E10",'E10'!W15,IF(Obliczenia!$D$58="Vitocal 1xx-S 101.B04",'B04'!W15,IF(Obliczenia!$D$58="Vitocal 1xx-S 101.B06",'B06'!W15,IF(Obliczenia!$D$58="Vitocal 1xx-S 101.B08",'B08'!W15,IF(Obliczenia!$D$58="Vitocal 1xx-S 101.A12",'A12'!W15,IF(Obliczenia!$D$58="Vitocal 1xx-S 101.A14",'A14'!W15,IF(Obliczenia!$D$58="Vitocal 1xx-S 101.A16",'A16'!W15,IF(Obliczenia!$D$58="Vitocal 2xx-S 201.D04",'D04'!W15,IF(Obliczenia!$D$58="Vitocal 2xx-S 201.D06",'D06'!W15,IF(Obliczenia!$D$58="Vitocal 2xx-S 201.D08",'D08'!W15,IF(Obliczenia!$D$58="Vitocal 2xx-S 201.D10",'D10'!W15,IF(Obliczenia!$D$58="Vitocal 2xx-S 201.D13",'D13'!W15,IF(Obliczenia!$D$58="Vitocal 2xx-S 201.D16",'D16'!W15,IF(Obliczenia!$D$58="Vitocal 15x-A 151.A10",'151.A10'!W15,IF(Obliczenia!$D$58="Vitocal 15x-A 151.A13",'151.A13'!W15,IF(Obliczenia!$D$58="Vitocal 15x-A 151.A16",'151.A16'!W15,IF(Obliczenia!$D$58="Vitocal 25x-A 251.A10",'251.A10'!W15,IF(Obliczenia!$D$58="Vitocal 25x-A 251.A13",'251.A13'!W15,IF(Obliczenia!$D$58="Vitocal 15x-A 151.A08",'151.A08'!W15,IF(Obliczenia!$D$58="Vitocal 15x-A 151.A06",'151.A06'!W15,IF(Obliczenia!$D$58="Vitocal 15x-A 151.A04",'151.A04'!W15,IF(Obliczenia!$D$58="Vitocal 25x-A 251.A04",'251.A04'!W15,IF(Obliczenia!$D$58="Vitocal 25x-A 251.A06",'251.A06'!W15,IF(Obliczenia!$D$58="Vitocal 25x-A 251.A08",'251.A08'!W15,IF(Obliczenia!$D$58="Carrier 30AWH-P006HP",'AWH-P006'!W15,IF(Obliczenia!$D$58="Carrier 30AWH-P008HP",'AWH-P008'!W15,IF(Obliczenia!$D$58="Carrier 30AWH-P004HP",'AWH-P004'!W15,IF(Obliczenia!$D$58="Carrier 30AWH-P012HP",'AWH-P012T'!W15,IF(Obliczenia!$D$58="Carrier 30AWH-P014HP",'AWH-P014T'!W15,IF(Obliczenia!$D$58="Vitocal 100-A 101.A16",#REF!,IF(Obliczenia!$D$58="Vitocal 100-A 101.A18",#REF!,IF(Obliczenia!$D$58="Vitocal 25x-A 251.A16",'251.A16'!W15,IF(Obliczenia!$D$58="Vitocal 25x-A 251.A19",'251.A19'!W15,"błąd"))))))))))))))))))))))))))))))))))) -> 11.06 | CD11: Energia elektryczna (Łęg Kraków) | CH11: 860.4 | CI11: g/kWh | CK11: -5.933333333 | CL11: -9.470833333
A12: 7 | B12: 3.1 | C12: 3.1 | E12: 6 | F12: =AVERAGE(C127:C150) -> -6.879166667 | H12: =F12*Budynek!$D$31+Budynek!$D$32 -> 30.0796875 | J12: =Budynek!$D$4*(Dane!$E$12-F12)*12/1000 -> 48.3825 | L12: =Budynek!$D$4*(Dane!$E$13-F12)*12/1000 -> 42.9825 | N12: 91.365 | P12: 91.365 | Q12: 91.365 | R12: 91.365 | S12: 91.365 | T12: 7.11627907 | AA12: =IF(Obliczenia!$D$58="Vitocal 2xx-S 201.E06",'Bilans-E06'!Z12,IF(Obliczenia!$D$58="Vitocal 2xx-S 201.E08",'Bilans-E08'!Z12,IF(Obliczenia!$D$58="Vitocal 2xx-S 201.E10",'Bilans-E10'!Z12,IF(Obliczenia!$D$58="Vitocal 1xx-S 101.B04",'Bilans-B04'!Z12,IF(Obliczenia!$D$58="Vitocal 1xx-S 101.B06",'Bilans-B06'!Z12,IF(Obliczenia!$D$58="Vitocal 1xx-S 101.B08",'Bilans-B08'!Z12,IF(Obliczenia!$D$58="Vitocal 1xx-S 101.A12",'Bilans-A12'!Z12,IF(Obliczenia!$D$58="Vitocal 1xx-S 101.A14",'Bilans-A14'!Z12,IF(Obliczenia!$D$58="Vitocal 1xx-S 101.A16",'Bilans-A16'!Z12,IF(Obliczenia!$D$58="Vitocal 2xx-S 201.D04",'Bilans-D04'!Z12,IF(Obliczenia!$D$58="Vitocal 2xx-S 201.D06",'Bilans-B06'!Z12,IF(Obliczenia!$D$58="Vitocal 2xx-S 201.D08",'Bilans-D08'!Z12,IF(Obliczenia!$D$58="Vitocal 2xx-S 201.D10",'Bilans-D10'!Z12,IF(Obliczenia!$D$58="Vitocal 2xx-S 201.D13",'Bilans-D13'!Z12,IF(Obliczenia!$D$58="Vitocal 2xx-S 201.D16",'Bilans-D16'!Z12,IF(Obliczenia!$D$58="Vitocal 15x-A 151.A10",'Bilans-151-A10'!Z12,IF(Obliczenia!$D$58="Vitocal 15x-A 151.A13",'Bilans-151-A13'!Z12,IF(Obliczenia!$D$58="Vitocal 15x-A 151.A16",'Bilans-151-A16'!Z12,IF(Obliczenia!$D$58="Vitocal 15x-A 151.A16",'Bilans-151-A16'!Z12,IF(Obliczenia!$D$58="Vitocal 25x-A 251.A10",'Bilans-251-A10'!Z12,IF(Obliczenia!$D$58="Vitocal 25x-A 251.A13",'Bilans-251-A13'!Z12,IF(Obliczenia!$D$58="Vitocal 15x-A 151.A06",'Bilans-151-A06'!Z12,IF(Obliczenia!$D$58="Vitocal 15x-A 151.A08",'Bilans-151-A08'!Z12,IF(Obliczenia!$D$58="Vitocal 15x-A 151.A04",'Bilans-151-A04'!Z12,IF(Obliczenia!$D$58="Vitocal 25x-A 251.A04",'Bilans-251-A04'!Z12,IF(Obliczenia!$D$58="Vitocal 25x-A 251.A06",'Bilans-251-A06'!Z12,IF(Obliczenia!$D$58="Vitocal 25x-A 251.A08",'Bilans-251-A08'!Z12,IF(Obliczenia!$D$58="Carrier 30AWH-P006HP",'Bilans-AWH-P006'!Z12,IF(Obliczenia!$D$58="Carrier 30AWH-P008HP",'Bilans-AWH-P008'!Z12,IF(Obliczenia!$D$58="Carrier 30AWH-P004HP",'Bilans-AWH-P004'!Z12,IF(Obliczenia!$D$58="Carrier 30AWH-P012HP",'Bilans-AWH-P012'!Z12,IF(Obliczenia!$D$58="Carrier 30AWH-P014HP",'Bilans-AWH-P014'!Z12,IF(Obliczenia!$D$58="Vitocal 100-A 101.A16",#REF!,IF(Obliczenia!$D$58="Vitocal 100-A 101.A18",#REF!,IF(Obliczenia!$D$58="Vitocal 25x-A 251.A16",'Bilans-251-A16'!Z12,IF(Obliczenia!$D$58="Vitocal 25x-A 251.A19",'Bilans-251-A19'!Z12,"błąd")))))))))))))))))))))))))))))))))))) -> 91.365 | AB12: =IF(Obliczenia!$D$58="Vitocal 2xx-S 201.E06",'Bilans-E06'!AA12,IF(Obliczenia!$D$58="Vitocal 2xx-S 201.E08",'Bilans-E08'!AA12,IF(Obliczenia!$D$58="Vitocal 2xx-S 201.E10",'Bilans-E10'!AA12,IF(Obliczenia!$D$58="Vitocal 1xx-S 101.B04",'Bilans-B04'!AA12,IF(Obliczenia!$D$58="Vitocal 1xx-S 101.B06",'Bilans-B06'!AA12,IF(Obliczenia!$D$58="Vitocal 1xx-S 101.B08",'Bilans-B08'!AA12,IF(Obliczenia!$D$58="Vitocal 1xx-S 101.A12",'Bilans-A12'!AA12,IF(Obliczenia!$D$58="Vitocal 1xx-S 101.A14",'Bilans-A14'!AA12,IF(Obliczenia!$D$58="Vitocal 1xx-S 101.A16",'Bilans-A16'!AA12,IF(Obliczenia!$D$58="Vitocal 2xx-S 201.D04",'Bilans-D04'!AA12,IF(Obliczenia!$D$58="Vitocal 2xx-S 201.D06",'Bilans-B06'!AA12,IF(Obliczenia!$D$58="Vitocal 2xx-S 201.D08",'Bilans-D08'!AA12,IF(Obliczenia!$D$58="Vitocal 2xx-S 201.D10",'Bilans-D10'!AA12,IF(Obliczenia!$D$58="Vitocal 2xx-S 201.D13",'Bilans-D13'!AA12,IF(Obliczenia!$D$58="Vitocal 2xx-S 201.D16",'Bilans-D16'!AA12,IF(Obliczenia!$D$58="Vitocal 15x-A 151.A10",'Bilans-151-A10'!AA12,IF(Obliczenia!$D$58="Vitocal 15x-A 151.A13",'Bilans-151-A13'!AA12,IF(Obliczenia!$D$58="Vitocal 15x-A 151.A16",'Bilans-151-A16'!AA12,IF(Obliczenia!$D$58="Vitocal 15x-A 151.A16",'Bilans-151-A16'!AA12,IF(Obliczenia!$D$58="Vitocal 25x-A 251.A10",'Bilans-251-A10'!AA12,IF(Obliczenia!$D$58="Vitocal 25x-A 251.A13",'Bilans-251-A13'!AA12,IF(Obliczenia!$D$58="Vitocal 15x-A 151.A08",'Bilans-151-A08'!AA12,IF(Obliczenia!$D$58="Vitocal 15x-A 151.A06",'Bilans-151-A06'!AA12,IF(Obliczenia!$D$58="Vitocal 15x-A 151.A04",'Bilans-151-A04'!AA12,IF(Obliczenia!$D$58="Vitocal 25x-A 251.A04",'Bilans-251-A04'!AA12,IF(Obliczenia!$D$58="Vitocal 25x-A 251.A06",'Bilans-251-A06'!AA12,IF(Obliczenia!$D$58="Vitocal 25x-A 251.A08",'Bilans-251-A08'!AA12,IF(Obliczenia!$D$58="Carrier 30AWH-P006HP",'Bilans-AWH-P006'!AA12,IF(Obliczenia!$D$58="Carrier 30AWH-P008HP",'Bilans-AWH-P008'!AA12,IF(Obliczenia!$D$58="Carrier 30AWH-P004HP",'Bilans-AWH-P004'!AA12,IF(Obliczenia!$D$58="Carrier 30AWH-P012HP",'Bilans-AWH-P012'!AA12,IF(Obliczenia!$D$58="Carrier 30AWH-P014HP",'Bilans-AWH-P014'!AA12,IF(Obliczenia!$D$58="Vitocal 100-A 101.A16",#REF!,IF(Obliczenia!$D$58="Vitocal 100-A 101.A18",#REF!,IF(Obliczenia!$D$58="Vitocal 25x-A 251.A16",'Bilans-251-A16'!AA12,IF(Obliczenia!$D$58="Vitocal 25x-A 251.A19",'Bilans-251-A19'!AA12,"błąd")))))))))))))))))))))))))))))))))))) -> 0 | AI12: 91.365 | AJ12: 0 | AR12: =IF(Obliczenia!$D$58="Vitocal 2xx-S 201.E06",'Bilans-E06'!AR12,IF(Obliczenia!$D$58="Vitocal 2xx-S 201.E08",'Bilans-E08'!AR12,IF(Obliczenia!$D$58="Vitocal 2xx-S 201.E10",'Bilans-E10'!AR12,IF(Obliczenia!$D$58="Vitocal 1xx-S 101.B04",'Bilans-B04'!AR12,IF(Obliczenia!$D$58="Vitocal 1xx-S 101.B06",'Bilans-B06'!AR12,IF(Obliczenia!$D$58="Vitocal 1xx-S 101.B08",'Bilans-B08'!AR12,IF(Obliczenia!$D$58="Vitocal 1xx-S 101.A12",'Bilans-A12'!AR12,IF(Obliczenia!$D$58="Vitocal 1xx-S 101.A14",'Bilans-A14'!AR12,IF(Obliczenia!$D$58="Vitocal 1xx-S 101.A16",'Bilans-A16'!AR12,IF(Obliczenia!$D$58="Vitocal 2xx-S 201.D04",'Bilans-D04'!AR12,IF(Obliczenia!$D$58="Vitocal 2xx-S 201.D06",'Bilans-B06'!AR12,IF(Obliczenia!$D$58="Vitocal 2xx-S 201.D08",'Bilans-D08'!AR12,IF(Obliczenia!$D$58="Vitocal 2xx-S 201.D10",'Bilans-D10'!AR12,IF(Obliczenia!$D$58="Vitocal 2xx-S 201.D13",'Bilans-D13'!AR12,IF(Obliczenia!$D$58="Vitocal 2xx-S 201.D16",'Bilans-D16'!AR12,IF(Obliczenia!$D$58="Vitocal 15x-A 151.A10",'Bilans-151-A10'!AR12,IF(Obliczenia!$D$58="Vitocal 15x-A 151.A13",'Bilans-151-A13'!AR12,IF(Obliczenia!$D$58="Vitocal 15x-A 151.A16",'Bilans-151-A16'!AR12,IF(Obliczenia!$D$58="Vitocal 25x-A 251.A10",'Bilans-251-A10'!AR12,IF(Obliczenia!$D$58="Vitocal 25x-A 251.A13",'Bilans-251-A13'!AR12,IF(Obliczenia!$D$58="Vitocal 15x-A 151.A08",'Bilans-151-A08'!AR12,IF(Obliczenia!$D$58="Vitocal 15x-A 151.A06",'Bilans-151-A06'!AR12,IF(Obliczenia!$D$58="Vitocal 15x-A 151.A04",'Bilans-151-A04'!AR12,IF(Obliczenia!$D$58="Vitocal 25x-A 251.A04",'Bilans-251-A04'!AR12,IF(Obliczenia!$D$58="Vitocal 25x-A 251.A06",'Bilans-251-A06'!AR12,IF(Obliczenia!$D$58="Vitocal 25x-A 251.A08",'Bilans-251-A08'!AR12,IF(Obliczenia!$D$58="Carrier 30AWH-P006HP",'Bilans-AWH-P006'!AR12,IF(Obliczenia!$D$58="Carrier 30AWH-P008HP",'Bilans-AWH-P008'!AR12,IF(Obliczenia!$D$58="Carrier 30AWH-P004HP",'Bilans-AWH-P004'!AR12,IF(Obliczenia!$D$58="Carrier 30AWH-P012HP",'Bilans-AWH-P012'!AR12,IF(Obliczenia!$D$58="Carrier 30AWH-P014HP",'Bilans-AWH-P014'!AR12,IF(Obliczenia!$D$58="Vitocal 100-A 101.A16",#REF!,IF(Obliczenia!$D$58="Vitocal 100-A 101.A18",#REF!,IF(Obliczenia!$D$58="Vitocal 25x-A 251.A16",'Bilans-251-A16'!AR12,IF(Obliczenia!$D$58="Vitocal 25x-A 251.A19",'Bilans-251-A19'!AR12,"błąd"))))))))))))))))))))))))))))))))))) -> 91.365 | AS12: =IF(Obliczenia!$D$58="Vitocal 2xx-S 201.E06",'Bilans-E06'!AS12,IF(Obliczenia!$D$58="Vitocal 2xx-S 201.E08",'Bilans-E08'!AS12,IF(Obliczenia!$D$58="Vitocal 2xx-S 201.E10",'Bilans-E10'!AS12,IF(Obliczenia!$D$58="Vitocal 1xx-S 101.B04",'Bilans-B04'!AS12,IF(Obliczenia!$D$58="Vitocal 1xx-S 101.B06",'Bilans-B06'!AS12,IF(Obliczenia!$D$58="Vitocal 1xx-S 101.B08",'Bilans-B08'!AS12,IF(Obliczenia!$D$58="Vitocal 1xx-S 101.A12",'Bilans-A12'!AS12,IF(Obliczenia!$D$58="Vitocal 1xx-S 101.A14",'Bilans-A14'!AS12,IF(Obliczenia!$D$58="Vitocal 1xx-S 101.A16",'Bilans-A16'!AS12,IF(Obliczenia!$D$58="Vitocal 2xx-S 201.D04",'Bilans-D04'!AS12,IF(Obliczenia!$D$58="Vitocal 2xx-S 201.D06",'Bilans-B06'!AS12,IF(Obliczenia!$D$58="Vitocal 2xx-S 201.D08",'Bilans-D08'!AS12,IF(Obliczenia!$D$58="Vitocal 2xx-S 201.D10",'Bilans-D10'!AS12,IF(Obliczenia!$D$58="Vitocal 2xx-S 201.D13",'Bilans-D13'!AS12,IF(Obliczenia!$D$58="Vitocal 2xx-S 201.D16",'Bilans-D16'!AS12,IF(Obliczenia!$D$58="Vitocal 15x-A 151.A10",'Bilans-151-A10'!AS12,IF(Obliczenia!$D$58="Vitocal 15x-A 151.A13",'Bilans-151-A13'!AS12,IF(Obliczenia!$D$58="Vitocal 15x-A 151.A16",'Bilans-151-A16'!AS12,IF(Obliczenia!$D$58="Vitocal 25x-A 251.A10",'Bilans-251-A10'!AS12,IF(Obliczenia!$D$58="Vitocal 25x-A 251.A13",'Bilans-251-A13'!AS12,IF(Obliczenia!$D$58="Vitocal 15x-A 151.A08",'Bilans-151-A08'!AS12,IF(Obliczenia!$D$58="Vitocal 15x-A 151.A06",'Bilans-151-A06'!AS12,IF(Obliczenia!$D$58="Vitocal 15x-A 151.A04",'Bilans-151-A04'!AS12,IF(Obliczenia!$D$58="Vitocal 25x-A 251.A04",'Bilans-251-A04'!AS12,IF(Obliczenia!$D$58="Vitocal 25x-A 251.A06",'Bilans-251-A06'!AS12,IF(Obliczenia!$D$58="Vitocal 25x-A 251.A08",'Bilans-251-A08'!AS12,IF(Obliczenia!$D$58="Carrier 30AWH-P006HP",'Bilans-AWH-P006'!AS12,IF(Obliczenia!$D$58="Carrier 30AWH-P008HP",'Bilans-AWH-P008'!AS12,IF(Obliczenia!$D$58="Carrier 30AWH-P004HP",'Bilans-AWH-P004'!AS12,IF(Obliczenia!$D$58="Carrier 30AWH-P012HP",'Bilans-AWH-P012'!AS12,IF(Obliczenia!$D$58="Carrier 30AWH-P014HP",'Bilans-AWH-P014'!AS12,IF(Obliczenia!$D$58="Vitocal 100-A 101.A16",#REF!,IF(Obliczenia!$D$58="Vitocal 100-A 101.A18",#REF!,IF(Obliczenia!$D$58="Vitocal 25x-A 251.A16",'Bilans-251-A16'!AS12,IF(Obliczenia!$D$58="Vitocal 25x-A 251.A19",'Bilans-251-A19'!AS12,"błąd"))))))))))))))))))))))))))))))))))) -> 0 | AV12: =IF(Obliczenia!$D$58="Vitocal 2xx-S 201.E06",'Bilans-E06'!BJ12,IF(Obliczenia!$D$58="Vitocal 2xx-S 201.E08",'Bilans-E08'!BJ12,IF(Obliczenia!$D$58="Vitocal 2xx-S 201.E10",'Bilans-E10'!BJ12,IF(Obliczenia!$D$58="Vitocal 1xx-S 101.B04",'Bilans-B04'!BJ12,IF(Obliczenia!$D$58="Vitocal 1xx-S 101.B06",'Bilans-B06'!BJ12,IF(Obliczenia!$D$58="Vitocal 1xx-S 101.B08",'Bilans-B08'!BJ12,IF(Obliczenia!$D$58="Vitocal 1xx-S 101.A12",'Bilans-A12'!BJ12,IF(Obliczenia!$D$58="Vitocal 1xx-S 101.A14",'Bilans-A14'!BJ12,IF(Obliczenia!$D$58="Vitocal 1xx-S 101.A16",'Bilans-A16'!BJ12,IF(Obliczenia!$D$58="Vitocal 2xx-S 201.D04",'Bilans-D04'!BJ12,IF(Obliczenia!$D$58="Vitocal 2xx-S 201.D06",'Bilans-B06'!BJ12,IF(Obliczenia!$D$58="Vitocal 2xx-S 201.D08",'Bilans-D08'!BJ12,IF(Obliczenia!$D$58="Vitocal 2xx-S 201.D10",'Bilans-D10'!BJ12,IF(Obliczenia!$D$58="Vitocal 2xx-S 201.D13",'Bilans-D13'!BJ12,IF(Obliczenia!$D$58="Vitocal 2xx-S 201.D16",'Bilans-D16'!BJ12,IF(Obliczenia!$D$58="Vitocal 15x-A 151.A10",'Bilans-151-A10'!BJ12,IF(Obliczenia!$D$58="Vitocal 15x-A 151.A13",'Bilans-151-A13'!BJ12,IF(Obliczenia!$D$58="Vitocal 15x-A 151.A16",'Bilans-151-A16'!BJ12,IF(Obliczenia!$D$58="Vitocal 25x-A 251.A10",'Bilans-251-A10'!BJ12,IF(Obliczenia!$D$58="Vitocal 25x-A 251.A13",'Bilans-251-A13'!BJ12,IF(Obliczenia!$D$58="Vitocal 15x-A 151.A08",'Bilans-151-A08'!BJ12,IF(Obliczenia!$D$58="Vitocal 15x-A 151.A06",'Bilans-151-A06'!BJ12,IF(Obliczenia!$D$58="Vitocal 15x-A 151.A04",'Bilans-151-A04'!BJ12,IF(Obliczenia!$D$58="Vitocal 25x-A 251.A04",'Bilans-251-A04'!BJ12,IF(Obliczenia!$D$58="Vitocal 25x-A 251.A06",'Bilans-251-A06'!BJ12,IF(Obliczenia!$D$58="Vitocal 25x-A 251.A08",'Bilans-251-A08'!BJ12,IF(Obliczenia!$D$58="Carrier 30AWH-P006HP",'Bilans-AWH-P006'!BJ12,IF(Obliczenia!$D$58="Carrier 30AWH-P008HP",'Bilans-AWH-P008'!BJ12,IF(Obliczenia!$D$58="Carrier 30AWH-P004HP",'Bilans-AWH-P004'!BJ12,IF(Obliczenia!$D$58="Carrier 30AWH-P012HP",'Bilans-AWH-P012'!BJ12,IF(Obliczenia!$D$58="Carrier 30AWH-P014HP",'Bilans-AWH-P014'!BJ12,IF(Obliczenia!$D$58="Vitocal 100-A 101.A16",#REF!,IF(Obliczenia!$D$58="Vitocal 100-A 101.A18",#REF!,IF(Obliczenia!$D$58="Vitocal 25x-A 251.A16",'Bilans-251-A16'!BJ12,IF(Obliczenia!$D$58="Vitocal 25x-A 251.A19",'Bilans-251-A19'!BJ12,"błąd"))))))))))))))))))))))))))))))))))) -> 91.365 | AW12: =IF(Obliczenia!$D$58="Vitocal 2xx-S 201.E06",'Bilans-E06'!BK12,IF(Obliczenia!$D$58="Vitocal 2xx-S 201.E08",'Bilans-E08'!BK12,IF(Obliczenia!$D$58="Vitocal 2xx-S 201.E10",'Bilans-E10'!BK12,IF(Obliczenia!$D$58="Vitocal 1xx-S 101.B04",'Bilans-B04'!BK12,IF(Obliczenia!$D$58="Vitocal 1xx-S 101.B06",'Bilans-B06'!BK12,IF(Obliczenia!$D$58="Vitocal 1xx-S 101.B08",'Bilans-B08'!BK12,IF(Obliczenia!$D$58="Vitocal 1xx-S 101.A12",'Bilans-A12'!BK12,IF(Obliczenia!$D$58="Vitocal 1xx-S 101.A14",'Bilans-A14'!BK12,IF(Obliczenia!$D$58="Vitocal 1xx-S 101.A16",'Bilans-A16'!BK12,IF(Obliczenia!$D$58="Vitocal 2xx-S 201.D04",'Bilans-D04'!BK12,IF(Obliczenia!$D$58="Vitocal 2xx-S 201.D06",'Bilans-B06'!BK12,IF(Obliczenia!$D$58="Vitocal 2xx-S 201.D08",'Bilans-D08'!BK12,IF(Obliczenia!$D$58="Vitocal 2xx-S 201.D10",'Bilans-D10'!BK12,IF(Obliczenia!$D$58="Vitocal 2xx-S 201.D13",'Bilans-D13'!BK12,IF(Obliczenia!$D$58="Vitocal 2xx-S 201.D16",'Bilans-D16'!BK12,IF(Obliczenia!$D$58="Vitocal 15x-A 151.A10",'Bilans-151-A10'!BK12,IF(Obliczenia!$D$58="Vitocal 15x-A 151.A13",'Bilans-151-A13'!BK12,IF(Obliczenia!$D$58="Vitocal 15x-A 151.A16",'Bilans-151-A16'!BK12,IF(Obliczenia!$D$58="Vitocal 25x-A 251.A10",'Bilans-251-A10'!BK12,IF(Obliczenia!$D$58="Vitocal 25x-A 251.A13",'Bilans-251-A13'!BK12,IF(Obliczenia!$D$58="Vitocal 15x-A 151.A08",'Bilans-151-A08'!BK12,IF(Obliczenia!$D$58="Vitocal 15x-A 151.A06",'Bilans-151-A06'!BK12,IF(Obliczenia!$D$58="Vitocal 15x-A 151.A04",'Bilans-151-A04'!BK12,IF(Obliczenia!$D$58="Vitocal 25x-A 251.A04",'Bilans-251-A04'!BK12,IF(Obliczenia!$D$58="Vitocal 25x-A 251.A06",'Bilans-251-A06'!BK12,IF(Obliczenia!$D$58="Vitocal 25x-A 251.A08",'Bilans-251-A08'!BK12,IF(Obliczenia!$D$58="Carrier 30AWH-P006HP",'Bilans-AWH-P006'!BK12,IF(Obliczenia!$D$58="Carrier 30AWH-P008HP",'Bilans-AWH-P008'!BK12,IF(Obliczenia!$D$58="Carrier 30AWH-P004HP",'Bilans-AWH-P004'!BK12,IF(Obliczenia!$D$58="Carrier 30AWH-P012HP",'Bilans-AWH-P012'!BK12,IF(Obliczenia!$D$58="Carrier 30AWH-P014HP",'Bilans-AWH-P014'!BK12,IF(Obliczenia!$D$58="Vitocal 100-A 101.A16",#REF!,IF(Obliczenia!$D$58="Vitocal 100-A 101.A18",#REF!,IF(Obliczenia!$D$58="Vitocal 25x-A 251.A16",'Bilans-251-A16'!BK12,IF(Obliczenia!$D$58="Vitocal 25x-A 251.A19",'Bilans-251-A19'!BK12,"błąd"))))))))))))))))))))))))))))))))))) -> 0 | AZ12: =IF(Obliczenia!$D$58="Vitocal 15x-A 151.A10",'Bilans-151-A10'!CK12,IF(Obliczenia!$D$58="Vitocal 15x-A 151.A13",'Bilans-151-A13'!CK12,IF(Obliczenia!$D$58="Vitocal 15x-A 151.A16",'Bilans-151-A16'!CK12,IF(Obliczenia!$D$58="Vitocal 25x-A 251.A10",'Bilans-251-A10'!CK12,IF(Obliczenia!$D$58="Vitocal 25x-A 251.A13",'Bilans-251-A13'!CK12,IF(Obliczenia!$D$58="Vitocal 15x-A 151.A08",'Bilans-151-A08'!CK12,IF(Obliczenia!$D$58="Vitocal 15x-A 151.A06",'Bilans-151-A06'!CK12,IF(Obliczenia!$D$58="Vitocal 15x-A 151.A04",'Bilans-151-A04'!CK12,IF(Obliczenia!$D$58="Vitocal 25x-A 251.A04",'Bilans-251-A04'!CK12,IF(Obliczenia!$D$58="Vitocal 25x-A 251.A06",'Bilans-251-A06'!CK12,IF(Obliczenia!$D$58="Vitocal 25x-A 251.A08",'Bilans-251-A08'!CK12,IF(Obliczenia!$D$58="Vitocal 25x-A 251.A16",'Bilans-251-A16'!CK12,IF(Obliczenia!$D$58="Vitocal 25x-A 251.A19",'Bilans-251-A19'!CK12,IF(Obliczenia!$D$58="Carrier 30AWH-P004HP",'Bilans-AWH-P004'!CK12,IF(Obliczenia!$D$58="Carrier 30AWH-P006HP",'Bilans-AWH-P006'!CK12,IF(Obliczenia!$D$58="Carrier 30AWH-P008HP",'Bilans-AWH-P008'!CK12,IF(Obliczenia!$D$58="Carrier 30AWH-P012HP",'Bilans-AWH-P012'!CK12,IF(Obliczenia!$D$58="Carrier 30AWH-P014HP",'Bilans-AWH-P014'!CK12,"błąd")))))))))))))))))) -> błąd | BA12: =IF(Obliczenia!$D$58="Vitocal 15x-A 151.A10",'Bilans-151-A10'!CL12,IF(Obliczenia!$D$58="Vitocal 15x-A 151.A13",'Bilans-151-A13'!CL12,IF(Obliczenia!$D$58="Vitocal 15x-A 151.A16",'Bilans-151-A16'!CL12,IF(Obliczenia!$D$58="Vitocal 25x-A 251.A10",'Bilans-251-A10'!CL12,IF(Obliczenia!$D$58="Vitocal 25x-A 251.A13",'Bilans-251-A13'!CL12,IF(Obliczenia!$D$58="Vitocal 15x-A 151.A08",'Bilans-151-A08'!CL12,IF(Obliczenia!$D$58="Vitocal 15x-A 151.A06",'Bilans-151-A06'!CL12,IF(Obliczenia!$D$58="Vitocal 15x-A 151.A04",'Bilans-151-A04'!CL12,IF(Obliczenia!$D$58="Vitocal 25x-A 251.A04",'Bilans-251-A04'!CL12,IF(Obliczenia!$D$58="Vitocal 25x-A 251.A06",'Bilans-251-A06'!CL12,IF(Obliczenia!$D$58="Vitocal 25x-A 251.A08",'Bilans-251-A08'!CL12,IF(Obliczenia!$D$58="Vitocal 25x-A 251.A16",'Bilans-251-A16'!CL12,IF(Obliczenia!$D$58="Vitocal 25x-A 251.A19",'Bilans-251-A19'!CL12,IF(Obliczenia!$D$58="Carrier 30AWH-P004HP",'Bilans-AWH-P004'!CL12,IF(Obliczenia!$D$58="Carrier 30AWH-P006HP",'Bilans-AWH-P006'!CL12,IF(Obliczenia!$D$58="Carrier 30AWH-P008HP",'Bilans-AWH-P008'!CL12,IF(Obliczenia!$D$58="Carrier 30AWH-P012HP",'Bilans-AWH-P012'!CL12,IF(Obliczenia!$D$58="Carrier 30AWH-P014HP",'Bilans-AWH-P014'!CL12,"błąd")))))))))))))))))) -> błąd | BE12: VTS70 | BF12: =IF(Obliczenia!$D$58="Vitocal 15x-A 151.A10",'151.A10'!D54,IF(Obliczenia!$D$58="Vitocal 15x-A 151.A13",'151.A13'!D54,IF(Obliczenia!$D$58="Vitocal 15x-A 151.A16",'151.A16'!D54,IF(Obliczenia!$D$58="Vitocal 25x-A 251.A10",'251.A10'!D54,IF(Obliczenia!$D$58="Vitocal 25x-A 251.A13",'251.A13'!D54,IF(Obliczenia!$D$58="Vitocal 15x-A 151.A08",'151.A08'!D54,IF(Obliczenia!$D$58="Vitocal 15x-A 151.A06",'151.A06'!D54,IF(Obliczenia!$D$58="Vitocal 15x-A 151.A04",'151.A04'!D54,IF(Obliczenia!$D$58="Vitocal 25x-A 251.A08",'251.A08'!D54,IF(Obliczenia!$D$58="Vitocal 25x-A 251.A06",'251.A06'!D54,IF(Obliczenia!$D$58="Vitocal 25x-A 251.A04",'251.A04'!D54,IF(Obliczenia!$D$58="Vitocal 25x-A 251.A16",'251.A16'!D54,IF(Obliczenia!$D$58="Vitocal 25x-A 251.A19",'251.A19'!D54,IF(Obliczenia!$D$58="Carrier 30AWH-P004HP",'AWH-P004'!D54,IF(Obliczenia!$D$58="Carrier 30AWH-P006HP",'AWH-P006'!D54,IF(Obliczenia!$D$58="Carrier 30AWH-P008HP",'AWH-P008'!D54,IF(Obliczenia!$D$58="Carrier 30AWH-P012HP",'AWH-P012T'!D54,IF(Obliczenia!$D$58="Carrier 30AWH-P014HP",'AWH-P014T'!D54,"błąd")))))))))))))))))) -> błąd | BG12: =IF(Obliczenia!$D$58="Vitocal 15x-A 151.A10",'151.A10'!E54,IF(Obliczenia!$D$58="Vitocal 15x-A 151.A13",'151.A13'!E54,IF(Obliczenia!$D$58="Vitocal 15x-A 151.A16",'151.A16'!E54,IF(Obliczenia!$D$58="Vitocal 25x-A 251.A10",'251.A10'!E54,IF(Obliczenia!$D$58="Vitocal 25x-A 251.A13",'251.A13'!E54,IF(Obliczenia!$D$58="Vitocal 15x-A 151.A08",'151.A08'!E54,IF(Obliczenia!$D$58="Vitocal 15x-A 151.A06",'151.A06'!E54,IF(Obliczenia!$D$58="Vitocal 15x-A 151.A04",'151.A04'!E54,IF(Obliczenia!$D$58="Vitocal 25x-A 251.A08",'251.A08'!E54,IF(Obliczenia!$D$58="Vitocal 25x-A 251.A06",'251.A06'!E54,IF(Obliczenia!$D$58="Vitocal 25x-A 251.A04",'251.A04'!E54,IF(Obliczenia!$D$58="Vitocal 25x-A 251.A16",'251.A16'!E54,IF(Obliczenia!$D$58="Vitocal 25x-A 251.A19",'251.A19'!E54,IF(Obliczenia!$D$58="Carrier 30AWH-P004HP",'AWH-P004'!E54,IF(Obliczenia!$D$58="Carrier 30AWH-P006HP",'AWH-P006'!E54,IF(Obliczenia!$D$58="Carrier 30AWH-P008HP",'AWH-P008'!E54,IF(Obliczenia!$D$58="Carrier 30AWH-P012HP",'AWH-P012T'!E54,IF(Obliczenia!$D$58="Carrier 30AWH-P014HP",'AWH-P014T'!E54,"błąd")))))))))))))))))) -> błąd | BH12: =IF(Obliczenia!$D$58="Vitocal 15x-A 151.A10",'151.A10'!F54,IF(Obliczenia!$D$58="Vitocal 15x-A 151.A13",'151.A13'!F54,IF(Obliczenia!$D$58="Vitocal 15x-A 151.A16",'151.A16'!F54,IF(Obliczenia!$D$58="Vitocal 25x-A 251.A10",'251.A10'!F54,IF(Obliczenia!$D$58="Vitocal 25x-A 251.A13",'251.A13'!F54,IF(Obliczenia!$D$58="Vitocal 15x-A 151.A08",'151.A08'!F54,IF(Obliczenia!$D$58="Vitocal 15x-A 151.A06",'151.A06'!F54,IF(Obliczenia!$D$58="Vitocal 15x-A 151.A04",'151.A04'!F54,IF(Obliczenia!$D$58="Vitocal 25x-A 251.A08",'251.A08'!F54,IF(Obliczenia!$D$58="Vitocal 25x-A 251.A06",'251.A06'!F54,IF(Obliczenia!$D$58="Vitocal 25x-A 251.A04",'251.A04'!F54,IF(Obliczenia!$D$58="Vitocal 25x-A 251.A16",'251.A16'!F54,IF(Obliczenia!$D$58="Vitocal 25x-A 251.A19",'251.A19'!F54,IF(Obliczenia!$D$58="Carrier 30AWH-P004HP",'AWH-P004'!F54,IF(Obliczenia!$D$58="Carrier 30AWH-P006HP",'AWH-P006'!F54,IF(Obliczenia!$D$58="Carrier 30AWH-P008HP",'AWH-P008'!F54,IF(Obliczenia!$D$58="Carrier 30AWH-P012HP",'AWH-P012T'!F54,IF(Obliczenia!$D$58="Carrier 30AWH-P014HP",'AWH-P014T'!F54,"błąd")))))))))))))))))) -> błąd | BI12: =IF(Obliczenia!$D$58="Vitocal 15x-A 151.A10",'151.A10'!G54,IF(Obliczenia!$D$58="Vitocal 15x-A 151.A13",'151.A13'!G54,IF(Obliczenia!$D$58="Vitocal 15x-A 151.A16",'151.A16'!G54,IF(Obliczenia!$D$58="Vitocal 25x-A 251.A10",'251.A10'!G54,IF(Obliczenia!$D$58="Vitocal 25x-A 251.A13",'251.A13'!G54,IF(Obliczenia!$D$58="Vitocal 15x-A 151.A08",'151.A08'!G54,IF(Obliczenia!$D$58="Vitocal 15x-A 151.A06",'151.A06'!G54,IF(Obliczenia!$D$58="Vitocal 15x-A 151.A04",'151.A04'!G54,IF(Obliczenia!$D$58="Vitocal 25x-A 251.A08",'251.A08'!G54,IF(Obliczenia!$D$58="Vitocal 25x-A 251.A06",'251.A06'!G54,IF(Obliczenia!$D$58="Vitocal 25x-A 251.A04",'251.A04'!G54,IF(Obliczenia!$D$58="Vitocal 25x-A 251.A16",'251.A16'!G54,IF(Obliczenia!$D$58="Vitocal 25x-A 251.A19",'251.A19'!G54,IF(Obliczenia!$D$58="Carrier 30AWH-P004HP",'AWH-P004'!G54,IF(Obliczenia!$D$58="Carrier 30AWH-P006HP",'AWH-P006'!G54,IF(Obliczenia!$D$58="Carrier 30AWH-P008HP",'AWH-P008'!G54,IF(Obliczenia!$D$58="Carrier 30AWH-P012HP",'AWH-P012T'!G54,IF(Obliczenia!$D$58="Carrier 30AWH-P014HP",'AWH-P014T'!G54,"błąd")))))))))))))))))) -> błąd | BJ12: =IF(Obliczenia!$D$58="Vitocal 15x-A 151.A10",'151.A10'!H54,IF(Obliczenia!$D$58="Vitocal 15x-A 151.A13",'151.A13'!H54,IF(Obliczenia!$D$58="Vitocal 15x-A 151.A16",'151.A16'!H54,IF(Obliczenia!$D$58="Vitocal 25x-A 251.A10",'251.A10'!H54,IF(Obliczenia!$D$58="Vitocal 25x-A 251.A13",'251.A13'!H54,IF(Obliczenia!$D$58="Vitocal 15x-A 151.A08",'151.A08'!H54,IF(Obliczenia!$D$58="Vitocal 15x-A 151.A06",'151.A06'!H54,IF(Obliczenia!$D$58="Vitocal 15x-A 151.A04",'151.A04'!H54,IF(Obliczenia!$D$58="Vitocal 25x-A 251.A08",'251.A08'!H54,IF(Obliczenia!$D$58="Vitocal 25x-A 251.A06",'251.A06'!H54,IF(Obliczenia!$D$58="Vitocal 25x-A 251.A04",'251.A04'!H54,IF(Obliczenia!$D$58="Vitocal 25x-A 251.A16",'251.A16'!H54,IF(Obliczenia!$D$58="Vitocal 25x-A 251.A19",'251.A19'!H54,IF(Obliczenia!$D$58="Carrier 30AWH-P004HP",'AWH-P004'!H54,IF(Obliczenia!$D$58="Carrier 30AWH-P006HP",'AWH-P006'!H54,IF(Obliczenia!$D$58="Carrier 30AWH-P008HP",'AWH-P008'!H54,IF(Obliczenia!$D$58="Carrier 30AWH-P012HP",'AWH-P012T'!H54,IF(Obliczenia!$D$58="Carrier 30AWH-P014HP",'AWH-P014T'!H54,"błąd")))))))))))))))))) -> błąd | BK12: =IF(Obliczenia!$D$58="Vitocal 15x-A 151.A10",'151.A10'!I54,IF(Obliczenia!$D$58="Vitocal 15x-A 151.A13",'151.A13'!I54,IF(Obliczenia!$D$58="Vitocal 15x-A 151.A16",'151.A16'!I54,IF(Obliczenia!$D$58="Vitocal 25x-A 251.A10",'251.A10'!I54,IF(Obliczenia!$D$58="Vitocal 25x-A 251.A13",'251.A13'!I54,IF(Obliczenia!$D$58="Vitocal 15x-A 151.A08",'151.A08'!I54,IF(Obliczenia!$D$58="Vitocal 15x-A 151.A06",'151.A06'!I54,IF(Obliczenia!$D$58="Vitocal 15x-A 151.A04",'151.A04'!I54,IF(Obliczenia!$D$58="Vitocal 25x-A 251.A08",'251.A08'!I54,IF(Obliczenia!$D$58="Vitocal 25x-A 251.A06",'251.A06'!I54,IF(Obliczenia!$D$58="Vitocal 25x-A 251.A04",'251.A04'!I54,IF(Obliczenia!$D$58="Vitocal 25x-A 251.A16",'251.A16'!I54,IF(Obliczenia!$D$58="Vitocal 25x-A 251.A19",'251.A19'!I54,IF(Obliczenia!$D$58="Carrier 30AWH-P004HP",'AWH-P004'!I54,IF(Obliczenia!$D$58="Carrier 30AWH-P006HP",'AWH-P006'!I54,IF(Obliczenia!$D$58="Carrier 30AWH-P008HP",'AWH-P008'!I54,IF(Obliczenia!$D$58="Carrier 30AWH-P012HP",'AWH-P012T'!I54,IF(Obliczenia!$D$58="Carrier 30AWH-P014HP",'AWH-P014T'!I54,"błąd")))))))))))))))))) -> błąd | BL12: =IF(Obliczenia!$D$58="Vitocal 15x-A 151.A10",'151.A10'!J54,IF(Obliczenia!$D$58="Vitocal 15x-A 151.A13",'151.A13'!J54,IF(Obliczenia!$D$58="Vitocal 15x-A 151.A16",'151.A16'!J54,IF(Obliczenia!$D$58="Vitocal 25x-A 251.A10",'251.A10'!J54,IF(Obliczenia!$D$58="Vitocal 25x-A 251.A13",'251.A13'!J54,IF(Obliczenia!$D$58="Vitocal 15x-A 151.A08",'151.A08'!J54,IF(Obliczenia!$D$58="Vitocal 15x-A 151.A06",'151.A06'!J54,IF(Obliczenia!$D$58="Vitocal 15x-A 151.A04",'151.A04'!J54,IF(Obliczenia!$D$58="Vitocal 25x-A 251.A08",'251.A08'!J54,IF(Obliczenia!$D$58="Vitocal 25x-A 251.A06",'251.A06'!J54,IF(Obliczenia!$D$58="Vitocal 25x-A 251.A04",'251.A04'!J54,IF(Obliczenia!$D$58="Vitocal 25x-A 251.A16",'251.A16'!J54,IF(Obliczenia!$D$58="Vitocal 25x-A 251.A19",'251.A19'!J54,IF(Obliczenia!$D$58="Carrier 30AWH-P004HP",'AWH-P004'!J54,IF(Obliczenia!$D$58="Carrier 30AWH-P006HP",'AWH-P006'!J54,IF(Obliczenia!$D$58="Carrier 30AWH-P008HP",'AWH-P008'!J54,IF(Obliczenia!$D$58="Carrier 30AWH-P012HP",'AWH-P012T'!J54,IF(Obliczenia!$D$58="Carrier 30AWH-P014HP",'AWH-P014T'!J54,"błąd")))))))))))))))))) -> błąd | BM12: =IF(Obliczenia!$D$58="Vitocal 15x-A 151.A10",'151.A10'!K54,IF(Obliczenia!$D$58="Vitocal 15x-A 151.A13",'151.A13'!K54,IF(Obliczenia!$D$58="Vitocal 15x-A 151.A16",'151.A16'!K54,IF(Obliczenia!$D$58="Vitocal 25x-A 251.A10",'251.A10'!K54,IF(Obliczenia!$D$58="Vitocal 25x-A 251.A13",'251.A13'!K54,IF(Obliczenia!$D$58="Vitocal 15x-A 151.A08",'151.A08'!K54,IF(Obliczenia!$D$58="Vitocal 15x-A 151.A06",'151.A06'!K54,IF(Obliczenia!$D$58="Vitocal 15x-A 151.A04",'151.A04'!K54,IF(Obliczenia!$D$58="Vitocal 25x-A 251.A08",'251.A08'!K54,IF(Obliczenia!$D$58="Vitocal 25x-A 251.A06",'251.A06'!K54,IF(Obliczenia!$D$58="Vitocal 25x-A 251.A04",'251.A04'!K54,IF(Obliczenia!$D$58="Vitocal 25x-A 251.A16",'251.A16'!K54,IF(Obliczenia!$D$58="Vitocal 25x-A 251.A19",'251.A19'!K54,IF(Obliczenia!$D$58="Carrier 30AWH-P004HP",'AWH-P004'!K54,IF(Obliczenia!$D$58="Carrier 30AWH-P006HP",'AWH-P006'!K54,IF(Obliczenia!$D$58="Carrier 30AWH-P008HP",'AWH-P008'!K54,IF(Obliczenia!$D$58="Carrier 30AWH-P012HP",'AWH-P012T'!K54,IF(Obliczenia!$D$58="Carrier 30AWH-P014HP",'AWH-P014T'!K54,"błąd")))))))))))))))))) -> błąd | BN12: =IF(Obliczenia!$D$58="Vitocal 15x-A 151.A10",'151.A10'!L54,IF(Obliczenia!$D$58="Vitocal 15x-A 151.A13",'151.A13'!L54,IF(Obliczenia!$D$58="Vitocal 15x-A 151.A16",'151.A16'!L54,IF(Obliczenia!$D$58="Vitocal 25x-A 251.A10",'251.A10'!L54,IF(Obliczenia!$D$58="Vitocal 25x-A 251.A13",'251.A13'!L54,IF(Obliczenia!$D$58="Vitocal 15x-A 151.A08",'151.A08'!L54,IF(Obliczenia!$D$58="Vitocal 15x-A 151.A06",'151.A06'!L54,IF(Obliczenia!$D$58="Vitocal 15x-A 151.A04",'151.A04'!L54,IF(Obliczenia!$D$58="Vitocal 25x-A 251.A08",'251.A08'!L54,IF(Obliczenia!$D$58="Vitocal 25x-A 251.A06",'251.A06'!L54,IF(Obliczenia!$D$58="Vitocal 25x-A 251.A04",'251.A04'!L54,IF(Obliczenia!$D$58="Vitocal 25x-A 251.A16",'251.A16'!L54,IF(Obliczenia!$D$58="Vitocal 25x-A 251.A19",'251.A19'!L54,IF(Obliczenia!$D$58="Carrier 30AWH-P004HP",'AWH-P004'!L54,IF(Obliczenia!$D$58="Carrier 30AWH-P006HP",'AWH-P006'!L54,IF(Obliczenia!$D$58="Carrier 30AWH-P008HP",'AWH-P008'!L54,IF(Obliczenia!$D$58="Carrier 30AWH-P012HP",'AWH-P012T'!L54,IF(Obliczenia!$D$58="Carrier 30AWH-P014HP",'AWH-P014T'!L54,"błąd")))))))))))))))))) -> błąd | BO12: =IF(Obliczenia!$D$58="Vitocal 15x-A 151.A10",'151.A10'!M54,IF(Obliczenia!$D$58="Vitocal 15x-A 151.A13",'151.A13'!M54,IF(Obliczenia!$D$58="Vitocal 15x-A 151.A16",'151.A16'!M54,IF(Obliczenia!$D$58="Vitocal 25x-A 251.A10",'251.A10'!M54,IF(Obliczenia!$D$58="Vitocal 25x-A 251.A13",'251.A13'!M54,IF(Obliczenia!$D$58="Vitocal 15x-A 151.A08",'151.A08'!M54,IF(Obliczenia!$D$58="Vitocal 15x-A 151.A06",'151.A06'!M54,IF(Obliczenia!$D$58="Vitocal 15x-A 151.A04",'151.A04'!M54,IF(Obliczenia!$D$58="Vitocal 25x-A 251.A08",'251.A08'!M54,IF(Obliczenia!$D$58="Vitocal 25x-A 251.A06",'251.A06'!M54,IF(Obliczenia!$D$58="Vitocal 25x-A 251.A04",'251.A04'!M54,IF(Obliczenia!$D$58="Vitocal 25x-A 251.A16",'251.A16'!M54,IF(Obliczenia!$D$58="Vitocal 25x-A 251.A19",'251.A19'!M54,IF(Obliczenia!$D$58="Carrier 30AWH-P004HP",'AWH-P004'!M54,IF(Obliczenia!$D$58="Carrier 30AWH-P006HP",'AWH-P006'!M54,IF(Obliczenia!$D$58="Carrier 30AWH-P008HP",'AWH-P008'!M54,IF(Obliczenia!$D$58="Carrier 30AWH-P012HP",'AWH-P012T'!M54,IF(Obliczenia!$D$58="Carrier 30AWH-P014HP",'AWH-P014T'!M54,"błąd")))))))))))))))))) -> błąd | BW12: Vitocal 100-S AWB-M-E(-AC) 101.B04 | BX12: ='B04'!B25 -> 26907 | BY12: ='Bilans-B04'!G7 -> 3.24739467 | BZ12: 8285.719086 | CA12: 8285.719086 | CK12: -6.879166667 | CL12: -8.741666667
A13: 8 | B13: 4.3 | C13: 4.3 | E13: 7 | F13: =AVERAGE(C151:C174) -> -6.541666667 | H13: =F13*Budynek!$D$31+Budynek!$D$32 -> 29.953125 | J13: =Budynek!$D$4*(Dane!$E$12-F13)*12/1000 -> 47.775 | L13: =Budynek!$D$4*(Dane!$E$13-F13)*12/1000 -> 42.375 | N13: 90.15 | P13: 90.15 | Q13: 90.15 | R13: 90.15 | S13: 90.15 | T13: 7.11627907 | AA13: =IF(Obliczenia!$D$58="Vitocal 2xx-S 201.E06",'Bilans-E06'!Z13,IF(Obliczenia!$D$58="Vitocal 2xx-S 201.E08",'Bilans-E08'!Z13,IF(Obliczenia!$D$58="Vitocal 2xx-S 201.E10",'Bilans-E10'!Z13,IF(Obliczenia!$D$58="Vitocal 1xx-S 101.B04",'Bilans-B04'!Z13,IF(Obliczenia!$D$58="Vitocal 1xx-S 101.B06",'Bilans-B06'!Z13,IF(Obliczenia!$D$58="Vitocal 1xx-S 101.B08",'Bilans-B08'!Z13,IF(Obliczenia!$D$58="Vitocal 1xx-S 101.A12",'Bilans-A12'!Z13,IF(Obliczenia!$D$58="Vitocal 1xx-S 101.A14",'Bilans-A14'!Z13,IF(Obliczenia!$D$58="Vitocal 1xx-S 101.A16",'Bilans-A16'!Z13,IF(Obliczenia!$D$58="Vitocal 2xx-S 201.D04",'Bilans-D04'!Z13,IF(Obliczenia!$D$58="Vitocal 2xx-S 201.D06",'Bilans-B06'!Z13,IF(Obliczenia!$D$58="Vitocal 2xx-S 201.D08",'Bilans-D08'!Z13,IF(Obliczenia!$D$58="Vitocal 2xx-S 201.D10",'Bilans-D10'!Z13,IF(Obliczenia!$D$58="Vitocal 2xx-S 201.D13",'Bilans-D13'!Z13,IF(Obliczenia!$D$58="Vitocal 2xx-S 201.D16",'Bilans-D16'!Z13,IF(Obliczenia!$D$58="Vitocal 15x-A 151.A10",'Bilans-151-A10'!Z13,IF(Obliczenia!$D$58="Vitocal 15x-A 151.A13",'Bilans-151-A13'!Z13,IF(Obliczenia!$D$58="Vitocal 15x-A 151.A16",'Bilans-151-A16'!Z13,IF(Obliczenia!$D$58="Vitocal 15x-A 151.A16",'Bilans-151-A16'!Z13,IF(Obliczenia!$D$58="Vitocal 25x-A 251.A10",'Bilans-251-A10'!Z13,IF(Obliczenia!$D$58="Vitocal 25x-A 251.A13",'Bilans-251-A13'!Z13,IF(Obliczenia!$D$58="Vitocal 15x-A 151.A06",'Bilans-151-A06'!Z13,IF(Obliczenia!$D$58="Vitocal 15x-A 151.A08",'Bilans-151-A08'!Z13,IF(Obliczenia!$D$58="Vitocal 15x-A 151.A04",'Bilans-151-A04'!Z13,IF(Obliczenia!$D$58="Vitocal 25x-A 251.A04",'Bilans-251-A04'!Z13,IF(Obliczenia!$D$58="Vitocal 25x-A 251.A06",'Bilans-251-A06'!Z13,IF(Obliczenia!$D$58="Vitocal 25x-A 251.A08",'Bilans-251-A08'!Z13,IF(Obliczenia!$D$58="Carrier 30AWH-P006HP",'Bilans-AWH-P006'!Z13,IF(Obliczenia!$D$58="Carrier 30AWH-P008HP",'Bilans-AWH-P008'!Z13,IF(Obliczenia!$D$58="Carrier 30AWH-P004HP",'Bilans-AWH-P004'!Z13,IF(Obliczenia!$D$58="Carrier 30AWH-P012HP",'Bilans-AWH-P012'!Z13,IF(Obliczenia!$D$58="Carrier 30AWH-P014HP",'Bilans-AWH-P014'!Z13,IF(Obliczenia!$D$58="Vitocal 100-A 101.A16",#REF!,IF(Obliczenia!$D$58="Vitocal 100-A 101.A18",#REF!,IF(Obliczenia!$D$58="Vitocal 25x-A 251.A16",'Bilans-251-A16'!Z13,IF(Obliczenia!$D$58="Vitocal 25x-A 251.A19",'Bilans-251-A19'!Z13,"błąd")))))))))))))))))))))))))))))))))))) -> 90.15 | AB13: =IF(Obliczenia!$D$58="Vitocal 2xx-S 201.E06",'Bilans-E06'!AA13,IF(Obliczenia!$D$58="Vitocal 2xx-S 201.E08",'Bilans-E08'!AA13,IF(Obliczenia!$D$58="Vitocal 2xx-S 201.E10",'Bilans-E10'!AA13,IF(Obliczenia!$D$58="Vitocal 1xx-S 101.B04",'Bilans-B04'!AA13,IF(Obliczenia!$D$58="Vitocal 1xx-S 101.B06",'Bilans-B06'!AA13,IF(Obliczenia!$D$58="Vitocal 1xx-S 101.B08",'Bilans-B08'!AA13,IF(Obliczenia!$D$58="Vitocal 1xx-S 101.A12",'Bilans-A12'!AA13,IF(Obliczenia!$D$58="Vitocal 1xx-S 101.A14",'Bilans-A14'!AA13,IF(Obliczenia!$D$58="Vitocal 1xx-S 101.A16",'Bilans-A16'!AA13,IF(Obliczenia!$D$58="Vitocal 2xx-S 201.D04",'Bilans-D04'!AA13,IF(Obliczenia!$D$58="Vitocal 2xx-S 201.D06",'Bilans-B06'!AA13,IF(Obliczenia!$D$58="Vitocal 2xx-S 201.D08",'Bilans-D08'!AA13,IF(Obliczenia!$D$58="Vitocal 2xx-S 201.D10",'Bilans-D10'!AA13,IF(Obliczenia!$D$58="Vitocal 2xx-S 201.D13",'Bilans-D13'!AA13,IF(Obliczenia!$D$58="Vitocal 2xx-S 201.D16",'Bilans-D16'!AA13,IF(Obliczenia!$D$58="Vitocal 15x-A 151.A10",'Bilans-151-A10'!AA13,IF(Obliczenia!$D$58="Vitocal 15x-A 151.A13",'Bilans-151-A13'!AA13,IF(Obliczenia!$D$58="Vitocal 15x-A 151.A16",'Bilans-151-A16'!AA13,IF(Obliczenia!$D$58="Vitocal 15x-A 151.A16",'Bilans-151-A16'!AA13,IF(Obliczenia!$D$58="Vitocal 25x-A 251.A10",'Bilans-251-A10'!AA13,IF(Obliczenia!$D$58="Vitocal 25x-A 251.A13",'Bilans-251-A13'!AA13,IF(Obliczenia!$D$58="Vitocal 15x-A 151.A08",'Bilans-151-A08'!AA13,IF(Obliczenia!$D$58="Vitocal 15x-A 151.A06",'Bilans-151-A06'!AA13,IF(Obliczenia!$D$58="Vitocal 15x-A 151.A04",'Bilans-151-A04'!AA13,IF(Obliczenia!$D$58="Vitocal 25x-A 251.A04",'Bilans-251-A04'!AA13,IF(Obliczenia!$D$58="Vitocal 25x-A 251.A06",'Bilans-251-A06'!AA13,IF(Obliczenia!$D$58="Vitocal 25x-A 251.A08",'Bilans-251-A08'!AA13,IF(Obliczenia!$D$58="Carrier 30AWH-P006HP",'Bilans-AWH-P006'!AA13,IF(Obliczenia!$D$58="Carrier 30AWH-P008HP",'Bilans-AWH-P008'!AA13,IF(Obliczenia!$D$58="Carrier 30AWH-P004HP",'Bilans-AWH-P004'!AA13,IF(Obliczenia!$D$58="Carrier 30AWH-P012HP",'Bilans-AWH-P012'!AA13,IF(Obliczenia!$D$58="Carrier 30AWH-P014HP",'Bilans-AWH-P014'!AA13,IF(Obliczenia!$D$58="Vitocal 100-A 101.A16",#REF!,IF(Obliczenia!$D$58="Vitocal 100-A 101.A18",#REF!,IF(Obliczenia!$D$58="Vitocal 25x-A 251.A16",'Bilans-251-A16'!AA13,IF(Obliczenia!$D$58="Vitocal 25x-A 251.A19",'Bilans-251-A19'!AA13,"błąd")))))))))))))))))))))))))))))))))))) -> 0 | AE13: A16 | AF13: ='A16'!B28 -> 15.4839852 | AG13: 1 | AI13: =IF($C$3="Ogrzewanie podłogowe",AA13,IF($C$3="Grzejniki niskotemperaturowe 55/45",AR13,IF($C$3="Grzejniki wysokotemperaturowe 70/55",AZ13,AV13))) -> 90.15 | AJ13: 0 | AR13: =IF(Obliczenia!$D$58="Vitocal 2xx-S 201.E06",'Bilans-E06'!AR13,IF(Obliczenia!$D$58="Vitocal 2xx-S 201.E08",'Bilans-E08'!AR13,IF(Obliczenia!$D$58="Vitocal 2xx-S 201.E10",'Bilans-E10'!AR13,IF(Obliczenia!$D$58="Vitocal 1xx-S 101.B04",'Bilans-B04'!AR13,IF(Obliczenia!$D$58="Vitocal 1xx-S 101.B06",'Bilans-B06'!AR13,IF(Obliczenia!$D$58="Vitocal 1xx-S 101.B08",'Bilans-B08'!AR13,IF(Obliczenia!$D$58="Vitocal 1xx-S 101.A12",'Bilans-A12'!AR13,IF(Obliczenia!$D$58="Vitocal 1xx-S 101.A14",'Bilans-A14'!AR13,IF(Obliczenia!$D$58="Vitocal 1xx-S 101.A16",'Bilans-A16'!AR13,IF(Obliczenia!$D$58="Vitocal 2xx-S 201.D04",'Bilans-D04'!AR13,IF(Obliczenia!$D$58="Vitocal 2xx-S 201.D06",'Bilans-B06'!AR13,IF(Obliczenia!$D$58="Vitocal 2xx-S 201.D08",'Bilans-D08'!AR13,IF(Obliczenia!$D$58="Vitocal 2xx-S 201.D10",'Bilans-D10'!AR13,IF(Obliczenia!$D$58="Vitocal 2xx-S 201.D13",'Bilans-D13'!AR13,IF(Obliczenia!$D$58="Vitocal 2xx-S 201.D16",'Bilans-D16'!AR13,IF(Obliczenia!$D$58="Vitocal 15x-A 151.A10",'Bilans-151-A10'!AR13,IF(Obliczenia!$D$58="Vitocal 15x-A 151.A13",'Bilans-151-A13'!AR13,IF(Obliczenia!$D$58="Vitocal 15x-A 151.A16",'Bilans-151-A16'!AR13,IF(Obliczenia!$D$58="Vitocal 25x-A 251.A10",'Bilans-251-A10'!AR13,IF(Obliczenia!$D$58="Vitocal 25x-A 251.A13",'Bilans-251-A13'!AR13,IF(Obliczenia!$D$58="Vitocal 15x-A 151.A08",'Bilans-151-A08'!AR13,IF(Obliczenia!$D$58="Vitocal 15x-A 151.A06",'Bilans-151-A06'!AR13,IF(Obliczenia!$D$58="Vitocal 15x-A 151.A04",'Bilans-151-A04'!AR13,IF(Obliczenia!$D$58="Vitocal 25x-A 251.A04",'Bilans-251-A04'!AR13,IF(Obliczenia!$D$58="Vitocal 25x-A 251.A06",'Bilans-251-A06'!AR13,IF(Obliczenia!$D$58="Vitocal 25x-A 251.A08",'Bilans-251-A08'!AR13,IF(Obliczenia!$D$58="Carrier 30AWH-P006HP",'Bilans-AWH-P006'!AR13,IF(Obliczenia!$D$58="Carrier 30AWH-P008HP",'Bilans-AWH-P008'!AR13,IF(Obliczenia!$D$58="Carrier 30AWH-P004HP",'Bilans-AWH-P004'!AR13,IF(Obliczenia!$D$58="Carrier 30AWH-P012HP",'Bilans-AWH-P012'!AR13,IF(Obliczenia!$D$58="Carrier 30AWH-P014HP",'Bilans-AWH-P014'!AR13,IF(Obliczenia!$D$58="Vitocal 100-A 101.A16",#REF!,IF(Obliczenia!$D$58="Vitocal 100-A 101.A18",#REF!,IF(Obliczenia!$D$58="Vitocal 25x-A 251.A16",'Bilans-251-A16'!AR13,IF(Obliczenia!$D$58="Vitocal 25x-A 251.A19",'Bilans-251-A19'!AR13,"błąd"))))))))))))))))))))))))))))))))))) -> 90.15 | AS13: =IF(Obliczenia!$D$58="Vitocal 2xx-S 201.E06",'Bilans-E06'!AS13,IF(Obliczenia!$D$58="Vitocal 2xx-S 201.E08",'Bilans-E08'!AS13,IF(Obliczenia!$D$58="Vitocal 2xx-S 201.E10",'Bilans-E10'!AS13,IF(Obliczenia!$D$58="Vitocal 1xx-S 101.B04",'Bilans-B04'!AS13,IF(Obliczenia!$D$58="Vitocal 1xx-S 101.B06",'Bilans-B06'!AS13,IF(Obliczenia!$D$58="Vitocal 1xx-S 101.B08",'Bilans-B08'!AS13,IF(Obliczenia!$D$58="Vitocal 1xx-S 101.A12",'Bilans-A12'!AS13,IF(Obliczenia!$D$58="Vitocal 1xx-S 101.A14",'Bilans-A14'!AS13,IF(Obliczenia!$D$58="Vitocal 1xx-S 101.A16",'Bilans-A16'!AS13,IF(Obliczenia!$D$58="Vitocal 2xx-S 201.D04",'Bilans-D04'!AS13,IF(Obliczenia!$D$58="Vitocal 2xx-S 201.D06",'Bilans-B06'!AS13,IF(Obliczenia!$D$58="Vitocal 2xx-S 201.D08",'Bilans-D08'!AS13,IF(Obliczenia!$D$58="Vitocal 2xx-S 201.D10",'Bilans-D10'!AS13,IF(Obliczenia!$D$58="Vitocal 2xx-S 201.D13",'Bilans-D13'!AS13,IF(Obliczenia!$D$58="Vitocal 2xx-S 201.D16",'Bilans-D16'!AS13,IF(Obliczenia!$D$58="Vitocal 15x-A 151.A10",'Bilans-151-A10'!AS13,IF(Obliczenia!$D$58="Vitocal 15x-A 151.A13",'Bilans-151-A13'!AS13,IF(Obliczenia!$D$58="Vitocal 15x-A 151.A16",'Bilans-151-A16'!AS13,IF(Obliczenia!$D$58="Vitocal 25x-A 251.A10",'Bilans-251-A10'!AS13,IF(Obliczenia!$D$58="Vitocal 25x-A 251.A13",'Bilans-251-A13'!AS13,IF(Obliczenia!$D$58="Vitocal 15x-A 151.A08",'Bilans-151-A08'!AS13,IF(Obliczenia!$D$58="Vitocal 15x-A 151.A06",'Bilans-151-A06'!AS13,IF(Obliczenia!$D$58="Vitocal 15x-A 151.A04",'Bilans-151-A04'!AS13,IF(Obliczenia!$D$58="Vitocal 25x-A 251.A04",'Bilans-251-A04'!AS13,IF(Obliczenia!$D$58="Vitocal 25x-A 251.A06",'Bilans-251-A06'!AS13,IF(Obliczenia!$D$58="Vitocal 25x-A 251.A08",'Bilans-251-A08'!AS13,IF(Obliczenia!$D$58="Carrier 30AWH-P006HP",'Bilans-AWH-P006'!AS13,IF(Obliczenia!$D$58="Carrier 30AWH-P008HP",'Bilans-AWH-P008'!AS13,IF(Obliczenia!$D$58="Carrier 30AWH-P004HP",'Bilans-AWH-P004'!AS13,IF(Obliczenia!$D$58="Carrier 30AWH-P012HP",'Bilans-AWH-P012'!AS13,IF(Obliczenia!$D$58="Carrier 30AWH-P014HP",'Bilans-AWH-P014'!AS13,IF(Obliczenia!$D$58="Vitocal 100-A 101.A16",#REF!,IF(Obliczenia!$D$58="Vitocal 100-A 101.A18",#REF!,IF(Obliczenia!$D$58="Vitocal 25x-A 251.A16",'Bilans-251-A16'!AS13,IF(Obliczenia!$D$58="Vitocal 25x-A 251.A19",'Bilans-251-A19'!AS13,"błąd"))))))))))))))))))))))))))))))))))) -> 0 | AV13: =IF(Obliczenia!$D$58="Vitocal 2xx-S 201.E06",'Bilans-E06'!BJ13,IF(Obliczenia!$D$58="Vitocal 2xx-S 201.E08",'Bilans-E08'!BJ13,IF(Obliczenia!$D$58="Vitocal 2xx-S 201.E10",'Bilans-E10'!BJ13,IF(Obliczenia!$D$58="Vitocal 1xx-S 101.B04",'Bilans-B04'!BJ13,IF(Obliczenia!$D$58="Vitocal 1xx-S 101.B06",'Bilans-B06'!BJ13,IF(Obliczenia!$D$58="Vitocal 1xx-S 101.B08",'Bilans-B08'!BJ13,IF(Obliczenia!$D$58="Vitocal 1xx-S 101.A12",'Bilans-A12'!BJ13,IF(Obliczenia!$D$58="Vitocal 1xx-S 101.A14",'Bilans-A14'!BJ13,IF(Obliczenia!$D$58="Vitocal 1xx-S 101.A16",'Bilans-A16'!BJ13,IF(Obliczenia!$D$58="Vitocal 2xx-S 201.D04",'Bilans-D04'!BJ13,IF(Obliczenia!$D$58="Vitocal 2xx-S 201.D06",'Bilans-B06'!BJ13,IF(Obliczenia!$D$58="Vitocal 2xx-S 201.D08",'Bilans-D08'!BJ13,IF(Obliczenia!$D$58="Vitocal 2xx-S 201.D10",'Bilans-D10'!BJ13,IF(Obliczenia!$D$58="Vitocal 2xx-S 201.D13",'Bilans-D13'!BJ13,IF(Obliczenia!$D$58="Vitocal 2xx-S 201.D16",'Bilans-D16'!BJ13,IF(Obliczenia!$D$58="Vitocal 15x-A 151.A10",'Bilans-151-A10'!BJ13,IF(Obliczenia!$D$58="Vitocal 15x-A 151.A13",'Bilans-151-A13'!BJ13,IF(Obliczenia!$D$58="Vitocal 15x-A 151.A16",'Bilans-151-A16'!BJ13,IF(Obliczenia!$D$58="Vitocal 25x-A 251.A10",'Bilans-251-A10'!BJ13,IF(Obliczenia!$D$58="Vitocal 25x-A 251.A13",'Bilans-251-A13'!BJ13,IF(Obliczenia!$D$58="Vitocal 15x-A 151.A08",'Bilans-151-A08'!BJ13,IF(Obliczenia!$D$58="Vitocal 15x-A 151.A06",'Bilans-151-A06'!BJ13,IF(Obliczenia!$D$58="Vitocal 15x-A 151.A04",'Bilans-151-A04'!BJ13,IF(Obliczenia!$D$58="Vitocal 25x-A 251.A04",'Bilans-251-A04'!BJ13,IF(Obliczenia!$D$58="Vitocal 25x-A 251.A06",'Bilans-251-A06'!BJ13,IF(Obliczenia!$D$58="Vitocal 25x-A 251.A08",'Bilans-251-A08'!BJ13,IF(Obliczenia!$D$58="Carrier 30AWH-P006HP",'Bilans-AWH-P006'!BJ13,IF(Obliczenia!$D$58="Carrier 30AWH-P008HP",'Bilans-AWH-P008'!BJ13,IF(Obliczenia!$D$58="Carrier 30AWH-P004HP",'Bilans-AWH-P004'!BJ13,IF(Obliczenia!$D$58="Carrier 30AWH-P012HP",'Bilans-AWH-P012'!BJ13,IF(Obliczenia!$D$58="Carrier 30AWH-P014HP",'Bilans-AWH-P014'!BJ13,IF(Obliczenia!$D$58="Vitocal 100-A 101.A16",#REF!,IF(Obliczenia!$D$58="Vitocal 100-A 101.A18",#REF!,IF(Obliczenia!$D$58="Vitocal 25x-A 251.A16",'Bilans-251-A16'!BJ13,IF(Obliczenia!$D$58="Vitocal 25x-A 251.A19",'Bilans-251-A19'!BJ13,"błąd"))))))))))))))))))))))))))))))))))) -> 90.15 | AW13: =IF(Obliczenia!$D$58="Vitocal 2xx-S 201.E06",'Bilans-E06'!BK13,IF(Obliczenia!$D$58="Vitocal 2xx-S 201.E08",'Bilans-E08'!BK13,IF(Obliczenia!$D$58="Vitocal 2xx-S 201.E10",'Bilans-E10'!BK13,IF(Obliczenia!$D$58="Vitocal 1xx-S 101.B04",'Bilans-B04'!BK13,IF(Obliczenia!$D$58="Vitocal 1xx-S 101.B06",'Bilans-B06'!BK13,IF(Obliczenia!$D$58="Vitocal 1xx-S 101.B08",'Bilans-B08'!BK13,IF(Obliczenia!$D$58="Vitocal 1xx-S 101.A12",'Bilans-A12'!BK13,IF(Obliczenia!$D$58="Vitocal 1xx-S 101.A14",'Bilans-A14'!BK13,IF(Obliczenia!$D$58="Vitocal 1xx-S 101.A16",'Bilans-A16'!BK13,IF(Obliczenia!$D$58="Vitocal 2xx-S 201.D04",'Bilans-D04'!BK13,IF(Obliczenia!$D$58="Vitocal 2xx-S 201.D06",'Bilans-B06'!BK13,IF(Obliczenia!$D$58="Vitocal 2xx-S 201.D08",'Bilans-D08'!BK13,IF(Obliczenia!$D$58="Vitocal 2xx-S 201.D10",'Bilans-D10'!BK13,IF(Obliczenia!$D$58="Vitocal 2xx-S 201.D13",'Bilans-D13'!BK13,IF(Obliczenia!$D$58="Vitocal 2xx-S 201.D16",'Bilans-D16'!BK13,IF(Obliczenia!$D$58="Vitocal 15x-A 151.A10",'Bilans-151-A10'!BK13,IF(Obliczenia!$D$58="Vitocal 15x-A 151.A13",'Bilans-151-A13'!BK13,IF(Obliczenia!$D$58="Vitocal 15x-A 151.A16",'Bilans-151-A16'!BK13,IF(Obliczenia!$D$58="Vitocal 25x-A 251.A10",'Bilans-251-A10'!BK13,IF(Obliczenia!$D$58="Vitocal 25x-A 251.A13",'Bilans-251-A13'!BK13,IF(Obliczenia!$D$58="Vitocal 15x-A 151.A08",'Bilans-151-A08'!BK13,IF(Obliczenia!$D$58="Vitocal 15x-A 151.A06",'Bilans-151-A06'!BK13,IF(Obliczenia!$D$58="Vitocal 15x-A 151.A04",'Bilans-151-A04'!BK13,IF(Obliczenia!$D$58="Vitocal 25x-A 251.A04",'Bilans-251-A04'!BK13,IF(Obliczenia!$D$58="Vitocal 25x-A 251.A06",'Bilans-251-A06'!BK13,IF(Obliczenia!$D$58="Vitocal 25x-A 251.A08",'Bilans-251-A08'!BK13,IF(Obliczenia!$D$58="Carrier 30AWH-P006HP",'Bilans-AWH-P006'!BK13,IF(Obliczenia!$D$58="Carrier 30AWH-P008HP",'Bilans-AWH-P008'!BK13,IF(Obliczenia!$D$58="Carrier 30AWH-P004HP",'Bilans-AWH-P004'!BK13,IF(Obliczenia!$D$58="Carrier 30AWH-P012HP",'Bilans-AWH-P012'!BK13,IF(Obliczenia!$D$58="Carrier 30AWH-P014HP",'Bilans-AWH-P014'!BK13,IF(Obliczenia!$D$58="Vitocal 100-A 101.A16",#REF!,IF(Obliczenia!$D$58="Vitocal 100-A 101.A18",#REF!,IF(Obliczenia!$D$58="Vitocal 25x-A 251.A16",'Bilans-251-A16'!BK13,IF(Obliczenia!$D$58="Vitocal 25x-A 251.A19",'Bilans-251-A19'!BK13,"błąd"))))))))))))))))))))))))))))))))))) -> 0 | AZ13: =IF(Obliczenia!$D$58="Vitocal 15x-A 151.A10",'Bilans-151-A10'!CK13,IF(Obliczenia!$D$58="Vitocal 15x-A 151.A13",'Bilans-151-A13'!CK13,IF(Obliczenia!$D$58="Vitocal 15x-A 151.A16",'Bilans-151-A16'!CK13,IF(Obliczenia!$D$58="Vitocal 25x-A 251.A10",'Bilans-251-A10'!CK13,IF(Obliczenia!$D$58="Vitocal 25x-A 251.A13",'Bilans-251-A13'!CK13,IF(Obliczenia!$D$58="Vitocal 15x-A 151.A08",'Bilans-151-A08'!CK13,IF(Obliczenia!$D$58="Vitocal 15x-A 151.A06",'Bilans-151-A06'!CK13,IF(Obliczenia!$D$58="Vitocal 15x-A 151.A04",'Bilans-151-A04'!CK13,IF(Obliczenia!$D$58="Vitocal 25x-A 251.A04",'Bilans-251-A04'!CK13,IF(Obliczenia!$D$58="Vitocal 25x-A 251.A06",'Bilans-251-A06'!CK13,IF(Obliczenia!$D$58="Vitocal 25x-A 251.A08",'Bilans-251-A08'!CK13,IF(Obliczenia!$D$58="Vitocal 25x-A 251.A16",'Bilans-251-A16'!CK13,IF(Obliczenia!$D$58="Vitocal 25x-A 251.A19",'Bilans-251-A19'!CK13,IF(Obliczenia!$D$58="Carrier 30AWH-P004HP",'Bilans-AWH-P004'!CK13,IF(Obliczenia!$D$58="Carrier 30AWH-P006HP",'Bilans-AWH-P006'!CK13,IF(Obliczenia!$D$58="Carrier 30AWH-P008HP",'Bilans-AWH-P008'!CK13,IF(Obliczenia!$D$58="Carrier 30AWH-P012HP",'Bilans-AWH-P012'!CK13,IF(Obliczenia!$D$58="Carrier 30AWH-P014HP",'Bilans-AWH-P014'!CK13,"błąd")))))))))))))))))) -> błąd | BA13: =IF(Obliczenia!$D$58="Vitocal 15x-A 151.A10",'Bilans-151-A10'!CL13,IF(Obliczenia!$D$58="Vitocal 15x-A 151.A13",'Bilans-151-A13'!CL13,IF(Obliczenia!$D$58="Vitocal 15x-A 151.A16",'Bilans-151-A16'!CL13,IF(Obliczenia!$D$58="Vitocal 25x-A 251.A10",'Bilans-251-A10'!CL13,IF(Obliczenia!$D$58="Vitocal 25x-A 251.A13",'Bilans-251-A13'!CL13,IF(Obliczenia!$D$58="Vitocal 15x-A 151.A08",'Bilans-151-A08'!CL13,IF(Obliczenia!$D$58="Vitocal 15x-A 151.A06",'Bilans-151-A06'!CL13,IF(Obliczenia!$D$58="Vitocal 15x-A 151.A04",'Bilans-151-A04'!CL13,IF(Obliczenia!$D$58="Vitocal 25x-A 251.A04",'Bilans-251-A04'!CL13,IF(Obliczenia!$D$58="Vitocal 25x-A 251.A06",'Bilans-251-A06'!CL13,IF(Obliczenia!$D$58="Vitocal 25x-A 251.A08",'Bilans-251-A08'!CL13,IF(Obliczenia!$D$58="Vitocal 25x-A 251.A16",'Bilans-251-A16'!CL13,IF(Obliczenia!$D$58="Vitocal 25x-A 251.A19",'Bilans-251-A19'!CL13,IF(Obliczenia!$D$58="Carrier 30AWH-P004HP",'Bilans-AWH-P004'!CL13,IF(Obliczenia!$D$58="Carrier 30AWH-P006HP",'Bilans-AWH-P006'!CL13,IF(Obliczenia!$D$58="Carrier 30AWH-P008HP",'Bilans-AWH-P008'!CL13,IF(Obliczenia!$D$58="Carrier 30AWH-P012HP",'Bilans-AWH-P012'!CL13,IF(Obliczenia!$D$58="Carrier 30AWH-P014HP",'Bilans-AWH-P014'!CL13,"błąd")))))))))))))))))) -> błąd | BW13: Vitocal 100-S AWB-M-E(-AC) 101.B06 | BX13: ='B06'!B25 -> 28000 | BY13: ='Bilans-B06'!G7 -> 3.184821819 | BZ13: 8791.700632 | CA13: 8791.700632 | CD13: Na budynek | CK13: -6.541666667 | CL13: -7.65
A14: 9 | B14: 4.5 | C14: 4.5 | E14: 8 | F14: =AVERAGE(C175:C198) -> -3.658333333 | H14: =F14*Budynek!$D$31+Budynek!$D$32 -> 28.871875 | J14: =Budynek!$D$4*(Dane!$E$12-F14)*12/1000 -> 42.585 | L14: =Budynek!$D$4*(Dane!$E$13-F14)*12/1000 -> 37.185 | N14: 79.77 | P14: 79.77 | Q14: 79.77 | R14: 79.77 | S14: 79.77 | T14: 7.11627907 | AA14: =IF(Obliczenia!$D$58="Vitocal 2xx-S 201.E06",'Bilans-E06'!Z14,IF(Obliczenia!$D$58="Vitocal 2xx-S 201.E08",'Bilans-E08'!Z14,IF(Obliczenia!$D$58="Vitocal 2xx-S 201.E10",'Bilans-E10'!Z14,IF(Obliczenia!$D$58="Vitocal 1xx-S 101.B04",'Bilans-B04'!Z14,IF(Obliczenia!$D$58="Vitocal 1xx-S 101.B06",'Bilans-B06'!Z14,IF(Obliczenia!$D$58="Vitocal 1xx-S 101.B08",'Bilans-B08'!Z14,IF(Obliczenia!$D$58="Vitocal 1xx-S 101.A12",'Bilans-A12'!Z14,IF(Obliczenia!$D$58="Vitocal 1xx-S 101.A14",'Bilans-A14'!Z14,IF(Obliczenia!$D$58="Vitocal 1xx-S 101.A16",'Bilans-A16'!Z14,IF(Obliczenia!$D$58="Vitocal 2xx-S 201.D04",'Bilans-D04'!Z14,IF(Obliczenia!$D$58="Vitocal 2xx-S 201.D06",'Bilans-B06'!Z14,IF(Obliczenia!$D$58="Vitocal 2xx-S 201.D08",'Bilans-D08'!Z14,IF(Obliczenia!$D$58="Vitocal 2xx-S 201.D10",'Bilans-D10'!Z14,IF(Obliczenia!$D$58="Vitocal 2xx-S 201.D13",'Bilans-D13'!Z14,IF(Obliczenia!$D$58="Vitocal 2xx-S 201.D16",'Bilans-D16'!Z14,IF(Obliczenia!$D$58="Vitocal 15x-A 151.A10",'Bilans-151-A10'!Z14,IF(Obliczenia!$D$58="Vitocal 15x-A 151.A13",'Bilans-151-A13'!Z14,IF(Obliczenia!$D$58="Vitocal 15x-A 151.A16",'Bilans-151-A16'!Z14,IF(Obliczenia!$D$58="Vitocal 15x-A 151.A16",'Bilans-151-A16'!Z14,IF(Obliczenia!$D$58="Vitocal 25x-A 251.A10",'Bilans-251-A10'!Z14,IF(Obliczenia!$D$58="Vitocal 25x-A 251.A13",'Bilans-251-A13'!Z14,IF(Obliczenia!$D$58="Vitocal 15x-A 151.A06",'Bilans-151-A06'!Z14,IF(Obliczenia!$D$58="Vitocal 15x-A 151.A08",'Bilans-151-A08'!Z14,IF(Obliczenia!$D$58="Vitocal 15x-A 151.A04",'Bilans-151-A04'!Z14,IF(Obliczenia!$D$58="Vitocal 25x-A 251.A04",'Bilans-251-A04'!Z14,IF(Obliczenia!$D$58="Vitocal 25x-A 251.A06",'Bilans-251-A06'!Z14,IF(Obliczenia!$D$58="Vitocal 25x-A 251.A08",'Bilans-251-A08'!Z14,IF(Obliczenia!$D$58="Carrier 30AWH-P006HP",'Bilans-AWH-P006'!Z14,IF(Obliczenia!$D$58="Carrier 30AWH-P008HP",'Bilans-AWH-P008'!Z14,IF(Obliczenia!$D$58="Carrier 30AWH-P004HP",'Bilans-AWH-P004'!Z14,IF(Obliczenia!$D$58="Carrier 30AWH-P012HP",'Bilans-AWH-P012'!Z14,IF(Obliczenia!$D$58="Carrier 30AWH-P014HP",'Bilans-AWH-P014'!Z14,IF(Obliczenia!$D$58="Vitocal 100-A 101.A16",#REF!,IF(Obliczenia!$D$58="Vitocal 100-A 101.A18",#REF!,IF(Obliczenia!$D$58="Vitocal 25x-A 251.A16",'Bilans-251-A16'!Z14,IF(Obliczenia!$D$58="Vitocal 25x-A 251.A19",'Bilans-251-A19'!Z14,"błąd")))))))))))))))))))))))))))))))))))) -> 79.77 | AB14: =IF(Obliczenia!$D$58="Vitocal 2xx-S 201.E06",'Bilans-E06'!AA14,IF(Obliczenia!$D$58="Vitocal 2xx-S 201.E08",'Bilans-E08'!AA14,IF(Obliczenia!$D$58="Vitocal 2xx-S 201.E10",'Bilans-E10'!AA14,IF(Obliczenia!$D$58="Vitocal 1xx-S 101.B04",'Bilans-B04'!AA14,IF(Obliczenia!$D$58="Vitocal 1xx-S 101.B06",'Bilans-B06'!AA14,IF(Obliczenia!$D$58="Vitocal 1xx-S 101.B08",'Bilans-B08'!AA14,IF(Obliczenia!$D$58="Vitocal 1xx-S 101.A12",'Bilans-A12'!AA14,IF(Obliczenia!$D$58="Vitocal 1xx-S 101.A14",'Bilans-A14'!AA14,IF(Obliczenia!$D$58="Vitocal 1xx-S 101.A16",'Bilans-A16'!AA14,IF(Obliczenia!$D$58="Vitocal 2xx-S 201.D04",'Bilans-D04'!AA14,IF(Obliczenia!$D$58="Vitocal 2xx-S 201.D06",'Bilans-B06'!AA14,IF(Obliczenia!$D$58="Vitocal 2xx-S 201.D08",'Bilans-D08'!AA14,IF(Obliczenia!$D$58="Vitocal 2xx-S 201.D10",'Bilans-D10'!AA14,IF(Obliczenia!$D$58="Vitocal 2xx-S 201.D13",'Bilans-D13'!AA14,IF(Obliczenia!$D$58="Vitocal 2xx-S 201.D16",'Bilans-D16'!AA14,IF(Obliczenia!$D$58="Vitocal 15x-A 151.A10",'Bilans-151-A10'!AA14,IF(Obliczenia!$D$58="Vitocal 15x-A 151.A13",'Bilans-151-A13'!AA14,IF(Obliczenia!$D$58="Vitocal 15x-A 151.A16",'Bilans-151-A16'!AA14,IF(Obliczenia!$D$58="Vitocal 15x-A 151.A16",'Bilans-151-A16'!AA14,IF(Obliczenia!$D$58="Vitocal 25x-A 251.A10",'Bilans-251-A10'!AA14,IF(Obliczenia!$D$58="Vitocal 25x-A 251.A13",'Bilans-251-A13'!AA14,IF(Obliczenia!$D$58="Vitocal 15x-A 151.A08",'Bilans-151-A08'!AA14,IF(Obliczenia!$D$58="Vitocal 15x-A 151.A06",'Bilans-151-A06'!AA14,IF(Obliczenia!$D$58="Vitocal 15x-A 151.A04",'Bilans-151-A04'!AA14,IF(Obliczenia!$D$58="Vitocal 25x-A 251.A04",'Bilans-251-A04'!AA14,IF(Obliczenia!$D$58="Vitocal 25x-A 251.A06",'Bilans-251-A06'!AA14,IF(Obliczenia!$D$58="Vitocal 25x-A 251.A08",'Bilans-251-A08'!AA14,IF(Obliczenia!$D$58="Carrier 30AWH-P006HP",'Bilans-AWH-P006'!AA14,IF(Obliczenia!$D$58="Carrier 30AWH-P008HP",'Bilans-AWH-P008'!AA14,IF(Obliczenia!$D$58="Carrier 30AWH-P004HP",'Bilans-AWH-P004'!AA14,IF(Obliczenia!$D$58="Carrier 30AWH-P012HP",'Bilans-AWH-P012'!AA14,IF(Obliczenia!$D$58="Carrier 30AWH-P014HP",'Bilans-AWH-P014'!AA14,IF(Obliczenia!$D$58="Vitocal 100-A 101.A16",#REF!,IF(Obliczenia!$D$58="Vitocal 100-A 101.A18",#REF!,IF(Obliczenia!$D$58="Vitocal 25x-A 251.A16",'Bilans-251-A16'!AA14,IF(Obliczenia!$D$58="Vitocal 25x-A 251.A19",'Bilans-251-A19'!AA14,"błąd")))))))))))))))))))))))))))))))))))) -> 0 | AE14: A14 | AF14: ='A14'!B28 -> 15.1411196 | AG14: 1 | AI14: 79.77 | AJ14: 0 | AR14: =IF(Obliczenia!$D$58="Vitocal 2xx-S 201.E06",'Bilans-E06'!AR14,IF(Obliczenia!$D$58="Vitocal 2xx-S 201.E08",'Bilans-E08'!AR14,IF(Obliczenia!$D$58="Vitocal 2xx-S 201.E10",'Bilans-E10'!AR14,IF(Obliczenia!$D$58="Vitocal 1xx-S 101.B04",'Bilans-B04'!AR14,IF(Obliczenia!$D$58="Vitocal 1xx-S 101.B06",'Bilans-B06'!AR14,IF(Obliczenia!$D$58="Vitocal 1xx-S 101.B08",'Bilans-B08'!AR14,IF(Obliczenia!$D$58="Vitocal 1xx-S 101.A12",'Bilans-A12'!AR14,IF(Obliczenia!$D$58="Vitocal 1xx-S 101.A14",'Bilans-A14'!AR14,IF(Obliczenia!$D$58="Vitocal 1xx-S 101.A16",'Bilans-A16'!AR14,IF(Obliczenia!$D$58="Vitocal 2xx-S 201.D04",'Bilans-D04'!AR14,IF(Obliczenia!$D$58="Vitocal 2xx-S 201.D06",'Bilans-B06'!AR14,IF(Obliczenia!$D$58="Vitocal 2xx-S 201.D08",'Bilans-D08'!AR14,IF(Obliczenia!$D$58="Vitocal 2xx-S 201.D10",'Bilans-D10'!AR14,IF(Obliczenia!$D$58="Vitocal 2xx-S 201.D13",'Bilans-D13'!AR14,IF(Obliczenia!$D$58="Vitocal 2xx-S 201.D16",'Bilans-D16'!AR14,IF(Obliczenia!$D$58="Vitocal 15x-A 151.A10",'Bilans-151-A10'!AR14,IF(Obliczenia!$D$58="Vitocal 15x-A 151.A13",'Bilans-151-A13'!AR14,IF(Obliczenia!$D$58="Vitocal 15x-A 151.A16",'Bilans-151-A16'!AR14,IF(Obliczenia!$D$58="Vitocal 25x-A 251.A10",'Bilans-251-A10'!AR14,IF(Obliczenia!$D$58="Vitocal 25x-A 251.A13",'Bilans-251-A13'!AR14,IF(Obliczenia!$D$58="Vitocal 15x-A 151.A08",'Bilans-151-A08'!AR14,IF(Obliczenia!$D$58="Vitocal 15x-A 151.A06",'Bilans-151-A06'!AR14,IF(Obliczenia!$D$58="Vitocal 15x-A 151.A04",'Bilans-151-A04'!AR14,IF(Obliczenia!$D$58="Vitocal 25x-A 251.A04",'Bilans-251-A04'!AR14,IF(Obliczenia!$D$58="Vitocal 25x-A 251.A06",'Bilans-251-A06'!AR14,IF(Obliczenia!$D$58="Vitocal 25x-A 251.A08",'Bilans-251-A08'!AR14,IF(Obliczenia!$D$58="Carrier 30AWH-P006HP",'Bilans-AWH-P006'!AR14,IF(Obliczenia!$D$58="Carrier 30AWH-P008HP",'Bilans-AWH-P008'!AR14,IF(Obliczenia!$D$58="Carrier 30AWH-P004HP",'Bilans-AWH-P004'!AR14,IF(Obliczenia!$D$58="Carrier 30AWH-P012HP",'Bilans-AWH-P012'!AR14,IF(Obliczenia!$D$58="Carrier 30AWH-P014HP",'Bilans-AWH-P014'!AR14,IF(Obliczenia!$D$58="Vitocal 100-A 101.A16",#REF!,IF(Obliczenia!$D$58="Vitocal 100-A 101.A18",#REF!,IF(Obliczenia!$D$58="Vitocal 25x-A 251.A16",'Bilans-251-A16'!AR14,IF(Obliczenia!$D$58="Vitocal 25x-A 251.A19",'Bilans-251-A19'!AR14,"błąd"))))))))))))))))))))))))))))))))))) -> 79.77 | AS14: =IF(Obliczenia!$D$58="Vitocal 2xx-S 201.E06",'Bilans-E06'!AS14,IF(Obliczenia!$D$58="Vitocal 2xx-S 201.E08",'Bilans-E08'!AS14,IF(Obliczenia!$D$58="Vitocal 2xx-S 201.E10",'Bilans-E10'!AS14,IF(Obliczenia!$D$58="Vitocal 1xx-S 101.B04",'Bilans-B04'!AS14,IF(Obliczenia!$D$58="Vitocal 1xx-S 101.B06",'Bilans-B06'!AS14,IF(Obliczenia!$D$58="Vitocal 1xx-S 101.B08",'Bilans-B08'!AS14,IF(Obliczenia!$D$58="Vitocal 1xx-S 101.A12",'Bilans-A12'!AS14,IF(Obliczenia!$D$58="Vitocal 1xx-S 101.A14",'Bilans-A14'!AS14,IF(Obliczenia!$D$58="Vitocal 1xx-S 101.A16",'Bilans-A16'!AS14,IF(Obliczenia!$D$58="Vitocal 2xx-S 201.D04",'Bilans-D04'!AS14,IF(Obliczenia!$D$58="Vitocal 2xx-S 201.D06",'Bilans-B06'!AS14,IF(Obliczenia!$D$58="Vitocal 2xx-S 201.D08",'Bilans-D08'!AS14,IF(Obliczenia!$D$58="Vitocal 2xx-S 201.D10",'Bilans-D10'!AS14,IF(Obliczenia!$D$58="Vitocal 2xx-S 201.D13",'Bilans-D13'!AS14,IF(Obliczenia!$D$58="Vitocal 2xx-S 201.D16",'Bilans-D16'!AS14,IF(Obliczenia!$D$58="Vitocal 15x-A 151.A10",'Bilans-151-A10'!AS14,IF(Obliczenia!$D$58="Vitocal 15x-A 151.A13",'Bilans-151-A13'!AS14,IF(Obliczenia!$D$58="Vitocal 15x-A 151.A16",'Bilans-151-A16'!AS14,IF(Obliczenia!$D$58="Vitocal 25x-A 251.A10",'Bilans-251-A10'!AS14,IF(Obliczenia!$D$58="Vitocal 25x-A 251.A13",'Bilans-251-A13'!AS14,IF(Obliczenia!$D$58="Vitocal 15x-A 151.A08",'Bilans-151-A08'!AS14,IF(Obliczenia!$D$58="Vitocal 15x-A 151.A06",'Bilans-151-A06'!AS14,IF(Obliczenia!$D$58="Vitocal 15x-A 151.A04",'Bilans-151-A04'!AS14,IF(Obliczenia!$D$58="Vitocal 25x-A 251.A04",'Bilans-251-A04'!AS14,IF(Obliczenia!$D$58="Vitocal 25x-A 251.A06",'Bilans-251-A06'!AS14,IF(Obliczenia!$D$58="Vitocal 25x-A 251.A08",'Bilans-251-A08'!AS14,IF(Obliczenia!$D$58="Carrier 30AWH-P006HP",'Bilans-AWH-P006'!AS14,IF(Obliczenia!$D$58="Carrier 30AWH-P008HP",'Bilans-AWH-P008'!AS14,IF(Obliczenia!$D$58="Carrier 30AWH-P004HP",'Bilans-AWH-P004'!AS14,IF(Obliczenia!$D$58="Carrier 30AWH-P012HP",'Bilans-AWH-P012'!AS14,IF(Obliczenia!$D$58="Carrier 30AWH-P014HP",'Bilans-AWH-P014'!AS14,IF(Obliczenia!$D$58="Vitocal 100-A 101.A16",#REF!,IF(Obliczenia!$D$58="Vitocal 100-A 101.A18",#REF!,IF(Obliczenia!$D$58="Vitocal 25x-A 251.A16",'Bilans-251-A16'!AS14,IF(Obliczenia!$D$58="Vitocal 25x-A 251.A19",'Bilans-251-A19'!AS14,"błąd"))))))))))))))))))))))))))))))))))) -> 0 | AV14: =IF(Obliczenia!$D$58="Vitocal 2xx-S 201.E06",'Bilans-E06'!BJ14,IF(Obliczenia!$D$58="Vitocal 2xx-S 201.E08",'Bilans-E08'!BJ14,IF(Obliczenia!$D$58="Vitocal 2xx-S 201.E10",'Bilans-E10'!BJ14,IF(Obliczenia!$D$58="Vitocal 1xx-S 101.B04",'Bilans-B04'!BJ14,IF(Obliczenia!$D$58="Vitocal 1xx-S 101.B06",'Bilans-B06'!BJ14,IF(Obliczenia!$D$58="Vitocal 1xx-S 101.B08",'Bilans-B08'!BJ14,IF(Obliczenia!$D$58="Vitocal 1xx-S 101.A12",'Bilans-A12'!BJ14,IF(Obliczenia!$D$58="Vitocal 1xx-S 101.A14",'Bilans-A14'!BJ14,IF(Obliczenia!$D$58="Vitocal 1xx-S 101.A16",'Bilans-A16'!BJ14,IF(Obliczenia!$D$58="Vitocal 2xx-S 201.D04",'Bilans-D04'!BJ14,IF(Obliczenia!$D$58="Vitocal 2xx-S 201.D06",'Bilans-B06'!BJ14,IF(Obliczenia!$D$58="Vitocal 2xx-S 201.D08",'Bilans-D08'!BJ14,IF(Obliczenia!$D$58="Vitocal 2xx-S 201.D10",'Bilans-D10'!BJ14,IF(Obliczenia!$D$58="Vitocal 2xx-S 201.D13",'Bilans-D13'!BJ14,IF(Obliczenia!$D$58="Vitocal 2xx-S 201.D16",'Bilans-D16'!BJ14,IF(Obliczenia!$D$58="Vitocal 15x-A 151.A10",'Bilans-151-A10'!BJ14,IF(Obliczenia!$D$58="Vitocal 15x-A 151.A13",'Bilans-151-A13'!BJ14,IF(Obliczenia!$D$58="Vitocal 15x-A 151.A16",'Bilans-151-A16'!BJ14,IF(Obliczenia!$D$58="Vitocal 25x-A 251.A10",'Bilans-251-A10'!BJ14,IF(Obliczenia!$D$58="Vitocal 25x-A 251.A13",'Bilans-251-A13'!BJ14,IF(Obliczenia!$D$58="Vitocal 15x-A 151.A08",'Bilans-151-A08'!BJ14,IF(Obliczenia!$D$58="Vitocal 15x-A 151.A06",'Bilans-151-A06'!BJ14,IF(Obliczenia!$D$58="Vitocal 15x-A 151.A04",'Bilans-151-A04'!BJ14,IF(Obliczenia!$D$58="Vitocal 25x-A 251.A04",'Bilans-251-A04'!BJ14,IF(Obliczenia!$D$58="Vitocal 25x-A 251.A06",'Bilans-251-A06'!BJ14,IF(Obliczenia!$D$58="Vitocal 25x-A 251.A08",'Bilans-251-A08'!BJ14,IF(Obliczenia!$D$58="Carrier 30AWH-P006HP",'Bilans-AWH-P006'!BJ14,IF(Obliczenia!$D$58="Carrier 30AWH-P008HP",'Bilans-AWH-P008'!BJ14,IF(Obliczenia!$D$58="Carrier 30AWH-P004HP",'Bilans-AWH-P004'!BJ14,IF(Obliczenia!$D$58="Carrier 30AWH-P012HP",'Bilans-AWH-P012'!BJ14,IF(Obliczenia!$D$58="Carrier 30AWH-P014HP",'Bilans-AWH-P014'!BJ14,IF(Obliczenia!$D$58="Vitocal 100-A 101.A16",#REF!,IF(Obliczenia!$D$58="Vitocal 100-A 101.A18",#REF!,IF(Obliczenia!$D$58="Vitocal 25x-A 251.A16",'Bilans-251-A16'!BJ14,IF(Obliczenia!$D$58="Vitocal 25x-A 251.A19",'Bilans-251-A19'!BJ14,"błąd"))))))))))))))))))))))))))))))))))) -> 79.77 | AW14: =IF(Obliczenia!$D$58="Vitocal 2xx-S 201.E06",'Bilans-E06'!BK14,IF(Obliczenia!$D$58="Vitocal 2xx-S 201.E08",'Bilans-E08'!BK14,IF(Obliczenia!$D$58="Vitocal 2xx-S 201.E10",'Bilans-E10'!BK14,IF(Obliczenia!$D$58="Vitocal 1xx-S 101.B04",'Bilans-B04'!BK14,IF(Obliczenia!$D$58="Vitocal 1xx-S 101.B06",'Bilans-B06'!BK14,IF(Obliczenia!$D$58="Vitocal 1xx-S 101.B08",'Bilans-B08'!BK14,IF(Obliczenia!$D$58="Vitocal 1xx-S 101.A12",'Bilans-A12'!BK14,IF(Obliczenia!$D$58="Vitocal 1xx-S 101.A14",'Bilans-A14'!BK14,IF(Obliczenia!$D$58="Vitocal 1xx-S 101.A16",'Bilans-A16'!BK14,IF(Obliczenia!$D$58="Vitocal 2xx-S 201.D04",'Bilans-D04'!BK14,IF(Obliczenia!$D$58="Vitocal 2xx-S 201.D06",'Bilans-B06'!BK14,IF(Obliczenia!$D$58="Vitocal 2xx-S 201.D08",'Bilans-D08'!BK14,IF(Obliczenia!$D$58="Vitocal 2xx-S 201.D10",'Bilans-D10'!BK14,IF(Obliczenia!$D$58="Vitocal 2xx-S 201.D13",'Bilans-D13'!BK14,IF(Obliczenia!$D$58="Vitocal 2xx-S 201.D16",'Bilans-D16'!BK14,IF(Obliczenia!$D$58="Vitocal 15x-A 151.A10",'Bilans-151-A10'!BK14,IF(Obliczenia!$D$58="Vitocal 15x-A 151.A13",'Bilans-151-A13'!BK14,IF(Obliczenia!$D$58="Vitocal 15x-A 151.A16",'Bilans-151-A16'!BK14,IF(Obliczenia!$D$58="Vitocal 25x-A 251.A10",'Bilans-251-A10'!BK14,IF(Obliczenia!$D$58="Vitocal 25x-A 251.A13",'Bilans-251-A13'!BK14,IF(Obliczenia!$D$58="Vitocal 15x-A 151.A08",'Bilans-151-A08'!BK14,IF(Obliczenia!$D$58="Vitocal 15x-A 151.A06",'Bilans-151-A06'!BK14,IF(Obliczenia!$D$58="Vitocal 15x-A 151.A04",'Bilans-151-A04'!BK14,IF(Obliczenia!$D$58="Vitocal 25x-A 251.A04",'Bilans-251-A04'!BK14,IF(Obliczenia!$D$58="Vitocal 25x-A 251.A06",'Bilans-251-A06'!BK14,IF(Obliczenia!$D$58="Vitocal 25x-A 251.A08",'Bilans-251-A08'!BK14,IF(Obliczenia!$D$58="Carrier 30AWH-P006HP",'Bilans-AWH-P006'!BK14,IF(Obliczenia!$D$58="Carrier 30AWH-P008HP",'Bilans-AWH-P008'!BK14,IF(Obliczenia!$D$58="Carrier 30AWH-P004HP",'Bilans-AWH-P004'!BK14,IF(Obliczenia!$D$58="Carrier 30AWH-P012HP",'Bilans-AWH-P012'!BK14,IF(Obliczenia!$D$58="Carrier 30AWH-P014HP",'Bilans-AWH-P014'!BK14,IF(Obliczenia!$D$58="Vitocal 100-A 101.A16",#REF!,IF(Obliczenia!$D$58="Vitocal 100-A 101.A18",#REF!,IF(Obliczenia!$D$58="Vitocal 25x-A 251.A16",'Bilans-251-A16'!BK14,IF(Obliczenia!$D$58="Vitocal 25x-A 251.A19",'Bilans-251-A19'!BK14,"błąd"))))))))))))))))))))))))))))))))))) -> 0 | AZ14: =IF(Obliczenia!$D$58="Vitocal 15x-A 151.A10",'Bilans-151-A10'!CK14,IF(Obliczenia!$D$58="Vitocal 15x-A 151.A13",'Bilans-151-A13'!CK14,IF(Obliczenia!$D$58="Vitocal 15x-A 151.A16",'Bilans-151-A16'!CK14,IF(Obliczenia!$D$58="Vitocal 25x-A 251.A10",'Bilans-251-A10'!CK14,IF(Obliczenia!$D$58="Vitocal 25x-A 251.A13",'Bilans-251-A13'!CK14,IF(Obliczenia!$D$58="Vitocal 15x-A 151.A08",'Bilans-151-A08'!CK14,IF(Obliczenia!$D$58="Vitocal 15x-A 151.A06",'Bilans-151-A06'!CK14,IF(Obliczenia!$D$58="Vitocal 15x-A 151.A04",'Bilans-151-A04'!CK14,IF(Obliczenia!$D$58="Vitocal 25x-A 251.A04",'Bilans-251-A04'!CK14,IF(Obliczenia!$D$58="Vitocal 25x-A 251.A06",'Bilans-251-A06'!CK14,IF(Obliczenia!$D$58="Vitocal 25x-A 251.A08",'Bilans-251-A08'!CK14,IF(Obliczenia!$D$58="Vitocal 25x-A 251.A16",'Bilans-251-A16'!CK14,IF(Obliczenia!$D$58="Vitocal 25x-A 251.A19",'Bilans-251-A19'!CK14,IF(Obliczenia!$D$58="Carrier 30AWH-P004HP",'Bilans-AWH-P004'!CK14,IF(Obliczenia!$D$58="Carrier 30AWH-P006HP",'Bilans-AWH-P006'!CK14,IF(Obliczenia!$D$58="Carrier 30AWH-P008HP",'Bilans-AWH-P008'!CK14,IF(Obliczenia!$D$58="Carrier 30AWH-P012HP",'Bilans-AWH-P012'!CK14,IF(Obliczenia!$D$58="Carrier 30AWH-P014HP",'Bilans-AWH-P014'!CK14,"błąd")))))))))))))))))) -> błąd | BA14: =IF(Obliczenia!$D$58="Vitocal 15x-A 151.A10",'Bilans-151-A10'!CL14,IF(Obliczenia!$D$58="Vitocal 15x-A 151.A13",'Bilans-151-A13'!CL14,IF(Obliczenia!$D$58="Vitocal 15x-A 151.A16",'Bilans-151-A16'!CL14,IF(Obliczenia!$D$58="Vitocal 25x-A 251.A10",'Bilans-251-A10'!CL14,IF(Obliczenia!$D$58="Vitocal 25x-A 251.A13",'Bilans-251-A13'!CL14,IF(Obliczenia!$D$58="Vitocal 15x-A 151.A08",'Bilans-151-A08'!CL14,IF(Obliczenia!$D$58="Vitocal 15x-A 151.A06",'Bilans-151-A06'!CL14,IF(Obliczenia!$D$58="Vitocal 15x-A 151.A04",'Bilans-151-A04'!CL14,IF(Obliczenia!$D$58="Vitocal 25x-A 251.A04",'Bilans-251-A04'!CL14,IF(Obliczenia!$D$58="Vitocal 25x-A 251.A06",'Bilans-251-A06'!CL14,IF(Obliczenia!$D$58="Vitocal 25x-A 251.A08",'Bilans-251-A08'!CL14,IF(Obliczenia!$D$58="Vitocal 25x-A 251.A16",'Bilans-251-A16'!CL14,IF(Obliczenia!$D$58="Vitocal 25x-A 251.A19",'Bilans-251-A19'!CL14,IF(Obliczenia!$D$58="Carrier 30AWH-P004HP",'Bilans-AWH-P004'!CL14,IF(Obliczenia!$D$58="Carrier 30AWH-P006HP",'Bilans-AWH-P006'!CL14,IF(Obliczenia!$D$58="Carrier 30AWH-P008HP",'Bilans-AWH-P008'!CL14,IF(Obliczenia!$D$58="Carrier 30AWH-P012HP",'Bilans-AWH-P012'!CL14,IF(Obliczenia!$D$58="Carrier 30AWH-P014HP",'Bilans-AWH-P014'!CL14,"błąd")))))))))))))))))) -> błąd | BF14: -20 | BG14: -15 | BH14: -7 | BI14: 2 | BJ14: 7 | BK14: 10 | BL14: 12 | BM14: 15 | BN14: 20 | BO14: 30 | BW14: Vitocal 100-S AWB-M-E(-AC) 101.B08 | BX14: ='B08'!B25 -> 29055 | BY14: ='Bilans-B08'!G7 -> 3.380355921 | BZ14: 8595.248749 | CA14: 8595.248749 | CD14: Węgiel kamienny, ciąg sztuczny | CH14: =(BL25+BL30+BL35)*CH10/1000 -> 4928.74619 | CI14: kg | CK14: -3.658333333 | CL14: -7.383333333
A15: 10 | B15: 4.8 | C15: 4.8 | E15: 9 | F15: =AVERAGE(C199:C222) -> -6.004166667 | H15: =F15*Budynek!$D$31+Budynek!$D$32 -> 29.7515625 | J15: =Budynek!$D$4*(Dane!$E$12-F15)*12/1000 -> 46.8075 | L15: =Budynek!$D$4*(Dane!$E$13-F15)*12/1000 -> 41.4075 | N15: 88.215 | P15: 88.215 | Q15: 88.215 | R15: 88.215 | S15: 88.215 | T15: 7.11627907 | AA15: =IF(Obliczenia!$D$58="Vitocal 2xx-S 201.E06",'Bilans-E06'!Z15,IF(Obliczenia!$D$58="Vitocal 2xx-S 201.E08",'Bilans-E08'!Z15,IF(Obliczenia!$D$58="Vitocal 2xx-S 201.E10",'Bilans-E10'!Z15,IF(Obliczenia!$D$58="Vitocal 1xx-S 101.B04",'Bilans-B04'!Z15,IF(Obliczenia!$D$58="Vitocal 1xx-S 101.B06",'Bilans-B06'!Z15,IF(Obliczenia!$D$58="Vitocal 1xx-S 101.B08",'Bilans-B08'!Z15,IF(Obliczenia!$D$58="Vitocal 1xx-S 101.A12",'Bilans-A12'!Z15,IF(Obliczenia!$D$58="Vitocal 1xx-S 101.A14",'Bilans-A14'!Z15,IF(Obliczenia!$D$58="Vitocal 1xx-S 101.A16",'Bilans-A16'!Z15,IF(Obliczenia!$D$58="Vitocal 2xx-S 201.D04",'Bilans-D04'!Z15,IF(Obliczenia!$D$58="Vitocal 2xx-S 201.D06",'Bilans-B06'!Z15,IF(Obliczenia!$D$58="Vitocal 2xx-S 201.D08",'Bilans-D08'!Z15,IF(Obliczenia!$D$58="Vitocal 2xx-S 201.D10",'Bilans-D10'!Z15,IF(Obliczenia!$D$58="Vitocal 2xx-S 201.D13",'Bilans-D13'!Z15,IF(Obliczenia!$D$58="Vitocal 2xx-S 201.D16",'Bilans-D16'!Z15,IF(Obliczenia!$D$58="Vitocal 15x-A 151.A10",'Bilans-151-A10'!Z15,IF(Obliczenia!$D$58="Vitocal 15x-A 151.A13",'Bilans-151-A13'!Z15,IF(Obliczenia!$D$58="Vitocal 15x-A 151.A16",'Bilans-151-A16'!Z15,IF(Obliczenia!$D$58="Vitocal 15x-A 151.A16",'Bilans-151-A16'!Z15,IF(Obliczenia!$D$58="Vitocal 25x-A 251.A10",'Bilans-251-A10'!Z15,IF(Obliczenia!$D$58="Vitocal 25x-A 251.A13",'Bilans-251-A13'!Z15,IF(Obliczenia!$D$58="Vitocal 15x-A 151.A06",'Bilans-151-A06'!Z15,IF(Obliczenia!$D$58="Vitocal 15x-A 151.A08",'Bilans-151-A08'!Z15,IF(Obliczenia!$D$58="Vitocal 15x-A 151.A04",'Bilans-151-A04'!Z15,IF(Obliczenia!$D$58="Vitocal 25x-A 251.A04",'Bilans-251-A04'!Z15,IF(Obliczenia!$D$58="Vitocal 25x-A 251.A06",'Bilans-251-A06'!Z15,IF(Obliczenia!$D$58="Vitocal 25x-A 251.A08",'Bilans-251-A08'!Z15,IF(Obliczenia!$D$58="Carrier 30AWH-P006HP",'Bilans-AWH-P006'!Z15,IF(Obliczenia!$D$58="Carrier 30AWH-P008HP",'Bilans-AWH-P008'!Z15,IF(Obliczenia!$D$58="Carrier 30AWH-P004HP",'Bilans-AWH-P004'!Z15,IF(Obliczenia!$D$58="Carrier 30AWH-P012HP",'Bilans-AWH-P012'!Z15,IF(Obliczenia!$D$58="Carrier 30AWH-P014HP",'Bilans-AWH-P014'!Z15,IF(Obliczenia!$D$58="Vitocal 100-A 101.A16",#REF!,IF(Obliczenia!$D$58="Vitocal 100-A 101.A18",#REF!,IF(Obliczenia!$D$58="Vitocal 25x-A 251.A16",'Bilans-251-A16'!Z15,IF(Obliczenia!$D$58="Vitocal 25x-A 251.A19",'Bilans-251-A19'!Z15,"błąd")))))))))))))))))))))))))))))))))))) -> 88.215 | AB15: =IF(Obliczenia!$D$58="Vitocal 2xx-S 201.E06",'Bilans-E06'!AA15,IF(Obliczenia!$D$58="Vitocal 2xx-S 201.E08",'Bilans-E08'!AA15,IF(Obliczenia!$D$58="Vitocal 2xx-S 201.E10",'Bilans-E10'!AA15,IF(Obliczenia!$D$58="Vitocal 1xx-S 101.B04",'Bilans-B04'!AA15,IF(Obliczenia!$D$58="Vitocal 1xx-S 101.B06",'Bilans-B06'!AA15,IF(Obliczenia!$D$58="Vitocal 1xx-S 101.B08",'Bilans-B08'!AA15,IF(Obliczenia!$D$58="Vitocal 1xx-S 101.A12",'Bilans-A12'!AA15,IF(Obliczenia!$D$58="Vitocal 1xx-S 101.A14",'Bilans-A14'!AA15,IF(Obliczenia!$D$58="Vitocal 1xx-S 101.A16",'Bilans-A16'!AA15,IF(Obliczenia!$D$58="Vitocal 2xx-S 201.D04",'Bilans-D04'!AA15,IF(Obliczenia!$D$58="Vitocal 2xx-S 201.D06",'Bilans-B06'!AA15,IF(Obliczenia!$D$58="Vitocal 2xx-S 201.D08",'Bilans-D08'!AA15,IF(Obliczenia!$D$58="Vitocal 2xx-S 201.D10",'Bilans-D10'!AA15,IF(Obliczenia!$D$58="Vitocal 2xx-S 201.D13",'Bilans-D13'!AA15,IF(Obliczenia!$D$58="Vitocal 2xx-S 201.D16",'Bilans-D16'!AA15,IF(Obliczenia!$D$58="Vitocal 15x-A 151.A10",'Bilans-151-A10'!AA15,IF(Obliczenia!$D$58="Vitocal 15x-A 151.A13",'Bilans-151-A13'!AA15,IF(Obliczenia!$D$58="Vitocal 15x-A 151.A16",'Bilans-151-A16'!AA15,IF(Obliczenia!$D$58="Vitocal 15x-A 151.A16",'Bilans-151-A16'!AA15,IF(Obliczenia!$D$58="Vitocal 25x-A 251.A10",'Bilans-251-A10'!AA15,IF(Obliczenia!$D$58="Vitocal 25x-A 251.A13",'Bilans-251-A13'!AA15,IF(Obliczenia!$D$58="Vitocal 15x-A 151.A08",'Bilans-151-A08'!AA15,IF(Obliczenia!$D$58="Vitocal 15x-A 151.A06",'Bilans-151-A06'!AA15,IF(Obliczenia!$D$58="Vitocal 15x-A 151.A04",'Bilans-151-A04'!AA15,IF(Obliczenia!$D$58="Vitocal 25x-A 251.A04",'Bilans-251-A04'!AA15,IF(Obliczenia!$D$58="Vitocal 25x-A 251.A06",'Bilans-251-A06'!AA15,IF(Obliczenia!$D$58="Vitocal 25x-A 251.A08",'Bilans-251-A08'!AA15,IF(Obliczenia!$D$58="Carrier 30AWH-P006HP",'Bilans-AWH-P006'!AA15,IF(Obliczenia!$D$58="Carrier 30AWH-P008HP",'Bilans-AWH-P008'!AA15,IF(Obliczenia!$D$58="Carrier 30AWH-P004HP",'Bilans-AWH-P004'!AA15,IF(Obliczenia!$D$58="Carrier 30AWH-P012HP",'Bilans-AWH-P012'!AA15,IF(Obliczenia!$D$58="Carrier 30AWH-P014HP",'Bilans-AWH-P014'!AA15,IF(Obliczenia!$D$58="Vitocal 100-A 101.A16",#REF!,IF(Obliczenia!$D$58="Vitocal 100-A 101.A18",#REF!,IF(Obliczenia!$D$58="Vitocal 25x-A 251.A16",'Bilans-251-A16'!AA15,IF(Obliczenia!$D$58="Vitocal 25x-A 251.A19",'Bilans-251-A19'!AA15,"błąd")))))))))))))))))))))))))))))))))))) -> 0 | AE15: A12 | AF15: ='A12'!B28 -> 14.274038 | AG15: 1 | AI15: 88.215 | AJ15: 0 | AR15: =IF(Obliczenia!$D$58="Vitocal 2xx-S 201.E06",'Bilans-E06'!AR15,IF(Obliczenia!$D$58="Vitocal 2xx-S 201.E08",'Bilans-E08'!AR15,IF(Obliczenia!$D$58="Vitocal 2xx-S 201.E10",'Bilans-E10'!AR15,IF(Obliczenia!$D$58="Vitocal 1xx-S 101.B04",'Bilans-B04'!AR15,IF(Obliczenia!$D$58="Vitocal 1xx-S 101.B06",'Bilans-B06'!AR15,IF(Obliczenia!$D$58="Vitocal 1xx-S 101.B08",'Bilans-B08'!AR15,IF(Obliczenia!$D$58="Vitocal 1xx-S 101.A12",'Bilans-A12'!AR15,IF(Obliczenia!$D$58="Vitocal 1xx-S 101.A14",'Bilans-A14'!AR15,IF(Obliczenia!$D$58="Vitocal 1xx-S 101.A16",'Bilans-A16'!AR15,IF(Obliczenia!$D$58="Vitocal 2xx-S 201.D04",'Bilans-D04'!AR15,IF(Obliczenia!$D$58="Vitocal 2xx-S 201.D06",'Bilans-B06'!AR15,IF(Obliczenia!$D$58="Vitocal 2xx-S 201.D08",'Bilans-D08'!AR15,IF(Obliczenia!$D$58="Vitocal 2xx-S 201.D10",'Bilans-D10'!AR15,IF(Obliczenia!$D$58="Vitocal 2xx-S 201.D13",'Bilans-D13'!AR15,IF(Obliczenia!$D$58="Vitocal 2xx-S 201.D16",'Bilans-D16'!AR15,IF(Obliczenia!$D$58="Vitocal 15x-A 151.A10",'Bilans-151-A10'!AR15,IF(Obliczenia!$D$58="Vitocal 15x-A 151.A13",'Bilans-151-A13'!AR15,IF(Obliczenia!$D$58="Vitocal 15x-A 151.A16",'Bilans-151-A16'!AR15,IF(Obliczenia!$D$58="Vitocal 25x-A 251.A10",'Bilans-251-A10'!AR15,IF(Obliczenia!$D$58="Vitocal 25x-A 251.A13",'Bilans-251-A13'!AR15,IF(Obliczenia!$D$58="Vitocal 15x-A 151.A08",'Bilans-151-A08'!AR15,IF(Obliczenia!$D$58="Vitocal 15x-A 151.A06",'Bilans-151-A06'!AR15,IF(Obliczenia!$D$58="Vitocal 15x-A 151.A04",'Bilans-151-A04'!AR15,IF(Obliczenia!$D$58="Vitocal 25x-A 251.A04",'Bilans-251-A04'!AR15,IF(Obliczenia!$D$58="Vitocal 25x-A 251.A06",'Bilans-251-A06'!AR15,IF(Obliczenia!$D$58="Vitocal 25x-A 251.A08",'Bilans-251-A08'!AR15,IF(Obliczenia!$D$58="Carrier 30AWH-P006HP",'Bilans-AWH-P006'!AR15,IF(Obliczenia!$D$58="Carrier 30AWH-P008HP",'Bilans-AWH-P008'!AR15,IF(Obliczenia!$D$58="Carrier 30AWH-P004HP",'Bilans-AWH-P004'!AR15,IF(Obliczenia!$D$58="Carrier 30AWH-P012HP",'Bilans-AWH-P012'!AR15,IF(Obliczenia!$D$58="Carrier 30AWH-P014HP",'Bilans-AWH-P014'!AR15,IF(Obliczenia!$D$58="Vitocal 100-A 101.A16",#REF!,IF(Obliczenia!$D$58="Vitocal 100-A 101.A18",#REF!,IF(Obliczenia!$D$58="Vitocal 25x-A 251.A16",'Bilans-251-A16'!AR15,IF(Obliczenia!$D$58="Vitocal 25x-A 251.A19",'Bilans-251-A19'!AR15,"błąd"))))))))))))))))))))))))))))))))))) -> 88.215 | AS15: =IF(Obliczenia!$D$58="Vitocal 2xx-S 201.E06",'Bilans-E06'!AS15,IF(Obliczenia!$D$58="Vitocal 2xx-S 201.E08",'Bilans-E08'!AS15,IF(Obliczenia!$D$58="Vitocal 2xx-S 201.E10",'Bilans-E10'!AS15,IF(Obliczenia!$D$58="Vitocal 1xx-S 101.B04",'Bilans-B04'!AS15,IF(Obliczenia!$D$58="Vitocal 1xx-S 101.B06",'Bilans-B06'!AS15,IF(Obliczenia!$D$58="Vitocal 1xx-S 101.B08",'Bilans-B08'!AS15,IF(Obliczenia!$D$58="Vitocal 1xx-S 101.A12",'Bilans-A12'!AS15,IF(Obliczenia!$D$58="Vitocal 1xx-S 101.A14",'Bilans-A14'!AS15,IF(Obliczenia!$D$58="Vitocal 1xx-S 101.A16",'Bilans-A16'!AS15,IF(Obliczenia!$D$58="Vitocal 2xx-S 201.D04",'Bilans-D04'!AS15,IF(Obliczenia!$D$58="Vitocal 2xx-S 201.D06",'Bilans-B06'!AS15,IF(Obliczenia!$D$58="Vitocal 2xx-S 201.D08",'Bilans-D08'!AS15,IF(Obliczenia!$D$58="Vitocal 2xx-S 201.D10",'Bilans-D10'!AS15,IF(Obliczenia!$D$58="Vitocal 2xx-S 201.D13",'Bilans-D13'!AS15,IF(Obliczenia!$D$58="Vitocal 2xx-S 201.D16",'Bilans-D16'!AS15,IF(Obliczenia!$D$58="Vitocal 15x-A 151.A10",'Bilans-151-A10'!AS15,IF(Obliczenia!$D$58="Vitocal 15x-A 151.A13",'Bilans-151-A13'!AS15,IF(Obliczenia!$D$58="Vitocal 15x-A 151.A16",'Bilans-151-A16'!AS15,IF(Obliczenia!$D$58="Vitocal 25x-A 251.A10",'Bilans-251-A10'!AS15,IF(Obliczenia!$D$58="Vitocal 25x-A 251.A13",'Bilans-251-A13'!AS15,IF(Obliczenia!$D$58="Vitocal 15x-A 151.A08",'Bilans-151-A08'!AS15,IF(Obliczenia!$D$58="Vitocal 15x-A 151.A06",'Bilans-151-A06'!AS15,IF(Obliczenia!$D$58="Vitocal 15x-A 151.A04",'Bilans-151-A04'!AS15,IF(Obliczenia!$D$58="Vitocal 25x-A 251.A04",'Bilans-251-A04'!AS15,IF(Obliczenia!$D$58="Vitocal 25x-A 251.A06",'Bilans-251-A06'!AS15,IF(Obliczenia!$D$58="Vitocal 25x-A 251.A08",'Bilans-251-A08'!AS15,IF(Obliczenia!$D$58="Carrier 30AWH-P006HP",'Bilans-AWH-P006'!AS15,IF(Obliczenia!$D$58="Carrier 30AWH-P008HP",'Bilans-AWH-P008'!AS15,IF(Obliczenia!$D$58="Carrier 30AWH-P004HP",'Bilans-AWH-P004'!AS15,IF(Obliczenia!$D$58="Carrier 30AWH-P012HP",'Bilans-AWH-P012'!AS15,IF(Obliczenia!$D$58="Carrier 30AWH-P014HP",'Bilans-AWH-P014'!AS15,IF(Obliczenia!$D$58="Vitocal 100-A 101.A16",#REF!,IF(Obliczenia!$D$58="Vitocal 100-A 101.A18",#REF!,IF(Obliczenia!$D$58="Vitocal 25x-A 251.A16",'Bilans-251-A16'!AS15,IF(Obliczenia!$D$58="Vitocal 25x-A 251.A19",'Bilans-251-A19'!AS15,"błąd"))))))))))))))))))))))))))))))))))) -> 0 | AV15: =IF(Obliczenia!$D$58="Vitocal 2xx-S 201.E06",'Bilans-E06'!BJ15,IF(Obliczenia!$D$58="Vitocal 2xx-S 201.E08",'Bilans-E08'!BJ15,IF(Obliczenia!$D$58="Vitocal 2xx-S 201.E10",'Bilans-E10'!BJ15,IF(Obliczenia!$D$58="Vitocal 1xx-S 101.B04",'Bilans-B04'!BJ15,IF(Obliczenia!$D$58="Vitocal 1xx-S 101.B06",'Bilans-B06'!BJ15,IF(Obliczenia!$D$58="Vitocal 1xx-S 101.B08",'Bilans-B08'!BJ15,IF(Obliczenia!$D$58="Vitocal 1xx-S 101.A12",'Bilans-A12'!BJ15,IF(Obliczenia!$D$58="Vitocal 1xx-S 101.A14",'Bilans-A14'!BJ15,IF(Obliczenia!$D$58="Vitocal 1xx-S 101.A16",'Bilans-A16'!BJ15,IF(Obliczenia!$D$58="Vitocal 2xx-S 201.D04",'Bilans-D04'!BJ15,IF(Obliczenia!$D$58="Vitocal 2xx-S 201.D06",'Bilans-B06'!BJ15,IF(Obliczenia!$D$58="Vitocal 2xx-S 201.D08",'Bilans-D08'!BJ15,IF(Obliczenia!$D$58="Vitocal 2xx-S 201.D10",'Bilans-D10'!BJ15,IF(Obliczenia!$D$58="Vitocal 2xx-S 201.D13",'Bilans-D13'!BJ15,IF(Obliczenia!$D$58="Vitocal 2xx-S 201.D16",'Bilans-D16'!BJ15,IF(Obliczenia!$D$58="Vitocal 15x-A 151.A10",'Bilans-151-A10'!BJ15,IF(Obliczenia!$D$58="Vitocal 15x-A 151.A13",'Bilans-151-A13'!BJ15,IF(Obliczenia!$D$58="Vitocal 15x-A 151.A16",'Bilans-151-A16'!BJ15,IF(Obliczenia!$D$58="Vitocal 25x-A 251.A10",'Bilans-251-A10'!BJ15,IF(Obliczenia!$D$58="Vitocal 25x-A 251.A13",'Bilans-251-A13'!BJ15,IF(Obliczenia!$D$58="Vitocal 15x-A 151.A08",'Bilans-151-A08'!BJ15,IF(Obliczenia!$D$58="Vitocal 15x-A 151.A06",'Bilans-151-A06'!BJ15,IF(Obliczenia!$D$58="Vitocal 15x-A 151.A04",'Bilans-151-A04'!BJ15,IF(Obliczenia!$D$58="Vitocal 25x-A 251.A04",'Bilans-251-A04'!BJ15,IF(Obliczenia!$D$58="Vitocal 25x-A 251.A06",'Bilans-251-A06'!BJ15,IF(Obliczenia!$D$58="Vitocal 25x-A 251.A08",'Bilans-251-A08'!BJ15,IF(Obliczenia!$D$58="Carrier 30AWH-P006HP",'Bilans-AWH-P006'!BJ15,IF(Obliczenia!$D$58="Carrier 30AWH-P008HP",'Bilans-AWH-P008'!BJ15,IF(Obliczenia!$D$58="Carrier 30AWH-P004HP",'Bilans-AWH-P004'!BJ15,IF(Obliczenia!$D$58="Carrier 30AWH-P012HP",'Bilans-AWH-P012'!BJ15,IF(Obliczenia!$D$58="Carrier 30AWH-P014HP",'Bilans-AWH-P014'!BJ15,IF(Obliczenia!$D$58="Vitocal 100-A 101.A16",#REF!,IF(Obliczenia!$D$58="Vitocal 100-A 101.A18",#REF!,IF(Obliczenia!$D$58="Vitocal 25x-A 251.A16",'Bilans-251-A16'!BJ15,IF(Obliczenia!$D$58="Vitocal 25x-A 251.A19",'Bilans-251-A19'!BJ15,"błąd"))))))))))))))))))))))))))))))))))) -> 88.215 | AW15: =IF(Obliczenia!$D$58="Vitocal 2xx-S 201.E06",'Bilans-E06'!BK15,IF(Obliczenia!$D$58="Vitocal 2xx-S 201.E08",'Bilans-E08'!BK15,IF(Obliczenia!$D$58="Vitocal 2xx-S 201.E10",'Bilans-E10'!BK15,IF(Obliczenia!$D$58="Vitocal 1xx-S 101.B04",'Bilans-B04'!BK15,IF(Obliczenia!$D$58="Vitocal 1xx-S 101.B06",'Bilans-B06'!BK15,IF(Obliczenia!$D$58="Vitocal 1xx-S 101.B08",'Bilans-B08'!BK15,IF(Obliczenia!$D$58="Vitocal 1xx-S 101.A12",'Bilans-A12'!BK15,IF(Obliczenia!$D$58="Vitocal 1xx-S 101.A14",'Bilans-A14'!BK15,IF(Obliczenia!$D$58="Vitocal 1xx-S 101.A16",'Bilans-A16'!BK15,IF(Obliczenia!$D$58="Vitocal 2xx-S 201.D04",'Bilans-D04'!BK15,IF(Obliczenia!$D$58="Vitocal 2xx-S 201.D06",'Bilans-B06'!BK15,IF(Obliczenia!$D$58="Vitocal 2xx-S 201.D08",'Bilans-D08'!BK15,IF(Obliczenia!$D$58="Vitocal 2xx-S 201.D10",'Bilans-D10'!BK15,IF(Obliczenia!$D$58="Vitocal 2xx-S 201.D13",'Bilans-D13'!BK15,IF(Obliczenia!$D$58="Vitocal 2xx-S 201.D16",'Bilans-D16'!BK15,IF(Obliczenia!$D$58="Vitocal 15x-A 151.A10",'Bilans-151-A10'!BK15,IF(Obliczenia!$D$58="Vitocal 15x-A 151.A13",'Bilans-151-A13'!BK15,IF(Obliczenia!$D$58="Vitocal 15x-A 151.A16",'Bilans-151-A16'!BK15,IF(Obliczenia!$D$58="Vitocal 25x-A 251.A10",'Bilans-251-A10'!BK15,IF(Obliczenia!$D$58="Vitocal 25x-A 251.A13",'Bilans-251-A13'!BK15,IF(Obliczenia!$D$58="Vitocal 15x-A 151.A08",'Bilans-151-A08'!BK15,IF(Obliczenia!$D$58="Vitocal 15x-A 151.A06",'Bilans-151-A06'!BK15,IF(Obliczenia!$D$58="Vitocal 15x-A 151.A04",'Bilans-151-A04'!BK15,IF(Obliczenia!$D$58="Vitocal 25x-A 251.A04",'Bilans-251-A04'!BK15,IF(Obliczenia!$D$58="Vitocal 25x-A 251.A06",'Bilans-251-A06'!BK15,IF(Obliczenia!$D$58="Vitocal 25x-A 251.A08",'Bilans-251-A08'!BK15,IF(Obliczenia!$D$58="Carrier 30AWH-P006HP",'Bilans-AWH-P006'!BK15,IF(Obliczenia!$D$58="Carrier 30AWH-P008HP",'Bilans-AWH-P008'!BK15,IF(Obliczenia!$D$58="Carrier 30AWH-P004HP",'Bilans-AWH-P004'!BK15,IF(Obliczenia!$D$58="Carrier 30AWH-P012HP",'Bilans-AWH-P012'!BK15,IF(Obliczenia!$D$58="Carrier 30AWH-P014HP",'Bilans-AWH-P014'!BK15,IF(Obliczenia!$D$58="Vitocal 100-A 101.A16",#REF!,IF(Obliczenia!$D$58="Vitocal 100-A 101.A18",#REF!,IF(Obliczenia!$D$58="Vitocal 25x-A 251.A16",'Bilans-251-A16'!BK15,IF(Obliczenia!$D$58="Vitocal 25x-A 251.A19",'Bilans-251-A19'!BK15,"błąd"))))))))))))))))))))))))))))))))))) -> 0 | AZ15: =IF(Obliczenia!$D$58="Vitocal 15x-A 151.A10",'Bilans-151-A10'!CK15,IF(Obliczenia!$D$58="Vitocal 15x-A 151.A13",'Bilans-151-A13'!CK15,IF(Obliczenia!$D$58="Vitocal 15x-A 151.A16",'Bilans-151-A16'!CK15,IF(Obliczenia!$D$58="Vitocal 25x-A 251.A10",'Bilans-251-A10'!CK15,IF(Obliczenia!$D$58="Vitocal 25x-A 251.A13",'Bilans-251-A13'!CK15,IF(Obliczenia!$D$58="Vitocal 15x-A 151.A08",'Bilans-151-A08'!CK15,IF(Obliczenia!$D$58="Vitocal 15x-A 151.A06",'Bilans-151-A06'!CK15,IF(Obliczenia!$D$58="Vitocal 15x-A 151.A04",'Bilans-151-A04'!CK15,IF(Obliczenia!$D$58="Vitocal 25x-A 251.A04",'Bilans-251-A04'!CK15,IF(Obliczenia!$D$58="Vitocal 25x-A 251.A06",'Bilans-251-A06'!CK15,IF(Obliczenia!$D$58="Vitocal 25x-A 251.A08",'Bilans-251-A08'!CK15,IF(Obliczenia!$D$58="Vitocal 25x-A 251.A16",'Bilans-251-A16'!CK15,IF(Obliczenia!$D$58="Vitocal 25x-A 251.A19",'Bilans-251-A19'!CK15,IF(Obliczenia!$D$58="Carrier 30AWH-P004HP",'Bilans-AWH-P004'!CK15,IF(Obliczenia!$D$58="Carrier 30AWH-P006HP",'Bilans-AWH-P006'!CK15,IF(Obliczenia!$D$58="Carrier 30AWH-P008HP",'Bilans-AWH-P008'!CK15,IF(Obliczenia!$D$58="Carrier 30AWH-P012HP",'Bilans-AWH-P012'!CK15,IF(Obliczenia!$D$58="Carrier 30AWH-P014HP",'Bilans-AWH-P014'!CK15,"błąd")))))))))))))))))) -> błąd | BA15: =IF(Obliczenia!$D$58="Vitocal 15x-A 151.A10",'Bilans-151-A10'!CL15,IF(Obliczenia!$D$58="Vitocal 15x-A 151.A13",'Bilans-151-A13'!CL15,IF(Obliczenia!$D$58="Vitocal 15x-A 151.A16",'Bilans-151-A16'!CL15,IF(Obliczenia!$D$58="Vitocal 25x-A 251.A10",'Bilans-251-A10'!CL15,IF(Obliczenia!$D$58="Vitocal 25x-A 251.A13",'Bilans-251-A13'!CL15,IF(Obliczenia!$D$58="Vitocal 15x-A 151.A08",'Bilans-151-A08'!CL15,IF(Obliczenia!$D$58="Vitocal 15x-A 151.A06",'Bilans-151-A06'!CL15,IF(Obliczenia!$D$58="Vitocal 15x-A 151.A04",'Bilans-151-A04'!CL15,IF(Obliczenia!$D$58="Vitocal 25x-A 251.A04",'Bilans-251-A04'!CL15,IF(Obliczenia!$D$58="Vitocal 25x-A 251.A06",'Bilans-251-A06'!CL15,IF(Obliczenia!$D$58="Vitocal 25x-A 251.A08",'Bilans-251-A08'!CL15,IF(Obliczenia!$D$58="Vitocal 25x-A 251.A16",'Bilans-251-A16'!CL15,IF(Obliczenia!$D$58="Vitocal 25x-A 251.A19",'Bilans-251-A19'!CL15,IF(Obliczenia!$D$58="Carrier 30AWH-P004HP",'Bilans-AWH-P004'!CL15,IF(Obliczenia!$D$58="Carrier 30AWH-P006HP",'Bilans-AWH-P006'!CL15,IF(Obliczenia!$D$58="Carrier 30AWH-P008HP",'Bilans-AWH-P008'!CL15,IF(Obliczenia!$D$58="Carrier 30AWH-P012HP",'Bilans-AWH-P012'!CL15,IF(Obliczenia!$D$58="Carrier 30AWH-P014HP",'Bilans-AWH-P014'!CL15,"błąd")))))))))))))))))) -> błąd | BD15: Moc budynku | BF15: =ROUND(BF6,2) -> 6 | BG15: =ROUND(BG6,2) -> 5.25 | BH15: 4.05 | BI15: 2.7 | BJ15: 1.95 | BK15: 1.5 | BL15: 1.2 | BM15: 0.75 | BW15: Vitocal 100-S AWB-E(-AC) 101.A12 | BX15: ='A12'!B25 -> 35204 | BY15: ='Bilans-A12'!G7 -> 3.209477689 | BZ15: 10968.76296 | CA15: 10968.76296 | CD15: Energia elektryczna (Łęg Kraków) | CH15: =(BL27+BL32+BL35)*CH11/1000 -> 3438.200151 | CI15: kg | CK15: -6.004166667 | CL15: -7.1625
A16: 11 | B16: 5 | C16: 5 | E16: 10 | F16: =AVERAGE(C223:C246) -> -0.4166666667 | H16: =F16*Budynek!$D$31+Budynek!$D$32 -> 27.65625 | J16: =Budynek!$D$4*(Dane!$E$12-F16)*12/1000 -> 36.75 | L16: =Budynek!$D$4*(Dane!$E$13-F16)*12/1000 -> 31.35 | N16: 68.1 | P16: 68.1 | Q16: 68.1 | R16: 68.1 | S16: 68.1 | T16: 7.11627907 | AA16: =IF(Obliczenia!$D$58="Vitocal 2xx-S 201.E06",'Bilans-E06'!Z16,IF(Obliczenia!$D$58="Vitocal 2xx-S 201.E08",'Bilans-E08'!Z16,IF(Obliczenia!$D$58="Vitocal 2xx-S 201.E10",'Bilans-E10'!Z16,IF(Obliczenia!$D$58="Vitocal 1xx-S 101.B04",'Bilans-B04'!Z16,IF(Obliczenia!$D$58="Vitocal 1xx-S 101.B06",'Bilans-B06'!Z16,IF(Obliczenia!$D$58="Vitocal 1xx-S 101.B08",'Bilans-B08'!Z16,IF(Obliczenia!$D$58="Vitocal 1xx-S 101.A12",'Bilans-A12'!Z16,IF(Obliczenia!$D$58="Vitocal 1xx-S 101.A14",'Bilans-A14'!Z16,IF(Obliczenia!$D$58="Vitocal 1xx-S 101.A16",'Bilans-A16'!Z16,IF(Obliczenia!$D$58="Vitocal 2xx-S 201.D04",'Bilans-D04'!Z16,IF(Obliczenia!$D$58="Vitocal 2xx-S 201.D06",'Bilans-B06'!Z16,IF(Obliczenia!$D$58="Vitocal 2xx-S 201.D08",'Bilans-D08'!Z16,IF(Obliczenia!$D$58="Vitocal 2xx-S 201.D10",'Bilans-D10'!Z16,IF(Obliczenia!$D$58="Vitocal 2xx-S 201.D13",'Bilans-D13'!Z16,IF(Obliczenia!$D$58="Vitocal 2xx-S 201.D16",'Bilans-D16'!Z16,IF(Obliczenia!$D$58="Vitocal 15x-A 151.A10",'Bilans-151-A10'!Z16,IF(Obliczenia!$D$58="Vitocal 15x-A 151.A13",'Bilans-151-A13'!Z16,IF(Obliczenia!$D$58="Vitocal 15x-A 151.A16",'Bilans-151-A16'!Z16,IF(Obliczenia!$D$58="Vitocal 15x-A 151.A16",'Bilans-151-A16'!Z16,IF(Obliczenia!$D$58="Vitocal 25x-A 251.A10",'Bilans-251-A10'!Z16,IF(Obliczenia!$D$58="Vitocal 25x-A 251.A13",'Bilans-251-A13'!Z16,IF(Obliczenia!$D$58="Vitocal 15x-A 151.A06",'Bilans-151-A06'!Z16,IF(Obliczenia!$D$58="Vitocal 15x-A 151.A08",'Bilans-151-A08'!Z16,IF(Obliczenia!$D$58="Vitocal 15x-A 151.A04",'Bilans-151-A04'!Z16,IF(Obliczenia!$D$58="Vitocal 25x-A 251.A04",'Bilans-251-A04'!Z16,IF(Obliczenia!$D$58="Vitocal 25x-A 251.A06",'Bilans-251-A06'!Z16,IF(Obliczenia!$D$58="Vitocal 25x-A 251.A08",'Bilans-251-A08'!Z16,IF(Obliczenia!$D$58="Carrier 30AWH-P006HP",'Bilans-AWH-P006'!Z16,IF(Obliczenia!$D$58="Carrier 30AWH-P008HP",'Bilans-AWH-P008'!Z16,IF(Obliczenia!$D$58="Carrier 30AWH-P004HP",'Bilans-AWH-P004'!Z16,IF(Obliczenia!$D$58="Carrier 30AWH-P012HP",'Bilans-AWH-P012'!Z16,IF(Obliczenia!$D$58="Carrier 30AWH-P014HP",'Bilans-AWH-P014'!Z16,IF(Obliczenia!$D$58="Vitocal 100-A 101.A16",#REF!,IF(Obliczenia!$D$58="Vitocal 100-A 101.A18",#REF!,IF(Obliczenia!$D$58="Vitocal 25x-A 251.A16",'Bilans-251-A16'!Z16,IF(Obliczenia!$D$58="Vitocal 25x-A 251.A19",'Bilans-251-A19'!Z16,"błąd")))))))))))))))))))))))))))))))))))) -> 68.1 | AB16: =IF(Obliczenia!$D$58="Vitocal 2xx-S 201.E06",'Bilans-E06'!AA16,IF(Obliczenia!$D$58="Vitocal 2xx-S 201.E08",'Bilans-E08'!AA16,IF(Obliczenia!$D$58="Vitocal 2xx-S 201.E10",'Bilans-E10'!AA16,IF(Obliczenia!$D$58="Vitocal 1xx-S 101.B04",'Bilans-B04'!AA16,IF(Obliczenia!$D$58="Vitocal 1xx-S 101.B06",'Bilans-B06'!AA16,IF(Obliczenia!$D$58="Vitocal 1xx-S 101.B08",'Bilans-B08'!AA16,IF(Obliczenia!$D$58="Vitocal 1xx-S 101.A12",'Bilans-A12'!AA16,IF(Obliczenia!$D$58="Vitocal 1xx-S 101.A14",'Bilans-A14'!AA16,IF(Obliczenia!$D$58="Vitocal 1xx-S 101.A16",'Bilans-A16'!AA16,IF(Obliczenia!$D$58="Vitocal 2xx-S 201.D04",'Bilans-D04'!AA16,IF(Obliczenia!$D$58="Vitocal 2xx-S 201.D06",'Bilans-B06'!AA16,IF(Obliczenia!$D$58="Vitocal 2xx-S 201.D08",'Bilans-D08'!AA16,IF(Obliczenia!$D$58="Vitocal 2xx-S 201.D10",'Bilans-D10'!AA16,IF(Obliczenia!$D$58="Vitocal 2xx-S 201.D13",'Bilans-D13'!AA16,IF(Obliczenia!$D$58="Vitocal 2xx-S 201.D16",'Bilans-D16'!AA16,IF(Obliczenia!$D$58="Vitocal 15x-A 151.A10",'Bilans-151-A10'!AA16,IF(Obliczenia!$D$58="Vitocal 15x-A 151.A13",'Bilans-151-A13'!AA16,IF(Obliczenia!$D$58="Vitocal 15x-A 151.A16",'Bilans-151-A16'!AA16,IF(Obliczenia!$D$58="Vitocal 15x-A 151.A16",'Bilans-151-A16'!AA16,IF(Obliczenia!$D$58="Vitocal 25x-A 251.A10",'Bilans-251-A10'!AA16,IF(Obliczenia!$D$58="Vitocal 25x-A 251.A13",'Bilans-251-A13'!AA16,IF(Obliczenia!$D$58="Vitocal 15x-A 151.A08",'Bilans-151-A08'!AA16,IF(Obliczenia!$D$58="Vitocal 15x-A 151.A06",'Bilans-151-A06'!AA16,IF(Obliczenia!$D$58="Vitocal 15x-A 151.A04",'Bilans-151-A04'!AA16,IF(Obliczenia!$D$58="Vitocal 25x-A 251.A04",'Bilans-251-A04'!AA16,IF(Obliczenia!$D$58="Vitocal 25x-A 251.A06",'Bilans-251-A06'!AA16,IF(Obliczenia!$D$58="Vitocal 25x-A 251.A08",'Bilans-251-A08'!AA16,IF(Obliczenia!$D$58="Carrier 30AWH-P006HP",'Bilans-AWH-P006'!AA16,IF(Obliczenia!$D$58="Carrier 30AWH-P008HP",'Bilans-AWH-P008'!AA16,IF(Obliczenia!$D$58="Carrier 30AWH-P004HP",'Bilans-AWH-P004'!AA16,IF(Obliczenia!$D$58="Carrier 30AWH-P012HP",'Bilans-AWH-P012'!AA16,IF(Obliczenia!$D$58="Carrier 30AWH-P014HP",'Bilans-AWH-P014'!AA16,IF(Obliczenia!$D$58="Vitocal 100-A 101.A16",#REF!,IF(Obliczenia!$D$58="Vitocal 100-A 101.A18",#REF!,IF(Obliczenia!$D$58="Vitocal 25x-A 251.A16",'Bilans-251-A16'!AA16,IF(Obliczenia!$D$58="Vitocal 25x-A 251.A19",'Bilans-251-A19'!AA16,"błąd")))))))))))))))))))))))))))))))))))) -> 0 | AE16: B08 | AF16: ='B08'!B28 -> 10.98 | AG16: 1 | AI16: 68.1 | AJ16: 0 | AR16: =IF(Obliczenia!$D$58="Vitocal 2xx-S 201.E06",'Bilans-E06'!AR16,IF(Obliczenia!$D$58="Vitocal 2xx-S 201.E08",'Bilans-E08'!AR16,IF(Obliczenia!$D$58="Vitocal 2xx-S 201.E10",'Bilans-E10'!AR16,IF(Obliczenia!$D$58="Vitocal 1xx-S 101.B04",'Bilans-B04'!AR16,IF(Obliczenia!$D$58="Vitocal 1xx-S 101.B06",'Bilans-B06'!AR16,IF(Obliczenia!$D$58="Vitocal 1xx-S 101.B08",'Bilans-B08'!AR16,IF(Obliczenia!$D$58="Vitocal 1xx-S 101.A12",'Bilans-A12'!AR16,IF(Obliczenia!$D$58="Vitocal 1xx-S 101.A14",'Bilans-A14'!AR16,IF(Obliczenia!$D$58="Vitocal 1xx-S 101.A16",'Bilans-A16'!AR16,IF(Obliczenia!$D$58="Vitocal 2xx-S 201.D04",'Bilans-D04'!AR16,IF(Obliczenia!$D$58="Vitocal 2xx-S 201.D06",'Bilans-B06'!AR16,IF(Obliczenia!$D$58="Vitocal 2xx-S 201.D08",'Bilans-D08'!AR16,IF(Obliczenia!$D$58="Vitocal 2xx-S 201.D10",'Bilans-D10'!AR16,IF(Obliczenia!$D$58="Vitocal 2xx-S 201.D13",'Bilans-D13'!AR16,IF(Obliczenia!$D$58="Vitocal 2xx-S 201.D16",'Bilans-D16'!AR16,IF(Obliczenia!$D$58="Vitocal 15x-A 151.A10",'Bilans-151-A10'!AR16,IF(Obliczenia!$D$58="Vitocal 15x-A 151.A13",'Bilans-151-A13'!AR16,IF(Obliczenia!$D$58="Vitocal 15x-A 151.A16",'Bilans-151-A16'!AR16,IF(Obliczenia!$D$58="Vitocal 25x-A 251.A10",'Bilans-251-A10'!AR16,IF(Obliczenia!$D$58="Vitocal 25x-A 251.A13",'Bilans-251-A13'!AR16,IF(Obliczenia!$D$58="Vitocal 15x-A 151.A08",'Bilans-151-A08'!AR16,IF(Obliczenia!$D$58="Vitocal 15x-A 151.A06",'Bilans-151-A06'!AR16,IF(Obliczenia!$D$58="Vitocal 15x-A 151.A04",'Bilans-151-A04'!AR16,IF(Obliczenia!$D$58="Vitocal 25x-A 251.A04",'Bilans-251-A04'!AR16,IF(Obliczenia!$D$58="Vitocal 25x-A 251.A06",'Bilans-251-A06'!AR16,IF(Obliczenia!$D$58="Vitocal 25x-A 251.A08",'Bilans-251-A08'!AR16,IF(Obliczenia!$D$58="Carrier 30AWH-P006HP",'Bilans-AWH-P006'!AR16,IF(Obliczenia!$D$58="Carrier 30AWH-P008HP",'Bilans-AWH-P008'!AR16,IF(Obliczenia!$D$58="Carrier 30AWH-P004HP",'Bilans-AWH-P004'!AR16,IF(Obliczenia!$D$58="Carrier 30AWH-P012HP",'Bilans-AWH-P012'!AR16,IF(Obliczenia!$D$58="Carrier 30AWH-P014HP",'Bilans-AWH-P014'!AR16,IF(Obliczenia!$D$58="Vitocal 100-A 101.A16",#REF!,IF(Obliczenia!$D$58="Vitocal 100-A 101.A18",#REF!,IF(Obliczenia!$D$58="Vitocal 25x-A 251.A16",'Bilans-251-A16'!AR16,IF(Obliczenia!$D$58="Vitocal 25x-A 251.A19",'Bilans-251-A19'!AR16,"błąd"))))))))))))))))))))))))))))))))))) -> 68.1 | AS16: =IF(Obliczenia!$D$58="Vitocal 2xx-S 201.E06",'Bilans-E06'!AS16,IF(Obliczenia!$D$58="Vitocal 2xx-S 201.E08",'Bilans-E08'!AS16,IF(Obliczenia!$D$58="Vitocal 2xx-S 201.E10",'Bilans-E10'!AS16,IF(Obliczenia!$D$58="Vitocal 1xx-S 101.B04",'Bilans-B04'!AS16,IF(Obliczenia!$D$58="Vitocal 1xx-S 101.B06",'Bilans-B06'!AS16,IF(Obliczenia!$D$58="Vitocal 1xx-S 101.B08",'Bilans-B08'!AS16,IF(Obliczenia!$D$58="Vitocal 1xx-S 101.A12",'Bilans-A12'!AS16,IF(Obliczenia!$D$58="Vitocal 1xx-S 101.A14",'Bilans-A14'!AS16,IF(Obliczenia!$D$58="Vitocal 1xx-S 101.A16",'Bilans-A16'!AS16,IF(Obliczenia!$D$58="Vitocal 2xx-S 201.D04",'Bilans-D04'!AS16,IF(Obliczenia!$D$58="Vitocal 2xx-S 201.D06",'Bilans-B06'!AS16,IF(Obliczenia!$D$58="Vitocal 2xx-S 201.D08",'Bilans-D08'!AS16,IF(Obliczenia!$D$58="Vitocal 2xx-S 201.D10",'Bilans-D10'!AS16,IF(Obliczenia!$D$58="Vitocal 2xx-S 201.D13",'Bilans-D13'!AS16,IF(Obliczenia!$D$58="Vitocal 2xx-S 201.D16",'Bilans-D16'!AS16,IF(Obliczenia!$D$58="Vitocal 15x-A 151.A10",'Bilans-151-A10'!AS16,IF(Obliczenia!$D$58="Vitocal 15x-A 151.A13",'Bilans-151-A13'!AS16,IF(Obliczenia!$D$58="Vitocal 15x-A 151.A16",'Bilans-151-A16'!AS16,IF(Obliczenia!$D$58="Vitocal 25x-A 251.A10",'Bilans-251-A10'!AS16,IF(Obliczenia!$D$58="Vitocal 25x-A 251.A13",'Bilans-251-A13'!AS16,IF(Obliczenia!$D$58="Vitocal 15x-A 151.A08",'Bilans-151-A08'!AS16,IF(Obliczenia!$D$58="Vitocal 15x-A 151.A06",'Bilans-151-A06'!AS16,IF(Obliczenia!$D$58="Vitocal 15x-A 151.A04",'Bilans-151-A04'!AS16,IF(Obliczenia!$D$58="Vitocal 25x-A 251.A04",'Bilans-251-A04'!AS16,IF(Obliczenia!$D$58="Vitocal 25x-A 251.A06",'Bilans-251-A06'!AS16,IF(Obliczenia!$D$58="Vitocal 25x-A 251.A08",'Bilans-251-A08'!AS16,IF(Obliczenia!$D$58="Carrier 30AWH-P006HP",'Bilans-AWH-P006'!AS16,IF(Obliczenia!$D$58="Carrier 30AWH-P008HP",'Bilans-AWH-P008'!AS16,IF(Obliczenia!$D$58="Carrier 30AWH-P004HP",'Bilans-AWH-P004'!AS16,IF(Obliczenia!$D$58="Carrier 30AWH-P012HP",'Bilans-AWH-P012'!AS16,IF(Obliczenia!$D$58="Carrier 30AWH-P014HP",'Bilans-AWH-P014'!AS16,IF(Obliczenia!$D$58="Vitocal 100-A 101.A16",#REF!,IF(Obliczenia!$D$58="Vitocal 100-A 101.A18",#REF!,IF(Obliczenia!$D$58="Vitocal 25x-A 251.A16",'Bilans-251-A16'!AS16,IF(Obliczenia!$D$58="Vitocal 25x-A 251.A19",'Bilans-251-A19'!AS16,"błąd"))))))))))))))))))))))))))))))))))) -> 0 | AV16: =IF(Obliczenia!$D$58="Vitocal 2xx-S 201.E06",'Bilans-E06'!BJ16,IF(Obliczenia!$D$58="Vitocal 2xx-S 201.E08",'Bilans-E08'!BJ16,IF(Obliczenia!$D$58="Vitocal 2xx-S 201.E10",'Bilans-E10'!BJ16,IF(Obliczenia!$D$58="Vitocal 1xx-S 101.B04",'Bilans-B04'!BJ16,IF(Obliczenia!$D$58="Vitocal 1xx-S 101.B06",'Bilans-B06'!BJ16,IF(Obliczenia!$D$58="Vitocal 1xx-S 101.B08",'Bilans-B08'!BJ16,IF(Obliczenia!$D$58="Vitocal 1xx-S 101.A12",'Bilans-A12'!BJ16,IF(Obliczenia!$D$58="Vitocal 1xx-S 101.A14",'Bilans-A14'!BJ16,IF(Obliczenia!$D$58="Vitocal 1xx-S 101.A16",'Bilans-A16'!BJ16,IF(Obliczenia!$D$58="Vitocal 2xx-S 201.D04",'Bilans-D04'!BJ16,IF(Obliczenia!$D$58="Vitocal 2xx-S 201.D06",'Bilans-B06'!BJ16,IF(Obliczenia!$D$58="Vitocal 2xx-S 201.D08",'Bilans-D08'!BJ16,IF(Obliczenia!$D$58="Vitocal 2xx-S 201.D10",'Bilans-D10'!BJ16,IF(Obliczenia!$D$58="Vitocal 2xx-S 201.D13",'Bilans-D13'!BJ16,IF(Obliczenia!$D$58="Vitocal 2xx-S 201.D16",'Bilans-D16'!BJ16,IF(Obliczenia!$D$58="Vitocal 15x-A 151.A10",'Bilans-151-A10'!BJ16,IF(Obliczenia!$D$58="Vitocal 15x-A 151.A13",'Bilans-151-A13'!BJ16,IF(Obliczenia!$D$58="Vitocal 15x-A 151.A16",'Bilans-151-A16'!BJ16,IF(Obliczenia!$D$58="Vitocal 25x-A 251.A10",'Bilans-251-A10'!BJ16,IF(Obliczenia!$D$58="Vitocal 25x-A 251.A13",'Bilans-251-A13'!BJ16,IF(Obliczenia!$D$58="Vitocal 15x-A 151.A08",'Bilans-151-A08'!BJ16,IF(Obliczenia!$D$58="Vitocal 15x-A 151.A06",'Bilans-151-A06'!BJ16,IF(Obliczenia!$D$58="Vitocal 15x-A 151.A04",'Bilans-151-A04'!BJ16,IF(Obliczenia!$D$58="Vitocal 25x-A 251.A04",'Bilans-251-A04'!BJ16,IF(Obliczenia!$D$58="Vitocal 25x-A 251.A06",'Bilans-251-A06'!BJ16,IF(Obliczenia!$D$58="Vitocal 25x-A 251.A08",'Bilans-251-A08'!BJ16,IF(Obliczenia!$D$58="Carrier 30AWH-P006HP",'Bilans-AWH-P006'!BJ16,IF(Obliczenia!$D$58="Carrier 30AWH-P008HP",'Bilans-AWH-P008'!BJ16,IF(Obliczenia!$D$58="Carrier 30AWH-P004HP",'Bilans-AWH-P004'!BJ16,IF(Obliczenia!$D$58="Carrier 30AWH-P012HP",'Bilans-AWH-P012'!BJ16,IF(Obliczenia!$D$58="Carrier 30AWH-P014HP",'Bilans-AWH-P014'!BJ16,IF(Obliczenia!$D$58="Vitocal 100-A 101.A16",#REF!,IF(Obliczenia!$D$58="Vitocal 100-A 101.A18",#REF!,IF(Obliczenia!$D$58="Vitocal 25x-A 251.A16",'Bilans-251-A16'!BJ16,IF(Obliczenia!$D$58="Vitocal 25x-A 251.A19",'Bilans-251-A19'!BJ16,"błąd"))))))))))))))))))))))))))))))))))) -> 68.1 | AW16: =IF(Obliczenia!$D$58="Vitocal 2xx-S 201.E06",'Bilans-E06'!BK16,IF(Obliczenia!$D$58="Vitocal 2xx-S 201.E08",'Bilans-E08'!BK16,IF(Obliczenia!$D$58="Vitocal 2xx-S 201.E10",'Bilans-E10'!BK16,IF(Obliczenia!$D$58="Vitocal 1xx-S 101.B04",'Bilans-B04'!BK16,IF(Obliczenia!$D$58="Vitocal 1xx-S 101.B06",'Bilans-B06'!BK16,IF(Obliczenia!$D$58="Vitocal 1xx-S 101.B08",'Bilans-B08'!BK16,IF(Obliczenia!$D$58="Vitocal 1xx-S 101.A12",'Bilans-A12'!BK16,IF(Obliczenia!$D$58="Vitocal 1xx-S 101.A14",'Bilans-A14'!BK16,IF(Obliczenia!$D$58="Vitocal 1xx-S 101.A16",'Bilans-A16'!BK16,IF(Obliczenia!$D$58="Vitocal 2xx-S 201.D04",'Bilans-D04'!BK16,IF(Obliczenia!$D$58="Vitocal 2xx-S 201.D06",'Bilans-B06'!BK16,IF(Obliczenia!$D$58="Vitocal 2xx-S 201.D08",'Bilans-D08'!BK16,IF(Obliczenia!$D$58="Vitocal 2xx-S 201.D10",'Bilans-D10'!BK16,IF(Obliczenia!$D$58="Vitocal 2xx-S 201.D13",'Bilans-D13'!BK16,IF(Obliczenia!$D$58="Vitocal 2xx-S 201.D16",'Bilans-D16'!BK16,IF(Obliczenia!$D$58="Vitocal 15x-A 151.A10",'Bilans-151-A10'!BK16,IF(Obliczenia!$D$58="Vitocal 15x-A 151.A13",'Bilans-151-A13'!BK16,IF(Obliczenia!$D$58="Vitocal 15x-A 151.A16",'Bilans-151-A16'!BK16,IF(Obliczenia!$D$58="Vitocal 25x-A 251.A10",'Bilans-251-A10'!BK16,IF(Obliczenia!$D$58="Vitocal 25x-A 251.A13",'Bilans-251-A13'!BK16,IF(Obliczenia!$D$58="Vitocal 15x-A 151.A08",'Bilans-151-A08'!BK16,IF(Obliczenia!$D$58="Vitocal 15x-A 151.A06",'Bilans-151-A06'!BK16,IF(Obliczenia!$D$58="Vitocal 15x-A 151.A04",'Bilans-151-A04'!BK16,IF(Obliczenia!$D$58="Vitocal 25x-A 251.A04",'Bilans-251-A04'!BK16,IF(Obliczenia!$D$58="Vitocal 25x-A 251.A06",'Bilans-251-A06'!BK16,IF(Obliczenia!$D$58="Vitocal 25x-A 251.A08",'Bilans-251-A08'!BK16,IF(Obliczenia!$D$58="Carrier 30AWH-P006HP",'Bilans-AWH-P006'!BK16,IF(Obliczenia!$D$58="Carrier 30AWH-P008HP",'Bilans-AWH-P008'!BK16,IF(Obliczenia!$D$58="Carrier 30AWH-P004HP",'Bilans-AWH-P004'!BK16,IF(Obliczenia!$D$58="Carrier 30AWH-P012HP",'Bilans-AWH-P012'!BK16,IF(Obliczenia!$D$58="Carrier 30AWH-P014HP",'Bilans-AWH-P014'!BK16,IF(Obliczenia!$D$58="Vitocal 100-A 101.A16",#REF!,IF(Obliczenia!$D$58="Vitocal 100-A 101.A18",#REF!,IF(Obliczenia!$D$58="Vitocal 25x-A 251.A16",'Bilans-251-A16'!BK16,IF(Obliczenia!$D$58="Vitocal 25x-A 251.A19",'Bilans-251-A19'!BK16,"błąd"))))))))))))))))))))))))))))))))))) -> 0 | AZ16: =IF(Obliczenia!$D$58="Vitocal 15x-A 151.A10",'Bilans-151-A10'!CK16,IF(Obliczenia!$D$58="Vitocal 15x-A 151.A13",'Bilans-151-A13'!CK16,IF(Obliczenia!$D$58="Vitocal 15x-A 151.A16",'Bilans-151-A16'!CK16,IF(Obliczenia!$D$58="Vitocal 25x-A 251.A10",'Bilans-251-A10'!CK16,IF(Obliczenia!$D$58="Vitocal 25x-A 251.A13",'Bilans-251-A13'!CK16,IF(Obliczenia!$D$58="Vitocal 15x-A 151.A08",'Bilans-151-A08'!CK16,IF(Obliczenia!$D$58="Vitocal 15x-A 151.A06",'Bilans-151-A06'!CK16,IF(Obliczenia!$D$58="Vitocal 15x-A 151.A04",'Bilans-151-A04'!CK16,IF(Obliczenia!$D$58="Vitocal 25x-A 251.A04",'Bilans-251-A04'!CK16,IF(Obliczenia!$D$58="Vitocal 25x-A 251.A06",'Bilans-251-A06'!CK16,IF(Obliczenia!$D$58="Vitocal 25x-A 251.A08",'Bilans-251-A08'!CK16,IF(Obliczenia!$D$58="Vitocal 25x-A 251.A16",'Bilans-251-A16'!CK16,IF(Obliczenia!$D$58="Vitocal 25x-A 251.A19",'Bilans-251-A19'!CK16,IF(Obliczenia!$D$58="Carrier 30AWH-P004HP",'Bilans-AWH-P004'!CK16,IF(Obliczenia!$D$58="Carrier 30AWH-P006HP",'Bilans-AWH-P006'!CK16,IF(Obliczenia!$D$58="Carrier 30AWH-P008HP",'Bilans-AWH-P008'!CK16,IF(Obliczenia!$D$58="Carrier 30AWH-P012HP",'Bilans-AWH-P012'!CK16,IF(Obliczenia!$D$58="Carrier 30AWH-P014HP",'Bilans-AWH-P014'!CK16,"błąd")))))))))))))))))) -> błąd | BA16: =IF(Obliczenia!$D$58="Vitocal 15x-A 151.A10",'Bilans-151-A10'!CL16,IF(Obliczenia!$D$58="Vitocal 15x-A 151.A13",'Bilans-151-A13'!CL16,IF(Obliczenia!$D$58="Vitocal 15x-A 151.A16",'Bilans-151-A16'!CL16,IF(Obliczenia!$D$58="Vitocal 25x-A 251.A10",'Bilans-251-A10'!CL16,IF(Obliczenia!$D$58="Vitocal 25x-A 251.A13",'Bilans-251-A13'!CL16,IF(Obliczenia!$D$58="Vitocal 15x-A 151.A08",'Bilans-151-A08'!CL16,IF(Obliczenia!$D$58="Vitocal 15x-A 151.A06",'Bilans-151-A06'!CL16,IF(Obliczenia!$D$58="Vitocal 15x-A 151.A04",'Bilans-151-A04'!CL16,IF(Obliczenia!$D$58="Vitocal 25x-A 251.A04",'Bilans-251-A04'!CL16,IF(Obliczenia!$D$58="Vitocal 25x-A 251.A06",'Bilans-251-A06'!CL16,IF(Obliczenia!$D$58="Vitocal 25x-A 251.A08",'Bilans-251-A08'!CL16,IF(Obliczenia!$D$58="Vitocal 25x-A 251.A16",'Bilans-251-A16'!CL16,IF(Obliczenia!$D$58="Vitocal 25x-A 251.A19",'Bilans-251-A19'!CL16,IF(Obliczenia!$D$58="Carrier 30AWH-P004HP",'Bilans-AWH-P004'!CL16,IF(Obliczenia!$D$58="Carrier 30AWH-P006HP",'Bilans-AWH-P006'!CL16,IF(Obliczenia!$D$58="Carrier 30AWH-P008HP",'Bilans-AWH-P008'!CL16,IF(Obliczenia!$D$58="Carrier 30AWH-P012HP",'Bilans-AWH-P012'!CL16,IF(Obliczenia!$D$58="Carrier 30AWH-P014HP",'Bilans-AWH-P014'!CL16,"błąd")))))))))))))))))) -> błąd | BW16: Vitocal 100-S AWB-E(-AC) 101.A14 | BX16: ='A14'!B25 -> 36761 | BY16: ='Bilans-A14'!G7 -> 3.217826332 | BZ16: 11424.17154 | CA16: 11424.17154 | CD16: Różnica | CH16: =(CH15-CH14)*(-1) -> 1491 | CI16: kg | CK16: -0.4166666667 | CL16: -7.020833333
A17: 12 | B17: 5.1 | C17: 5.1 | E17: 11 | F17: =AVERAGE(C247:C270) -> -0.9583333333 | H17: =F17*Budynek!$D$31+Budynek!$D$32 -> 27.859375 | J17: =Budynek!$D$4*(Dane!$E$12-F17)*12/1000 -> 37.725 | L17: =Budynek!$D$4*(Dane!$E$13-F17)*12/1000 -> 32.325 | N17: 70.05 | P17: 70.05 | Q17: 70.05 | R17: 70.05 | S17: 70.05 | T17: 7.11627907 | AA17: =IF(Obliczenia!$D$58="Vitocal 2xx-S 201.E06",'Bilans-E06'!Z17,IF(Obliczenia!$D$58="Vitocal 2xx-S 201.E08",'Bilans-E08'!Z17,IF(Obliczenia!$D$58="Vitocal 2xx-S 201.E10",'Bilans-E10'!Z17,IF(Obliczenia!$D$58="Vitocal 1xx-S 101.B04",'Bilans-B04'!Z17,IF(Obliczenia!$D$58="Vitocal 1xx-S 101.B06",'Bilans-B06'!Z17,IF(Obliczenia!$D$58="Vitocal 1xx-S 101.B08",'Bilans-B08'!Z17,IF(Obliczenia!$D$58="Vitocal 1xx-S 101.A12",'Bilans-A12'!Z17,IF(Obliczenia!$D$58="Vitocal 1xx-S 101.A14",'Bilans-A14'!Z17,IF(Obliczenia!$D$58="Vitocal 1xx-S 101.A16",'Bilans-A16'!Z17,IF(Obliczenia!$D$58="Vitocal 2xx-S 201.D04",'Bilans-D04'!Z17,IF(Obliczenia!$D$58="Vitocal 2xx-S 201.D06",'Bilans-B06'!Z17,IF(Obliczenia!$D$58="Vitocal 2xx-S 201.D08",'Bilans-D08'!Z17,IF(Obliczenia!$D$58="Vitocal 2xx-S 201.D10",'Bilans-D10'!Z17,IF(Obliczenia!$D$58="Vitocal 2xx-S 201.D13",'Bilans-D13'!Z17,IF(Obliczenia!$D$58="Vitocal 2xx-S 201.D16",'Bilans-D16'!Z17,IF(Obliczenia!$D$58="Vitocal 15x-A 151.A10",'Bilans-151-A10'!Z17,IF(Obliczenia!$D$58="Vitocal 15x-A 151.A13",'Bilans-151-A13'!Z17,IF(Obliczenia!$D$58="Vitocal 15x-A 151.A16",'Bilans-151-A16'!Z17,IF(Obliczenia!$D$58="Vitocal 15x-A 151.A16",'Bilans-151-A16'!Z17,IF(Obliczenia!$D$58="Vitocal 25x-A 251.A10",'Bilans-251-A10'!Z17,IF(Obliczenia!$D$58="Vitocal 25x-A 251.A13",'Bilans-251-A13'!Z17,IF(Obliczenia!$D$58="Vitocal 15x-A 151.A06",'Bilans-151-A06'!Z17,IF(Obliczenia!$D$58="Vitocal 15x-A 151.A08",'Bilans-151-A08'!Z17,IF(Obliczenia!$D$58="Vitocal 15x-A 151.A04",'Bilans-151-A04'!Z17,IF(Obliczenia!$D$58="Vitocal 25x-A 251.A04",'Bilans-251-A04'!Z17,IF(Obliczenia!$D$58="Vitocal 25x-A 251.A06",'Bilans-251-A06'!Z17,IF(Obliczenia!$D$58="Vitocal 25x-A 251.A08",'Bilans-251-A08'!Z17,IF(Obliczenia!$D$58="Carrier 30AWH-P006HP",'Bilans-AWH-P006'!Z17,IF(Obliczenia!$D$58="Carrier 30AWH-P008HP",'Bilans-AWH-P008'!Z17,IF(Obliczenia!$D$58="Carrier 30AWH-P004HP",'Bilans-AWH-P004'!Z17,IF(Obliczenia!$D$58="Carrier 30AWH-P012HP",'Bilans-AWH-P012'!Z17,IF(Obliczenia!$D$58="Carrier 30AWH-P014HP",'Bilans-AWH-P014'!Z17,IF(Obliczenia!$D$58="Vitocal 100-A 101.A16",#REF!,IF(Obliczenia!$D$58="Vitocal 100-A 101.A18",#REF!,IF(Obliczenia!$D$58="Vitocal 25x-A 251.A16",'Bilans-251-A16'!Z17,IF(Obliczenia!$D$58="Vitocal 25x-A 251.A19",'Bilans-251-A19'!Z17,"błąd")))))))))))))))))))))))))))))))))))) -> 70.05 | AB17: =IF(Obliczenia!$D$58="Vitocal 2xx-S 201.E06",'Bilans-E06'!AA17,IF(Obliczenia!$D$58="Vitocal 2xx-S 201.E08",'Bilans-E08'!AA17,IF(Obliczenia!$D$58="Vitocal 2xx-S 201.E10",'Bilans-E10'!AA17,IF(Obliczenia!$D$58="Vitocal 1xx-S 101.B04",'Bilans-B04'!AA17,IF(Obliczenia!$D$58="Vitocal 1xx-S 101.B06",'Bilans-B06'!AA17,IF(Obliczenia!$D$58="Vitocal 1xx-S 101.B08",'Bilans-B08'!AA17,IF(Obliczenia!$D$58="Vitocal 1xx-S 101.A12",'Bilans-A12'!AA17,IF(Obliczenia!$D$58="Vitocal 1xx-S 101.A14",'Bilans-A14'!AA17,IF(Obliczenia!$D$58="Vitocal 1xx-S 101.A16",'Bilans-A16'!AA17,IF(Obliczenia!$D$58="Vitocal 2xx-S 201.D04",'Bilans-D04'!AA17,IF(Obliczenia!$D$58="Vitocal 2xx-S 201.D06",'Bilans-B06'!AA17,IF(Obliczenia!$D$58="Vitocal 2xx-S 201.D08",'Bilans-D08'!AA17,IF(Obliczenia!$D$58="Vitocal 2xx-S 201.D10",'Bilans-D10'!AA17,IF(Obliczenia!$D$58="Vitocal 2xx-S 201.D13",'Bilans-D13'!AA17,IF(Obliczenia!$D$58="Vitocal 2xx-S 201.D16",'Bilans-D16'!AA17,IF(Obliczenia!$D$58="Vitocal 15x-A 151.A10",'Bilans-151-A10'!AA17,IF(Obliczenia!$D$58="Vitocal 15x-A 151.A13",'Bilans-151-A13'!AA17,IF(Obliczenia!$D$58="Vitocal 15x-A 151.A16",'Bilans-151-A16'!AA17,IF(Obliczenia!$D$58="Vitocal 15x-A 151.A16",'Bilans-151-A16'!AA17,IF(Obliczenia!$D$58="Vitocal 25x-A 251.A10",'Bilans-251-A10'!AA17,IF(Obliczenia!$D$58="Vitocal 25x-A 251.A13",'Bilans-251-A13'!AA17,IF(Obliczenia!$D$58="Vitocal 15x-A 151.A08",'Bilans-151-A08'!AA17,IF(Obliczenia!$D$58="Vitocal 15x-A 151.A06",'Bilans-151-A06'!AA17,IF(Obliczenia!$D$58="Vitocal 15x-A 151.A04",'Bilans-151-A04'!AA17,IF(Obliczenia!$D$58="Vitocal 25x-A 251.A04",'Bilans-251-A04'!AA17,IF(Obliczenia!$D$58="Vitocal 25x-A 251.A06",'Bilans-251-A06'!AA17,IF(Obliczenia!$D$58="Vitocal 25x-A 251.A08",'Bilans-251-A08'!AA17,IF(Obliczenia!$D$58="Carrier 30AWH-P006HP",'Bilans-AWH-P006'!AA17,IF(Obliczenia!$D$58="Carrier 30AWH-P008HP",'Bilans-AWH-P008'!AA17,IF(Obliczenia!$D$58="Carrier 30AWH-P004HP",'Bilans-AWH-P004'!AA17,IF(Obliczenia!$D$58="Carrier 30AWH-P012HP",'Bilans-AWH-P012'!AA17,IF(Obliczenia!$D$58="Carrier 30AWH-P014HP",'Bilans-AWH-P014'!AA17,IF(Obliczenia!$D$58="Vitocal 100-A 101.A16",#REF!,IF(Obliczenia!$D$58="Vitocal 100-A 101.A18",#REF!,IF(Obliczenia!$D$58="Vitocal 25x-A 251.A16",'Bilans-251-A16'!AA17,IF(Obliczenia!$D$58="Vitocal 25x-A 251.A19",'Bilans-251-A19'!AA17,"błąd")))))))))))))))))))))))))))))))))))) -> 0 | AE17: B06 | AF17: ='B06'!B28 -> 8.7 | AG17: =IF(AF17>=$AF$4,IF($C$3<>"Grzejniki wysokotemperaturowe 70/55",1,0),0) -> 1 | AI17: 70.05 | AJ17: 0 | AR17: =IF(Obliczenia!$D$58="Vitocal 2xx-S 201.E06",'Bilans-E06'!AR17,IF(Obliczenia!$D$58="Vitocal 2xx-S 201.E08",'Bilans-E08'!AR17,IF(Obliczenia!$D$58="Vitocal 2xx-S 201.E10",'Bilans-E10'!AR17,IF(Obliczenia!$D$58="Vitocal 1xx-S 101.B04",'Bilans-B04'!AR17,IF(Obliczenia!$D$58="Vitocal 1xx-S 101.B06",'Bilans-B06'!AR17,IF(Obliczenia!$D$58="Vitocal 1xx-S 101.B08",'Bilans-B08'!AR17,IF(Obliczenia!$D$58="Vitocal 1xx-S 101.A12",'Bilans-A12'!AR17,IF(Obliczenia!$D$58="Vitocal 1xx-S 101.A14",'Bilans-A14'!AR17,IF(Obliczenia!$D$58="Vitocal 1xx-S 101.A16",'Bilans-A16'!AR17,IF(Obliczenia!$D$58="Vitocal 2xx-S 201.D04",'Bilans-D04'!AR17,IF(Obliczenia!$D$58="Vitocal 2xx-S 201.D06",'Bilans-B06'!AR17,IF(Obliczenia!$D$58="Vitocal 2xx-S 201.D08",'Bilans-D08'!AR17,IF(Obliczenia!$D$58="Vitocal 2xx-S 201.D10",'Bilans-D10'!AR17,IF(Obliczenia!$D$58="Vitocal 2xx-S 201.D13",'Bilans-D13'!AR17,IF(Obliczenia!$D$58="Vitocal 2xx-S 201.D16",'Bilans-D16'!AR17,IF(Obliczenia!$D$58="Vitocal 15x-A 151.A10",'Bilans-151-A10'!AR17,IF(Obliczenia!$D$58="Vitocal 15x-A 151.A13",'Bilans-151-A13'!AR17,IF(Obliczenia!$D$58="Vitocal 15x-A 151.A16",'Bilans-151-A16'!AR17,IF(Obliczenia!$D$58="Vitocal 25x-A 251.A10",'Bilans-251-A10'!AR17,IF(Obliczenia!$D$58="Vitocal 25x-A 251.A13",'Bilans-251-A13'!AR17,IF(Obliczenia!$D$58="Vitocal 15x-A 151.A08",'Bilans-151-A08'!AR17,IF(Obliczenia!$D$58="Vitocal 15x-A 151.A06",'Bilans-151-A06'!AR17,IF(Obliczenia!$D$58="Vitocal 15x-A 151.A04",'Bilans-151-A04'!AR17,IF(Obliczenia!$D$58="Vitocal 25x-A 251.A04",'Bilans-251-A04'!AR17,IF(Obliczenia!$D$58="Vitocal 25x-A 251.A06",'Bilans-251-A06'!AR17,IF(Obliczenia!$D$58="Vitocal 25x-A 251.A08",'Bilans-251-A08'!AR17,IF(Obliczenia!$D$58="Carrier 30AWH-P006HP",'Bilans-AWH-P006'!AR17,IF(Obliczenia!$D$58="Carrier 30AWH-P008HP",'Bilans-AWH-P008'!AR17,IF(Obliczenia!$D$58="Carrier 30AWH-P004HP",'Bilans-AWH-P004'!AR17,IF(Obliczenia!$D$58="Carrier 30AWH-P012HP",'Bilans-AWH-P012'!AR17,IF(Obliczenia!$D$58="Carrier 30AWH-P014HP",'Bilans-AWH-P014'!AR17,IF(Obliczenia!$D$58="Vitocal 100-A 101.A16",#REF!,IF(Obliczenia!$D$58="Vitocal 100-A 101.A18",#REF!,IF(Obliczenia!$D$58="Vitocal 25x-A 251.A16",'Bilans-251-A16'!AR17,IF(Obliczenia!$D$58="Vitocal 25x-A 251.A19",'Bilans-251-A19'!AR17,"błąd"))))))))))))))))))))))))))))))))))) -> 70.05 | AS17: =IF(Obliczenia!$D$58="Vitocal 2xx-S 201.E06",'Bilans-E06'!AS17,IF(Obliczenia!$D$58="Vitocal 2xx-S 201.E08",'Bilans-E08'!AS17,IF(Obliczenia!$D$58="Vitocal 2xx-S 201.E10",'Bilans-E10'!AS17,IF(Obliczenia!$D$58="Vitocal 1xx-S 101.B04",'Bilans-B04'!AS17,IF(Obliczenia!$D$58="Vitocal 1xx-S 101.B06",'Bilans-B06'!AS17,IF(Obliczenia!$D$58="Vitocal 1xx-S 101.B08",'Bilans-B08'!AS17,IF(Obliczenia!$D$58="Vitocal 1xx-S 101.A12",'Bilans-A12'!AS17,IF(Obliczenia!$D$58="Vitocal 1xx-S 101.A14",'Bilans-A14'!AS17,IF(Obliczenia!$D$58="Vitocal 1xx-S 101.A16",'Bilans-A16'!AS17,IF(Obliczenia!$D$58="Vitocal 2xx-S 201.D04",'Bilans-D04'!AS17,IF(Obliczenia!$D$58="Vitocal 2xx-S 201.D06",'Bilans-B06'!AS17,IF(Obliczenia!$D$58="Vitocal 2xx-S 201.D08",'Bilans-D08'!AS17,IF(Obliczenia!$D$58="Vitocal 2xx-S 201.D10",'Bilans-D10'!AS17,IF(Obliczenia!$D$58="Vitocal 2xx-S 201.D13",'Bilans-D13'!AS17,IF(Obliczenia!$D$58="Vitocal 2xx-S 201.D16",'Bilans-D16'!AS17,IF(Obliczenia!$D$58="Vitocal 15x-A 151.A10",'Bilans-151-A10'!AS17,IF(Obliczenia!$D$58="Vitocal 15x-A 151.A13",'Bilans-151-A13'!AS17,IF(Obliczenia!$D$58="Vitocal 15x-A 151.A16",'Bilans-151-A16'!AS17,IF(Obliczenia!$D$58="Vitocal 25x-A 251.A10",'Bilans-251-A10'!AS17,IF(Obliczenia!$D$58="Vitocal 25x-A 251.A13",'Bilans-251-A13'!AS17,IF(Obliczenia!$D$58="Vitocal 15x-A 151.A08",'Bilans-151-A08'!AS17,IF(Obliczenia!$D$58="Vitocal 15x-A 151.A06",'Bilans-151-A06'!AS17,IF(Obliczenia!$D$58="Vitocal 15x-A 151.A04",'Bilans-151-A04'!AS17,IF(Obliczenia!$D$58="Vitocal 25x-A 251.A04",'Bilans-251-A04'!AS17,IF(Obliczenia!$D$58="Vitocal 25x-A 251.A06",'Bilans-251-A06'!AS17,IF(Obliczenia!$D$58="Vitocal 25x-A 251.A08",'Bilans-251-A08'!AS17,IF(Obliczenia!$D$58="Carrier 30AWH-P006HP",'Bilans-AWH-P006'!AS17,IF(Obliczenia!$D$58="Carrier 30AWH-P008HP",'Bilans-AWH-P008'!AS17,IF(Obliczenia!$D$58="Carrier 30AWH-P004HP",'Bilans-AWH-P004'!AS17,IF(Obliczenia!$D$58="Carrier 30AWH-P012HP",'Bilans-AWH-P012'!AS17,IF(Obliczenia!$D$58="Carrier 30AWH-P014HP",'Bilans-AWH-P014'!AS17,IF(Obliczenia!$D$58="Vitocal 100-A 101.A16",#REF!,IF(Obliczenia!$D$58="Vitocal 100-A 101.A18",#REF!,IF(Obliczenia!$D$58="Vitocal 25x-A 251.A16",'Bilans-251-A16'!AS17,IF(Obliczenia!$D$58="Vitocal 25x-A 251.A19",'Bilans-251-A19'!AS17,"błąd"))))))))))))))))))))))))))))))))))) -> 0 | AV17: =IF(Obliczenia!$D$58="Vitocal 2xx-S 201.E06",'Bilans-E06'!BJ17,IF(Obliczenia!$D$58="Vitocal 2xx-S 201.E08",'Bilans-E08'!BJ17,IF(Obliczenia!$D$58="Vitocal 2xx-S 201.E10",'Bilans-E10'!BJ17,IF(Obliczenia!$D$58="Vitocal 1xx-S 101.B04",'Bilans-B04'!BJ17,IF(Obliczenia!$D$58="Vitocal 1xx-S 101.B06",'Bilans-B06'!BJ17,IF(Obliczenia!$D$58="Vitocal 1xx-S 101.B08",'Bilans-B08'!BJ17,IF(Obliczenia!$D$58="Vitocal 1xx-S 101.A12",'Bilans-A12'!BJ17,IF(Obliczenia!$D$58="Vitocal 1xx-S 101.A14",'Bilans-A14'!BJ17,IF(Obliczenia!$D$58="Vitocal 1xx-S 101.A16",'Bilans-A16'!BJ17,IF(Obliczenia!$D$58="Vitocal 2xx-S 201.D04",'Bilans-D04'!BJ17,IF(Obliczenia!$D$58="Vitocal 2xx-S 201.D06",'Bilans-B06'!BJ17,IF(Obliczenia!$D$58="Vitocal 2xx-S 201.D08",'Bilans-D08'!BJ17,IF(Obliczenia!$D$58="Vitocal 2xx-S 201.D10",'Bilans-D10'!BJ17,IF(Obliczenia!$D$58="Vitocal 2xx-S 201.D13",'Bilans-D13'!BJ17,IF(Obliczenia!$D$58="Vitocal 2xx-S 201.D16",'Bilans-D16'!BJ17,IF(Obliczenia!$D$58="Vitocal 15x-A 151.A10",'Bilans-151-A10'!BJ17,IF(Obliczenia!$D$58="Vitocal 15x-A 151.A13",'Bilans-151-A13'!BJ17,IF(Obliczenia!$D$58="Vitocal 15x-A 151.A16",'Bilans-151-A16'!BJ17,IF(Obliczenia!$D$58="Vitocal 25x-A 251.A10",'Bilans-251-A10'!BJ17,IF(Obliczenia!$D$58="Vitocal 25x-A 251.A13",'Bilans-251-A13'!BJ17,IF(Obliczenia!$D$58="Vitocal 15x-A 151.A08",'Bilans-151-A08'!BJ17,IF(Obliczenia!$D$58="Vitocal 15x-A 151.A06",'Bilans-151-A06'!BJ17,IF(Obliczenia!$D$58="Vitocal 15x-A 151.A04",'Bilans-151-A04'!BJ17,IF(Obliczenia!$D$58="Vitocal 25x-A 251.A04",'Bilans-251-A04'!BJ17,IF(Obliczenia!$D$58="Vitocal 25x-A 251.A06",'Bilans-251-A06'!BJ17,IF(Obliczenia!$D$58="Vitocal 25x-A 251.A08",'Bilans-251-A08'!BJ17,IF(Obliczenia!$D$58="Carrier 30AWH-P006HP",'Bilans-AWH-P006'!BJ17,IF(Obliczenia!$D$58="Carrier 30AWH-P008HP",'Bilans-AWH-P008'!BJ17,IF(Obliczenia!$D$58="Carrier 30AWH-P004HP",'Bilans-AWH-P004'!BJ17,IF(Obliczenia!$D$58="Carrier 30AWH-P012HP",'Bilans-AWH-P012'!BJ17,IF(Obliczenia!$D$58="Carrier 30AWH-P014HP",'Bilans-AWH-P014'!BJ17,IF(Obliczenia!$D$58="Vitocal 100-A 101.A16",#REF!,IF(Obliczenia!$D$58="Vitocal 100-A 101.A18",#REF!,IF(Obliczenia!$D$58="Vitocal 25x-A 251.A16",'Bilans-251-A16'!BJ17,IF(Obliczenia!$D$58="Vitocal 25x-A 251.A19",'Bilans-251-A19'!BJ17,"błąd"))))))))))))))))))))))))))))))))))) -> 70.05 | AW17: =IF(Obliczenia!$D$58="Vitocal 2xx-S 201.E06",'Bilans-E06'!BK17,IF(Obliczenia!$D$58="Vitocal 2xx-S 201.E08",'Bilans-E08'!BK17,IF(Obliczenia!$D$58="Vitocal 2xx-S 201.E10",'Bilans-E10'!BK17,IF(Obliczenia!$D$58="Vitocal 1xx-S 101.B04",'Bilans-B04'!BK17,IF(Obliczenia!$D$58="Vitocal 1xx-S 101.B06",'Bilans-B06'!BK17,IF(Obliczenia!$D$58="Vitocal 1xx-S 101.B08",'Bilans-B08'!BK17,IF(Obliczenia!$D$58="Vitocal 1xx-S 101.A12",'Bilans-A12'!BK17,IF(Obliczenia!$D$58="Vitocal 1xx-S 101.A14",'Bilans-A14'!BK17,IF(Obliczenia!$D$58="Vitocal 1xx-S 101.A16",'Bilans-A16'!BK17,IF(Obliczenia!$D$58="Vitocal 2xx-S 201.D04",'Bilans-D04'!BK17,IF(Obliczenia!$D$58="Vitocal 2xx-S 201.D06",'Bilans-B06'!BK17,IF(Obliczenia!$D$58="Vitocal 2xx-S 201.D08",'Bilans-D08'!BK17,IF(Obliczenia!$D$58="Vitocal 2xx-S 201.D10",'Bilans-D10'!BK17,IF(Obliczenia!$D$58="Vitocal 2xx-S 201.D13",'Bilans-D13'!BK17,IF(Obliczenia!$D$58="Vitocal 2xx-S 201.D16",'Bilans-D16'!BK17,IF(Obliczenia!$D$58="Vitocal 15x-A 151.A10",'Bilans-151-A10'!BK17,IF(Obliczenia!$D$58="Vitocal 15x-A 151.A13",'Bilans-151-A13'!BK17,IF(Obliczenia!$D$58="Vitocal 15x-A 151.A16",'Bilans-151-A16'!BK17,IF(Obliczenia!$D$58="Vitocal 25x-A 251.A10",'Bilans-251-A10'!BK17,IF(Obliczenia!$D$58="Vitocal 25x-A 251.A13",'Bilans-251-A13'!BK17,IF(Obliczenia!$D$58="Vitocal 15x-A 151.A08",'Bilans-151-A08'!BK17,IF(Obliczenia!$D$58="Vitocal 15x-A 151.A06",'Bilans-151-A06'!BK17,IF(Obliczenia!$D$58="Vitocal 15x-A 151.A04",'Bilans-151-A04'!BK17,IF(Obliczenia!$D$58="Vitocal 25x-A 251.A04",'Bilans-251-A04'!BK17,IF(Obliczenia!$D$58="Vitocal 25x-A 251.A06",'Bilans-251-A06'!BK17,IF(Obliczenia!$D$58="Vitocal 25x-A 251.A08",'Bilans-251-A08'!BK17,IF(Obliczenia!$D$58="Carrier 30AWH-P006HP",'Bilans-AWH-P006'!BK17,IF(Obliczenia!$D$58="Carrier 30AWH-P008HP",'Bilans-AWH-P008'!BK17,IF(Obliczenia!$D$58="Carrier 30AWH-P004HP",'Bilans-AWH-P004'!BK17,IF(Obliczenia!$D$58="Carrier 30AWH-P012HP",'Bilans-AWH-P012'!BK17,IF(Obliczenia!$D$58="Carrier 30AWH-P014HP",'Bilans-AWH-P014'!BK17,IF(Obliczenia!$D$58="Vitocal 100-A 101.A16",#REF!,IF(Obliczenia!$D$58="Vitocal 100-A 101.A18",#REF!,IF(Obliczenia!$D$58="Vitocal 25x-A 251.A16",'Bilans-251-A16'!BK17,IF(Obliczenia!$D$58="Vitocal 25x-A 251.A19",'Bilans-251-A19'!BK17,"błąd"))))))))))))))))))))))))))))))))))) -> 0 | AZ17: =IF(Obliczenia!$D$58="Vitocal 15x-A 151.A10",'Bilans-151-A10'!CK17,IF(Obliczenia!$D$58="Vitocal 15x-A 151.A13",'Bilans-151-A13'!CK17,IF(Obliczenia!$D$58="Vitocal 15x-A 151.A16",'Bilans-151-A16'!CK17,IF(Obliczenia!$D$58="Vitocal 25x-A 251.A10",'Bilans-251-A10'!CK17,IF(Obliczenia!$D$58="Vitocal 25x-A 251.A13",'Bilans-251-A13'!CK17,IF(Obliczenia!$D$58="Vitocal 15x-A 151.A08",'Bilans-151-A08'!CK17,IF(Obliczenia!$D$58="Vitocal 15x-A 151.A06",'Bilans-151-A06'!CK17,IF(Obliczenia!$D$58="Vitocal 15x-A 151.A04",'Bilans-151-A04'!CK17,IF(Obliczenia!$D$58="Vitocal 25x-A 251.A04",'Bilans-251-A04'!CK17,IF(Obliczenia!$D$58="Vitocal 25x-A 251.A06",'Bilans-251-A06'!CK17,IF(Obliczenia!$D$58="Vitocal 25x-A 251.A08",'Bilans-251-A08'!CK17,IF(Obliczenia!$D$58="Vitocal 25x-A 251.A16",'Bilans-251-A16'!CK17,IF(Obliczenia!$D$58="Vitocal 25x-A 251.A19",'Bilans-251-A19'!CK17,IF(Obliczenia!$D$58="Carrier 30AWH-P004HP",'Bilans-AWH-P004'!CK17,IF(Obliczenia!$D$58="Carrier 30AWH-P006HP",'Bilans-AWH-P006'!CK17,IF(Obliczenia!$D$58="Carrier 30AWH-P008HP",'Bilans-AWH-P008'!CK17,IF(Obliczenia!$D$58="Carrier 30AWH-P012HP",'Bilans-AWH-P012'!CK17,IF(Obliczenia!$D$58="Carrier 30AWH-P014HP",'Bilans-AWH-P014'!CK17,"błąd")))))))))))))))))) -> błąd | BA17: =IF(Obliczenia!$D$58="Vitocal 15x-A 151.A10",'Bilans-151-A10'!CL17,IF(Obliczenia!$D$58="Vitocal 15x-A 151.A13",'Bilans-151-A13'!CL17,IF(Obliczenia!$D$58="Vitocal 15x-A 151.A16",'Bilans-151-A16'!CL17,IF(Obliczenia!$D$58="Vitocal 25x-A 251.A10",'Bilans-251-A10'!CL17,IF(Obliczenia!$D$58="Vitocal 25x-A 251.A13",'Bilans-251-A13'!CL17,IF(Obliczenia!$D$58="Vitocal 15x-A 151.A08",'Bilans-151-A08'!CL17,IF(Obliczenia!$D$58="Vitocal 15x-A 151.A06",'Bilans-151-A06'!CL17,IF(Obliczenia!$D$58="Vitocal 15x-A 151.A04",'Bilans-151-A04'!CL17,IF(Obliczenia!$D$58="Vitocal 25x-A 251.A04",'Bilans-251-A04'!CL17,IF(Obliczenia!$D$58="Vitocal 25x-A 251.A06",'Bilans-251-A06'!CL17,IF(Obliczenia!$D$58="Vitocal 25x-A 251.A08",'Bilans-251-A08'!CL17,IF(Obliczenia!$D$58="Vitocal 25x-A 251.A16",'Bilans-251-A16'!CL17,IF(Obliczenia!$D$58="Vitocal 25x-A 251.A19",'Bilans-251-A19'!CL17,IF(Obliczenia!$D$58="Carrier 30AWH-P004HP",'Bilans-AWH-P004'!CL17,IF(Obliczenia!$D$58="Carrier 30AWH-P006HP",'Bilans-AWH-P006'!CL17,IF(Obliczenia!$D$58="Carrier 30AWH-P008HP",'Bilans-AWH-P008'!CL17,IF(Obliczenia!$D$58="Carrier 30AWH-P012HP",'Bilans-AWH-P012'!CL17,IF(Obliczenia!$D$58="Carrier 30AWH-P014HP",'Bilans-AWH-P014'!CL17,"błąd")))))))))))))))))) -> błąd | BE17: =IF(C3="Grzejniki niskotemperaturowe 55/45","Moc grzewcza pompy ciepła dla W55",IF(C3="Ogrzewanie podłogowe","Moc grzewcza pompy ciepła dla W35",IF(C3="Grzejniki wysokotemperaturowe 70/55","Moc grzewcza pompy ciepła dla W70","Moc grzewcza pompy ciepła dla W45"))) -> Moc grzewcza pompy ciepła dla W35 | BF17: =IF($C$3="Grzejniki niskotemperaturowe 55/45",ROUND(BF10,2),IF($C$3="Ogrzewanie podłogowe",ROUND(BF8,2),IF($C$3="Grzejniki wysokotemperaturowe 70/55",ROUND(BF12,2),ROUND(BF11,2)))) -> 3.9 | BG17: =IF($C$3="Grzejniki niskotemperaturowe 55/45",ROUND(BG10,2),IF($C$3="Ogrzewanie podłogowe",ROUND(BG8,2),IF($C$3="Grzejniki wysokotemperaturowe 70/55",ROUND(BG12,2),ROUND(BG11,2)))) -> 4.24 | BH17: 5.5 | BI17: 6.15 | BJ17: 7.5 | BK17: 8.25 | BL17: 8.54 | BM17: 8.97 | BN17: 9.68 | BO17: 11.38 | BW17: Vitocal 100-S AWB-E(-AC) 101.A16 | BX17: ='A16'!B25 -> 37672 | BY17: ='Bilans-A16'!G7 -> 3.148381312 | BZ17: 11965.51379 | CA17: 11965.51379 | CK17: -0.9583333333 | CL17: -6.879166667
